Workbook

Sheet PI vs gap
A1: Measurement | B1: Hall
A2: Type | B2: Gap dependence
A4: Project | B4: ='10 mm'!B5 -> 504314
A5: PS serial no | B5: ='10 mm'!B7 -> 2410089
A7: Measurement date | B7: =LEFT('10 mm'!B4,10) -> 02-09-2024
A11: Nominal gap [mm] | B11: Encoder [counts] | C11: Encoder [mm] | D11: PI [T^2mm^3] | E11: PI spec [T^2mm^3] | F11: Encoder value at 10 mm gap:
A12: ='10 mm'!$B$53 -> 10 | B12: ='10 mm'!$B$55 -> 19.5576 | C12: =-1*($F$12-B12)+10 -> 10.0027 | D12: ='10 mm'!$K$3 -> 10562.27657 | F12: 19.5549
A13: ='15 mm'!$B$53 -> 15 | B13: ='15 mm'!$B$55 -> 24.5511 | C13: =-1*($F$12-B13)+10 -> 14.9962 | D13: ='15 mm'!$K$3 -> 7197.391102
A14: ='20 mm'!$B$53 -> 20 | B14: ='20 mm'!$B$55 -> 29.5681 | C14: 20.0132 | D14: ='20 mm'!$K$3 -> 4955.532739
A15: ='30 mm'!$B$53 -> 30 | B15: ='30 mm'!$B$55 -> 39.5551 | C15: 30.0002 | D15: ='30 mm'!$K$3 -> 2428.669159
A16: ='100 mm'!$B$53 -> 100 | B16: ='100 mm'!$B$55 -> 109.5572 | C16: 100.0023 | D16: ='100 mm'!$K$3 -> 37.48517706
A47: Measuring series at larger gaps:
A48: Reference magnet
A49: Tref | B49: 21.38 | C49: degC
A50: Hall ref field | B50: 0.505 | C50: T
A51: NMR ref field | B51: 0.50627 | C51: T
A53: Offset from Faro

Sheet 10 mm
A1: =IF('DF raw data'!A1="","",'DF raw data'!A1) -> Number of header lines | B1: =IF('DF raw data'!B1="","",'DF raw data'!B1) -> 54 | C1: =IF('DF raw data'!C1="","",'DF raw data'!C1) ->  | D1: =IF('DF raw data'!D1="","",'DF raw data'!D1) ->  | F1: T_coeff | G1: -0.001 | H1: /degC | J1: IBy total | K1: =J1267*1000 -> 8.206264616 | L1: muTm | M1: =L1267*1000 -> -41.80801254 | R1: DF ref | S1: 1
A2: =IF('DF raw data'!A2="","",'DF raw data'!A2) -> Measured by | B2: =IF('DF raw data'!B2="","",'DF raw data'!B2) -> Danfysik | C2: =IF('DF raw data'!C2="","",'DF raw data'!C2) ->  | D2: =IF('DF raw data'!D2="","",'DF raw data'!D2) ->  | F2: Tcorr | G2: 20 | H2: degC | J2: JBy total | K2: =K1267 -> -4.850604439 | L2: muTm^2 | M2: =M1267 -> -10.67332509
A3: =IF('DF raw data'!A3="","",'DF raw data'!A3) -> Operator | B3: =IF('DF raw data'!B3="","",'DF raw data'!B3) -> PMHA | C3: =IF('DF raw data'!C3="","",'DF raw data'!C3) ->  | D3: =IF('DF raw data'!D3="","",'DF raw data'!D3) ->  | F3: Step | G3: =A68-A67 -> 0.5 | H3: mm | J3: PI total | K3: =N1267 -> 10562.27657 | L3: T^2mm^3
A4: =IF('DF raw data'!A4="","",'DF raw data'!A4) -> Data-time | B4: =IF('DF raw data'!B4="","",'DF raw data'!B4) -> 02-09-2024, 13:02:30 | C4: =IF('DF raw data'!C4="","",'DF raw data'!C4) ->  | D4: =IF('DF raw data'!D4="","",'DF raw data'!D4) -> 
A5: =IF('DF raw data'!A5="","",'DF raw data'!A5) -> Project | B5: =IF('DF raw data'!B5="","",'DF raw data'!B5) -> 504314 | C5: =IF('DF raw data'!C5="","",'DF raw data'!C5) ->  | D5: Bamb avr | F5: =(AVERAGE(B67:B107) + AVERAGE(B1227:B1267))/2 -> -3.968260244e-05 | G5: =(AVERAGE(C67:C107) + AVERAGE(C1227:C1267))/2 -> 5.287858659e-05 | H5: =(AVERAGE(D67:D107) + AVERAGE(D1227:D1267))/2 -> 0.004111951484
A6: =IF('DF raw data'!A6="","",'DF raw data'!A6) -> Magnet type | B6: =IF('DF raw data'!B6="","",'DF raw data'!B6) -> Dipole | C6: =IF('DF raw data'!C6="","",'DF raw data'!C6) -> 
A7: =IF('DF raw data'!A7="","",'DF raw data'!A7) -> Magnet nr. | B7: =IF('DF raw data'!B7="","",'DF raw data'!B7) -> 2410089 | C7: =IF('DF raw data'!C7="","",'DF raw data'!C7) -> 
A8: =IF('DF raw data'!A8="","",'DF raw data'!A8) -> Meas. number | B8: =IF('DF raw data'!B8="","",'DF raw data'!B8) -> 300 | C8: =IF('DF raw data'!C8="","",'DF raw data'!C8) -> 
A9: =IF('DF raw data'!A9="","",'DF raw data'!A9) -> Add. info | B9: =IF('DF raw data'!B9="","",'DF raw data'!B9) -> Y-alignment scan 3) | C9: =IF('DF raw data'!C9="","",'DF raw data'!C9) ->  | D9: =IF('DF raw data'!D9="","",'DF raw data'!D9) -> 
A10: =IF('DF raw data'!A10="","",'DF raw data'!A10) -> Device | B10: =IF('DF raw data'!B10="","",'DF raw data'!B10) -> (HAL) HALL-PROBE | C10: =IF('DF raw data'!C10="","",'DF raw data'!C10) ->  | D10: =IF('DF raw data'!D10="","",'DF raw data'!D10) -> 
A11: =IF('DF raw data'!A11="","",'DF raw data'!A11) -> Goal | B11: =IF('DF raw data'!B11="","",'DF raw data'!B11) -> (AXI) AXis Integral (Line, EFB) | C11: =IF('DF raw data'!C11="","",'DF raw data'!C11) ->  | D11: =IF('DF raw data'!D11="","",'DF raw data'!D11) -> 
A12: =IF('DF raw data'!A12="","",'DF raw data'!A12) -> Power supply mode | B12: =IF('DF raw data'!B12="","",'DF raw data'!B12) -> (PM) Permanent Magnet (no MPS in use) | C12: =IF('DF raw data'!C12="","",'DF raw data'!C12) ->  | D12: =IF('DF raw data'!D12="","",'DF raw data'!D12) -> 
A13: =IF('DF raw data'!A13="","",'DF raw data'!A13) -> Data format | B13: =IF('DF raw data'!B13="","",'DF raw data'!B13) -> Raw data text file | C13: =IF('DF raw data'!C13="","",'DF raw data'!C13) ->  | D13: =IF('DF raw data'!D13="","",'DF raw data'!D13) -> 
A14: =IF('DF raw data'!A14="","",'DF raw data'!A14) -> Direction of the pos. x-axis | B14: =IF('DF raw data'!B14="","",'DF raw data'!B14) -> See test program | C14: =IF('DF raw data'!C14="","",'DF raw data'!C14) ->  | D14: =IF('DF raw data'!D14="","",'DF raw data'!D14) -> 
A15: =IF('DF raw data'!A15="","",'DF raw data'!A15) -> Direction of the pos. y-axis | B15: =IF('DF raw data'!B15="","",'DF raw data'!B15) -> Vertical up | C15: =IF('DF raw data'!C15="","",'DF raw data'!C15) ->  | D15: =IF('DF raw data'!D15="","",'DF raw data'!D15) -> 
A16: =IF('DF raw data'!A16="","",'DF raw data'!A16) -> Direction of the pos. z-axis | B16: =IF('DF raw data'!B16="","",'DF raw data'!B16) -> See test program | C16: =IF('DF raw data'!C16="","",'DF raw data'!C16) ->  | D16: =IF('DF raw data'!D16="","",'DF raw data'!D16) -> 
A17: =IF('DF raw data'!A17="","",'DF raw data'!A17) -> Mapper type | B17: =IF('DF raw data'!B17="","",'DF raw data'!B17) -> Precision Hall Mapper | C17: =IF('DF raw data'!C17="","",'DF raw data'!C17) ->  | D17: =IF('DF raw data'!D17="","",'DF raw data'!D17) -> 
A18: =IF('DF raw data'!A18="","",'DF raw data'!A18) -> Mapper Danfysik Reg. Number | B18: =IF('DF raw data'!B18="","",'DF raw data'!B18) -> 2033-D (mapper 1) | C18: =IF('DF raw data'!C18="","",'DF raw data'!C18) ->  | D18: =IF('DF raw data'!D18="","",'DF raw data'!D18) -> 
A19: =IF('DF raw data'!A19="","",'DF raw data'!A19) -> Measurement consept | B19: =IF('DF raw data'!B19="","",'DF raw data'!B19) -> Square line grid | C19: =IF('DF raw data'!C19="","",'DF raw data'!C19) ->  | D19: =IF('DF raw data'!D19="","",'DF raw data'!D19) -> 
A20: =IF('DF raw data'!A20="","",'DF raw data'!A20) -> Mode | B20: =IF('DF raw data'!B20="","",'DF raw data'!B20) -> On-the-fly measurement | C20: =IF('DF raw data'!C20="","",'DF raw data'!C20) ->  | D20: =IF('DF raw data'!D20="","",'DF raw data'!D20) -> 
A21: =IF('DF raw data'!A21="","",'DF raw data'!A21) ->  | B21: =IF('DF raw data'!B21="","",'DF raw data'!B21) ->  | C21: =IF('DF raw data'!C21="","",'DF raw data'!C21) ->  | D21: =IF('DF raw data'!D21="","",'DF raw data'!D21) -> 
A22: =IF('DF raw data'!A22="","",'DF raw data'!A22) -> Probe Name | B22: =IF('DF raw data'!B22="","",'DF raw data'!B22) -> ID12_By | C22: =IF('DF raw data'!C22="","",'DF raw data'!C22) ->  | D22: =IF('DF raw data'!D22="","",'DF raw data'!D22) -> 
A23: =IF('DF raw data'!A23="","",'DF raw data'!A23) -> Probe Type | B23: =IF('DF raw data'!B23="","",'DF raw data'!B23) -> DF_ID_3D_Bxyz | C23: =IF('DF raw data'!C23="","",'DF raw data'!C23) ->  | D23: =IF('DF raw data'!D23="","",'DF raw data'!D23) -> 
A24: =IF('DF raw data'!A24="","",'DF raw data'!A24) -> Probe Danfysik Reg. Number | B24: =IF('DF raw data'!B24="","",'DF raw data'!B24) -> 2277 | C24: =IF('DF raw data'!C24="","",'DF raw data'!C24) ->  | D24: =IF('DF raw data'!D24="","",'DF raw data'!D24) -> 
A25: =IF('DF raw data'!A25="","",'DF raw data'!A25) -> Probe Axis | B25: =IF('DF raw data'!B25="","",'DF raw data'!B25) -> By | C25: =IF('DF raw data'!C25="","",'DF raw data'!C25) ->  | D25: =IF('DF raw data'!D25="","",'DF raw data'!D25) -> 
A26: =IF('DF raw data'!A26="","",'DF raw data'!A26) -> Probe Current Supply | B26: =IF('DF raw data'!B26="","",'DF raw data'!B26) -> 1825-D | C26: =IF('DF raw data'!C26="","",'DF raw data'!C26) ->  | D26: =IF('DF raw data'!D26="","",'DF raw data'!D26) -> 
A27: =IF('DF raw data'!A27="","",'DF raw data'!A27) -> Probe Gain Correction | B27: =IF('DF raw data'!B27="","",'DF raw data'!B27) -> 0.99611 | C27: =IF('DF raw data'!C27="","",'DF raw data'!C27) ->  | D27: =IF('DF raw data'!D27="","",'DF raw data'!D27) -> 
A28: =IF('DF raw data'!A28="","",'DF raw data'!A28) -> Probe Offset Correction | B28: =IF('DF raw data'!B28="","",'DF raw data'!B28) -> 0.0027639 | C28: =IF('DF raw data'!C28="","",'DF raw data'!C28) ->  | D28: =IF('DF raw data'!D28="","",'DF raw data'!D28) -> 
A29: =IF('DF raw data'!A29="","",'DF raw data'!A29) -> DVM Number | B29: =IF('DF raw data'!B29="","",'DF raw data'!B29) -> 2 | C29: =IF('DF raw data'!C29="","",'DF raw data'!C29) ->  | D29: =IF('DF raw data'!D29="","",'DF raw data'!D29) -> 
A30: =IF('DF raw data'!A30="","",'DF raw data'!A30) -> DVM Type | B30: =IF('DF raw data'!B30="","",'DF raw data'!B30) -> K2701 | C30: =IF('DF raw data'!C30="","",'DF raw data'!C30) ->  | D30: =IF('DF raw data'!D30="","",'DF raw data'!D30) -> 
A31: =IF('DF raw data'!A31="","",'DF raw data'!A31) -> DVM Danfysik Reg. Number | B31: =IF('DF raw data'!B31="","",'DF raw data'!B31) -> 1743-D | C31: =IF('DF raw data'!C31="","",'DF raw data'!C31) ->  | D31: =IF('DF raw data'!D31="","",'DF raw data'!D31) -> 
A32: =IF('DF raw data'!A32="","",'DF raw data'!A32) -> Probe Name | B32: =IF('DF raw data'!B32="","",'DF raw data'!B32) -> ID12_Bx | C32: =IF('DF raw data'!C32="","",'DF raw data'!C32) ->  | D32: =IF('DF raw data'!D32="","",'DF raw data'!D32) -> 
A33: =IF('DF raw data'!A33="","",'DF raw data'!A33) -> Probe Type | B33: =IF('DF raw data'!B33="","",'DF raw data'!B33) -> DF_ID_3D_Bxyz | C33: =IF('DF raw data'!C33="","",'DF raw data'!C33) ->  | D33: =IF('DF raw data'!D33="","",'DF raw data'!D33) -> 
A34: =IF('DF raw data'!A34="","",'DF raw data'!A34) -> Probe Danfysik Reg. Number | B34: =IF('DF raw data'!B34="","",'DF raw data'!B34) -> 2277 | C34: =IF('DF raw data'!C34="","",'DF raw data'!C34) ->  | D34: =IF('DF raw data'!D34="","",'DF raw data'!D34) -> 
A35: =IF('DF raw data'!A35="","",'DF raw data'!A35) -> Probe Axis | B35: =IF('DF raw data'!B35="","",'DF raw data'!B35) -> Bx | C35: =IF('DF raw data'!C35="","",'DF raw data'!C35) ->  | D35: =IF('DF raw data'!D35="","",'DF raw data'!D35) -> 
A36: =IF('DF raw data'!A36="","",'DF raw data'!A36) -> Probe Current Supply | B36: =IF('DF raw data'!B36="","",'DF raw data'!B36) -> 1825-D | C36: =IF('DF raw data'!C36="","",'DF raw data'!C36) ->  | D36: =IF('DF raw data'!D36="","",'DF raw data'!D36) -> 
A37: =IF('DF raw data'!A37="","",'DF raw data'!A37) -> Probe Gain Correction | B37: =IF('DF raw data'!B37="","",'DF raw data'!B37) -> 1 | C37: =IF('DF raw data'!C37="","",'DF raw data'!C37) ->  | D37: =IF('DF raw data'!D37="","",'DF raw data'!D37) -> 
A38: =IF('DF raw data'!A38="","",'DF raw data'!A38) -> Probe Offset Correction | B38: =IF('DF raw data'!B38="","",'DF raw data'!B38) -> -0.17554 | C38: =IF('DF raw data'!C38="","",'DF raw data'!C38) ->  | D38: =IF('DF raw data'!D38="","",'DF raw data'!D38) -> 
A39: =IF('DF raw data'!A39="","",'DF raw data'!A39) -> DVM Number | B39: =IF('DF raw data'!B39="","",'DF raw data'!B39) -> 3 | C39: =IF('DF raw data'!C39="","",'DF raw data'!C39) ->  | D39: =IF('DF raw data'!D39="","",'DF raw data'!D39) -> 
A40: =IF('DF raw data'!A40="","",'DF raw data'!A40) -> DVM Type | B40: =IF('DF raw data'!B40="","",'DF raw data'!B40) -> K2701 | C40: =IF('DF raw data'!C40="","",'DF raw data'!C40) ->  | D40: =IF('DF raw data'!D40="","",'DF raw data'!D40) -> 
A41: =IF('DF raw data'!A41="","",'DF raw data'!A41) -> DVM Danfysik Reg. Number | B41: =IF('DF raw data'!B41="","",'DF raw data'!B41) -> 1744-D | C41: =IF('DF raw data'!C41="","",'DF raw data'!C41) ->  | D41: =IF('DF raw data'!D41="","",'DF raw data'!D41) -> 
A42: =IF('DF raw data'!A42="","",'DF raw data'!A42) -> Probe Name | B42: =IF('DF raw data'!B42="","",'DF raw data'!B42) -> ID12_Bz | C42: =IF('DF raw data'!C42="","",'DF raw data'!C42) ->  | D42: =IF('DF raw data'!D42="","",'DF raw data'!D42) -> 
A43: =IF('DF raw data'!A43="","",'DF raw data'!A43) -> Probe Type | B43: =IF('DF raw data'!B43="","",'DF raw data'!B43) -> DF_ID_3D_Bxyz | C43: =IF('DF raw data'!C43="","",'DF raw data'!C43) ->  | D43: =IF('DF raw data'!D43="","",'DF raw data'!D43) -> 
A44: =IF('DF raw data'!A44="","",'DF raw data'!A44) -> Probe Danfysik Reg. Number | B44: =IF('DF raw data'!B44="","",'DF raw data'!B44) -> 2277 | C44: =IF('DF raw data'!C44="","",'DF raw data'!C44) ->  | D44: =IF('DF raw data'!D44="","",'DF raw data'!D44) -> 
A45: =IF('DF raw data'!A45="","",'DF raw data'!A45) -> Probe Axis | B45: =IF('DF raw data'!B45="","",'DF raw data'!B45) -> Bz | C45: =IF('DF raw data'!C45="","",'DF raw data'!C45) ->  | D45: =IF('DF raw data'!D45="","",'DF raw data'!D45) -> 
A46: =IF('DF raw data'!A46="","",'DF raw data'!A46) -> Probe Current Supply | B46: =IF('DF raw data'!B46="","",'DF raw data'!B46) -> 1825-D | C46: =IF('DF raw data'!C46="","",'DF raw data'!C46) ->  | D46: =IF('DF raw data'!D46="","",'DF raw data'!D46) -> 
A47: =IF('DF raw data'!A47="","",'DF raw data'!A47) -> Probe Gain Correction | B47: =IF('DF raw data'!B47="","",'DF raw data'!B47) -> 1 | C47: =IF('DF raw data'!C47="","",'DF raw data'!C47) ->  | D47: =IF('DF raw data'!D47="","",'DF raw data'!D47) -> 
A48: =IF('DF raw data'!A48="","",'DF raw data'!A48) -> Probe Offset Correction | B48: =IF('DF raw data'!B48="","",'DF raw data'!B48) -> 0.0073295 | C48: =IF('DF raw data'!C48="","",'DF raw data'!C48) ->  | D48: =IF('DF raw data'!D48="","",'DF raw data'!D48) -> 
A49: =IF('DF raw data'!A49="","",'DF raw data'!A49) -> DVM Number | B49: =IF('DF raw data'!B49="","",'DF raw data'!B49) -> 8 | C49: =IF('DF raw data'!C49="","",'DF raw data'!C49) ->  | D49: =IF('DF raw data'!D49="","",'DF raw data'!D49) -> 
A50: =IF('DF raw data'!A50="","",'DF raw data'!A50) -> DVM Type | B50: =IF('DF raw data'!B50="","",'DF raw data'!B50) -> K2700 | C50: =IF('DF raw data'!C50="","",'DF raw data'!C50) ->  | D50: =IF('DF raw data'!D50="","",'DF raw data'!D50) -> 
A51: =IF('DF raw data'!A51="","",'DF raw data'!A51) -> DVM Danfysik Reg. Number | B51: =IF('DF raw data'!B51="","",'DF raw data'!B51) -> 1756-D | C51: =IF('DF raw data'!C51="","",'DF raw data'!C51) ->  | D51: =IF('DF raw data'!D51="","",'DF raw data'!D51) -> 
A52: =IF('DF raw data'!A52="","",'DF raw data'!A52) -> NTC voltage | B52: =IF('DF raw data'!B52="","",'DF raw data'!B52) -> 0.40885 | C52: =IF('DF raw data'!C52="","",'DF raw data'!C52) ->  | D52: =IF('DF raw data'!D52="","",'DF raw data'!D52) -> 
A53: =IF('DF raw data'!A53="","",'DF raw data'!A53) -> PS-Gap: | B53: =IF('DF raw data'!B53="","",'DF raw data'!B53) -> 10 | C53: =IF('DF raw data'!C53="","",'DF raw data'!C53) ->  | D53: =IF('DF raw data'!D53="","",'DF raw data'!D53) -> 
A54: =IF('DF raw data'!A54="","",'DF raw data'!A54) -> PS-Temperature: | B54: =IF('DF raw data'!B54="","",'DF raw data'!B54) -> 24.1 | C54: =IF('DF raw data'!C54="","",'DF raw data'!C54) ->  | D54: =IF('DF raw data'!D54="","",'DF raw data'!D54) -> 
A55: =IF('DF raw data'!A55="","",'DF raw data'!A55) -> PS-Encoder: | B55: =IF('DF raw data'!B55="","",'DF raw data'!B55) -> 19.5576 | C55: =IF('DF raw data'!C55="","",'DF raw data'!C55) ->  | D55: =IF('DF raw data'!D55="","",'DF raw data'!D55) -> 
A56: =IF('DF raw data'!A56="","",'DF raw data'!A56) ->  | B56: =IF('DF raw data'!B56="","",'DF raw data'!B56) -> 
A57: =IF('DF raw data'!A57="","",'DF raw data'!A57) -> Monitor-Index | B57: =IF('DF raw data'!B57="","",'DF raw data'!B57) -> [1,1,4]
A58: =IF('DF raw data'!A58="","",'DF raw data'!A58) ->  | B58: =IF('DF raw data'!B58="","",'DF raw data'!B58) -> 
A59: =IF('DF raw data'!A59="","",'DF raw data'!A59) -> Time [s] | B59: =IF('DF raw data'!B59="","",'DF raw data'!B59) -> Y [mm]
A60: =IF('DF raw data'!A60="","",'DF raw data'!A60) ->  | B60: =IF('DF raw data'!B60="","",'DF raw data'!B60) -> 
A61: =IF('DF raw data'!A61="","",'DF raw data'!A61) -> 208.4 | B61: =IF('DF raw data'!B61="","",'DF raw data'!B61) -> 31.56
A62: =IF('DF raw data'!A62="","",'DF raw data'!A62) ->  | B62: =IF('DF raw data'!B62="","",'DF raw data'!B62) -> 
A63: =IF('DF raw data'!A63="","",'DF raw data'!A63) -> Measurement-Index | B63: =IF('DF raw data'!B63="","",'DF raw data'!B63) -> [1,1,1201,2]
A64: =IF('DF raw data'!A64="","",'DF raw data'!A64) ->  | B64: =IF('DF raw data'!B64="","",'DF raw data'!B64) -> 
A65: =IF('DF raw data'!A65="","",'DF raw data'!A65) -> Z [mm] | B65: =IF('DF raw data'!B65="","",'DF raw data'!B65) -> By [T] | C65: =IF('DF raw data'!C65="","",'DF raw data'!C65) -> Bx [T] | D65: =IF('DF raw data'!D65="","",'DF raw data'!D65) -> Bz [T] | F65: By_corr | G65: Bx_corr | H65: Bz_corr | J65: Iy | K65: Jy | L65: Ix | M65: Jx | N65: PI
A66: =IF('DF raw data'!A66="","",'DF raw data'!A66) -> [1, 0, 0, 0] | B66: =IF('DF raw data'!B66="","",'DF raw data'!B66) ->  | C66: =IF('DF raw data'!C66="","",'DF raw data'!C66) ->  | D66: =IF('DF raw data'!D66="","",'DF raw data'!D66) -> 
A67: =IF('DF raw data'!A67="","",'DF raw data'!A67) -> -300 | B67: =IF('DF raw data'!B67="","",'DF raw data'!B67) -> -3.58368e-05 | C67: =IF('DF raw data'!C67="","",'DF raw data'!C67) -> 5.81184e-05 | D67: =IF('DF raw data'!D67="","",'DF raw data'!D67) -> -3.36964e-05 | F67: =(1-$G$1*($B$54-$G$2))*(B67-F$5) -> 3.861570229e-06 | G67: =(1-$G$1*($B$54-$G$2))*(C67-G$5) -> 5.26129665e-06 | H67: =(1-$G$1*($B$54-$G$2))*(D67-H$5) -> -0.00416264504 | J67: =F67*$G$3+J66 -> 1.930785115e-06 | K67: =J67*$G$3+K66 -> 9.653925573e-07 | L67: =G67*$G$3+L66 -> 2.630648325e-06 | M67: =L67*$G$3+M66 -> 1.315324162e-06 | N67: =(J67^2+L67^2)*$G$3+N66 -> 5.324120884e-12
A68: =IF('DF raw data'!A68="","",'DF raw data'!A68) -> -299.5 | B68: =IF('DF raw data'!B68="","",'DF raw data'!B68) -> -4.07082e-05 | C68: =IF('DF raw data'!C68="","",'DF raw data'!C68) -> 5.60335e-05 | D68: =IF('DF raw data'!D68="","",'DF raw data'!D68) -> -3.3235e-05 | F68: -1.029802511e-06 | G68: 3.16784856e-06 | H68: -0.004162181749 | J68: =F68*$G$3+J67 -> 1.415883859e-06 | K68: =J68*$G$3+K67 -> 1.673334487e-06 | L68: =G68*$G$3+L67 -> 4.214572605e-06 | M68: =L68*$G$3+M67 -> 3.422610465e-06 | N68: =(J68^2+L68^2)*$G$3+N67 -> 1.520779555e-11
A69: =IF('DF raw data'!A69="","",'DF raw data'!A69) -> -299 | B69: =IF('DF raw data'!B69="","",'DF raw data'!B69) -> -3.42352e-05 | C69: =IF('DF raw data'!C69="","",'DF raw data'!C69) -> 5.58819e-05 | D69: =IF('DF raw data'!D69="","",'DF raw data'!D69) -> -3.25865e-05 | F69: 5.469736789e-06 | G69: 3.015627e-06 | H69: -0.00416153059 | J69: 4.150752254e-06 | K69: 3.748710614e-06 | L69: 5.722386104e-06 | M69: 6.283803517e-06 | N69: 4.019501905e-11
A70: =IF('DF raw data'!A70="","",'DF raw data'!A70) -> -298.5 | B70: =IF('DF raw data'!B70="","",'DF raw data'!B70) -> -3.03899e-05 | C70: =IF('DF raw data'!C70="","",'DF raw data'!C70) -> 5.83821e-05 | D70: =IF('DF raw data'!D70="","",'DF raw data'!D70) -> -3.23948e-05 | F70: 9.330802519e-06 | G70: 5.52607782e-06 | H70: -0.004161338104 | J70: 8.816153513e-06 | K70: 8.15678737e-06 | L70: 8.485425014e-06 | M70: 1.052651602e-05 | N70: 1.150585193e-10
A71: =IF('DF raw data'!A71="","",'DF raw data'!A71) -> -298 | B71: =IF('DF raw data'!B71="","",'DF raw data'!B71) -> -2.8403e-05 | C71: =IF('DF raw data'!C71="","",'DF raw data'!C71) -> 6.33979e-05 | D71: =IF('DF raw data'!D71="","",'DF raw data'!D71) -> -3.23952e-05 | F71: 1.132584881e-05 | G71: 1.05624426e-05 | H71: -0.004161338506 | J71: 1.447907792e-05 | K71: 1.539632633e-05 | L71: 1.376664631e-05 | M71: 1.740983918e-05 | N71: 3.146406433e-10
A72: =IF('DF raw data'!A72="","",'DF raw data'!A72) -> -297.5 | B72: =IF('DF raw data'!B72="","",'DF raw data'!B72) -> -2.64802e-05 | C72: =IF('DF raw data'!C72="","",'DF raw data'!C72) -> 5.54525e-05 | D72: =IF('DF raw data'!D72="","",'DF raw data'!D72) -> -3.25759e-05 | F72: 1.325653229e-05 | G72: 2.58446646e-06 | H72: -0.004161519946 | J72: 2.110734406e-05 | K72: 2.594999836e-05 | L72: 1.505887954e-05 | M72: 2.493927895e-05 | N72: 6.507855565e-10
A73: =IF('DF raw data'!A73="","",'DF raw data'!A73) -> -297 | B73: =IF('DF raw data'!B73="","",'DF raw data'!B73) -> -1.58403e-05 | C73: =IF('DF raw data'!C73="","",'DF raw data'!C73) -> 5.64096e-05 | D73: =IF('DF raw data'!D73="","",'DF raw data'!D73) -> -3.32068e-05 | F73: 2.394005588e-05 | G73: 3.54549057e-06 | H73: -0.004162153433 | J73: 3.3077372e-05 | K73: 4.248868436e-05 | L73: 1.683162483e-05 | M73: 3.335509137e-05 | N73: 1.339493623e-09
A74: =IF('DF raw data'!A74="","",'DF raw data'!A74) -> -296.5 | B74: =IF('DF raw data'!B74="","",'DF raw data'!B74) -> -2.71842e-05 | C74: =IF('DF raw data'!C74="","",'DF raw data'!C74) -> 6.08672e-05 | D74: =IF('DF raw data'!D74="","",'DF raw data'!D74) -> -3.39026e-05 | F74: 1.254964589e-05 | G74: 8.02136673e-06 | H74: -0.004162852086 | J74: 3.935219495e-05 | K74: 6.216478183e-05 | L74: 2.084230819e-05 | M74: 4.377624546e-05 | N74: 2.330992152e-09
A75: =IF('DF raw data'!A75="","",'DF raw data'!A75) -> -296 | B75: =IF('DF raw data'!B75="","",'DF raw data'!B75) -> -2.05823e-05 | C75: =IF('DF raw data'!C75="","",'DF raw data'!C75) -> 5.67018e-05 | D75: =IF('DF raw data'!D75="","",'DF raw data'!D75) -> -3.45803e-05 | F75: 1.917861368e-05 | G75: 3.83888859e-06 | H75: -0.004163532564 | J75: 4.894150179e-05 | K75: 8.663553273e-05 | L75: 2.276175249e-05 | M75: 5.515712171e-05 | N75: 3.787676139e-09
A76: =IF('DF raw data'!A76="","",'DF raw data'!A76) -> -295.5 | B76: =IF('DF raw data'!B76="","",'DF raw data'!B76) -> -2.82732e-05 | C76: =IF('DF raw data'!C76="","",'DF raw data'!C76) -> 5.67073e-05 | D76: =IF('DF raw data'!D76="","",'DF raw data'!D76) -> -3.49225e-05 | F76: 1.145618099e-05 | G76: 3.84441114e-06 | H76: -0.004163876167 | J76: 5.466959228e-05 | K76: 0.0001139703289 | L76: 2.468395806e-05 | M76: 6.749910074e-05 | N76: 5.586707191e-09
A77: =IF('DF raw data'!A77="","",'DF raw data'!A77) -> -295 | B77: =IF('DF raw data'!B77="","",'DF raw data'!B77) -> -4.03229e-05 | C77: =IF('DF raw data'!C77="","",'DF raw data'!C77) -> 5.1843e-05 | D77: =IF('DF raw data'!D77="","",'DF raw data'!D77) -> -3.4558e-05 | F77: -6.42922781e-07 | G77: -1.03983249e-06 | H77: -0.004163510173 | J77: 5.434813089e-05 | K77: 0.0001411443943 | L77: 2.416404181e-05 | M77: 7.958112164e-05 | N77: 7.355517315e-09
A78: =IF('DF raw data'!A78="","",'DF raw data'!A78) -> -294.5 | B78: =IF('DF raw data'!B78="","",'DF raw data'!B78) -> -3.12221e-05 | C78: =IF('DF raw data'!C78="","",'DF raw data'!C78) -> 5.15004e-05 | D78: =IF('DF raw data'!D78="","",'DF raw data'!D78) -> -3.36682e-05 | F78: 8.495190499e-06 | G78: -1.38383715e-06 | H78: -0.004162616725 | J78: 5.859572614e-05 | K78: 0.0001704422574 | L78: 2.347212324e-05 | M78: 9.131718326e-05 | N78: 9.347717161e-09
A79: =IF('DF raw data'!A79="","",'DF raw data'!A79) -> -294 | B79: =IF('DF raw data'!B79="","",'DF raw data'!B79) -> -4.55155e-05 | C79: =IF('DF raw data'!C79="","",'DF raw data'!C79) -> 5.04375e-05 | D79: =IF('DF raw data'!D79="","",'DF raw data'!D79) -> -3.27106e-05 | F79: -5.856812441e-06 | G79: -2.45109504e-06 | H79: -0.004161655199 | J79: 5.566731992e-05 | K79: 0.0001982759173 | L79: 2.224657572e-05 | M79: 0.0001024404711 | N79: 1.114459748e-08
A80: =IF('DF raw data'!A80="","",'DF raw data'!A80) -> -293.5 | B80: =IF('DF raw data'!B80="","",'DF raw data'!B80) -> -2.47495e-05 | C80: =IF('DF raw data'!C80="","",'DF raw data'!C80) -> 5.38669e-05 | D80: =IF('DF raw data'!D80="","",'DF raw data'!D80) -> -3.27747e-05 | F80: 1.499432816e-05 | G80: 9.923654996e-07 | H80: -0.004161719562 | J80: 6.3164484e-05 | K80: 0.0002298581593 | L80: 2.274275847e-05 | M80: 0.0001138118504 | N80: 1.339809003e-08
A81: =IF('DF raw data'!A81="","",'DF raw data'!A81) -> -293 | B81: =IF('DF raw data'!B81="","",'DF raw data'!B81) -> -2.94918e-05 | C81: =IF('DF raw data'!C81="","",'DF raw data'!C81) -> 5.56976e-05 | D81: =IF('DF raw data'!D81="","",'DF raw data'!D81) -> -3.36601e-05 | F81: 1.023258473e-05 | G81: 2.83057137e-06 | H81: -0.004162608592 | J81: 6.828077636e-05 | K81: 0.0002639985475 | L81: 2.415804415e-05 | M81: 0.0001258908724 | N81: 1.602102779e-08
A82: =IF('DF raw data'!A82="","",'DF raw data'!A82) -> -292.5 | B82: =IF('DF raw data'!B82="","",'DF raw data'!B82) -> -3.39779e-05 | C82: =IF('DF raw data'!C82="","",'DF raw data'!C82) -> 5.11251e-05 | D82: =IF('DF raw data'!D82="","",'DF raw data'!D82) -> -3.40768e-05 | F82: 5.728091719e-06 | G82: -1.76067588e-06 | H82: -0.004163027 | J82: 7.114482222e-05 | K82: 0.0002995709586 | L82: 2.327770621e-05 | M82: 0.0001375297255 | N82: 1.882274646e-08
A83: =IF('DF raw data'!A83="","",'DF raw data'!A83) -> -292 | B83: =IF('DF raw data'!B83="","",'DF raw data'!B83) -> -3.9362e-05 | C83: =IF('DF raw data'!C83="","",'DF raw data'!C83) -> 5.35388e-05 | D83: =IF('DF raw data'!D83="","",'DF raw data'!D83) -> -3.36661e-05 | F83: 3.21916909e-07 | G83: 6.629202896e-07 | H83: -0.004162614616 | J83: 7.130578068e-05 | K83: 0.000335223849 | L83: 2.360916636e-05 | M83: 0.0001493343087 | N83: 2.16437e-08
A84: =IF('DF raw data'!A84="","",'DF raw data'!A84) -> -291.5 | B84: =IF('DF raw data'!B84="","",'DF raw data'!B84) -> -2.91053e-05 | C84: =IF('DF raw data'!C84="","",'DF raw data'!C84) -> 4.46464e-05 | D84: =IF('DF raw data'!D84="","",'DF raw data'!D84) -> -3.67865e-05 | F84: 1.062066938e-05 | G84: -8.26593855e-06 | H84: -0.00416574781 | J84: 7.661611537e-05 | K84: 0.0003735319067 | L84: 1.947619708e-05 | M84: 0.0001590724073 | N84: 2.47683757e-08
A85: =IF('DF raw data'!A85="","",'DF raw data'!A85) -> -291 | B85: =IF('DF raw data'!B85="","",'DF raw data'!B85) -> -4.09594e-05 | C85: =IF('DF raw data'!C85="","",'DF raw data'!C85) -> 4.2733e-05 | D85: =IF('DF raw data'!D85="","",'DF raw data'!D85) -> -4.13628e-05 | F85: -1.282032431e-06 | G85: -1.018718349e-05 | H85: -0.004170342873 | J85: 7.597509915e-05 | K85: 0.0004115194562 | L85: 1.438260534e-05 | M85: 0.0001662637099 | N85: 2.775791321e-08
A86: =IF('DF raw data'!A86="","",'DF raw data'!A86) -> -290.5 | B86: =IF('DF raw data'!B86="","",'DF raw data'!B86) -> -2.62849e-05 | C86: =IF('DF raw data'!C86="","",'DF raw data'!C86) -> 4.97517e-05 | D86: =IF('DF raw data'!D86="","",'DF raw data'!D86) -> -3.69981e-05 | F86: 1.345263302e-05 | G86: -3.13970682e-06 | H86: -0.004165960277 | J86: 8.270141566e-05 | K86: 0.0004528701641 | L86: 1.281275193e-05 | M86: 0.0001726700859 | N86: 3.125975859e-08
A87: =IF('DF raw data'!A87="","",'DF raw data'!A87) -> -290 | B87: =IF('DF raw data'!B87="","",'DF raw data'!B87) -> -3.39143e-05 | C87: =IF('DF raw data'!C87="","",'DF raw data'!C87) -> 4.87226e-05 | D87: =IF('DF raw data'!D87="","",'DF raw data'!D87) -> -3.35457e-05 | F87: 5.791952479e-06 | G87: -4.17302613e-06 | H87: -0.004162493723 | J87: 8.55973919e-05 | K87: 0.00049566886 | L87: 1.072623886e-05 | M87: 0.0001780332053 | N87: 3.498074144e-08
A88: =IF('DF raw data'!A88="","",'DF raw data'!A88) -> -289.5 | B88: =IF('DF raw data'!B88="","",'DF raw data'!B88) -> -3.33328e-05 | C88: =IF('DF raw data'!C88="","",'DF raw data'!C88) -> 5.2044e-05 | D88: =IF('DF raw data'!D88="","",'DF raw data'!D88) -> -4.05487e-05 | F88: 6.375836629e-06 | G88: -8.380083904e-07 | H88: -0.004169525435 | J88: 8.878531021e-05 | K88: 0.0005400615151 | L88: 1.030723467e-05 | M88: 0.0001831868227 | N88: 3.897527664e-08
A89: =IF('DF raw data'!A89="","",'DF raw data'!A89) -> -289 | B89: =IF('DF raw data'!B89="","",'DF raw data'!B89) -> -2.79533e-05 | C89: =IF('DF raw data'!C89="","",'DF raw data'!C89) -> 5.64161e-05 | D89: =IF('DF raw data'!D89="","",'DF raw data'!D89) -> -3.43029e-05 | F89: 1.177739258e-05 | G89: 3.55201722e-06 | H89: -0.004163254027 | J89: 9.46740065e-05 | K89: 0.0005873985184 | L89: 1.208324328e-05 | M89: 0.0001892284443 | N89: 4.352986278e-08
A90: =IF('DF raw data'!A90="","",'DF raw data'!A90) -> -288.5 | B90: =IF('DF raw data'!B90="","",'DF raw data'!B90) -> -3.30844e-05 | C90: =IF('DF raw data'!C90="","",'DF raw data'!C90) -> 5.77303e-05 | D90: =IF('DF raw data'!D90="","",'DF raw data'!D90) -> -2.83413e-05 | F90: 6.625255069e-06 | G90: 4.87160544e-06 | H90: -0.004157267985 | J90: 9.798663404e-05 | K90: 0.0006363918354 | L90: 1.4519046e-05 | M90: 0.0001964879673 | N90: 4.843595435e-08
A91: =IF('DF raw data'!A91="","",'DF raw data'!A91) -> -288 | B91: =IF('DF raw data'!B91="","",'DF raw data'!B91) -> -3.46848e-05 | C91: =IF('DF raw data'!C91="","",'DF raw data'!C91) -> 5.55896e-05 | D91: =IF('DF raw data'!D91="","",'DF raw data'!D91) -> -3.13219e-05 | F91: 5.018293429e-06 | G91: 2.72212857e-06 | H91: -0.004160260805 | J91: 0.0001004957808 | K91: 0.0006866397258 | L91: 1.588011028e-05 | M91: 0.0002044280224 | N91: 5.361174428e-08
A92: =IF('DF raw data'!A92="","",'DF raw data'!A92) -> -287.5 | B92: =IF('DF raw data'!B92="","",'DF raw data'!B92) -> -2.3657e-05 | C92: =IF('DF raw data'!C92="","",'DF raw data'!C92) -> 4.84037e-05 | D92: =IF('DF raw data'!D92="","",'DF raw data'!D92) -> -3.71116e-05 | F92: 1.609130741e-05 | G92: -4.49323362e-06 | H92: -0.004166074243 | J92: 0.0001085414345 | K92: 0.000740910443 | L92: 1.363349347e-05 | M92: 0.0002112447692 | N92: 5.959530185e-08
A93: =IF('DF raw data'!A93="","",'DF raw data'!A93) -> -287 | B93: =IF('DF raw data'!B93="","",'DF raw data'!B93) -> -2.78252e-05 | C93: =IF('DF raw data'!C93="","",'DF raw data'!C93) -> 4.91165e-05 | D93: =IF('DF raw data'!D93="","",'DF raw data'!D93) -> -3.37258e-05 | F93: 1.190601779e-05 | G93: -3.77751114e-06 | H93: -0.004162674561 | J93: 0.0001144944434 | K93: 0.0007981576647 | L93: 1.17447379e-05 | M93: 0.0002171171381 | N93: 6.621876006e-08
A94: =IF('DF raw data'!A94="","",'DF raw data'!A94) -> -286.5 | B94: =IF('DF raw data'!B94="","",'DF raw data'!B94) -> -1.98731e-05 | C94: =IF('DF raw data'!C94="","",'DF raw data'!C94) -> 5.74098e-05 | D94: =IF('DF raw data'!D94="","",'DF raw data'!D94) -> -4.09634e-05 | F94: 1.98907214e-05 | G94: 4.54979139e-06 | H94: -0.004169941835 | J94: 0.0001244398041 | K94: 0.0008603775667 | L94: 1.401963359e-05 | M94: 0.0002241269549 | N94: 7.405966754e-08
A95: =IF('DF raw data'!A95="","",'DF raw data'!A95) -> -286 | B95: =IF('DF raw data'!B95="","",'DF raw data'!B95) -> -2.49368e-05 | C95: =IF('DF raw data'!C95="","",'DF raw data'!C95) -> 5.59249e-05 | D95: =IF('DF raw data'!D95="","",'DF raw data'!D95) -> -4.06718e-05 | F95: 1.480626023e-05 | G95: 3.0588033e-06 | H95: -0.00416964904 | J95: 0.0001318429342 | K95: 0.0009262990338 | L95: 1.554903524e-05 | M95: 0.0002319014725 | N95: 8.287183343e-08
A96: =IF('DF raw data'!A96="","",'DF raw data'!A96) -> -285.5 | B96: =IF('DF raw data'!B96="","",'DF raw data'!B96) -> -2.11588e-05 | C96: =IF('DF raw data'!C96="","",'DF raw data'!C96) -> 5.2328e-05 | D96: =IF('DF raw data'!D96="","",'DF raw data'!D96) -> -3.52649e-05 | F96: 1.859975003e-05 | G96: -5.528439904e-07 | H96: -0.004164219971 | J96: 0.0001411428092 | K96: 0.0009968704384 | L96: 1.527261325e-05 | M96: 0.0002395377792 | N96: 9.294910608e-08
A97: =IF('DF raw data'!A97="","",'DF raw data'!A97) -> -285 | B97: =IF('DF raw data'!B97="","",'DF raw data'!B97) -> -2.48071e-05 | C97: =IF('DF raw data'!C97="","",'DF raw data'!C97) -> 5.57439e-05 | D97: =IF('DF raw data'!D97="","",'DF raw data'!D97) -> -4.30731e-05 | F97: 1.4936492e-05 | G97: 2.8770612e-06 | H97: -0.004172060185 | J97: 0.0001486110552 | K97: 0.001071175966 | L97: 1.671114385e-05 | M97: 0.0002478933511 | N97: 1.041313601e-07
A98: =IF('DF raw data'!A98="","",'DF raw data'!A98) -> -284.5 | B98: =IF('DF raw data'!B98="","",'DF raw data'!B98) -> -2.36561e-05 | C98: =IF('DF raw data'!C98="","",'DF raw data'!C98) -> 6.05472e-05 | D98: =IF('DF raw data'!D98="","",'DF raw data'!D98) -> -3.85199e-05 | F98: 1.60922111e-05 | G98: 7.70005473e-06 | H98: -0.004167488317 | J98: 0.0001566571607 | K98: 0.001149504546 | L98: 2.056117121e-05 | M98: 0.0002581739367 | N98: 1.16613474e-07
A99: =IF('DF raw data'!A99="","",'DF raw data'!A99) -> -284 | B99: =IF('DF raw data'!B99="","",'DF raw data'!B99) -> -3.37149e-05 | C99: =IF('DF raw data'!C99="","",'DF raw data'!C99) -> 5.16465e-05 | D99: =IF('DF raw data'!D99="","",'DF raw data'!D99) -> -4.42729e-05 | F99: 5.992170019e-06 | G99: -1.23713814e-06 | H99: -0.004173264904 | J99: 0.0001596532457 | K99: 0.001229331169 | L99: 1.994260214e-05 | M99: 0.0002681452378 | N99: 1.295569071e-07
A100: =IF('DF raw data'!A100="","",'DF raw data'!A100) -> -283.5 | B100: =IF('DF raw data'!B100="","",'DF raw data'!B100) -> -4.14756e-05 | C100: =IF('DF raw data'!C100="","",'DF raw data'!C100) -> 5.03137e-05 | D100: =IF('DF raw data'!D100="","",'DF raw data'!D100) -> -3.602e-05 | F100: -1.800348851e-06 | G100: -2.57540262e-06 | H100: -0.004164978167 | J100: 0.0001587530713 | K100: 0.001308707705 | L100: 1.865490083e-05 | M100: 0.0002774726882 | N100: 1.423321786e-07
A101: =IF('DF raw data'!A101="","",'DF raw data'!A101) -> -283 | B101: =IF('DF raw data'!B101="","",'DF raw data'!B101) -> -2.62874e-05 | C101: =IF('DF raw data'!C101="","",'DF raw data'!C101) -> 4.78227e-05 | D101: =IF('DF raw data'!D101="","",'DF raw data'!D101) -> -3.32401e-05 | F101: 1.345012277e-05 | G101: -5.07661572e-06 | H101: -0.00416218687 | J101: 0.0001654781327 | K101: 0.001391446771 | L101: 1.611659297e-05 | M101: 0.0002855309847 | N101: 1.561535571e-07
A102: =IF('DF raw data'!A102="","",'DF raw data'!A102) -> -282.5 | B102: =IF('DF raw data'!B102="","",'DF raw data'!B102) -> -3.38415e-05 | C102: =IF('DF raw data'!C102="","",'DF raw data'!C102) -> 4.38068e-05 | D102: =IF('DF raw data'!D102="","",'DF raw data'!D102) -> -4.67935e-05 | F102: 5.865050959e-06 | G102: -9.10898091e-06 | H102: -0.004175795839 | J102: 0.0001684106582 | K102: 0.0014756521 | L102: 1.156210252e-05 | M102: 0.0002913120359 | N102: 1.704014731e-07
A103: =IF('DF raw data'!A103="","",'DF raw data'!A103) -> -282 | B103: =IF('DF raw data'!B103="","",'DF raw data'!B103) -> -2.25731e-05 | C103: =IF('DF raw data'!C103="","",'DF raw data'!C103) -> 5.03108e-05 | D103: =IF('DF raw data'!D103="","",'DF raw data'!D103) -> -2.87633e-05 | F103: 1.71796514e-05 | G103: -2.57831451e-06 | H103: -0.004157691715 | J103: 0.0001770004839 | K103: 0.001564152342 | L103: 1.027294526e-05 | M103: 0.0002964485086 | N103: 1.861188254e-07
A104: =IF('DF raw data'!A104="","",'DF raw data'!A104) -> -281.5 | B104: =IF('DF raw data'!B104="","",'DF raw data'!B104) -> -2.35276e-05 | C104: =IF('DF raw data'!C104="","",'DF raw data'!C104) -> 5.19129e-05 | D104: =IF('DF raw data'!D104="","",'DF raw data'!D104) -> -3.90073e-05 | F104: 1.622123795e-05 | G104: -9.696459004e-07 | H104: -0.004167977715 | J104: 0.0001851111029 | K104: 0.001656707894 | L104: 9.788122313e-06 | M104: 0.0003013425697 | N104: 2.032997893e-07
A105: =IF('DF raw data'!A105="","",'DF raw data'!A105) -> -281 | B105: =IF('DF raw data'!B105="","",'DF raw data'!B105) -> -3.02597e-05 | C105: =IF('DF raw data'!C105="","",'DF raw data'!C105) -> 5.36919e-05 | D105: =IF('DF raw data'!D105="","",'DF raw data'!D105) -> -3.5692e-05 | F105: 9.461536339e-06 | G105: 8.166479996e-07 | H105: -0.004164648822 | J105: 0.000189841871 | K105: 0.001751628829 | L105: 1.019644631e-05 | M105: 0.0003064407929 | N105: 2.213717411e-07
A106: =IF('DF raw data'!A106="","",'DF raw data'!A106) -> -280.5 | B106: =IF('DF raw data'!B106="","",'DF raw data'!B106) -> -2.7632e-05 | C106: =IF('DF raw data'!C106="","",'DF raw data'!C106) -> 5.63795e-05 | D106: =IF('DF raw data'!D106="","",'DF raw data'!D106) -> -3.53471e-05 | F106: 1.210000991e-05 | G106: 3.51526716e-06 | H106: -0.004164302508 | J106: 0.000195891876 | K106: 0.001849574767 | L106: 1.195407989e-05 | M106: 0.0003124178328 | N106: 2.406300046e-07
A107: =IF('DF raw data'!A107="","",'DF raw data'!A107) -> -280 | B107: =IF('DF raw data'!B107="","",'DF raw data'!B107) -> -2.22523e-05 | C107: =IF('DF raw data'!C107="","",'DF raw data'!C107) -> 5.86687e-05 | D107: =IF('DF raw data'!D107="","",'DF raw data'!D107) -> -2.90232e-05 | F107: 1.750176668e-05 | G107: 5.81385288e-06 | H107: -0.00415795268 | J107: 0.0002046427593 | K107: 0.001951896147 | L107: 1.486100633e-05 | M107: 0.000319848336 | N107: 2.616797588e-07
A108: =IF('DF raw data'!A108="","",'DF raw data'!A108) -> -279.5 | B108: =IF('DF raw data'!B108="","",'DF raw data'!B108) -> -2.85293e-05 | C108: =IF('DF raw data'!C108="","",'DF raw data'!C108) -> 6.04374e-05 | D108: =IF('DF raw data'!D108="","",'DF raw data'!D108) -> -3.53876e-05 | F108: 1.119903098e-05 | G108: 7.58980455e-06 | H108: -0.004164343174 | J108: 0.0002102422748 | K108: 0.002057017284 | L108: 1.865590861e-05 | M108: 0.0003291762903 | N108: 2.839546874e-07
A109: =IF('DF raw data'!A109="","",'DF raw data'!A109) -> -279 | B109: =IF('DF raw data'!B109="","",'DF raw data'!B109) -> -2.01966e-05 | C109: =IF('DF raw data'!C109="","",'DF raw data'!C109) -> 5.41767e-05 | D109: =IF('DF raw data'!D109="","",'DF raw data'!D109) -> -3.64309e-05 | F109: 1.956589505e-05 | G109: 1.30343568e-06 | H109: -0.004165390752 | J109: 0.0002200252223 | K109: 0.002167029895 | L109: 1.930762645e-05 | M109: 0.0003388301035 | N109: 3.083466288e-07
A110: =IF('DF raw data'!A110="","",'DF raw data'!A110) -> -278.5 | B110: =IF('DF raw data'!B110="","",'DF raw data'!B110) -> -2.59617e-05 | C110: =IF('DF raw data'!C110="","",'DF raw data'!C110) -> 5.26222e-05 | D110: =IF('DF raw data'!D110="","",'DF raw data'!D110) -> -4.15719e-05 | F110: 1.377715814e-05 | G110: -2.574377704e-07 | H110: -0.00417055283 | J110: 0.0002269138014 | K110: 0.002280486796 | L110: 1.917890756e-05 | M110: 0.0003484195573 | N110: 3.342754807e-07
A111: =IF('DF raw data'!A111="","",'DF raw data'!A111) -> -278 | B111: =IF('DF raw data'!B111="","",'DF raw data'!B111) -> -2.89116e-05 | C111: =IF('DF raw data'!C111="","",'DF raw data'!C111) -> 5.86844e-05 | D111: =IF('DF raw data'!D111="","",'DF raw data'!D111) -> -3.88716e-05 | F111: 1.081516355e-05 | G111: 5.82961725e-06 | H111: -0.004167841459 | J111: 0.0002323213832 | K111: 0.002396647488 | L111: 2.209371619e-05 | M111: 0.0003594664154 | N111: 3.615061594e-07
A112: =IF('DF raw data'!A112="","",'DF raw data'!A112) -> -277.5 | B112: =IF('DF raw data'!B112="","",'DF raw data'!B112) -> -1.65431e-05 | C112: =IF('DF raw data'!C112="","",'DF raw data'!C112) -> 7.1473e-05 | D112: =IF('DF raw data'!D112="","",'DF raw data'!D112) -> -3.67683e-05 | F112: 2.32343744e-05 | G112: 1.867065051e-05 | H112: -0.004165729535 | J112: 0.0002439385704 | K112: 0.002518616773 | L112: 3.142904144e-05 | M112: 0.0003751809361 | N112: 3.917530648e-07
A113: =IF('DF raw data'!A113="","",'DF raw data'!A113) -> -277 | B113: =IF('DF raw data'!B113="","",'DF raw data'!B113) -> -2.87905e-05 | C113: =IF('DF raw data'!C113="","",'DF raw data'!C113) -> 6.04432e-05 | D113: =IF('DF raw data'!D113="","",'DF raw data'!D113) -> -2.79496e-05 | F113: 1.093676006e-05 | G113: 7.59562833e-06 | H113: -0.004156874679 | J113: 0.0002494069504 | K113: 0.002643320248 | L113: 3.522685561e-05 | M113: 0.0003927943639 | N113: 4.234754439e-07
A114: =IF('DF raw data'!A114="","",'DF raw data'!A114) -> -276.5 | B114: =IF('DF raw data'!B114="","",'DF raw data'!B114) -> -1.97501e-05 | C114: =IF('DF raw data'!C114="","",'DF raw data'!C114) -> 5.58499e-05 | D114: =IF('DF raw data'!D114="","",'DF raw data'!D114) -> -3.29883e-05 | F114: 2.00142257e-05 | G114: 2.9834958e-06 | H114: -0.004161934037 | J114: 0.0002594140633 | K114: 0.00277302728 | L114: 3.671860351e-05 | M114: 0.0004111536657 | N114: 4.577973999e-07
A115: =IF('DF raw data'!A115="","",'DF raw data'!A115) -> -276 | B115: =IF('DF raw data'!B115="","",'DF raw data'!B115) -> -1.61572e-05 | C115: =IF('DF raw data'!C115="","",'DF raw data'!C115) -> 5.50502e-05 | D115: =IF('DF raw data'!D115="","",'DF raw data'!D115) -> -3.8913e-05 | F115: 2.362185659e-05 | G115: 2.18051703e-06 | H115: -0.004167883029 | J115: 0.0002712249915 | K115: 0.002908639775 | L115: 3.780886202e-05 | M115: 0.0004300580967 | N115: 4.95293653e-07
A116: =IF('DF raw data'!A116="","",'DF raw data'!A116) -> -275.5 | B116: =IF('DF raw data'!B116="","",'DF raw data'!B116) -> -1.91018e-05 | C116: =IF('DF raw data'!C116="","",'DF raw data'!C116) -> 5.65765e-05 | D116: =IF('DF raw data'!D116="","",'DF raw data'!D116) -> -4.446e-05 | F116: 2.066518373e-05 | G116: 3.71307486e-06 | H116: -0.004173452771 | J116: 0.0002815575834 | K116: 0.003049418567 | L116: 3.966539945e-05 | M116: 0.0004498907964 | N116: 5.357176613e-07
A117: =IF('DF raw data'!A117="","",'DF raw data'!A117) -> -275 | B117: =IF('DF raw data'!B117="","",'DF raw data'!B117) -> -2.1088e-05 | C117: =IF('DF raw data'!C117="","",'DF raw data'!C117) -> 6.12969e-05 | D117: =IF('DF raw data'!D117="","",'DF raw data'!D117) -> -4.55749e-05 | F117: 1.867084031e-05 | G117: 8.4528285e-06 | H117: -0.004174572242 | J117: 0.0002908930036 | K117: 0.003194865069 | L117: 4.38918137e-05 | M117: 0.0004718367032 | N117: 5.789902767e-07
A118: =IF('DF raw data'!A118="","",'DF raw data'!A118) -> -274.5 | B118: =IF('DF raw data'!B118="","",'DF raw data'!B118) -> -2.73139e-05 | C118: =IF('DF raw data'!C118="","",'DF raw data'!C118) -> 6.07279e-05 | D118: =IF('DF raw data'!D118="","",'DF raw data'!D118) -> -3.15758e-05 | F118: 1.241941412e-05 | G118: 7.8814956e-06 | H118: -0.004160515746 | J118: 0.0002971027106 | K118: 0.003343416424 | L118: 4.78325615e-05 | M118: 0.000495752984 | N118: 6.24269264e-07
A119: =IF('DF raw data'!A119="","",'DF raw data'!A119) -> -274 | B119: =IF('DF raw data'!B119="","",'DF raw data'!B119) -> -2.66645e-05 | C119: =IF('DF raw data'!C119="","",'DF raw data'!C119) -> 5.79048e-05 | D119: =IF('DF raw data'!D119="","",'DF raw data'!D119) -> -4.46361e-05 | F119: 1.307147666e-05 | G119: 5.04682089e-06 | H119: -0.004173629593 | J119: 0.000303638449 | K119: 0.003495235649 | L119: 5.035597195e-05 | M119: 0.00052093097 | N119: 6.716352798e-07
A120: =IF('DF raw data'!A120="","",'DF raw data'!A120) -> -273.5 | B120: =IF('DF raw data'!B120="","",'DF raw data'!B120) -> -4.17298e-05 | C120: =IF('DF raw data'!C120="","",'DF raw data'!C120) -> 5.39099e-05 | D120: =IF('DF raw data'!D120="","",'DF raw data'!D120) -> -3.94533e-05 | F120: -2.055591071e-06 | G120: 1.0355418e-06 | H120: -0.004168425544 | J120: 0.0003026106534 | K120: 0.003646540975 | L120: 5.087374285e-05 | M120: 0.0005463678414 | N120: 7.187159525e-07
A121: =IF('DF raw data'!A121="","",'DF raw data'!A121) -> -273 | B121: =IF('DF raw data'!B121="","",'DF raw data'!B121) -> -3.97452e-05 | C121: =IF('DF raw data'!C121="","",'DF raw data'!C121) -> 5.22593e-05 | D121: =IF('DF raw data'!D121="","",'DF raw data'!D121) -> -3.58656e-05 | F121: -6.285421098e-08 | G121: -6.218256604e-07 | H121: -0.004164823134 | J121: 0.0003025792263 | K121: 0.003797830589 | L121: 5.056283001e-05 | M121: 0.0005716492564 | N121: 7.657713464e-07
A122: =IF('DF raw data'!A122="","",'DF raw data'!A122) -> -272.5 | B122: =IF('DF raw data'!B122="","",'DF raw data'!B122) -> -2.21786e-05 | C122: =IF('DF raw data'!C122="","",'DF raw data'!C122) -> 4.34654e-05 | D122: =IF('DF raw data'!D122="","",'DF raw data'!D122) -> -4.40488e-05 | F122: 1.757576885e-05 | G122: -9.45178065e-06 | H122: -0.004173039885 | J122: 0.0003113671107 | K122: 0.003953514144 | L122: 4.583693969e-05 | M122: 0.0005945677262 | N122: 8.152965978e-07
A123: =IF('DF raw data'!A123="","",'DF raw data'!A123) -> -272 | B123: =IF('DF raw data'!B123="","",'DF raw data'!B123) -> -2.0009e-05 | C123: =IF('DF raw data'!C123="","",'DF raw data'!C123) -> 4.69865e-05 | D123: =IF('DF raw data'!D123="","",'DF raw data'!D123) -> -2.90982e-05 | F123: 1.975426421e-05 | G123: -5.91624414e-06 | H123: -0.004158027988 | J123: 0.0003212442428 | K123: 0.004114136265 | L123: 4.287881762e-05 | M123: 0.0006160071351 | N123: 8.678148261e-07
A124: =IF('DF raw data'!A124="","",'DF raw data'!A124) -> -271.5 | B124: =IF('DF raw data'!B124="","",'DF raw data'!B124) -> -2.33999e-05 | C124: =IF('DF raw data'!C124="","",'DF raw data'!C124) -> 5.35857e-05 | D124: =IF('DF raw data'!D124="","",'DF raw data'!D124) -> -3.83518e-05 | F124: 1.634946152e-05 | G124: 7.100125796e-07 | H124: -0.004167319528 | J124: 0.0003294189736 | K124: 0.004278845752 | L124: 4.323382391e-05 | M124: 0.000637624047 | N124: 9.230078379e-07
A125: =IF('DF raw data'!A125="","",'DF raw data'!A125) -> -271 | B125: =IF('DF raw data'!B125="","",'DF raw data'!B125) -> -2.92373e-05 | C125: =IF('DF raw data'!C125="","",'DF raw data'!C125) -> 5.57573e-05 | D125: =IF('DF raw data'!D125="","",'DF raw data'!D125) -> -3.09002e-05 | F125: 1.048812818e-05 | G125: 2.89051614e-06 | H125: -0.004159837376 | J125: 0.0003346630377 | K125: 0.004446177271 | L125: 4.467908198e-05 | M125: 0.000659963588 | N125: 9.800056225e-07
A126: =IF('DF raw data'!A126="","",'DF raw data'!A126) -> -270.5 | B126: =IF('DF raw data'!B126="","",'DF raw data'!B126) -> -2.34609e-05 | C126: =IF('DF raw data'!C126="","",'DF raw data'!C126) -> 5.61591e-05 | D126: =IF('DF raw data'!D126="","",'DF raw data'!D126) -> -4.34036e-05 | F126: 1.628821142e-05 | G126: 3.29396352e-06 | H126: -0.00417239204 | J126: 0.0003428071434 | K126: 0.004617580843 | L126: 4.632606374e-05 | M126: 0.0006831266199 | N126: 1.039837043e-06
A127: =IF('DF raw data'!A127="","",'DF raw data'!A127) -> -270 | B127: =IF('DF raw data'!B127="","",'DF raw data'!B127) -> -2.79463e-05 | C127: =IF('DF raw data'!C127="","",'DF raw data'!C127) -> 5.55621e-05 | D127: =IF('DF raw data'!D127="","",'DF raw data'!D127) -> -4.51309e-05 | F127: 1.178442128e-05 | G127: 2.69451582e-06 | H127: -0.004174126422 | J127: 0.000348699354 | K127: 0.00479193052 | L127: 4.767332165e-05 | M127: 0.0007069632807 | N127: 1.101769036e-06
A128: =IF('DF raw data'!A128="","",'DF raw data'!A128) -> -269.5 | B128: =IF('DF raw data'!B128="","",'DF raw data'!B128) -> -3.3528e-05 | C128: =IF('DF raw data'!C128="","",'DF raw data'!C128) -> 5.71354e-05 | D128: =IF('DF raw data'!D128="","",'DF raw data'!D128) -> -3.62746e-05 | F128: 6.179836309e-06 | G128: 4.27426635e-06 | H128: -0.004165233811 | J128: =F128*$G$3+J127 -> 0.0003517892722 | K128: =J128*$G$3+K127 -> 0.004967825156 | L128: =G128*$G$3+L127 -> 4.981045482e-05 | M128: =L128*$G$3+M127 -> 0.0007318685081 | N128: =(J128^2+L128^2)*$G$3+N127 -> 1.164887423e-06
A129: =IF('DF raw data'!A129="","",'DF raw data'!A129) -> -269 | B129: =IF('DF raw data'!B129="","",'DF raw data'!B129) -> -3.06447e-05 | C129: =IF('DF raw data'!C129="","",'DF raw data'!C129) -> 5.36307e-05 | D129: =IF('DF raw data'!D129="","",'DF raw data'!D129) -> -3.50262e-05 | F129: 9.074957839e-06 | G129: 7.551970796e-07 | H129: -0.004163980293 | J129: 0.0003563267511 | K129: 0.005145988531 | L129: 5.018805336e-05 | M129: 0.0007569625348 | N129: 1.22963122e-06
A130: =IF('DF raw data'!A130="","",'DF raw data'!A130) -> -268.5 | B130: =IF('DF raw data'!B130="","",'DF raw data'!B130) -> -2.70572e-05 | C130: =IF('DF raw data'!C130="","",'DF raw data'!C130) -> 5.29658e-05 | D130: =IF('DF raw data'!D130="","",'DF raw data'!D130) -> -3.21786e-05 | F130: 1.267716659e-05 | G130: 8.757098963e-08 | H130: -0.004161121017 | J130: 0.0003626653344 | K130: 0.005327321199 | L130: 5.023183886e-05 | M130: 0.0007820784542 | N130: 1.296655911e-06
A131: =IF('DF raw data'!A131="","",'DF raw data'!A131) -> -268 | B131: =IF('DF raw data'!B131="","",'DF raw data'!B131) -> -2.54481e-05 | C131: =IF('DF raw data'!C131="","",'DF raw data'!C131) -> 5.12951e-05 | D131: =IF('DF raw data'!D131="","",'DF raw data'!D131) -> -4.2919e-05 | F131: =(1-$G$1*($B$54-$G$2))*(B131-F$5) -> 1.42928639e-05 | G131: =(1-$G$1*($B$54-$G$2))*(C131-G$5) -> -1.58997888e-06 | H131: =(1-$G$1*($B$54-$G$2))*(D131-H$5) -> -0.004171905453 | J131: 0.0003698117664 | K131: 0.005512227082 | L131: 4.943684942e-05 | M131: 0.0008067968789 | N131: 1.366258283e-06
A132: =IF('DF raw data'!A132="","",'DF raw data'!A132) -> -267.5 | B132: =IF('DF raw data'!B132="","",'DF raw data'!B132) -> -2.86519e-05 | C132: =IF('DF raw data'!C132="","",'DF raw data'!C132) -> 5.83099e-05 | D132: =IF('DF raw data'!D132="","",'DF raw data'!D132) -> -4.40671e-05 | F132: 1.107592832e-05 | G132: 5.4535818e-06 | H132: -0.00417305826 | J132: 0.0003753497305 | K132: 0.005699901947 | L132: 5.216364032e-05 | M132: 0.0008328786991 | N132: 1.438062516e-06
A133: =IF('DF raw data'!A133="","",'DF raw data'!A133) -> -267 | B133: =IF('DF raw data'!B133="","",'DF raw data'!B133) -> -3.12215e-05 | C133: =IF('DF raw data'!C133="","",'DF raw data'!C133) -> 5.20994e-05 | D133: =IF('DF raw data'!D133="","",'DF raw data'!D133) -> -3.47262e-05 | F133: 8.495792959e-06 | G133: -7.823812504e-07 | H133: -0.004163679063 | J133: 0.000379597627 | K133: 0.005889700761 | L133: 5.177244969e-05 | M133: 0.0008587649239 | N133: 1.511449889e-06
A134: =IF('DF raw data'!A134="","",'DF raw data'!A134) -> -266.5 | B134: =IF('DF raw data'!B134="","",'DF raw data'!B134) -> -2.19229e-05 | C134: =IF('DF raw data'!C134="","",'DF raw data'!C134) -> 5.37186e-05 | D134: =IF('DF raw data'!D134="","",'DF raw data'!D134) -> -4.30901e-05 | F134: 1.783251722e-05 | G134: 8.434574696e-07 | H134: -0.004172077255 | J134: 0.0003885138856 | K134: 0.006083957703 | L134: 5.219417843e-05 | M134: 0.0008848620131 | N134: 1.588283524e-06
A135: =IF('DF raw data'!A135="","",'DF raw data'!A135) -> -266 | B135: =IF('DF raw data'!B135="","",'DF raw data'!B135) -> -3.56401e-05 | C135: =IF('DF raw data'!C135="","",'DF raw data'!C135) -> 5.81154e-05 | D135: =IF('DF raw data'!D135="","",'DF raw data'!D135) -> -4.10059e-05 | F135: 4.059076699e-06 | G135: 5.25828435e-06 | H135: -0.004169984509 | J135: 0.000390543424 | K135: 0.006279229415 | L135: 5.48233206e-05 | M135: 0.0009122736734 | N135: 1.666048406e-06
A136: =IF('DF raw data'!A136="","",'DF raw data'!A136) -> -265.5 | B136: =IF('DF raw data'!B136="","",'DF raw data'!B136) -> -2.10966e-05 | C136: =IF('DF raw data'!C136="","",'DF raw data'!C136) -> 6.10369e-05 | D136: =IF('DF raw data'!D136="","",'DF raw data'!D136) -> -3.22853e-05 | F136: 1.866220505e-05 | G136: 8.1917625e-06 | H136: -0.004161228155 | J136: 0.0003998745265 | K136: 0.006479166679 | L136: 5.891920185e-05 | M136: 0.0009417332744 | N136: 1.74773396e-06
A137: =IF('DF raw data'!A137="","",'DF raw data'!A137) -> -265 | B137: =IF('DF raw data'!B137="","",'DF raw data'!B137) -> -3.75069e-05 | C137: =IF('DF raw data'!C137="","",'DF raw data'!C137) -> 6.61083e-05 | D137: =IF('DF raw data'!D137="","",'DF raw data'!D137) -> -2.82172e-05 | F137: 2.184622819e-06 | G137: 1.328395524e-05 | H137: -0.004157143376 | J137: 0.0004009668379 | K137: 0.006679650098 | L137: 6.556117947e-05 | M137: 0.0009745138641 | N137: 1.830270297e-06
A138: =IF('DF raw data'!A138="","",'DF raw data'!A138) -> -264.5 | B138: =IF('DF raw data'!B138="","",'DF raw data'!B138) -> -2.66577e-05 | C138: =IF('DF raw data'!C138="","",'DF raw data'!C138) -> 6.67595e-05 | D138: =IF('DF raw data'!D138="","",'DF raw data'!D138) -> -5.52913e-05 | F138: 1.307830454e-05 | G138: 1.393782516e-05 | H138: -0.00418432848 | J138: 0.0004075059902 | K138: 0.006883403093 | L138: 7.253009205e-05 | M138: 0.00101077891 | N138: 1.91593117e-06
A139: =IF('DF raw data'!A139="","",'DF raw data'!A139) -> -264 | B139: =IF('DF raw data'!B139="","",'DF raw data'!B139) -> -2.32665e-05 | C139: =IF('DF raw data'!C139="","",'DF raw data'!C139) -> 6.00233e-05 | D139: =IF('DF raw data'!D139="","",'DF raw data'!D139) -> -4.64586e-05 | F139: 1.648340846e-05 | G139: 7.17400674e-06 | H139: -0.004175459565 | J139: 0.0004157476944 | K139: 0.00709127694 | L139: 7.611709542e-05 | M139: 0.001048837458 | N139: 2.005251149e-06
A140: =IF('DF raw data'!A140="","",'DF raw data'!A140) -> -263.5 | B140: =IF('DF raw data'!B140="","",'DF raw data'!B140) -> -2.48708e-05 | C140: =IF('DF raw data'!C140="","",'DF raw data'!C140) -> 6.23177e-05 | D140: =IF('DF raw data'!D140="","",'DF raw data'!D140) -> -4.34554e-05 | F140: 1.487253083e-05 | G140: 9.47781378e-06 | H140: -0.004172444052 | J140: 0.0004231839598 | K140: 0.00730286892 | L140: 8.085600231e-05 | M140: 0.001089265459 | N140: 2.098062327e-06
A141: =IF('DF raw data'!A141="","",'DF raw data'!A141) -> -263 | B141: =IF('DF raw data'!B141="","",'DF raw data'!B141) -> -2.89772e-05 | C141: =IF('DF raw data'!C141="","",'DF raw data'!C141) -> 6.24491e-05 | D141: =IF('DF raw data'!D141="","",'DF raw data'!D141) -> -3.6776e-05 | F141: 1.074929459e-05 | G141: 9.60975252e-06 | H141: -0.004165737267 | J141: 0.0004285586071 | K141: 0.007517148223 | L141: 8.566087857e-05 | M141: 0.001132095898 | N141: 2.19356246e-06
A142: =IF('DF raw data'!A142="","",'DF raw data'!A142) -> -262.5 | B142: =IF('DF raw data'!B142="","",'DF raw data'!B142) -> -2.59627e-05 | C142: =IF('DF raw data'!C142="","",'DF raw data'!C142) -> 6.04871e-05 | D142: =IF('DF raw data'!D142="","",'DF raw data'!D142) -> -4.00688e-05 | F142: 1.377615404e-05 | G142: 7.63970832e-06 | H142: -0.004169043567 | J142: 0.0004354466841 | K142: 0.007734871565 | L142: 8.948073273e-05 | M142: 0.001176836265 | N142: 2.292372768e-06
A143: =IF('DF raw data'!A143="","",'DF raw data'!A143) -> -262 | B143: =IF('DF raw data'!B143="","",'DF raw data'!B143) -> -2.31426e-05 | C143: =IF('DF raw data'!C143="","",'DF raw data'!C143) -> 5.61155e-05 | D143: =IF('DF raw data'!D143="","",'DF raw data'!D143) -> -3.98106e-05 | F143: 1.660781645e-05 | G143: 3.25018476e-06 | H143: -0.004168784309 | J143: 0.0004437505923 | K143: 0.007956746861 | L143: 9.110582511e-05 | M143: 0.001222389177 | N143: 2.394980198e-06
A144: =IF('DF raw data'!A144="","",'DF raw data'!A144) -> -261.5 | B144: =IF('DF raw data'!B144="","",'DF raw data'!B144) -> -3.36593e-05 | C144: =IF('DF raw data'!C144="","",'DF raw data'!C144) -> 4.90177e-05 | D144: =IF('DF raw data'!D144="","",'DF raw data'!D144) -> -3.15072e-05 | F144: 6.047997979e-06 | G144: -3.87671622e-06 | H144: -0.004160446865 | J144: 0.0004467745913 | K144: 0.008180134157 | L144: 8.9167467e-05 | M144: 0.001266972911 | N144: 2.498759384e-06
A145: =IF('DF raw data'!A145="","",'DF raw data'!A145) -> -261 | B145: =IF('DF raw data'!B145="","",'DF raw data'!B145) -> -2.80155e-05 | C145: =IF('DF raw data'!C145="","",'DF raw data'!C145) -> 5.12725e-05 | D145: =IF('DF raw data'!D145="","",'DF raw data'!D145) -> -3.71601e-05 | F145: 1.171493756e-05 | G145: -1.61267154e-06 | H145: -0.004166122942 | J145: 0.0004526320601 | K145: 0.008406450187 | L145: 8.836113123e-05 | M145: 0.001311153476 | N145: 2.60510112e-06
A146: =IF('DF raw data'!A146="","",'DF raw data'!A146) -> -260.5 | B146: =IF('DF raw data'!B146="","",'DF raw data'!B146) -> -3.61596e-05 | C146: =IF('DF raw data'!C146="","",'DF raw data'!C146) -> 4.57842e-05 | D146: =IF('DF raw data'!D146="","",'DF raw data'!D146) -> -3.06371e-05 | F146: 3.537446749e-06 | G146: -7.12347357e-06 | H146: -0.004159573197 | J146: 0.0004544007835 | K146: 0.008633650579 | L146: 8.479939445e-05 | M146: 0.001353553174 | N146: 2.711936625e-06
A147: =IF('DF raw data'!A147="","",'DF raw data'!A147) -> -260 | B147: =IF('DF raw data'!B147="","",'DF raw data'!B147) -> -3.55867e-05 | C147: =IF('DF raw data'!C147="","",'DF raw data'!C147) -> 4.89069e-05 | D147: =IF('DF raw data'!D147="","",'DF raw data'!D147) -> -2.43807e-05 | F147: 4.112695639e-06 | G147: -3.9879705e-06 | H147: -0.004153291146 | J147: 0.0004564571313 | K147: 0.008861879145 | L147: 8.28054092e-05 | M147: 0.001394955878 | N147: 2.819541549e-06
A148: =IF('DF raw data'!A148="","",'DF raw data'!A148) -> -259.5 | B148: =IF('DF raw data'!B148="","",'DF raw data'!B148) -> -3.18627e-05 | C148: =IF('DF raw data'!C148="","",'DF raw data'!C148) -> 4.72006e-05 | D148: =IF('DF raw data'!D148="","",'DF raw data'!D148) -> -3.47799e-05 | F148: 7.851964039e-06 | G148: -5.70126633e-06 | H148: -0.004163732983 | J148: 0.0004603831133 | K148: 0.009092070701 | L148: 7.995477603e-05 | M148: 0.001434933266 | N148: 2.928714238e-06
A149: =IF('DF raw data'!A149="","",'DF raw data'!A149) -> -259 | B149: =IF('DF raw data'!B149="","",'DF raw data'!B149) -> -3.42939e-05 | C149: =IF('DF raw data'!C149="","",'DF raw data'!C149) -> 4.10014e-05 | D149: =IF('DF raw data'!D149="","",'DF raw data'!D149) -> -4.12259e-05 | F149: 5.410796119e-06 | G149: -1.192588305e-05 | H149: -0.004170205411 | J149: 0.0004630885114 | K149: 0.009323614957 | L149: 7.39918345e-05 | M149: 0.001471929183 | N149: 3.038677118e-06
A150: =IF('DF raw data'!A150="","",'DF raw data'!A150) -> -258.5 | B150: =IF('DF raw data'!B150="","",'DF raw data'!B150) -> -2.34101e-05 | C150: =IF('DF raw data'!C150="","",'DF raw data'!C150) -> 4.98616e-05 | D150: =IF('DF raw data'!D150="","",'DF raw data'!D150) -> -2.27273e-05 | F150: 1.63392197e-05 | G150: -3.02935623e-06 | H150: -0.004151630967 | J150: 0.0004712581212 | K150: 0.009559244018 | L150: 7.247715639e-05 | M150: 0.001508167762 | N150: 3.152345696e-06
A151: =IF('DF raw data'!A151="","",'DF raw data'!A151) -> -258 | B151: =IF('DF raw data'!B151="","",'DF raw data'!B151) -> -3.25663e-05 | C151: =IF('DF raw data'!C151="","",'DF raw data'!C151) -> 4.66059e-05 | D151: =IF('DF raw data'!D151="","",'DF raw data'!D151) -> -3.66443e-05 | F151: 7.145479279e-06 | G151: -6.2984046e-06 | H151: -0.004165605027 | J151: 0.0004748308609 | K151: 0.009796659448 | L151: 6.932795409e-05 | M151: 0.001542831739 | N151: 3.267481051e-06
A152: =IF('DF raw data'!A152="","",'DF raw data'!A152) -> -257.5 | B152: =IF('DF raw data'!B152="","",'DF raw data'!B152) -> -2.80147e-05 | C152: =IF('DF raw data'!C152="","",'DF raw data'!C152) -> 4.35892e-05 | D152: =IF('DF raw data'!D152="","",'DF raw data'!D152) -> -3.83055e-05 | F152: 1.171574084e-05 | G152: -9.32747307e-06 | H152: -0.004167273038 | J152: 0.0004806887313 | K152: 0.01003700381 | L152: 6.466421755e-05 | M152: 0.001575163847 | N152: 3.38510261e-06
A153: =IF('DF raw data'!A153="","",'DF raw data'!A153) -> -257 | B153: =IF('DF raw data'!B153="","",'DF raw data'!B153) -> -3.77573e-05 | C153: =IF('DF raw data'!C153="","",'DF raw data'!C153) -> 4.98362e-05 | D153: =IF('DF raw data'!D153="","",'DF raw data'!D153) -> -3.73861e-05 | F153: 1.933196179e-06 | G153: -3.05486037e-06 | H153: -0.004166349868 | J153: 0.0004816553294 | K153: 0.01027783148 | L153: 6.313678737e-05 | M153: 0.001606732241 | N153: 3.503091665e-06
A154: =IF('DF raw data'!A154="","",'DF raw data'!A154) -> -256.5 | B154: =IF('DF raw data'!B154="","",'DF raw data'!B154) -> -2.73763e-05 | C154: =IF('DF raw data'!C154="","",'DF raw data'!C154) -> 4.75115e-05 | D154: =IF('DF raw data'!D154="","",'DF raw data'!D154) -> -3.44588e-05 | F154: 1.235675828e-05 | G154: -5.38909164e-06 | H154: -0.004163410566 | J154: 0.0004878337085 | K154: 0.01052174833 | L154: 6.044224155e-05 | M154: 0.001636953362 | N154: 3.623909161e-06
A155: =IF('DF raw data'!A155="","",'DF raw data'!A155) -> -256 | B155: =IF('DF raw data'!B155="","",'DF raw data'!B155) -> -2.4624e-05 | C155: =IF('DF raw data'!C155="","",'DF raw data'!C155) -> 4.28538e-05 | D155: =IF('DF raw data'!D155="","",'DF raw data'!D155) -> -2.87251e-05 | F155: 1.512034271e-05 | G155: -1.006588821e-05 | H155: -0.004157653358 | J155: 0.0004953938799 | K155: 0.01076944527 | L155: 5.540929744e-05 | M155: 0.001664658011 | N155: 3.748151804e-06
A156: =IF('DF raw data'!A156="","",'DF raw data'!A156) -> -255.5 | B156: =IF('DF raw data'!B156="","",'DF raw data'!B156) -> -2.68594e-05 | C156: =IF('DF raw data'!C156="","",'DF raw data'!C156) -> 5.13205e-05 | D156: =IF('DF raw data'!D156="","",'DF raw data'!D156) -> -4.0898e-05 | F156: 1.287577757e-05 | G156: -1.56447474e-06 | H156: -0.004169876167 | J156: 0.0005018317687 | K156: 0.01102036116 | L156: 5.462706007e-05 | M156: 0.001691971541 | N156: 3.875561424e-06
A157: =IF('DF raw data'!A157="","",'DF raw data'!A157) -> -255 | B157: =IF('DF raw data'!B157="","",'DF raw data'!B157) -> -2.30236e-05 | C157: =IF('DF raw data'!C157="","",'DF raw data'!C157) -> 5.8673e-05 | D157: =IF('DF raw data'!D157="","",'DF raw data'!D157) -> -2.57678e-05 | F157: 1.672730435e-05 | G157: 5.81817051e-06 | H157: -0.004154683933 | J157: 0.0005101954208 | K157: 0.01127545887 | L157: 5.753614533e-05 | M157: 0.001720739613 | N157: 4.007366312e-06
A158: =IF('DF raw data'!A158="","",'DF raw data'!A158) -> -254.5 | B158: =IF('DF raw data'!B158="","",'DF raw data'!B158) -> -2.46877e-05 | C158: =IF('DF raw data'!C158="","",'DF raw data'!C158) -> 5.16614e-05 | D158: =IF('DF raw data'!D158="","",'DF raw data'!D158) -> -2.95122e-05 | F158: 1.505638154e-05 | G158: -1.22217705e-06 | H158: -0.004158443685 | J158: 0.0005177236116 | K158: 0.01153432067 | L158: 5.69250568e-05 | M158: 0.001749202142 | N158: 4.143005412e-06
A159: =IF('DF raw data'!A159="","",'DF raw data'!A159) -> -254 | B159: =IF('DF raw data'!B159="","",'DF raw data'!B159) -> -2.76339e-05 | C159: =IF('DF raw data'!C159="","",'DF raw data'!C159) -> 4.21939e-05 | D159: =IF('DF raw data'!D159="","",'DF raw data'!D159) -> -3.26605e-05 | F159: 1.209810212e-05 | G159: -1.07284938e-05 | H159: -0.004161604893 | J159: 0.0005237726627 | K159: 0.011796207 | L159: 5.15608099e-05 | M159: 0.001774982547 | N159: 4.281503572e-06
A160: =IF('DF raw data'!A160="","",'DF raw data'!A160) -> -253.5 | B160: =IF('DF raw data'!B160="","",'DF raw data'!B160) -> -2.3533e-05 | C160: =IF('DF raw data'!C160="","",'DF raw data'!C160) -> 4.2939e-05 | D160: =IF('DF raw data'!D160="","",'DF raw data'!D160) -> -3.07935e-05 | F160: 1.621581581e-05 | G160: -9.98033889e-06 | H160: -0.004159730239 | J160: 0.0005318805706 | K160: 0.01206214729 | L160: 4.657064046e-05 | M160: 0.001798267867 | N160: 4.424036455e-06
A161: =IF('DF raw data'!A161="","",'DF raw data'!A161) -> -253 | B161: =IF('DF raw data'!B161="","",'DF raw data'!B161) -> -1.91099e-05 | C161: =IF('DF raw data'!C161="","",'DF raw data'!C161) -> 5.54127e-05 | D161: =IF('DF raw data'!D161="","",'DF raw data'!D161) -> -3.19856e-05 | F161: 2.065705052e-05 | G161: 2.54450328e-06 | H161: -0.004160927226 | J161: 0.0005422090958 | K161: 0.01233325184 | L161: 4.78428921e-05 | M161: 0.001822189313 | N161: 4.572176278e-06
A162: =IF('DF raw data'!A162="","",'DF raw data'!A162) -> -252.5 | B162: =IF('DF raw data'!B162="","",'DF raw data'!B162) -> -2.01909e-05 | C162: =IF('DF raw data'!C162="","",'DF raw data'!C162) -> 5.27343e-05 | D162: =IF('DF raw data'!D162="","",'DF raw data'!D162) -> -4.52863e-05 | F162: 1.957161842e-05 | G162: -1.448781604e-07 | H162: -0.004174282459 | J162: 0.000551994905 | K162: 0.01260924929 | L162: 4.777045302e-05 | M162: 0.001846074539 | N162: 4.725666473e-06
A163: =IF('DF raw data'!A163="","",'DF raw data'!A163) -> -252 | B163: =IF('DF raw data'!B163="","",'DF raw data'!B163) -> -2.7244e-05 | C163: =IF('DF raw data'!C163="","",'DF raw data'!C163) -> 4.61896e-05 | D163: =IF('DF raw data'!D163="","",'DF raw data'!D163) -> -4.08266e-05 | F163: 1.248960071e-05 | G163: -6.71641143e-06 | H163: -0.004169804474 | J163: 0.0005582397054 | K163: 0.01288836914 | L163: 4.44122473e-05 | M163: 0.001868280663 | N163: 4.882468481e-06
A164: =IF('DF raw data'!A164="","",'DF raw data'!A164) -> -251.5 | B164: =IF('DF raw data'!B164="","",'DF raw data'!B164) -> -2.30738e-05 | C164: =IF('DF raw data'!C164="","",'DF raw data'!C164) -> 4.71953e-05 | D164: =IF('DF raw data'!D164="","",'DF raw data'!D164) -> -4.73496e-05 | F164: 1.667689853e-05 | G164: -5.70658806e-06 | H164: -0.004176354219 | J164: 0.0005665781547 | K164: 0.01317165822 | L164: 4.155895327e-05 | M164: 0.00188906014 | N164: 5.043837457e-06
A165: =IF('DF raw data'!A165="","",'DF raw data'!A165) -> -251 | B165: =IF('DF raw data'!B165="","",'DF raw data'!B165) -> -3.64768e-05 | C165: =IF('DF raw data'!C165="","",'DF raw data'!C165) -> 4.83324e-05 | D165: =IF('DF raw data'!D165="","",'DF raw data'!D165) -> -3.54919e-05 | F165: 3.218946229e-06 | G165: -4.56482595e-06 | H165: -0.004164447902 | J165: 0.0005681876278 | K165: 0.01345575203 | L165: 3.92765403e-05 | M165: 0.00190869841 | N165: 5.206027371e-06
A166: =IF('DF raw data'!A166="","",'DF raw data'!A166) -> -250.5 | B166: =IF('DF raw data'!B166="","",'DF raw data'!B166) -> -1.84075e-05 | C166: =IF('DF raw data'!C166="","",'DF raw data'!C166) -> 5.18538e-05 | D166: =IF('DF raw data'!D166="","",'DF raw data'!D166) -> -2.8251e-05 | F166: 2.136233036e-05 | G166: -1.02898821e-06 | H166: -0.004157177314 | J166: 0.000578868793 | K166: 0.01374518643 | L166: 3.876204619e-05 | M166: 0.001928079433 | N166: 5.374323159e-06
A167: =IF('DF raw data'!A167="","",'DF raw data'!A167) -> -250 | B167: =IF('DF raw data'!B167="","",'DF raw data'!B167) -> -2.98731e-05 | C167: =IF('DF raw data'!C167="","",'DF raw data'!C167) -> 5.38847e-05 | D167: =IF('DF raw data'!D167="","",'DF raw data'!D167) -> -3.88719e-05 | F167: 9.849721399e-06 | G167: 1.01023848e-06 | H167: -0.00416784176 | J167: 0.0005837936537 | K167: 0.01403708326 | L167: 3.926716543e-05 | M167: 0.001947713016 | N167: 5.545501629e-06
A168: =IF('DF raw data'!A168="","",'DF raw data'!A168) -> -249.5 | B168: =IF('DF raw data'!B168="","",'DF raw data'!B168) -> -2.66787e-05 | C168: =IF('DF raw data'!C168="","",'DF raw data'!C168) -> 6.20976e-05 | D168: =IF('DF raw data'!D168="","",'DF raw data'!D168) -> -2.28579e-05 | F168: 1.305721844e-05 | G168: 9.25681137e-06 | H168: -0.004151762103 | J168: 0.0005903222629 | K168: 0.01433224439 | L168: 4.389557112e-05 | M168: 0.001969660801 | N168: 5.720705227e-06
A169: =IF('DF raw data'!A169="","",'DF raw data'!A169) -> -249 | B169: =IF('DF raw data'!B169="","",'DF raw data'!B169) -> -2.6859e-05 | C169: =IF('DF raw data'!C169="","",'DF raw data'!C169) -> 6.23949e-05 | D169: =IF('DF raw data'!D169="","",'DF raw data'!D169) -> -4.16622e-05 | F169: 1.287617921e-05 | G169: 9.5553303e-06 | H169: -0.0041706435 | J169: 0.0005967603525 | K169: 0.01463062457 | L169: 4.867323627e-05 | M169: 0.001993997419 | N169: 5.899951228e-06
A170: =IF('DF raw data'!A170="","",'DF raw data'!A170) -> -248.5 | B170: =IF('DF raw data'!B170="","",'DF raw data'!B170) -> -2.36586e-05 | C170: =IF('DF raw data'!C170="","",'DF raw data'!C170) -> 6.01793e-05 | D170: =IF('DF raw data'!D170="","",'DF raw data'!D170) -> -3.47951e-05 | F170: 1.608970085e-05 | G170: 7.33064634e-06 | H170: -0.004163748245 | J170: 0.0006048052029 | K170: 0.01493302717 | L170: 5.233855944e-05 | M170: 0.002020166699 | N170: 6.084215557e-06
A171: =IF('DF raw data'!A171="","",'DF raw data'!A171) -> -248 | B171: =IF('DF raw data'!B171="","",'DF raw data'!B171) -> -2.23146e-05 | C171: =IF('DF raw data'!C171="","",'DF raw data'!C171) -> 6.23137e-05 | D171: =IF('DF raw data'!D171="","",'DF raw data'!D171) -> -3.20751e-05 | F171: 1.743921125e-05 | G171: 9.47379738e-06 | H171: -0.004161017093 | J171: 0.0006135248085 | K171: 0.01523978957 | L171: 5.707545813e-05 | M171: 0.002048704428 | N171: 6.274050706e-06
A172: =IF('DF raw data'!A172="","",'DF raw data'!A172) -> -247.5 | B172: =IF('DF raw data'!B172="","",'DF raw data'!B172) -> -2.8657e-05 | C172: =IF('DF raw data'!C172="","",'DF raw data'!C172) -> 5.56281e-05 | D172: =IF('DF raw data'!D172="","",'DF raw data'!D172) -> -3.62676e-05 | F172: 1.107080741e-05 | G172: 2.76078642e-06 | H172: -0.004165226782 | J172: 0.0006190602122 | K172: 0.01554931968 | L172: 5.845585134e-05 | M172: 0.002077932354 | N172: 6.467377023e-06
A173: =IF('DF raw data'!A173="","",'DF raw data'!A173) -> -247 | B173: =IF('DF raw data'!B173="","",'DF raw data'!B173) -> -2.48753e-05 | C173: =IF('DF raw data'!C173="","",'DF raw data'!C173) -> 5.45265e-05 | D173: =IF('DF raw data'!D173="","",'DF raw data'!D173) -> -3.65558e-05 | F173: 1.486801238e-05 | G173: 1.65466986e-06 | H173: -0.004165516164 | J173: 0.0006264942184 | K173: 0.01586256679 | L173: 5.928318627e-05 | M173: 0.002107573947 | N173: 6.665381773e-06
A174: =IF('DF raw data'!A174="","",'DF raw data'!A174) -> -246.5 | B174: =IF('DF raw data'!B174="","",'DF raw data'!B174) -> -2.59027e-05 | C174: =IF('DF raw data'!C174="","",'DF raw data'!C174) -> 5.33138e-05 | D174: =IF('DF raw data'!D174="","",'DF raw data'!D174) -> -3.35702e-05 | F174: 1.383640004e-05 | G174: 4.369977896e-07 | H174: -0.004162518323 | J174: 0.0006334124184 | K174: 0.016179273 | L174: 5.950168516e-05 | M174: 0.00213732479 | N174: 6.867757645e-06
A175: =IF('DF raw data'!A175="","",'DF raw data'!A175) -> -246 | B175: =IF('DF raw data'!B175="","",'DF raw data'!B175) -> -2.16135e-05 | C175: =IF('DF raw data'!C175="","",'DF raw data'!C175) -> 5.61576e-05 | D175: =IF('DF raw data'!D175="","",'DF raw data'!D175) -> -2.58812e-05 | F175: 1.814318576e-05 | G175: 3.29245737e-06 | H175: -0.004154797798 | J175: 0.0006424840113 | K175: 0.016500515 | L175: 6.114791385e-05 | M175: 0.002167898746 | N175: 7.076020031e-06
A176: =IF('DF raw data'!A176="","",'DF raw data'!A176) -> -245.5 | B176: =IF('DF raw data'!B176="","",'DF raw data'!B176) -> -2.54523e-05 | C176: =IF('DF raw data'!C176="","",'DF raw data'!C176) -> 6.34387e-05 | D176: =IF('DF raw data'!D176="","",'DF raw data'!D176) -> -3.66053e-05 | F176: 1.428864668e-05 | G176: 1.060340988e-05 | H176: -0.004165565867 | J176: 0.0006496283347 | K176: 0.01682532917 | L176: 6.644961878e-05 | M176: 0.002201123556 | N176: 7.289236293e-06
A177: =IF('DF raw data'!A177="","",'DF raw data'!A177) -> -245 | B177: =IF('DF raw data'!B177="","",'DF raw data'!B177) -> -2.27668e-05 | C177: =IF('DF raw data'!C177="","",'DF raw data'!C177) -> 5.39383e-05 | D177: =IF('DF raw data'!D177="","",'DF raw data'!D177) -> -2.6368e-05 | F177: 1.698515723e-05 | G177: 1.06405824e-06 | H177: -0.004155286594 | J177: 0.0006581209133 | K177: 0.01715438962 | L177: 6.69816479e-05 | M177: 0.00223461438 | N177: 7.508041132e-06
A178: =IF('DF raw data'!A178="","",'DF raw data'!A178) -> -244.5 | B178: =IF('DF raw data'!B178="","",'DF raw data'!B178) -> -3.67978e-05 | C178: =IF('DF raw data'!C178="","",'DF raw data'!C178) -> 4.94761e-05 | D178: =IF('DF raw data'!D178="","",'DF raw data'!D178) -> -3.49008e-05 | F178: 2.896630129e-06 | G178: -3.41643678e-06 | H178: -0.004163854379 | J178: 0.0006595692283 | K178: 0.01748417424 | L178: 6.527342951e-05 | M178: 0.002267251095 | N178: 7.727687226e-06
A179: =IF('DF raw data'!A179="","",'DF raw data'!A179) -> -244 | B179: =IF('DF raw data'!B179="","",'DF raw data'!B179) -> -2.44855e-05 | C179: =IF('DF raw data'!C179="","",'DF raw data'!C179) -> 5.28025e-05 | D179: =IF('DF raw data'!D179="","",'DF raw data'!D179) -> -4.47868e-05 | F179: 1.525941056e-05 | G179: -7.639854037e-08 | H179: -0.004173780911 | J179: 0.0006671989336 | K179: 0.01781777371 | L179: 6.523523024e-05 | M179: 0.00229986871 | N179: 7.952392252e-06
A180: =IF('DF raw data'!A180="","",'DF raw data'!A180) -> -243.5 | B180: =IF('DF raw data'!B180="","",'DF raw data'!B180) -> -3.00746e-05 | C180: =IF('DF raw data'!C180="","",'DF raw data'!C180) -> 4.72611e-05 | D180: =IF('DF raw data'!D180="","",'DF raw data'!D180) -> -2.44798e-05 | F180: 9.647395249e-06 | G180: -5.64051828e-06 | H180: -0.004153390652 | J180: 0.0006720226312 | K180: 0.01815378502 | L180: 6.24149711e-05 | M180: 0.002331076195 | N180: 8.180147275e-06
A181: =IF('DF raw data'!A181="","",'DF raw data'!A181) -> -243 | B181: =IF('DF raw data'!B181="","",'DF raw data'!B181) -> -2.00717e-05 | C181: =IF('DF raw data'!C181="","",'DF raw data'!C181) -> 4.28486e-05 | D181: =IF('DF raw data'!D181="","",'DF raw data'!D181) -> -3.14783e-05 | F181: 1.969130714e-05 | G181: -1.007110953e-05 | H181: -0.004160417846 | J181: 0.0006818682848 | K181: 0.01849471916 | L181: 5.737941634e-05 | M181: 0.002359765903 | N181: 8.414265652e-06
A182: =IF('DF raw data'!A182="","",'DF raw data'!A182) -> -242.5 | B182: =IF('DF raw data'!B182="","",'DF raw data'!B182) -> -2.62225e-05 | C182: =IF('DF raw data'!C182="","",'DF raw data'!C182) -> 5.26285e-05 | D182: =IF('DF raw data'!D182="","",'DF raw data'!D182) -> -3.47718e-05 | F182: 1.351528886e-05 | G182: -2.511119404e-07 | H182: -0.00416372485 | J182: 0.0006886259292 | K182: 0.01883903213 | L182: 5.725386037e-05 | M182: 0.002388392834 | N182: 8.65300749e-06
A183: =IF('DF raw data'!A183="","",'DF raw data'!A183) -> -242 | B183: =IF('DF raw data'!B183="","",'DF raw data'!B183) -> -3.85294e-05 | C183: =IF('DF raw data'!C183="","",'DF raw data'!C183) -> 5.15439e-05 | D183: =IF('DF raw data'!D183="","",'DF raw data'!D183) -> -3.29303e-05 | F183: 1.157930569e-06 | G183: -1.3401588e-06 | H183: -0.004161875799 | J183: 0.0006892048945 | K183: 0.01918363458 | L183: 5.658378097e-05 | M183: 0.002416684724 | N183: 8.892110045e-06
A184: =IF('DF raw data'!A184="","",'DF raw data'!A184) -> -241.5 | B184: =IF('DF raw data'!B184="","",'DF raw data'!B184) -> -1.94284e-05 | C184: =IF('DF raw data'!C184="","",'DF raw data'!C184) -> 5.73856e-05 | D184: =IF('DF raw data'!D184="","",'DF raw data'!D184) -> -3.51766e-05 | F184: 2.033724467e-05 | G184: 4.52549217e-06 | H184: -0.004164131309 | J184: 0.0006993735169 | K184: 0.01953332133 | L184: 5.884652705e-05 | M184: 0.002446107988 | N184: 9.13840316e-06
A185: =IF('DF raw data'!A185="","",'DF raw data'!A185) -> -241 | B185: =IF('DF raw data'!B185="","",'DF raw data'!B185) -> -2.14843e-05 | C185: =IF('DF raw data'!C185="","",'DF raw data'!C185) -> 4.78264e-05 | D185: =IF('DF raw data'!D185="","",'DF raw data'!D185) -> -2.75382e-05 | F185: 1.827291548e-05 | G185: -5.07290055e-06 | H185: -0.004156461592 | J185: 0.0007085099746 | K185: 0.01988757632 | L185: 5.631007678e-05 | M185: 0.002474263026 | N185: 9.390981765e-06
A186: =IF('DF raw data'!A186="","",'DF raw data'!A186) -> -240.5 | B186: =IF('DF raw data'!B186="","",'DF raw data'!B186) -> -3.65438e-05 | C186: =IF('DF raw data'!C186="","",'DF raw data'!C186) -> 4.01266e-05 | D186: =IF('DF raw data'!D186="","",'DF raw data'!D186) -> -3.12973e-05 | F186: 3.151671529e-06 | G186: -1.280426973e-05 | H186: -0.004160236104 | J186: 0.0007100858104 | K186: 0.02024261923 | L186: 4.990794191e-05 | M186: 0.002499216997 | N186: 9.644338095e-06
A187: =IF('DF raw data'!A187="","",'DF raw data'!A187) -> -240 | B187: =IF('DF raw data'!B187="","",'DF raw data'!B187) -> -3.02e-05 | C187: =IF('DF raw data'!C187="","",'DF raw data'!C187) -> 5.10214e-05 | D187: =IF('DF raw data'!D187="","",'DF raw data'!D187) -> -2.8892e-05 | F187: 9.521481109e-06 | G187: -1.86480105e-06 | H187: -0.004157820942 | J187: 0.0007148465509 | K187: 0.0206000425 | L187: 4.897554139e-05 | M187: 0.002523704768 | N187: 9.901040193e-06
A188: =IF('DF raw data'!A188="","",'DF raw data'!A188) -> -239.5 | B188: =IF('DF raw data'!B188="","",'DF raw data'!B188) -> -2.46869e-05 | C188: =IF('DF raw data'!C188="","",'DF raw data'!C188) -> 5.08725e-05 | D188: =IF('DF raw data'!D188="","",'DF raw data'!D188) -> -3.09507e-05 | F188: 1.505718482e-05 | G188: -2.01431154e-06 | H188: -0.004159888083 | J188: 0.0007223751433 | K188: 0.02096123007 | L188: 4.796838562e-05 | M188: 0.00254768896 | N188: 1.01631036e-05
A189: =IF('DF raw data'!A189="","",'DF raw data'!A189) -> -239 | B189: =IF('DF raw data'!B189="","",'DF raw data'!B189) -> -3.19909e-05 | C189: =IF('DF raw data'!C189="","",'DF raw data'!C189) -> 4.63351e-05 | D189: =IF('DF raw data'!D189="","",'DF raw data'!D189) -> -3.48866e-05 | F189: 7.723238419e-06 | G189: -6.57031488e-06 | H189: -0.00416384012 | J189: 0.0007262367625 | K189: 0.02132434846 | L189: 4.468322818e-05 | M189: 0.002570030575 | N189: 1.042781181e-05
A190: =IF('DF raw data'!A190="","",'DF raw data'!A190) -> -238.5 | B190: =IF('DF raw data'!B190="","",'DF raw data'!B190) -> -2.17397e-05 | C190: =IF('DF raw data'!C190="","",'DF raw data'!C190) -> 4.52196e-05 | D190: =IF('DF raw data'!D190="","",'DF raw data'!D190) -> -2.90269e-05 | F190: 1.801646834e-05 | G190: -7.69038843e-06 | H190: -0.004157956396 | J190: 0.0007352449967 | K190: 0.02169197095 | L190: 4.083803396e-05 | M190: 0.002590449592 | N190: 1.069893829e-05
A191: =IF('DF raw data'!A191="","",'DF raw data'!A191) -> -238 | B191: =IF('DF raw data'!B191="","",'DF raw data'!B191) -> -2.35316e-05 | C191: =IF('DF raw data'!C191="","",'DF raw data'!C191) -> 5.16042e-05 | D191: =IF('DF raw data'!D191="","",'DF raw data'!D191) -> -3.30771e-05 | F191: 1.621722155e-05 | G191: -1.27961157e-06 | H191: -0.004162023201 | J191: 0.0007433536075 | K191: 0.02206364776 | L191: 4.019822818e-05 | M191: 0.002610548706 | N191: 1.097603353e-05
A192: =IF('DF raw data'!A192="","",'DF raw data'!A192) -> -237.5 | B192: =IF('DF raw data'!B192="","",'DF raw data'!B192) -> -2.28787e-05 | C192: =IF('DF raw data'!C192="","",'DF raw data'!C192) -> 5.40622e-05 | D192: =IF('DF raw data'!D192="","",'DF raw data'!D192) -> -5.15829e-05 | F192: 1.687279844e-05 | G192: 1.18846623e-06 | H192: -0.004180604875 | J192: =F192*$G$3+J191 -> 0.0007517900067 | K192: =J192*$G$3+K191 -> 0.02243954276 | L192: =G192*$G$3+L191 -> 4.079246129e-05 | M192: =L192*$G$3+M191 -> 0.002630944936 | N192: =(J192^2+L192^2)*$G$3+N191 -> 1.125945965e-05
A193: =IF('DF raw data'!A193="","",'DF raw data'!A193) -> -237 | B193: =IF('DF raw data'!B193="","",'DF raw data'!B193) -> -2.83315e-05 | C193: =IF('DF raw data'!C193="","",'DF raw data'!C193) -> 5.66206e-05 | D193: =IF('DF raw data'!D193="","",'DF raw data'!D193) -> -4.43274e-05 | F193: 1.139764196e-05 | G193: 3.75735567e-06 | H193: -0.004173319628 | J193: 0.0007574888277 | K193: 0.02281828717 | L193: 4.267113913e-05 | M193: 0.002652280506 | N193: 1.154726472e-05
A194: =IF('DF raw data'!A194="","",'DF raw data'!A194) -> -236.5 | B194: =IF('DF raw data'!B194="","",'DF raw data'!B194) -> -2.6735e-05 | C194: =IF('DF raw data'!C194="","",'DF raw data'!C194) -> 4.64319e-05 | D194: =IF('DF raw data'!D194="","",'DF raw data'!D194) -> -3.52533e-05 | F194: 1.300068761e-05 | G194: -6.473118e-06 | H194: -0.004164208324 | J194: 0.0007639891715 | K194: 0.02320028176 | L194: 3.943458013e-05 | M194: 0.002671997796 | N194: 1.183988199e-05
A195: =IF('DF raw data'!A195="","",'DF raw data'!A195) -> -236 | B195: =IF('DF raw data'!B195="","",'DF raw data'!B195) -> -2.7758e-05 | C195: =IF('DF raw data'!C195="","",'DF raw data'!C195) -> 5.25679e-05 | D195: =IF('DF raw data'!D195="","",'DF raw data'!D195) -> -3.89332e-05 | F195: =(1-$G$1*($B$54-$G$2))*(B195-F$5) -> 1.197349331e-05 | G195: =(1-$G$1*($B$54-$G$2))*(C195-G$5) -> -3.119604004e-07 | H195: =(1-$G$1*($B$54-$G$2))*(D195-H$5) -> -0.004167903311 | J195: 0.0007699759181 | K195: 0.02358526972 | L195: 3.927859993e-05 | M195: 0.002691637096 | N195: 1.213708486e-05
A196: =IF('DF raw data'!A196="","",'DF raw data'!A196) -> -235.5 | B196: =IF('DF raw data'!B196="","",'DF raw data'!B196) -> -2.13511e-05 | C196: =IF('DF raw data'!C196="","",'DF raw data'!C196) -> 6.19197e-05 | D196: =IF('DF raw data'!D196="","",'DF raw data'!D196) -> -3.53107e-05 | F196: 1.84066616e-05 | G196: 9.07818198e-06 | H196: -0.004164265959 | J196: 0.0007791792489 | K196: 0.02397485934 | L196: 4.381769092e-05 | M196: 0.002713545941 | N196: 1.2441605e-05
A197: =IF('DF raw data'!A197="","",'DF raw data'!A197) -> -235 | B197: =IF('DF raw data'!B197="","",'DF raw data'!B197) -> -2.44292e-05 | C197: =IF('DF raw data'!C197="","",'DF raw data'!C197) -> 5.67347e-05 | D197: =IF('DF raw data'!D197="","",'DF raw data'!D197) -> -3.2918e-05 | F197: 1.531594139e-05 | G197: 3.87192348e-06 | H197: -0.004161863449 | J197: 0.0007868372196 | K197: 0.02436827795 | L197: 4.575365266e-05 | M197: 0.002736422768 | N197: 1.27522081e-05
A198: =IF('DF raw data'!A198="","",'DF raw data'!A198) -> -234.5 | B198: =IF('DF raw data'!B198="","",'DF raw data'!B198) -> -3.68608e-05 | C198: =IF('DF raw data'!C198="","",'DF raw data'!C198) -> 5.22512e-05 | D198: =IF('DF raw data'!D198="","",'DF raw data'!D198) -> -3.6311e-05 | F198: 2.833371829e-06 | G198: -6.299588704e-07 | H198: -0.00416527036 | J198: 0.0007882539055 | K198: 0.02476240491 | L198: 4.543867322e-05 | M198: 0.002759142104 | N198: 1.306391255e-05
A199: =IF('DF raw data'!A199="","",'DF raw data'!A199) -> -234 | B199: =IF('DF raw data'!B199="","",'DF raw data'!B199) -> -2.49944e-05 | C199: =IF('DF raw data'!C199="","",'DF raw data'!C199) -> 5.10336e-05 | D199: =IF('DF raw data'!D199="","",'DF raw data'!D199) -> -5.0687e-05 | F199: 1.474842407e-05 | G199: -1.85255103e-06 | H199: -0.004179705302 | J199: 0.0007956281176 | K199: 0.02516021896 | L199: 4.451239771e-05 | M199: 0.002781398303 | N199: 1.338141528e-05
A200: =IF('DF raw data'!A200="","",'DF raw data'!A200) -> -233.5 | B200: =IF('DF raw data'!B200="","",'DF raw data'!B200) -> -3.53202e-05 | C200: =IF('DF raw data'!C200="","",'DF raw data'!C200) -> 5.61024e-05 | D200: =IF('DF raw data'!D200="","",'DF raw data'!D200) -> -4.01034e-05 | F200: 4.380288289e-06 | G200: 3.23703105e-06 | H200: -0.004169078309 | J200: 0.0007978182617 | K200: 0.0255591281 | L200: 4.613091323e-05 | M200: 0.00280446376 | N200: 1.37007363e-05
... 1079 more rows

Sheet 15 mm
A1: =IF('DF raw data'!E1="","",'DF raw data'!E1) -> Number of header lines | B1: =IF('DF raw data'!F1="","",'DF raw data'!F1) -> 54 | C1: =IF('DF raw data'!C1="","",'DF raw data'!C1) ->  | D1: =IF('DF raw data'!D1="","",'DF raw data'!D1) ->  | F1: T_coeff | G1: -0.001 | H1: /degC | J1: IBy total | K1: =J1267*1000 -> 3.253804181 | L1: muTm | M1: =L1267*1000 -> -33.74731526 | R1: DF ref | S1: 1
A2: =IF('DF raw data'!E2="","",'DF raw data'!E2) -> Measured by | B2: =IF('DF raw data'!F2="","",'DF raw data'!F2) -> Danfysik | C2: =IF('DF raw data'!C2="","",'DF raw data'!C2) ->  | D2: =IF('DF raw data'!D2="","",'DF raw data'!D2) ->  | F2: Tcorr | G2: 20 | H2: degC | J2: JBy total | K2: =K1267 -> -5.637246177 | L2: muTm^2 | M2: =M1267 -> -6.915872198
A3: =IF('DF raw data'!E3="","",'DF raw data'!E3) -> Operator | B3: =IF('DF raw data'!F3="","",'DF raw data'!F3) -> PMHA | C3: =IF('DF raw data'!C3="","",'DF raw data'!C3) ->  | D3: =IF('DF raw data'!D3="","",'DF raw data'!D3) ->  | F3: Step | G3: =A68-A67 -> 0.5 | H3: mm | J3: PI total | K3: =N1267 -> 7197.391102 | L3: T^2mm^3
A4: =IF('DF raw data'!E4="","",'DF raw data'!E4) -> Data-time | B4: =IF('DF raw data'!F4="","",'DF raw data'!F4) -> 02-09-2024, 13:41:30 | C4: =IF('DF raw data'!C4="","",'DF raw data'!C4) ->  | D4: =IF('DF raw data'!D4="","",'DF raw data'!D4) -> 
A5: =IF('DF raw data'!E5="","",'DF raw data'!E5) -> Project | B5: =IF('DF raw data'!F5="","",'DF raw data'!F5) -> 504314 | C5: =IF('DF raw data'!C5="","",'DF raw data'!C5) ->  | D5: Bamb avr | F5: =(AVERAGE(B67:B107) + AVERAGE(B1227:B1267))/2 -> -4.138465244e-05 | G5: =(AVERAGE(C67:C107) + AVERAGE(C1227:C1267))/2 -> 7.472177683e-05 | H5: =(AVERAGE(D67:D107) + AVERAGE(D1227:D1267))/2 -> 0.004116117587
A6: =IF('DF raw data'!E6="","",'DF raw data'!E6) -> Magnet type | B6: =IF('DF raw data'!F6="","",'DF raw data'!F6) -> Dipole | C6: =IF('DF raw data'!C6="","",'DF raw data'!C6) -> 
A7: =IF('DF raw data'!E7="","",'DF raw data'!E7) -> Magnet nr. | B7: =IF('DF raw data'!F7="","",'DF raw data'!F7) -> 2410089 | C7: =IF('DF raw data'!C7="","",'DF raw data'!C7) -> 
A8: =IF('DF raw data'!E8="","",'DF raw data'!E8) -> Meas. number | B8: =IF('DF raw data'!F8="","",'DF raw data'!F8) -> 308 | C8: =IF('DF raw data'!C8="","",'DF raw data'!C8) -> 
A9: =IF('DF raw data'!E9="","",'DF raw data'!E9) -> Add. info | B9: =IF('DF raw data'!F9="","",'DF raw data'!F9) ->  | C9: =IF('DF raw data'!C9="","",'DF raw data'!C9) ->  | D9: =IF('DF raw data'!D9="","",'DF raw data'!D9) -> 
A10: =IF('DF raw data'!E10="","",'DF raw data'!E10) -> Device | B10: =IF('DF raw data'!F10="","",'DF raw data'!F10) -> (HAL) HALL-PROBE | C10: =IF('DF raw data'!C10="","",'DF raw data'!C10) ->  | D10: =IF('DF raw data'!D10="","",'DF raw data'!D10) -> 
A11: =IF('DF raw data'!E11="","",'DF raw data'!E11) -> Goal | B11: =IF('DF raw data'!F11="","",'DF raw data'!F11) -> (AXI) AXis Integral (Line, EFB) | C11: =IF('DF raw data'!C11="","",'DF raw data'!C11) ->  | D11: =IF('DF raw data'!D11="","",'DF raw data'!D11) -> 
A12: =IF('DF raw data'!E12="","",'DF raw data'!E12) -> Power supply mode | B12: =IF('DF raw data'!F12="","",'DF raw data'!F12) -> (PM) Permanent Magnet (no MPS in use) | C12: =IF('DF raw data'!C12="","",'DF raw data'!C12) ->  | D12: =IF('DF raw data'!D12="","",'DF raw data'!D12) -> 
A13: =IF('DF raw data'!E13="","",'DF raw data'!E13) -> Data format | B13: =IF('DF raw data'!F13="","",'DF raw data'!F13) -> Raw data text file | C13: =IF('DF raw data'!C13="","",'DF raw data'!C13) ->  | D13: =IF('DF raw data'!D13="","",'DF raw data'!D13) -> 
A14: =IF('DF raw data'!E14="","",'DF raw data'!E14) -> Direction of the pos. x-axis | B14: =IF('DF raw data'!F14="","",'DF raw data'!F14) -> See test program | C14: =IF('DF raw data'!C14="","",'DF raw data'!C14) ->  | D14: =IF('DF raw data'!D14="","",'DF raw data'!D14) -> 
A15: =IF('DF raw data'!E15="","",'DF raw data'!E15) -> Direction of the pos. y-axis | B15: =IF('DF raw data'!F15="","",'DF raw data'!F15) -> Vertical up | C15: =IF('DF raw data'!C15="","",'DF raw data'!C15) ->  | D15: =IF('DF raw data'!D15="","",'DF raw data'!D15) -> 
A16: =IF('DF raw data'!E16="","",'DF raw data'!E16) -> Direction of the pos. z-axis | B16: =IF('DF raw data'!F16="","",'DF raw data'!F16) -> See test program | C16: =IF('DF raw data'!C16="","",'DF raw data'!C16) ->  | D16: =IF('DF raw data'!D16="","",'DF raw data'!D16) -> 
A17: =IF('DF raw data'!E17="","",'DF raw data'!E17) -> Mapper type | B17: =IF('DF raw data'!F17="","",'DF raw data'!F17) -> Precision Hall Mapper | C17: =IF('DF raw data'!C17="","",'DF raw data'!C17) ->  | D17: =IF('DF raw data'!D17="","",'DF raw data'!D17) -> 
A18: =IF('DF raw data'!E18="","",'DF raw data'!E18) -> Mapper Danfysik Reg. Number | B18: =IF('DF raw data'!F18="","",'DF raw data'!F18) -> 2033-D (mapper 1) | C18: =IF('DF raw data'!C18="","",'DF raw data'!C18) ->  | D18: =IF('DF raw data'!D18="","",'DF raw data'!D18) -> 
A19: =IF('DF raw data'!E19="","",'DF raw data'!E19) -> Measurement consept | B19: =IF('DF raw data'!F19="","",'DF raw data'!F19) -> Square line grid | C19: =IF('DF raw data'!C19="","",'DF raw data'!C19) ->  | D19: =IF('DF raw data'!D19="","",'DF raw data'!D19) -> 
A20: =IF('DF raw data'!E20="","",'DF raw data'!E20) -> Mode | B20: =IF('DF raw data'!F20="","",'DF raw data'!F20) -> On-the-fly measurement | C20: =IF('DF raw data'!C20="","",'DF raw data'!C20) ->  | D20: =IF('DF raw data'!D20="","",'DF raw data'!D20) -> 
A21: =IF('DF raw data'!E21="","",'DF raw data'!E21) ->  | B21: =IF('DF raw data'!F21="","",'DF raw data'!F21) ->  | C21: =IF('DF raw data'!C21="","",'DF raw data'!C21) ->  | D21: =IF('DF raw data'!D21="","",'DF raw data'!D21) -> 
A22: =IF('DF raw data'!E22="","",'DF raw data'!E22) -> Probe Name | B22: =IF('DF raw data'!F22="","",'DF raw data'!F22) -> ID12_By | C22: =IF('DF raw data'!C22="","",'DF raw data'!C22) ->  | D22: =IF('DF raw data'!D22="","",'DF raw data'!D22) -> 
A23: =IF('DF raw data'!E23="","",'DF raw data'!E23) -> Probe Type | B23: =IF('DF raw data'!F23="","",'DF raw data'!F23) -> DF_ID_3D_Bxyz | C23: =IF('DF raw data'!C23="","",'DF raw data'!C23) ->  | D23: =IF('DF raw data'!D23="","",'DF raw data'!D23) -> 
A24: =IF('DF raw data'!E24="","",'DF raw data'!E24) -> Probe Danfysik Reg. Number | B24: =IF('DF raw data'!F24="","",'DF raw data'!F24) -> 2277 | C24: =IF('DF raw data'!C24="","",'DF raw data'!C24) ->  | D24: =IF('DF raw data'!D24="","",'DF raw data'!D24) -> 
A25: =IF('DF raw data'!E25="","",'DF raw data'!E25) -> Probe Axis | B25: =IF('DF raw data'!F25="","",'DF raw data'!F25) -> By | C25: =IF('DF raw data'!C25="","",'DF raw data'!C25) ->  | D25: =IF('DF raw data'!D25="","",'DF raw data'!D25) -> 
A26: =IF('DF raw data'!E26="","",'DF raw data'!E26) -> Probe Current Supply | B26: =IF('DF raw data'!F26="","",'DF raw data'!F26) -> 1825-D | C26: =IF('DF raw data'!C26="","",'DF raw data'!C26) ->  | D26: =IF('DF raw data'!D26="","",'DF raw data'!D26) -> 
A27: =IF('DF raw data'!E27="","",'DF raw data'!E27) -> Probe Gain Correction | B27: =IF('DF raw data'!F27="","",'DF raw data'!F27) -> 0.99611 | C27: =IF('DF raw data'!C27="","",'DF raw data'!C27) ->  | D27: =IF('DF raw data'!D27="","",'DF raw data'!D27) -> 
A28: =IF('DF raw data'!E28="","",'DF raw data'!E28) -> Probe Offset Correction | B28: =IF('DF raw data'!F28="","",'DF raw data'!F28) -> 0.0027639 | C28: =IF('DF raw data'!C28="","",'DF raw data'!C28) ->  | D28: =IF('DF raw data'!D28="","",'DF raw data'!D28) -> 
A29: =IF('DF raw data'!E29="","",'DF raw data'!E29) -> DVM Number | B29: =IF('DF raw data'!F29="","",'DF raw data'!F29) -> 2 | C29: =IF('DF raw data'!C29="","",'DF raw data'!C29) ->  | D29: =IF('DF raw data'!D29="","",'DF raw data'!D29) -> 
A30: =IF('DF raw data'!E30="","",'DF raw data'!E30) -> DVM Type | B30: =IF('DF raw data'!F30="","",'DF raw data'!F30) -> K2701 | C30: =IF('DF raw data'!C30="","",'DF raw data'!C30) ->  | D30: =IF('DF raw data'!D30="","",'DF raw data'!D30) -> 
A31: =IF('DF raw data'!E31="","",'DF raw data'!E31) -> DVM Danfysik Reg. Number | B31: =IF('DF raw data'!F31="","",'DF raw data'!F31) -> 1743-D | C31: =IF('DF raw data'!C31="","",'DF raw data'!C31) ->  | D31: =IF('DF raw data'!D31="","",'DF raw data'!D31) -> 
A32: =IF('DF raw data'!E32="","",'DF raw data'!E32) -> Probe Name | B32: =IF('DF raw data'!F32="","",'DF raw data'!F32) -> ID12_Bx | C32: =IF('DF raw data'!C32="","",'DF raw data'!C32) ->  | D32: =IF('DF raw data'!D32="","",'DF raw data'!D32) -> 
A33: =IF('DF raw data'!E33="","",'DF raw data'!E33) -> Probe Type | B33: =IF('DF raw data'!F33="","",'DF raw data'!F33) -> DF_ID_3D_Bxyz | C33: =IF('DF raw data'!C33="","",'DF raw data'!C33) ->  | D33: =IF('DF raw data'!D33="","",'DF raw data'!D33) -> 
A34: =IF('DF raw data'!E34="","",'DF raw data'!E34) -> Probe Danfysik Reg. Number | B34: =IF('DF raw data'!F34="","",'DF raw data'!F34) -> 2277 | C34: =IF('DF raw data'!C34="","",'DF raw data'!C34) ->  | D34: =IF('DF raw data'!D34="","",'DF raw data'!D34) -> 
A35: =IF('DF raw data'!E35="","",'DF raw data'!E35) -> Probe Axis | B35: =IF('DF raw data'!F35="","",'DF raw data'!F35) -> Bx | C35: =IF('DF raw data'!C35="","",'DF raw data'!C35) ->  | D35: =IF('DF raw data'!D35="","",'DF raw data'!D35) -> 
A36: =IF('DF raw data'!E36="","",'DF raw data'!E36) -> Probe Current Supply | B36: =IF('DF raw data'!F36="","",'DF raw data'!F36) -> 1825-D | C36: =IF('DF raw data'!C36="","",'DF raw data'!C36) ->  | D36: =IF('DF raw data'!D36="","",'DF raw data'!D36) -> 
A37: =IF('DF raw data'!E37="","",'DF raw data'!E37) -> Probe Gain Correction | B37: =IF('DF raw data'!F37="","",'DF raw data'!F37) -> 1 | C37: =IF('DF raw data'!C37="","",'DF raw data'!C37) ->  | D37: =IF('DF raw data'!D37="","",'DF raw data'!D37) -> 
A38: =IF('DF raw data'!E38="","",'DF raw data'!E38) -> Probe Offset Correction | B38: =IF('DF raw data'!F38="","",'DF raw data'!F38) -> -0.17554 | C38: =IF('DF raw data'!C38="","",'DF raw data'!C38) ->  | D38: =IF('DF raw data'!D38="","",'DF raw data'!D38) -> 
A39: =IF('DF raw data'!E39="","",'DF raw data'!E39) -> DVM Number | B39: =IF('DF raw data'!F39="","",'DF raw data'!F39) -> 3 | C39: =IF('DF raw data'!C39="","",'DF raw data'!C39) ->  | D39: =IF('DF raw data'!D39="","",'DF raw data'!D39) -> 
A40: =IF('DF raw data'!E40="","",'DF raw data'!E40) -> DVM Type | B40: =IF('DF raw data'!F40="","",'DF raw data'!F40) -> K2701 | C40: =IF('DF raw data'!C40="","",'DF raw data'!C40) ->  | D40: =IF('DF raw data'!D40="","",'DF raw data'!D40) -> 
A41: =IF('DF raw data'!E41="","",'DF raw data'!E41) -> DVM Danfysik Reg. Number | B41: =IF('DF raw data'!F41="","",'DF raw data'!F41) -> 1744-D | C41: =IF('DF raw data'!C41="","",'DF raw data'!C41) ->  | D41: =IF('DF raw data'!D41="","",'DF raw data'!D41) -> 
A42: =IF('DF raw data'!E42="","",'DF raw data'!E42) -> Probe Name | B42: =IF('DF raw data'!F42="","",'DF raw data'!F42) -> ID12_Bz | C42: =IF('DF raw data'!C42="","",'DF raw data'!C42) ->  | D42: =IF('DF raw data'!D42="","",'DF raw data'!D42) -> 
A43: =IF('DF raw data'!E43="","",'DF raw data'!E43) -> Probe Type | B43: =IF('DF raw data'!F43="","",'DF raw data'!F43) -> DF_ID_3D_Bxyz | C43: =IF('DF raw data'!C43="","",'DF raw data'!C43) ->  | D43: =IF('DF raw data'!D43="","",'DF raw data'!D43) -> 
A44: =IF('DF raw data'!E44="","",'DF raw data'!E44) -> Probe Danfysik Reg. Number | B44: =IF('DF raw data'!F44="","",'DF raw data'!F44) -> 2277 | C44: =IF('DF raw data'!C44="","",'DF raw data'!C44) ->  | D44: =IF('DF raw data'!D44="","",'DF raw data'!D44) -> 
A45: =IF('DF raw data'!E45="","",'DF raw data'!E45) -> Probe Axis | B45: =IF('DF raw data'!F45="","",'DF raw data'!F45) -> Bz | C45: =IF('DF raw data'!C45="","",'DF raw data'!C45) ->  | D45: =IF('DF raw data'!D45="","",'DF raw data'!D45) -> 
A46: =IF('DF raw data'!E46="","",'DF raw data'!E46) -> Probe Current Supply | B46: =IF('DF raw data'!F46="","",'DF raw data'!F46) -> 1825-D | C46: =IF('DF raw data'!C46="","",'DF raw data'!C46) ->  | D46: =IF('DF raw data'!D46="","",'DF raw data'!D46) -> 
A47: =IF('DF raw data'!E47="","",'DF raw data'!E47) -> Probe Gain Correction | B47: =IF('DF raw data'!F47="","",'DF raw data'!F47) -> 1 | C47: =IF('DF raw data'!C47="","",'DF raw data'!C47) ->  | D47: =IF('DF raw data'!D47="","",'DF raw data'!D47) -> 
A48: =IF('DF raw data'!E48="","",'DF raw data'!E48) -> Probe Offset Correction | B48: =IF('DF raw data'!F48="","",'DF raw data'!F48) -> 0.0073295 | C48: =IF('DF raw data'!C48="","",'DF raw data'!C48) ->  | D48: =IF('DF raw data'!D48="","",'DF raw data'!D48) -> 
A49: =IF('DF raw data'!E49="","",'DF raw data'!E49) -> DVM Number | B49: =IF('DF raw data'!F49="","",'DF raw data'!F49) -> 8 | C49: =IF('DF raw data'!C49="","",'DF raw data'!C49) ->  | D49: =IF('DF raw data'!D49="","",'DF raw data'!D49) -> 
A50: =IF('DF raw data'!E50="","",'DF raw data'!E50) -> DVM Type | B50: =IF('DF raw data'!F50="","",'DF raw data'!F50) -> K2700 | C50: =IF('DF raw data'!C50="","",'DF raw data'!C50) ->  | D50: =IF('DF raw data'!D50="","",'DF raw data'!D50) -> 
A51: =IF('DF raw data'!E51="","",'DF raw data'!E51) -> DVM Danfysik Reg. Number | B51: =IF('DF raw data'!F51="","",'DF raw data'!F51) -> 1756-D | C51: =IF('DF raw data'!C51="","",'DF raw data'!C51) ->  | D51: =IF('DF raw data'!D51="","",'DF raw data'!D51) -> 
A52: =IF('DF raw data'!E52="","",'DF raw data'!E52) -> NTC voltage | B52: =IF('DF raw data'!F52="","",'DF raw data'!F52) -> 0.40885 | C52: =IF('DF raw data'!C52="","",'DF raw data'!C52) ->  | D52: =IF('DF raw data'!D52="","",'DF raw data'!D52) -> 
A53: =IF('DF raw data'!E53="","",'DF raw data'!E53) -> PS-Gap: | B53: =IF('DF raw data'!F53="","",'DF raw data'!F53) -> 15 | C53: =IF('DF raw data'!C53="","",'DF raw data'!C53) ->  | D53: =IF('DF raw data'!D53="","",'DF raw data'!D53) -> 
A54: =IF('DF raw data'!E54="","",'DF raw data'!E54) -> PS-Temperature: | B54: =IF('DF raw data'!F54="","",'DF raw data'!F54) -> 25.1 | C54: =IF('DF raw data'!C54="","",'DF raw data'!C54) ->  | D54: =IF('DF raw data'!D54="","",'DF raw data'!D54) -> 
A55: =IF('DF raw data'!E55="","",'DF raw data'!E55) -> PS-Encoder: | B55: =IF('DF raw data'!F55="","",'DF raw data'!F55) -> 24.5511 | C55: =IF('DF raw data'!C55="","",'DF raw data'!C55) ->  | D55: =IF('DF raw data'!D55="","",'DF raw data'!D55) -> 
A56: =IF('DF raw data'!E56="","",'DF raw data'!E56) ->  | B56: =IF('DF raw data'!F56="","",'DF raw data'!F56) -> 
A57: =IF('DF raw data'!E57="","",'DF raw data'!E57) -> Monitor-Index | B57: =IF('DF raw data'!F57="","",'DF raw data'!F57) -> [1,1,4]
A58: =IF('DF raw data'!E58="","",'DF raw data'!E58) ->  | B58: =IF('DF raw data'!F58="","",'DF raw data'!F58) -> 
A59: =IF('DF raw data'!E59="","",'DF raw data'!E59) -> Time [s] | B59: =IF('DF raw data'!F59="","",'DF raw data'!F59) -> Y [mm]
A60: =IF('DF raw data'!E60="","",'DF raw data'!E60) ->  | B60: =IF('DF raw data'!F60="","",'DF raw data'!F60) -> 
A61: =IF('DF raw data'!E61="","",'DF raw data'!E61) -> 226.3 | B61: =IF('DF raw data'!F61="","",'DF raw data'!F61) -> 31.56
A62: =IF('DF raw data'!E62="","",'DF raw data'!E62) ->  | B62: =IF('DF raw data'!F62="","",'DF raw data'!F62) -> 
A63: =IF('DF raw data'!E63="","",'DF raw data'!E63) -> Measurement-Index | B63: =IF('DF raw data'!F63="","",'DF raw data'!F63) -> [1,1,1201,2]
A64: =IF('DF raw data'!E64="","",'DF raw data'!E64) ->  | B64: =IF('DF raw data'!F64="","",'DF raw data'!F64) -> 
A65: =IF('DF raw data'!E65="","",'DF raw data'!E65) -> Z [mm] | B65: =IF('DF raw data'!F65="","",'DF raw data'!F65) -> By [T] | C65: =IF('DF raw data'!G65="","",'DF raw data'!G65) -> Bx [T] | D65: =IF('DF raw data'!H65="","",'DF raw data'!H65) -> Bz [T] | F65: By_corr | G65: Bx_corr | H65: Bz_corr | J65: Iy | K65: Jy | L65: Ix | M65: Jx | N65: PI
B66: =IF('DF raw data'!F66="","",'DF raw data'!F66) ->  | C66: =IF('DF raw data'!G66="","",'DF raw data'!G66) ->  | D66: =IF('DF raw data'!H66="","",'DF raw data'!H66) -> 
A67: =IF('DF raw data'!E67="","",'DF raw data'!E67) -> -300 | B67: =IF('DF raw data'!F67="","",'DF raw data'!F67) -> -4.28656e-05 | C67: =IF('DF raw data'!G67="","",'DF raw data'!G67) -> 8.94019e-05 | D67: =IF('DF raw data'!H67="","",'DF raw data'!H67) -> -2.51342e-05 | F67: =(1-$G$1*($B$54-$G$2))*(B67-F$5) -> -1.488500394e-06 | G67: =(1-$G$1*($B$54-$G$2))*(C67-G$5) -> 1.47549918e-05 | H67: =(1-$G$1*($B$54-$G$2))*(D67-H$5) -> -0.004162372171 | J67: =F67*$G$3+J66 -> -7.442501968e-07 | K67: =J67*$G$3+K66 -> -3.721250984e-07 | L67: =G67*$G$3+L66 -> 7.377495899e-06 | M67: =L67*$G$3+M66 -> 3.68874795e-06 | N67: =(J67^2+L67^2)*$G$3+N66 -> 2.749067705e-11
A68: =IF('DF raw data'!E68="","",'DF raw data'!E68) -> -299.5 | B68: =IF('DF raw data'!F68="","",'DF raw data'!F68) -> -3.90841e-05 | C68: =IF('DF raw data'!G68="","",'DF raw data'!G68) -> 8.7571e-05 | D68: =IF('DF raw data'!H68="","",'DF raw data'!H68) -> -2.53704e-05 | F68: 2.312285256e-06 | G68: 1.291475421e-05 | H68: -0.004162609575 | J68: =F68*$G$3+J67 -> 4.118924315e-07 | K68: =J68*$G$3+K67 -> -1.661788827e-07 | L68: =G68*$G$3+L67 -> 1.3834873e-05 | M68: =L68*$G$3+M67 -> 1.060618445e-05 | N68: =(J68^2+L68^2)*$G$3+N67 -> 1.232773603e-10
A69: =IF('DF raw data'!E69="","",'DF raw data'!E69) -> -299 | B69: =IF('DF raw data'!F69="","",'DF raw data'!F69) -> -2.94698e-05 | C69: =IF('DF raw data'!G69="","",'DF raw data'!G69) -> 9.8134e-05 | D69: =IF('DF raw data'!H69="","",'DF raw data'!H69) -> -2.61264e-05 | F69: 1.197561819e-05 | G69: 2.353162551e-05 | H69: -0.004163369431 | J69: 6.399701525e-06 | K69: 3.03367188e-06 | L69: 2.560068576e-05 | M69: 2.340652733e-05 | N69: 4.714530057e-10
A70: =IF('DF raw data'!E70="","",'DF raw data'!E70) -> -298.5 | B70: =IF('DF raw data'!F70="","",'DF raw data'!F70) -> -3.24177e-05 | C70: =IF('DF raw data'!G70="","",'DF raw data'!G70) -> 9.91968e-05 | D70: =IF('DF raw data'!H70="","",'DF raw data'!H70) -> -2.67904e-05 | F70: 9.012683896e-06 | G70: 2.459984579e-05 | H70: -0.004164036817 | J70: 1.090604347e-05 | K70: 8.486693616e-06 | L70: 3.790060865e-05 | M70: 4.235683166e-05 | N70: 1.249151966e-09
A71: =IF('DF raw data'!E71="","",'DF raw data'!E71) -> -298 | B71: =IF('DF raw data'!F71="","",'DF raw data'!F71) -> -3.65837e-05 | C71: =IF('DF raw data'!G71="","",'DF raw data'!G71) -> 0.000101102 | D71: =IF('DF raw data'!H71="","",'DF raw data'!H71) -> -2.66748e-05 | F71: 4.825437296e-06 | G71: 2.651476231e-05 | H71: -0.004163920628 | J71: 1.331876212e-05 | K71: 1.514607468e-05 | L71: 5.115798981e-05 | M71: 6.793582656e-05 | N71: 2.646416639e-09
A72: =IF('DF raw data'!E72="","",'DF raw data'!E72) -> -297.5 | B72: =IF('DF raw data'!F72="","",'DF raw data'!F72) -> -3.36997e-05 | C72: =IF('DF raw data'!G72="","",'DF raw data'!G72) -> 0.000106387 | D72: =IF('DF raw data'!H72="","",'DF raw data'!H72) -> -2.64788e-05 | F72: 7.724145696e-06 | G72: 3.182671581e-05 | H72: -0.004163723628 | J72: 1.718083497e-05 | K72: 2.373649216e-05 | L72: 6.707134771e-05 | M72: 0.0001014715004 | N72: 5.043290026e-09
A73: =IF('DF raw data'!E73="","",'DF raw data'!E73) -> -297 | B73: =IF('DF raw data'!F73="","",'DF raw data'!F73) -> -2.43419e-05 | C73: =IF('DF raw data'!G73="","",'DF raw data'!G73) -> 0.00011193 | D73: =IF('DF raw data'!H73="","",'DF raw data'!H73) -> -2.68994e-05 | F73: 1.712967048e-05 | G73: 3.739798511e-05 | H73: -0.004164146373 | J73: 2.574567021e-05 | K73: 3.660932727e-05 | L73: 8.577034027e-05 | M73: 0.0001443566705 | N73: 9.052985428e-09
A74: =IF('DF raw data'!E74="","",'DF raw data'!E74) -> -296.5 | B74: =IF('DF raw data'!F74="","",'DF raw data'!F74) -> -3.85061e-05 | C74: =IF('DF raw data'!G74="","",'DF raw data'!G74) -> 0.000103137 | D74: =IF('DF raw data'!H74="","",'DF raw data'!H74) -> -2.70551e-05 | F74: 2.893233056e-06 | G74: 2.856014081e-05 | H74: -0.004164302867 | J74: 2.719228674e-05 | K74: 5.020547063e-05 | L74: 0.0001000504107 | M74: 0.0001943818759 | N74: 1.442773799e-08
A75: =IF('DF raw data'!E75="","",'DF raw data'!E75) -> -296 | B75: =IF('DF raw data'!F75="","",'DF raw data'!F75) -> -3.12642e-05 | C75: =IF('DF raw data'!G75="","",'DF raw data'!G75) -> 9.6827e-05 | D75: =IF('DF raw data'!H75="","",'DF raw data'!H75) -> -2.65812e-05 | F75: 1.017206675e-05 | G75: 2.221795981e-05 | H75: -0.00416382655 | J75: 3.227832011e-05 | K75: 6.634463069e-05 | L75: 0.0001111593906 | M75: 0.0002499615712 | N75: 2.112688803e-08
A76: =IF('DF raw data'!E76="","",'DF raw data'!E76) -> -295.5 | B76: =IF('DF raw data'!F76="","",'DF raw data'!F76) -> -3.35076e-05 | C76: =IF('DF raw data'!G76="","",'DF raw data'!G76) -> 0.000102013 | D76: =IF('DF raw data'!H76="","",'DF raw data'!H76) -> -2.60609e-05 | F76: 7.917225406e-06 | G76: 2.743040841e-05 | H76: -0.004163303597 | J76: 3.623693281e-05 | K76: 8.446309709e-05 | L76: 0.0001248745948 | M76: 0.0003123988686 | N76: 2.958027789e-08
A77: =IF('DF raw data'!E77="","",'DF raw data'!E77) -> -295 | B77: =IF('DF raw data'!F77="","",'DF raw data'!F77) -> -2.64574e-05 | C77: =IF('DF raw data'!G77="","",'DF raw data'!G77) -> 0.000101895 | D77: =IF('DF raw data'!H77="","",'DF raw data'!H77) -> -2.62628e-05 | F77: 1.500338143e-05 | G77: 2.731180661e-05 | H77: -0.004163506527 | J77: 4.373862353e-05 | K77: 0.0001063324089 | L77: 0.0001385304981 | M77: 0.0003816641176 | N77: 4.013216093e-08
A78: =IF('DF raw data'!E78="","",'DF raw data'!E78) -> -294.5 | B78: =IF('DF raw data'!F78="","",'DF raw data'!F78) -> -2.45981e-05 | C78: =IF('DF raw data'!G78="","",'DF raw data'!G78) -> 0.00010286 | D78: =IF('DF raw data'!H78="","",'DF raw data'!H78) -> -2.71042e-05 | F78: 1.687216386e-05 | G78: 2.828172811e-05 | H78: -0.004164352218 | J78: 5.217470545e-05 | K78: 0.0001324197616 | L78: 0.0001526713621 | M78: 0.0004579997987 | N78: 5.314753328e-08
A79: =IF('DF raw data'!E79="","",'DF raw data'!E79) -> -294 | B79: =IF('DF raw data'!F79="","",'DF raw data'!F79) -> -2.73537e-05 | C79: =IF('DF raw data'!G79="","",'DF raw data'!G79) -> 0.000111123 | D79: =IF('DF raw data'!H79="","",'DF raw data'!H79) -> -2.76792e-05 | F79: 1.41025103e-05 | G79: 3.658686941e-05 | H79: -0.00416493015 | J79: 5.92259606e-05 | K79: 0.0001620327419 | L79: 0.0001709647968 | M79: 0.0005434821971 | N79: 6.951587137e-08
A80: =IF('DF raw data'!E80="","",'DF raw data'!E80) -> -293.5 | B80: =IF('DF raw data'!F80="","",'DF raw data'!F80) -> -3.99158e-05 | C80: =IF('DF raw data'!G80="","",'DF raw data'!G80) -> 9.45689e-05 | D80: =IF('DF raw data'!H80="","",'DF raw data'!H80) -> -2.75349e-05 | F80: 1.476343586e-06 | G80: 1.99483435e-05 | H80: -0.004164785114 | J80: 5.99641324e-05 | K80: 0.0001920148081 | L80: 0.0001809389686 | M80: 0.0006339516814 | N80: 8.768317513e-08
A81: =IF('DF raw data'!E81="","",'DF raw data'!E81) -> -293 | B81: =IF('DF raw data'!F81="","",'DF raw data'!F81) -> -2.54312e-05 | C81: =IF('DF raw data'!G81="","",'DF raw data'!G81) -> 9.65881e-05 | D81: =IF('DF raw data'!H81="","",'DF raw data'!H81) -> -2.74982e-05 | F81: 1.603481505e-05 | G81: 2.197784142e-05 | H81: -0.004164748227 | J81: 6.798153992e-05 | K81: 0.000226005578 | L81: 0.0001919278893 | M81: 0.000729915626 | N81: 1.084120774e-07
A82: =IF('DF raw data'!E82="","",'DF raw data'!E82) -> -292.5 | B82: =IF('DF raw data'!F82="","",'DF raw data'!F82) -> -4.33128e-05 | C82: =IF('DF raw data'!G82="","",'DF raw data'!G82) -> 9.70893e-05 | D82: =IF('DF raw data'!H82="","",'DF raw data'!H82) -> -2.76075e-05 | F82: -1.937981114e-06 | G82: 2.248159754e-05 | H82: -0.004164858085 | J82: 6.701254936e-05 | K82: 0.0002595118527 | L82: 0.0002031686881 | M82: 0.0008314999701 | N82: 1.312961762e-07
A83: =IF('DF raw data'!E83="","",'DF raw data'!E83) -> -292 | B83: =IF('DF raw data'!F83="","",'DF raw data'!F83) -> -3.30582e-05 | C83: =IF('DF raw data'!G83="","",'DF raw data'!G83) -> 9.64719e-05 | D83: =IF('DF raw data'!H83="","",'DF raw data'!H83) -> -2.7377e-05 | F83: 8.368917346e-06 | G83: 2.18610488e-05 | H83: -0.004164626409 | J83: 7.119700803e-05 | K83: 0.0002951103567 | L83: 0.0002140992125 | M83: 0.0009385495763 | N83: 1.567499195e-07
A84: =IF('DF raw data'!E84="","",'DF raw data'!E84) -> -291.5 | B84: =IF('DF raw data'!F84="","",'DF raw data'!F84) -> -4.85027e-05 | C84: =IF('DF raw data'!G84="","",'DF raw data'!G84) -> 0.000104814 | D84: =IF('DF raw data'!H84="","",'DF raw data'!H84) -> -2.98224e-05 | F84: -7.154349604e-06 | G84: 3.024569351e-05 | H84: -0.004167084281 | J84: 6.761983323e-05 | K84: 0.0003289202734 | L84: 0.0002292220592 | M84: 0.001053160606 | N84: 1.853075167e-07
A85: =IF('DF raw data'!E85="","",'DF raw data'!E85) -> -291 | B85: =IF('DF raw data'!F85="","",'DF raw data'!F85) -> -3.4974e-05 | C85: =IF('DF raw data'!G85="","",'DF raw data'!G85) -> 9.30173e-05 | D85: =IF('DF raw data'!H85="","",'DF raw data'!H85) -> -3.79258e-05 | F85: 6.443346766e-06 | G85: 1.838883034e-05 | H85: -0.004175229008 | J85: 7.084150662e-05 | K85: 0.0003643410267 | L85: 0.0002384164744 | M85: 0.001172368843 | N85: 2.162379838e-07
A86: =IF('DF raw data'!E86="","",'DF raw data'!E86) -> -290.5 | B86: =IF('DF raw data'!F86="","",'DF raw data'!F86) -> -2.97845e-05 | C86: =IF('DF raw data'!G86="","",'DF raw data'!G86) -> 8.26252e-05 | D86: =IF('DF raw data'!H86="","",'DF raw data'!H86) -> -3.52194e-05 | F86: 1.165931322e-05 | G86: 7.943730629e-06 | H86: -0.004172508805 | J86: 7.667116322e-05 | K86: 0.0004026766083 | L86: 0.0002423883397 | M86: 0.001293563013 | N86: 2.485532711e-07
A87: =IF('DF raw data'!E87="","",'DF raw data'!E87) -> -290 | B87: =IF('DF raw data'!F87="","",'DF raw data'!F87) -> -3.49853e-05 | C87: =IF('DF raw data'!G87="","",'DF raw data'!G87) -> 9.58519e-05 | D87: =IF('DF raw data'!H87="","",'DF raw data'!H87) -> -2.05477e-05 | F87: 6.431989136e-06 | G87: 2.12378868e-05 | H87: -0.00415776228 | J87: 7.988715779e-05 | K87: 0.0004426201872 | L87: 0.0002530072831 | M87: 0.001420066655 | N87: 2.837505927e-07
A88: =IF('DF raw data'!E88="","",'DF raw data'!E88) -> -289.5 | B88: =IF('DF raw data'!F88="","",'DF raw data'!F88) -> -3.05626e-05 | C88: =IF('DF raw data'!G88="","",'DF raw data'!G88) -> 9.28584e-05 | D88: =IF('DF raw data'!H88="","",'DF raw data'!H88) -> -2.12853e-05 | F88: 1.087724491e-05 | G88: 1.822911995e-05 | H88: -0.004158503641 | J88: 8.532578025e-05 | K88: 0.0004852830773 | L88: 0.0002621218431 | M88: 0.001551127576 | N88: 3.217447674e-07
A89: =IF('DF raw data'!E89="","",'DF raw data'!E89) -> -289 | B89: =IF('DF raw data'!F89="","",'DF raw data'!F89) -> -2.63903e-05 | C89: =IF('DF raw data'!G89="","",'DF raw data'!G89) -> 9.73231e-05 | D89: =IF('DF raw data'!H89="","",'DF raw data'!H89) -> -3.1118e-05 | F89: 1.507082364e-05 | G89: 2.271658992e-05 | H89: -0.004168386488 | J89: 9.286119206e-05 | K89: 0.0005317136733 | L89: 0.000273480138 | M89: 0.001687867645 | N89: 3.634520609e-07
A90: =IF('DF raw data'!E90="","",'DF raw data'!E90) -> -288.5 | B90: =IF('DF raw data'!F90="","",'DF raw data'!F90) -> -2.51775e-05 | C90: =IF('DF raw data'!G90="","",'DF raw data'!G90) -> 9.86738e-05 | D90: =IF('DF raw data'!H90="","",'DF raw data'!H90) -> -2.3362e-05 | F90: 1.628980892e-05 | G90: 2.407417849e-05 | H90: -0.004160590932 | J90: 0.0001010060965 | K90: 0.0005822167216 | L90: 0.0002855172273 | M90: 0.001830626259 | N90: 4.093132202e-07
A91: =IF('DF raw data'!E91="","",'DF raw data'!E91) -> -288 | B91: =IF('DF raw data'!F91="","",'DF raw data'!F91) -> -2.83262e-05 | C91: =IF('DF raw data'!G91="","",'DF raw data'!G91) -> 9.2318e-05 | D91: =IF('DF raw data'!H91="","",'DF raw data'!H91) -> -1.07106e-05 | F91: 1.312505055e-05 | G91: 1.768596391e-05 | H91: -0.00414787501 | J91: 0.0001075686218 | K91: 0.0006360010325 | L91: 0.0002943602092 | M91: 0.001977806363 | N91: 4.584226908e-07
A92: =IF('DF raw data'!E92="","",'DF raw data'!E92) -> -287.5 | B92: =IF('DF raw data'!F92="","",'DF raw data'!F92) -> -2.05596e-05 | C92: =IF('DF raw data'!G92="","",'DF raw data'!G92) -> 9.09605e-05 | D92: =IF('DF raw data'!H92="","",'DF raw data'!H92) -> -2.82779e-05 | F92: 2.093126021e-05 | G92: 1.632154066e-05 | H92: -0.004165531904 | J92: 0.0001180342519 | K92: 0.0006950181584 | L92: 0.0003025209796 | M92: 0.002129066853 | N92: 5.111482046e-07
A93: =IF('DF raw data'!E93="","",'DF raw data'!E93) -> -287 | B93: =IF('DF raw data'!F93="","",'DF raw data'!F93) -> -3.09393e-05 | C93: =IF('DF raw data'!G93="","",'DF raw data'!G93) -> 9.05266e-05 | D93: =IF('DF raw data'!H93="","",'DF raw data'!H93) -> -3.33049e-05 | F93: 1.049862374e-05 | G93: 1.588542777e-05 | H93: -0.004170584541 | J93: 0.0001232835638 | K93: 0.0007566599403 | L93: 0.0003104636935 | M93: 0.0022842987 | N93: 5.669414756e-07
A94: =IF('DF raw data'!E94="","",'DF raw data'!E94) -> -286.5 | B94: =IF('DF raw data'!F94="","",'DF raw data'!F94) -> -2.88312e-05 | C94: =IF('DF raw data'!G94="","",'DF raw data'!G94) -> 8.90861e-05 | D94: =IF('DF raw data'!H94="","",'DF raw data'!H94) -> -2.25816e-05 | F94: 1.261747505e-05 | G94: 1.443758122e-05 | H94: -0.004159806552 | J94: 0.0001295923013 | K94: 0.000821456091 | L94: 0.0003176824841 | M94: 0.002443139942 | N94: 6.257996382e-07
A95: =IF('DF raw data'!E95="","",'DF raw data'!E95) -> -286 | B95: =IF('DF raw data'!F95="","",'DF raw data'!F95) -> -1.94725e-05 | C95: =IF('DF raw data'!G95="","",'DF raw data'!G95) -> 9.49345e-05 | D95: =IF('DF raw data'!H95="","",'DF raw data'!H95) -> -2.47986e-05 | F95: 2.202390442e-05 | G95: 2.031580806e-05 | H95: -0.004162034859 | J95: 0.0001406042535 | K95: 0.0008917582177 | L95: 0.0003278403881 | M95: 0.002607060136 | N95: 6.894240763e-07
A96: =IF('DF raw data'!E96="","",'DF raw data'!E96) -> -285.5 | B96: =IF('DF raw data'!F96="","",'DF raw data'!F96) -> -2.49864e-05 | C96: =IF('DF raw data'!G96="","",'DF raw data'!G96) -> 8.87228e-05 | D96: =IF('DF raw data'!H96="","",'DF raw data'!H96) -> -2.17988e-05 | F96: 1.648188353e-05 | G96: 1.407242839e-05 | H96: -0.00415901976 | J96: 0.0001488451953 | K96: 0.0009661808153 | L96: 0.0003348766023 | M96: 0.002774498437 | N96: 7.565726918e-07
A97: =IF('DF raw data'!E97="","",'DF raw data'!E97) -> -285 | B97: =IF('DF raw data'!F97="","",'DF raw data'!F97) -> -3.12585e-05 | C97: =IF('DF raw data'!G97="","",'DF raw data'!G97) -> 9.6127e-05 | D97: =IF('DF raw data'!H97="","",'DF raw data'!H97) -> -3.54352e-05 | F97: 1.017779582e-05 | G97: 2.151438981e-05 | H97: -0.004172725706 | J97: 0.0001539340932 | K97: 0.001043147862 | L97: 0.0003456337972 | M97: 0.002947315336 | N97: 8.281519052e-07
A98: =IF('DF raw data'!E98="","",'DF raw data'!E98) -> -284.5 | B98: =IF('DF raw data'!F98="","",'DF raw data'!F98) -> -3.56204e-05 | C98: =IF('DF raw data'!G98="","",'DF raw data'!G98) -> 9.86455e-05 | D98: =IF('DF raw data'!H98="","",'DF raw data'!H98) -> -2.94596e-05 | F98: 5.793650126e-06 | G98: 2.404573416e-05 | H98: -0.00416671963 | J98: 0.0001568309182 | K98: 0.001121563321 | L98: 0.0003576566643 | M98: 0.003126143668 | N98: 9.044090184e-07
A99: =IF('DF raw data'!E99="","",'DF raw data'!E99) -> -284 | B99: =IF('DF raw data'!F99="","",'DF raw data'!F99) -> -3.44658e-05 | C99: =IF('DF raw data'!G99="","",'DF raw data'!G99) -> 8.93774e-05 | D99: =IF('DF raw data'!H99="","",'DF raw data'!H99) -> -3.107e-05 | F99: 6.954138586e-06 | G99: 1.473036685e-05 | H99: -0.004168338243 | J99: 0.0001603079875 | K99: 0.001201717315 | L99: 0.0003650218477 | M99: 0.003308654592 | N99: 9.838788185e-07
A100: =IF('DF raw data'!E100="","",'DF raw data'!E100) -> -283.5 | B100: =IF('DF raw data'!F100="","",'DF raw data'!F100) -> -4.33103e-05 | C100: =IF('DF raw data'!G100="","",'DF raw data'!G100) -> 8.64063e-05 | D100: =IF('DF raw data'!H100="","",'DF raw data'!H100) -> -3.15629e-05 | F100: -1.935468364e-06 | G100: 1.174411424e-05 | H100: -0.004168833657 | J100: 0.0001593402533 | K100: 0.001281387441 | L100: 0.0003708939048 | M100: 0.003494101544 | N100: 1.065354621e-06
A101: =IF('DF raw data'!E101="","",'DF raw data'!E101) -> -283 | B101: =IF('DF raw data'!F101="","",'DF raw data'!F101) -> -2.33789e-05 | C101: =IF('DF raw data'!G101="","",'DF raw data'!G101) -> 9.11408e-05 | D101: =IF('DF raw data'!H101="","",'DF raw data'!H101) -> -2.97153e-05 | F101: 1.809758178e-05 | G101: 1.650276019e-05 | H101: -0.004166976634 | J101: 0.0001683890442 | K101: 0.001365581964 | L101: 0.0003791452849 | M101: 0.003683674187 | N101: 1.15140763e-06
A102: =IF('DF raw data'!E102="","",'DF raw data'!E102) -> -282.5 | B102: =IF('DF raw data'!F102="","",'DF raw data'!F102) -> -2.51738e-05 | C102: =IF('DF raw data'!G102="","",'DF raw data'!G102) -> 9.30198e-05 | D102: =IF('DF raw data'!H102="","",'DF raw data'!H102) -> -2.8972e-05 | F102: 1.629352779e-05 | G102: 1.839134309e-05 | H102: -0.004166229543 | J102: 0.0001765358081 | K102: 0.001453849868 | L102: 0.0003883409565 | M102: 0.003877844665 | N102: 1.242394425e-06
A103: =IF('DF raw data'!E103="","",'DF raw data'!E103) -> -282 | B103: =IF('DF raw data'!F103="","",'DF raw data'!F103) -> -3.39543e-05 | C103: =IF('DF raw data'!G103="","",'DF raw data'!G103) -> 9.05068e-05 | D103: =IF('DF raw data'!H103="","",'DF raw data'!H103) -> -2.92308e-05 | F103: 7.468247236e-06 | G103: 1.586552679e-05 | H103: -0.004166489663 | J103: 0.0001802699317 | K103: 0.001543984834 | L103: 0.0003962737198 | M103: 0.004075981525 | N103: 1.337159479e-06
A104: =IF('DF raw data'!E104="","",'DF raw data'!E104) -> -281.5 | B104: =IF('DF raw data'!F104="","",'DF raw data'!F104) -> -2.64634e-05 | C104: =IF('DF raw data'!G104="","",'DF raw data'!G104) -> 8.94177e-05 | D104: =IF('DF raw data'!H104="","",'DF raw data'!H104) -> -1.70579e-05 | F104: 1.499735083e-05 | G104: 1.477087238e-05 | H104: -0.004154254682 | J104: 0.0001877686072 | K104: 0.001637869137 | L104: 0.000403659156 | M104: 0.004277811103 | N104: 1.436258361e-06
A105: =IF('DF raw data'!E105="","",'DF raw data'!E105) -> -281 | B105: =IF('DF raw data'!F105="","",'DF raw data'!F105) -> -2.62653e-05 | C105: =IF('DF raw data'!G105="","",'DF raw data'!G105) -> 9.83022e-05 | D105: =IF('DF raw data'!H105="","",'DF raw data'!H105) -> -2.62441e-05 | F105: 1.519646114e-05 | G105: 2.370068333e-05 | H105: -0.004163487731 | J105: 0.0001953668377 | K105: 0.001735552556 | L105: 0.0004155094977 | M105: 0.004485565852 | N105: 1.541666533e-06
A106: =IF('DF raw data'!E106="","",'DF raw data'!E106) -> -280.5 | B106: =IF('DF raw data'!F106="","",'DF raw data'!F106) -> -3.47892e-05 | C106: =IF('DF raw data'!G106="","",'DF raw data'!G106) -> 9.86654e-05 | D106: =IF('DF raw data'!H106="","",'DF raw data'!H106) -> -2.67563e-05 | F106: 6.629089246e-06 | G106: 2.406573565e-05 | H106: -0.004164002543 | J106: 0.0001986813823 | K106: 0.001834893247 | L106: 0.0004275423655 | M106: 0.004699337034 | N106: 1.652799916e-06
A107: =IF('DF raw data'!E107="","",'DF raw data'!E107) -> -280 | B107: =IF('DF raw data'!F107="","",'DF raw data'!F107) -> -3.37017e-05 | C107: =IF('DF raw data'!G107="","",'DF raw data'!G107) -> 9.09708e-05 | D107: =IF('DF raw data'!H107="","",'DF raw data'!H107) -> -2.33754e-05 | F107: 7.722135496e-06 | G107: 1.633189319e-05 | H107: -0.004160604401 | J107: 0.0002025424501 | K107: 0.001936164472 | L107: 0.0004357083121 | M107: 0.00491719119 | N107: 1.768232505e-06
A108: =IF('DF raw data'!E108="","",'DF raw data'!E108) -> -279.5 | B108: =IF('DF raw data'!F108="","",'DF raw data'!F108) -> -2.69718e-05 | C108: =IF('DF raw data'!G108="","",'DF raw data'!G108) -> 9.56454e-05 | D108: =IF('DF raw data'!H108="","",'DF raw data'!H108) -> -2.36661e-05 | F108: 1.448635799e-05 | G108: 2.103033365e-05 | H108: -0.004160896583 | J108: 0.0002097856291 | K108: 0.002041057287 | L108: 0.0004462234789 | M108: 0.00514030293 | N108: 1.889795207e-06
A109: =IF('DF raw data'!E109="","",'DF raw data'!E109) -> -279 | B109: =IF('DF raw data'!F109="","",'DF raw data'!F109) -> -4.22223e-05 | C109: =IF('DF raw data'!G109="","",'DF raw data'!G109) -> 9.42235e-05 | D109: =IF('DF raw data'!H109="","",'DF raw data'!H109) -> -2.89199e-05 | F109: -8.419195635e-07 | G109: 1.960118196e-05 | H109: -0.004166177178 | J109: 0.0002093646693 | K109: 0.002145739621 | L109: 0.0004560240699 | M109: 0.005368314965 | N109: 2.015690965e-06
A110: =IF('DF raw data'!E110="","",'DF raw data'!E110) -> -278.5 | B110: =IF('DF raw data'!F110="","",'DF raw data'!F110) -> -3.92035e-05 | C110: =IF('DF raw data'!G110="","",'DF raw data'!G110) -> 8.88427e-05 | D110: =IF('DF raw data'!H110="","",'DF raw data'!H110) -> -3.90399e-05 | F110: 2.192276316e-06 | G110: 1.419293988e-05 | H110: -0.00417634879 | J110: 0.0002104608075 | K110: 0.002250970025 | L110: 0.0004631205399 | M110: 0.005599875235 | N110: 2.145078158e-06
A111: =IF('DF raw data'!E111="","",'DF raw data'!E111) -> -278 | B111: =IF('DF raw data'!F111="","",'DF raw data'!F111) -> -2.92693e-05 | C111: =IF('DF raw data'!G111="","",'DF raw data'!G111) -> 8.52553e-05 | D111: =IF('DF raw data'!H111="","",'DF raw data'!H111) -> -3.89143e-05 | F111: 1.217714074e-05 | G111: 1.058724414e-05 | H111: -0.004176222549 | J111: 0.0002165493778 | K111: 0.002359244714 | L111: 0.0004684141619 | M111: 0.005834082316 | N111: 2.278230888e-06
A112: =IF('DF raw data'!E112="","",'DF raw data'!E112) -> -277.5 | B112: =IF('DF raw data'!F112="","",'DF raw data'!F112) -> -3.4079e-05 | C112: =IF('DF raw data'!G112="","",'DF raw data'!G112) -> 8.77275e-05 | D112: =IF('DF raw data'!H112="","",'DF raw data'!H112) -> -3.45895e-05 | F112: 7.342911266e-06 | G112: 1.307205236e-05 | H112: -0.004171875693 | J112: 0.0002202208335 | K112: 0.002469355131 | L112: 0.0004749501881 | M112: 0.00607155741 | N112: 2.415268337e-06
A113: =IF('DF raw data'!E113="","",'DF raw data'!E113) -> -277 | B113: =IF('DF raw data'!F113="","",'DF raw data'!F113) -> -2.93993e-05 | C113: =IF('DF raw data'!G113="","",'DF raw data'!G113) -> 9.2922e-05 | D113: =IF('DF raw data'!H113="","",'DF raw data'!H113) -> -3.62158e-05 | F113: 1.204647774e-05 | G113: 1.829304431e-05 | H113: -0.004173510287 | J113: 0.0002262440723 | K113: 0.002582477167 | L113: 0.0004840967103 | M113: 0.006313605765 | N113: 2.558036339e-06
A114: =IF('DF raw data'!E114="","",'DF raw data'!E114) -> -276.5 | B114: =IF('DF raw data'!F114="","",'DF raw data'!F114) -> -3.97844e-05 | C114: =IF('DF raw data'!G114="","",'DF raw data'!G114) -> 9.59119e-05 | D114: =IF('DF raw data'!H114="","",'DF raw data'!H114) -> -3.24833e-05 | F114: 1.608413726e-06 | G114: 2.12981928e-05 | H114: -0.004169758751 | J114: 0.0002270482792 | K114: 0.002696001307 | L114: 0.0004947458067 | M114: 0.006560978668 | N114: 2.706198506e-06
A115: =IF('DF raw data'!E115="","",'DF raw data'!E115) -> -276 | B115: =IF('DF raw data'!F115="","",'DF raw data'!F115) -> -3.31237e-05 | C115: =IF('DF raw data'!G115="","",'DF raw data'!G115) -> 8.25553e-05 | D115: =IF('DF raw data'!H115="","",'DF raw data'!H115) -> -2.49541e-05 | F115: 8.303083296e-06 | G115: 7.873474139e-06 | H115: -0.004162191152 | J115: 0.0002311998208 | K115: 0.002811601217 | L115: 0.0004986825437 | M115: 0.00681031994 | N115: 2.857267325e-06
A116: =IF('DF raw data'!E116="","",'DF raw data'!E116) -> -275.5 | B116: =IF('DF raw data'!F116="","",'DF raw data'!F116) -> -4.29264e-05 | C116: =IF('DF raw data'!G116="","",'DF raw data'!G116) -> 8.47596e-05 | D116: =IF('DF raw data'!H116="","",'DF raw data'!H116) -> -3.00604e-05 | F116: -1.549610474e-06 | G116: 1.008901607e-05 | H116: -0.004167323494 | J116: 0.0002304250156 | K116: 0.002926813725 | L116: 0.0005037270518 | M116: 0.007062183466 | N116: 3.01068564e-06
A117: =IF('DF raw data'!E117="","",'DF raw data'!E117) -> -275 | B117: =IF('DF raw data'!F117="","",'DF raw data'!F117) -> -4.04935e-05 | C117: =IF('DF raw data'!G117="","",'DF raw data'!G117) -> 8.45576e-05 | D117: =IF('DF raw data'!H117="","",'DF raw data'!H117) -> -2.62636e-05 | F117: 8.956973165e-07 | G117: 9.885985869e-06 | H117: -0.004163507331 | J117: 0.0002308728643 | K117: 0.003042250157 | L117: 0.0005086700447 | M117: 0.007316518488 | N117: 3.166709387e-06
A118: =IF('DF raw data'!E118="","",'DF raw data'!E118) -> -274.5 | B118: =IF('DF raw data'!F118="","",'DF raw data'!F118) -> -4.15833e-05 | C118: =IF('DF raw data'!G118="","",'DF raw data'!G118) -> 8.3924e-05 | D118: =IF('DF raw data'!H118="","",'DF raw data'!H118) -> -2.59916e-05 | F118: -1.996606635e-07 | G118: 9.249154509e-06 | H118: -0.004163233943 | J118: 0.0002307730339 | K118: 0.003157636674 | L118: 0.000513294622 | M118: 0.007573165799 | N118: 3.325073168e-06
A119: =IF('DF raw data'!E119="","",'DF raw data'!E119) -> -274 | B119: =IF('DF raw data'!F119="","",'DF raw data'!F119) -> -3.8308e-05 | C119: =IF('DF raw data'!G119="","",'DF raw data'!G119) -> 9.07122e-05 | D119: =IF('DF raw data'!H119="","",'DF raw data'!H119) -> -3.62683e-05 | F119: 3.092343366e-06 | G119: 1.607197433e-05 | H119: -0.004173563055 | J119: 0.0002323192056 | K119: 0.003273796277 | L119: 0.0005213306091 | M119: 0.007833831104 | N119: 3.487952077e-06
A120: =IF('DF raw data'!E120="","",'DF raw data'!E120) -> -273.5 | B120: =IF('DF raw data'!F120="","",'DF raw data'!F120) -> -3.86361e-05 | C120: =IF('DF raw data'!G120="","",'DF raw data'!G120) -> 8.40888e-05 | D120: =IF('DF raw data'!H120="","",'DF raw data'!H120) -> -2.43282e-05 | F120: 2.762570056e-06 | G120: 9.414794989e-06 | H120: -0.00416156206 | J120: 0.0002337004906 | K120: 0.003390646522 | L120: 0.0005260380066 | M120: 0.008096850107 | N120: 3.653618028e-06
A121: =IF('DF raw data'!E121="","",'DF raw data'!E121) -> -273 | B121: =IF('DF raw data'!F121="","",'DF raw data'!F121) -> -3.2543e-05 | C121: =IF('DF raw data'!G121="","",'DF raw data'!G121) -> 7.79739e-05 | D121: =IF('DF raw data'!H121="","",'DF raw data'!H121) -> -3.12566e-05 | F121: 8.886744866e-06 | G121: 3.268708999e-06 | H121: -0.004168525795 | J121: 0.0002381438631 | K121: 0.003509718454 | L121: 0.0005276723611 | M121: 0.008360686288 | N121: 3.821193338e-06
A122: =IF('DF raw data'!E122="","",'DF raw data'!E122) -> -272.5 | B122: =IF('DF raw data'!F122="","",'DF raw data'!F122) -> -2.17088e-05 | C122: =IF('DF raw data'!G122="","",'DF raw data'!G122) -> 8.43192e-05 | D122: =IF('DF raw data'!H122="","",'DF raw data'!H122) -> -3.505e-05 | F122: 1.977619929e-05 | G122: 9.646370029e-06 | H122: -0.004172338541 | J122: 0.0002480319627 | K122: 0.003633734435 | L122: 0.0005324955461 | M122: 0.008626934061 | N122: 3.993729019e-06
A123: =IF('DF raw data'!E123="","",'DF raw data'!E123) -> -272 | B123: =IF('DF raw data'!F123="","",'DF raw data'!F123) -> -1.82494e-05 | C123: =IF('DF raw data'!G123="","",'DF raw data'!G123) -> 9.4847e-05 | D123: =IF('DF raw data'!H123="","",'DF raw data'!H123) -> -3.29913e-05 | F123: 2.325324223e-05 | G123: 2.022786181e-05 | H123: -0.004170269342 | J123: 0.0002596585838 | K123: 0.003763563727 | L123: 0.000542609477 | M123: 0.008898238799 | N123: 4.174652831e-06
A124: =IF('DF raw data'!E124="","",'DF raw data'!E124) -> -271.5 | B124: =IF('DF raw data'!F124="","",'DF raw data'!F124) -> -3.7286e-05 | C124: =IF('DF raw data'!G124="","",'DF raw data'!G124) -> 8.25575e-05 | D124: =IF('DF raw data'!H124="","",'DF raw data'!H124) -> -3.09648e-05 | F124: 4.119555566e-06 | G124: 7.875685359e-06 | H124: -0.004168232507 | J124: 0.0002617183616 | K124: 0.003894422908 | L124: 0.0005465473197 | M124: 0.009171512459 | N124: 4.358258068e-06
A125: =IF('DF raw data'!E125="","",'DF raw data'!E125) -> -271 | B125: =IF('DF raw data'!F125="","",'DF raw data'!F125) -> -2.64659e-05 | C125: =IF('DF raw data'!G125="","",'DF raw data'!G125) -> 7.676e-05 | D125: =IF('DF raw data'!H125="","",'DF raw data'!H125) -> -1.31579e-05 | F125: 1.499483808e-05 | G125: 2.048618109e-06 | H125: -0.004150334792 | J125: 0.0002692157807 | K125: 0.004029030798 | L125: 0.0005475716288 | M125: 0.009445298274 | N125: 4.544413981e-06
A126: =IF('DF raw data'!E126="","",'DF raw data'!E126) -> -270.5 | B126: =IF('DF raw data'!F126="","",'DF raw data'!F126) -> -3.44656e-05 | C126: =IF('DF raw data'!G126="","",'DF raw data'!G126) -> 7.89738e-05 | D126: =IF('DF raw data'!H126="","",'DF raw data'!H126) -> -3.13859e-05 | F126: 6.954339606e-06 | G126: 4.273708489e-06 | H126: -0.004168655754 | J126: 0.0002726929505 | K126: 0.004165377273 | L126: 0.000549708483 | M126: 0.009720152515 | N126: 4.732684412e-06
A127: =IF('DF raw data'!E127="","",'DF raw data'!E127) -> -270 | B127: =IF('DF raw data'!F127="","",'DF raw data'!F127) -> -2.7992e-05 | C127: =IF('DF raw data'!G127="","",'DF raw data'!G127) -> 7.84738e-05 | D127: =IF('DF raw data'!H127="","",'DF raw data'!H127) -> -3.20477e-05 | F127: 1.346095497e-05 | G127: 3.771158489e-06 | H127: -0.00416932093 | J127: 0.0002794234279 | K127: 0.004305088987 | L127: 0.0005515940623 | M127: 0.009995949546 | N127: 4.923851142e-06
A128: =IF('DF raw data'!E128="","",'DF raw data'!E128) -> -269.5 | B128: =IF('DF raw data'!F128="","",'DF raw data'!F128) -> -2.6652e-05 | C128: =IF('DF raw data'!G128="","",'DF raw data'!G128) -> 8.62415e-05 | D128: =IF('DF raw data'!H128="","",'DF raw data'!H128) -> -2.28674e-05 | F128: 1.480778897e-05 | G128: 1.157847376e-05 | H128: -0.00416009381 | J128: 0.0002868273224 | K128: 0.004448502648 | L128: 0.0005573832991 | M128: 0.0102746412 | N128: 5.12032417e-06
A129: =IF('DF raw data'!E129="","",'DF raw data'!E129) -> -269 | B129: =IF('DF raw data'!F129="","",'DF raw data'!F129) -> -2.18457e-05 | C129: =IF('DF raw data'!G129="","",'DF raw data'!G129) -> 8.99616e-05 | D129: =IF('DF raw data'!H129="","",'DF raw data'!H129) -> -2.19773e-05 | F129: 1.96386011e-05 | G129: 1.531754627e-05 | H129: -0.004159199171 | J129: 0.000296646623 | K129: 0.00459682596 | L129: 0.0005650420723 | M129: 0.01055716223 | N129: 5.323960051e-06
A130: =IF('DF raw data'!E130="","",'DF raw data'!E130) -> -268.5 | B130: =IF('DF raw data'!F130="","",'DF raw data'!F130) -> -3.18459e-05 | C130: =IF('DF raw data'!G130="","",'DF raw data'!G130) -> 8.45208e-05 | D130: =IF('DF raw data'!H130="","",'DF raw data'!H130) -> -1.88652e-05 | F130: 9.587400076e-06 | G130: 9.848998189e-06 | H130: -0.004156071199 | J130: 0.000301440323 | K130: 0.004747546121 | L130: 0.0005699665714 | M130: 0.01084214552 | N130: 5.531824131e-06
A131: =IF('DF raw data'!E131="","",'DF raw data'!E131) -> -268 | B131: =IF('DF raw data'!F131="","",'DF raw data'!F131) -> -2.94731e-05 | C131: =IF('DF raw data'!G131="","",'DF raw data'!G131) -> 7.69776e-05 | D131: =IF('DF raw data'!H131="","",'DF raw data'!H131) -> -2.09699e-05 | F131: =(1-$G$1*($B$54-$G$2))*(B131-F$5) -> 1.197230136e-05 | G131: =(1-$G$1*($B$54-$G$2))*(C131-G$5) -> 2.267327869e-06 | H131: =(1-$G$1*($B$54-$G$2))*(D131-H$5) -> -0.004158186633 | J131: 0.0003074264737 | K131: 0.004901259358 | L131: 0.0005711002353 | M131: 0.01112769564 | N131: 5.742157389e-06
A132: =IF('DF raw data'!E132="","",'DF raw data'!E132) -> -267.5 | B132: =IF('DF raw data'!F132="","",'DF raw data'!F132) -> -3.12031e-05 | C132: =IF('DF raw data'!G132="","",'DF raw data'!G132) -> 8.35832e-05 | D132: =IF('DF raw data'!H132="","",'DF raw data'!H132) -> -2.17007e-05 | F132: 1.023347836e-05 | G132: 8.906616429e-06 | H132: -0.00415892116 | J132: =F132*$G$3+J131 -> 0.0003125432129 | K132: =J132*$G$3+K131 -> 0.005057530965 | L132: =G132*$G$3+L131 -> 0.0005755535435 | M132: =L132*$G$3+M131 -> 0.01141547241 | N132: =(J132^2+L132^2)*$G$3+N131 -> 5.95662996e-06
A133: =IF('DF raw data'!E133="","",'DF raw data'!E133) -> -267 | B133: =IF('DF raw data'!F133="","",'DF raw data'!F133) -> -2.55583e-05 | C133: =IF('DF raw data'!G133="","",'DF raw data'!G133) -> 8.62985e-05 | D133: =IF('DF raw data'!H133="","",'DF raw data'!H133) -> -2.90174e-05 | F133: 1.590706684e-05 | G133: 1.163576446e-05 | H133: -0.004166275175 | J133: 0.0003204967463 | K133: 0.005217779338 | L133: 0.0005813714257 | M133: 0.01170615812 | N133: 6.176985409e-06
A134: =IF('DF raw data'!E134="","",'DF raw data'!E134) -> -266.5 | B134: =IF('DF raw data'!F134="","",'DF raw data'!F134) -> -3.82456e-05 | C134: =IF('DF raw data'!G134="","",'DF raw data'!G134) -> 8.48563e-05 | D134: =IF('DF raw data'!H134="","",'DF raw data'!H134) -> -3.34068e-05 | F134: 3.155061606e-06 | G134: 1.018620924e-05 | H134: -0.004170686961 | J134: 0.0003220742771 | K134: 0.005378816476 | L134: 0.0005864645304 | M134: 0.01199939039 | N134: 6.400821652e-06
A135: =IF('DF raw data'!E135="","",'DF raw data'!E135) -> -266 | B135: =IF('DF raw data'!F135="","",'DF raw data'!F135) -> -3.62634e-05 | C135: =IF('DF raw data'!G135="","",'DF raw data'!G135) -> 8.77962e-05 | D135: =IF('DF raw data'!H135="","",'DF raw data'!H135) -> -2.61124e-05 | F135: 5.147370826e-06 | G135: 1.314110273e-05 | H135: -0.00416335536 | J135: 0.0003246479625 | K135: 0.005541140458 | L135: 0.0005930350817 | M135: 0.01229590793 | N135: 6.629365106e-06
A136: =IF('DF raw data'!E136="","",'DF raw data'!E136) -> -265.5 | B136: =IF('DF raw data'!F136="","",'DF raw data'!F136) -> -4.36932e-05 | C136: =IF('DF raw data'!G136="","",'DF raw data'!G136) -> 8.36108e-05 | D136: =IF('DF raw data'!H136="","",'DF raw data'!H136) -> -3.39543e-05 | F136: -2.320321154e-06 | G136: 8.934357189e-06 | H136: -0.004171237253 | J136: 0.0003234878019 | K136: 0.005702884359 | L136: 0.0005975022603 | M136: 0.01259465906 | N136: 6.860191761e-06
A137: =IF('DF raw data'!E137="","",'DF raw data'!E137) -> -265 | B137: =IF('DF raw data'!F137="","",'DF raw data'!F137) -> -2.90184e-05 | C137: =IF('DF raw data'!G137="","",'DF raw data'!G137) -> 8.69045e-05 | D137: =IF('DF raw data'!H137="","",'DF raw data'!H137) -> -3.05884e-05 | F137: 1.242932033e-05 | G137: 1.224485506e-05 | H137: -0.004167854187 | J137: 0.0003297024621 | K137: 0.00586773559 | L137: 0.0006036246879 | M137: 0.0128964714 | N137: 7.096724999e-06
A138: =IF('DF raw data'!E138="","",'DF raw data'!E138) -> -264.5 | B138: =IF('DF raw data'!F138="","",'DF raw data'!F138) -> -4.51062e-05 | C138: =IF('DF raw data'!G138="","",'DF raw data'!G138) -> 8.14382e-05 | D138: =IF('DF raw data'!H138="","",'DF raw data'!H138) -> -2.91882e-05 | F138: -3.740527454e-06 | G138: 6.750676929e-06 | H138: -0.004166446846 | J138: 0.0003278321984 | K138: 0.006031651689 | L138: 0.0006070000263 | M138: 0.01319997141 | N138: 7.33468649e-06
A139: =IF('DF raw data'!E139="","",'DF raw data'!E139) -> -264 | B139: =IF('DF raw data'!F139="","",'DF raw data'!F139) -> -3.65165e-05 | C139: =IF('DF raw data'!G139="","",'DF raw data'!G139) -> 8.39889e-05 | D139: =IF('DF raw data'!H139="","",'DF raw data'!H139) -> -3.12641e-05 | F139: 4.892980016e-06 | G139: 9.314385499e-06 | H139: -0.004168533333 | J139: 0.0003302786884 | K139: 0.006196791033 | L139: 0.0006116572191 | M139: 0.01350580002 | N139: 7.576290773e-06
A140: =IF('DF raw data'!E140="","",'DF raw data'!E140) -> -263.5 | B140: =IF('DF raw data'!F140="","",'DF raw data'!F140) -> -3.3564e-05 | C140: =IF('DF raw data'!G140="","",'DF raw data'!G140) -> 9.36134e-05 | D140: =IF('DF raw data'!H140="","",'DF raw data'!H140) -> -3.80034e-05 | F140: 7.860537766e-06 | G140: 1.898797045e-05 | H140: -0.004175307004 | J140: 0.0003342089573 | K140: 0.006363895512 | L140: 0.0006211512043 | M140: 0.01381637562 | N140: 7.825052996e-06
A141: =IF('DF raw data'!E141="","",'DF raw data'!E141) -> -263 | B141: =IF('DF raw data'!F141="","",'DF raw data'!F141) -> -2.87677e-05 | C141: =IF('DF raw data'!G141="","",'DF raw data'!G141) -> 9.4875e-05 | D141: =IF('DF raw data'!H141="","",'DF raw data'!H141) -> -2.1798e-05 | F141: 1.26812989e-05 | G141: 2.025600461e-05 | H141: -0.004159018956 | J141: 0.0003405496067 | K141: 0.006534170315 | L141: 0.0006312792066 | M141: 0.01413201523 | N141: 8.082296732e-06
A142: =IF('DF raw data'!E142="","",'DF raw data'!E142) -> -262.5 | B142: =IF('DF raw data'!F142="","",'DF raw data'!F142) -> -2.90209e-05 | C142: =IF('DF raw data'!G142="","",'DF raw data'!G142) -> 8.57747e-05 | D142: =IF('DF raw data'!H142="","",'DF raw data'!H142) -> -2.66914e-05 | F142: 1.242680758e-05 | G142: 1.110929308e-05 | H142: -0.004163937312 | J142: 0.0003467630105 | K142: 0.00670755182 | L142: 0.0006368338531 | M142: 0.01445043215 | N142: 8.345197703e-06
A143: =IF('DF raw data'!E143="","",'DF raw data'!E143) -> -262 | B143: =IF('DF raw data'!F143="","",'DF raw data'!F143) -> -2.9658e-05 | C143: =IF('DF raw data'!G143="","",'DF raw data'!G143) -> 8.2029e-05 | D143: =IF('DF raw data'!H143="","",'DF raw data'!H143) -> -3.25844e-05 | F143: 1.178645837e-05 | G143: 7.344490009e-06 | H143: -0.004169860367 | J143: 0.0003526562397 | K143: 0.00688387994 | L143: 0.0006405060981 | M143: 0.0147706852 | N143: 8.612504945e-06
A144: =IF('DF raw data'!E144="","",'DF raw data'!E144) -> -261.5 | B144: =IF('DF raw data'!F144="","",'DF raw data'!F144) -> -3.54285e-05 | C144: =IF('DF raw data'!G144="","",'DF raw data'!G144) -> 9.06399e-05 | D144: =IF('DF raw data'!H144="","",'DF raw data'!H144) -> -2.9119e-05 | F144: 5.986528816e-06 | G144: 1.59993056e-05 | H144: -0.004166377293 | J144: 0.0003556495041 | K144: 0.007061704692 | L144: 0.0006485057509 | M144: 0.01509493808 | N144: 8.886028085e-06
A145: =IF('DF raw data'!E145="","",'DF raw data'!E145) -> -261 | B145: =IF('DF raw data'!F145="","",'DF raw data'!F145) -> -3.91469e-05 | C145: =IF('DF raw data'!G145="","",'DF raw data'!G145) -> 8.17351e-05 | D145: =IF('DF raw data'!H145="","",'DF raw data'!H145) -> -2.71613e-05 | F145: 2.249164976e-06 | G145: 7.049091119e-06 | H145: -0.004164409609 | J145: 0.0003567740866 | K145: 0.007240091735 | L145: 0.0006520302965 | M145: 0.01542095323 | N145: 9.162243713e-06
A146: =IF('DF raw data'!E146="","",'DF raw data'!E146) -> -260.5 | B146: =IF('DF raw data'!F146="","",'DF raw data'!F146) -> -4.24123e-05 | C146: =IF('DF raw data'!G146="","",'DF raw data'!G146) -> 7.88886e-05 | D146: =IF('DF raw data'!H146="","",'DF raw data'!H146) -> -3.2241e-05 | F146: -1.032888564e-06 | G146: 4.188073969e-06 | H146: -0.004169515215 | J146: 0.0003562576423 | K146: 0.007418220557 | L146: 0.0006541243335 | M146: 0.01574801539 | N146: 9.439642788e-06
A147: =IF('DF raw data'!E147="","",'DF raw data'!E147) -> -260 | B147: =IF('DF raw data'!F147="","",'DF raw data'!F147) -> -3.52359e-05 | C147: =IF('DF raw data'!G147="","",'DF raw data'!G147) -> 8.32845e-05 | D147: =IF('DF raw data'!H147="","",'DF raw data'!H147) -> -2.93389e-05 | F147: 6.180111076e-06 | G147: 8.606393059e-06 | H147: -0.004166598315 | J147: 0.0003593476978 | K147: 0.007597894405 | L147: 0.00065842753 | M147: 0.01607722916 | N147: 9.720971579e-06
A148: =IF('DF raw data'!E148="","",'DF raw data'!E148) -> -259.5 | B148: =IF('DF raw data'!F148="","",'DF raw data'!F148) -> -4.09428e-05 | C148: =IF('DF raw data'!G148="","",'DF raw data'!G148) -> 8.2829e-05 | D148: =IF('DF raw data'!H148="","",'DF raw data'!H148) -> -2.53959e-05 | F148: 4.441058865e-07 | G148: 8.148570009e-06 | H148: -0.004162635205 | J148: 0.0003595697508 | K148: 0.007777679281 | L148: 0.000662501815 | M148: 0.01640848007 | N148: 1.000507111e-05
A149: =IF('DF raw data'!E149="","",'DF raw data'!E149) -> -259 | B149: =IF('DF raw data'!F149="","",'DF raw data'!F149) -> -3.61284e-05 | C149: =IF('DF raw data'!G149="","",'DF raw data'!G149) -> 7.64961e-05 | D149: =IF('DF raw data'!H149="","",'DF raw data'!H149) -> -3.6646e-05 | F149: 5.283059326e-06 | G149: 1.783372219e-06 | H149: -0.004173942681 | J149: 0.0003622112804 | K149: 0.007958784921 | L149: 0.0006633935011 | M149: 0.01674017682 | N149: 1.029071508e-05
A150: =IF('DF raw data'!E150="","",'DF raw data'!E150) -> -258.5 | B150: =IF('DF raw data'!F150="","",'DF raw data'!F150) -> -2.41505e-05 | C150: =IF('DF raw data'!G150="","",'DF raw data'!G150) -> 7.67502e-05 | D150: =IF('DF raw data'!H150="","",'DF raw data'!H150) -> -2.5684e-05 | F150: 1.732204662e-05 | G150: 2.038768129e-06 | H150: -0.004162924775 | J150: 0.0003708723037 | K150: 0.008144221073 | L150: 0.0006644128852 | M150: 0.01707238326 | N150: 1.058021046e-05
A151: =IF('DF raw data'!E151="","",'DF raw data'!E151) -> -258 | B151: =IF('DF raw data'!F151="","",'DF raw data'!F151) -> -2.6072e-05 | C151: =IF('DF raw data'!G151="","",'DF raw data'!G151) -> 8.07135e-05 | D151: =IF('DF raw data'!H151="","",'DF raw data'!H151) -> -2.74494e-05 | F151: 1.539074697e-05 | G151: 6.022280959e-06 | H151: -0.004164699178 | J151: 0.0003785676772 | K151: 0.008333504912 | L151: 0.0006674240257 | M151: 0.01740609527 | N151: 1.087459462e-05
A152: =IF('DF raw data'!E152="","",'DF raw data'!E152) -> -257.5 | B152: =IF('DF raw data'!F152="","",'DF raw data'!F152) -> -2.96002e-05 | C152: =IF('DF raw data'!G152="","",'DF raw data'!G152) -> 8.2624e-05 | D152: =IF('DF raw data'!H152="","",'DF raw data'!H152) -> -2.26294e-05 | F152: 1.184455315e-05 | G152: 7.942524509e-06 | H152: -0.004159854596 | J152: 0.0003844899538 | K152: 0.008525749888 | L152: 0.0006713952879 | M152: 0.01774179292 | N152: 1.117389669e-05
A153: =IF('DF raw data'!E153="","",'DF raw data'!E153) -> -257 | B153: =IF('DF raw data'!F153="","",'DF raw data'!F153) -> -3.05599e-05 | C153: =IF('DF raw data'!G153="","",'DF raw data'!G153) -> 7.97461e-05 | D153: =IF('DF raw data'!H153="","",'DF raw data'!H153) -> -2.52702e-05 | F153: 1.087995868e-05 | G153: 5.049947219e-06 | H153: -0.004162508864 | J153: 0.0003899299331 | K153: 0.008720714855 | L153: 0.0006739202615 | M153: 0.01807875305 | N153: 1.147700363e-05
A154: =IF('DF raw data'!E154="","",'DF raw data'!E154) -> -256.5 | B154: =IF('DF raw data'!F154="","",'DF raw data'!F154) -> -2.59553e-05 | C154: =IF('DF raw data'!G154="","",'DF raw data'!G154) -> 8.61462e-05 | D154: =IF('DF raw data'!H154="","",'DF raw data'!H154) -> -9.81233e-06 | F154: 1.550804214e-05 | G154: 1.148268773e-05 | H154: -0.004146972159 | J154: 0.0003976839542 | K154: 0.008919556832 | L154: 0.0006796616054 | M154: 0.01841858385 | N154: 1.178704984e-05
A155: =IF('DF raw data'!E155="","",'DF raw data'!E155) -> -256 | B155: =IF('DF raw data'!F155="","",'DF raw data'!F155) -> -2.95288e-05 | C155: =IF('DF raw data'!G155="","",'DF raw data'!G155) -> 8.53286e-05 | D155: =IF('DF raw data'!H155="","",'DF raw data'!H155) -> -3.40656e-05 | F155: 1.191631729e-05 | G155: 1.066091797e-05 | H155: -0.004171349121 | J155: 0.0004036421129 | K155: 0.009121377889 | L155: 0.0006849920644 | M155: 0.01876107988 | N155: 1.210312038e-05
A156: =IF('DF raw data'!E156="","",'DF raw data'!E156) -> -255.5 | B156: =IF('DF raw data'!F156="","",'DF raw data'!F156) -> -3.07487e-05 | C156: =IF('DF raw data'!G156="","",'DF raw data'!G156) -> 6.9057e-05 | D156: =IF('DF raw data'!H156="","",'DF raw data'!H156) -> -3.05035e-05 | F156: 1.06901958e-05 | G156: -5.693667191e-06 | H156: -0.004167768854 | J156: 0.0004089872108 | K156: 0.009325871494 | L156: 0.0006821452308 | M156: 0.0191021525 | N156: 1.241941671e-05
A157: =IF('DF raw data'!E157="","",'DF raw data'!E157) -> -255 | B157: =IF('DF raw data'!F157="","",'DF raw data'!F157) -> -2.51765e-05 | C157: =IF('DF raw data'!G157="","",'DF raw data'!G157) -> 7.39765e-05 | D157: =IF('DF raw data'!H157="","",'DF raw data'!H157) -> -2.48111e-05 | F157: 1.629081402e-05 | G157: -7.490777411e-07 | H157: -0.004162047423 | J157: 0.0004171326178 | K157: 0.009534437803 | L157: 0.0006817706919 | M157: 0.01944303784 | N157: 1.273882216e-05
A158: =IF('DF raw data'!E158="","",'DF raw data'!E158) -> -254.5 | B158: =IF('DF raw data'!F158="","",'DF raw data'!F158) -> -3.54247e-05 | C158: =IF('DF raw data'!G158="","",'DF raw data'!G158) -> 7.73628e-05 | D158: =IF('DF raw data'!H158="","",'DF raw data'!H158) -> -3.49445e-05 | F158: 5.990348196e-06 | G158: 2.654492389e-06 | H158: -0.004172232503 | J158: 0.0004201277919 | K158: 0.009744501699 | L158: 0.0006830979381 | M158: 0.01978458681 | N158: 1.306038724e-05
A159: =IF('DF raw data'!E159="","",'DF raw data'!E159) -> -254 | B159: =IF('DF raw data'!F159="","",'DF raw data'!F159) -> -3.17785e-05 | C159: =IF('DF raw data'!G159="","",'DF raw data'!G159) -> 8.24916e-05 | D159: =IF('DF raw data'!H159="","",'DF raw data'!H159) -> -2.41249e-05 | F159: 9.655143816e-06 | G159: 7.809449269e-06 | H159: -0.004161357723 | J159: 0.0004249553638 | K159: 0.009956979381 | L159: 0.0006870026627 | M159: 0.02012808814 | N159: 1.33866671e-05
A160: =IF('DF raw data'!E160="","",'DF raw data'!E160) -> -253.5 | B160: =IF('DF raw data'!F160="","",'DF raw data'!F160) -> -2.57528e-05 | C160: =IF('DF raw data'!G160="","",'DF raw data'!G160) -> 8.87844e-05 | D160: =IF('DF raw data'!H160="","",'DF raw data'!H160) -> -2.58612e-05 | F160: 1.571157489e-05 | G160: 1.413434255e-05 | H160: -0.004163102878 | J160: 0.0004328111512 | K160: 0.01017338496 | L160: 0.000694069834 | M160: 0.02047512306 | N160: 1.372119631e-05
A161: =IF('DF raw data'!E161="","",'DF raw data'!E161) -> -253 | B161: =IF('DF raw data'!F161="","",'DF raw data'!F161) -> -3.95959e-05 | C161: =IF('DF raw data'!G161="","",'DF raw data'!G161) -> 9.05666e-05 | D161: =IF('DF raw data'!H161="","",'DF raw data'!H161) -> -2.68136e-05 | F161: 1.797875076e-06 | G161: 1.592563177e-05 | H161: -0.004164060136 | J161: 0.0004337100887 | K161: 0.01039024 | L161: 0.0007020326499 | M161: 0.02082613939 | N161: 1.406167345e-05
A162: =IF('DF raw data'!E162="","",'DF raw data'!E162) -> -252.5 | B162: =IF('DF raw data'!F162="","",'DF raw data'!F162) -> -2.79927e-05 | C162: =IF('DF raw data'!G162="","",'DF raw data'!G162) -> 9.15387e-05 | D162: =IF('DF raw data'!H162="","",'DF raw data'!H162) -> -3.10001e-05 | F162: 1.34602514e-05 | G162: 1.690268948e-05 | H162: -0.004168267987 | J162: 0.0004404402144 | K162: 0.01061046011 | L162: 0.0007104839946 | M162: 0.02118138138 | N162: 1.4411061e-05
A163: =IF('DF raw data'!E163="","",'DF raw data'!E163) -> -252 | B163: =IF('DF raw data'!F163="","",'DF raw data'!F163) -> -2.08134e-05 | C163: =IF('DF raw data'!G163="","",'DF raw data'!G163) -> 9.14886e-05 | D163: =IF('DF raw data'!H163="","",'DF raw data'!H163) -> -3.22014e-05 | F163: 2.067616583e-05 | G163: 1.685233397e-05 | H163: -0.004169475413 | J163: 0.0004507782974 | K163: 0.01083584926 | L163: 0.0007189101616 | M163: 0.02154083646 | N163: 1.477107744e-05
A164: =IF('DF raw data'!E164="","",'DF raw data'!E164) -> -251.5 | B164: =IF('DF raw data'!F164="","",'DF raw data'!F164) -> -3.88209e-05 | C164: =IF('DF raw data'!G164="","",'DF raw data'!G164) -> 8.09605e-05 | D164: =IF('DF raw data'!H164="","",'DF raw data'!H164) -> -3.59229e-05 | F164: 2.576827576e-06 | G164: 6.270540659e-06 | H164: -0.004173215893 | J164: 0.0004520667111 | K164: 0.01106188261 | L164: 0.000722045432 | M164: 0.02190185918 | N164: 1.51339344e-05
A165: =IF('DF raw data'!E165="","",'DF raw data'!E165) -> -251 | B165: =IF('DF raw data'!F165="","",'DF raw data'!F165) -> -3.64509e-05 | C165: =IF('DF raw data'!G165="","",'DF raw data'!G165) -> 7.76839e-05 | D165: =IF('DF raw data'!H165="","",'DF raw data'!H165) -> -3.36846e-05 | F165: 4.958914576e-06 | G165: 2.977229999e-06 | H165: -0.004170966178 | J165: 0.0004545461684 | K165: 0.0112891557 | L165: 0.000723534047 | M165: 0.0222636262 | N165: 1.549899127e-05
A166: =IF('DF raw data'!E166="","",'DF raw data'!E166) -> -250.5 | B166: =IF('DF raw data'!F166="","",'DF raw data'!F166) -> -3.04335e-05 | C166: =IF('DF raw data'!G166="","",'DF raw data'!G166) -> 7.15115e-05 | D166: =IF('DF raw data'!H166="","",'DF raw data'!H166) -> -2.25612e-05 | F166: 1.100700332e-05 | G166: -3.226649241e-06 | H166: -0.004159786048 | J166: 0.0004600496701 | K166: 0.01151918053 | L166: 0.0007219207223 | M166: 0.02262458656 | N166: 1.586539888e-05
A167: =IF('DF raw data'!E167="","",'DF raw data'!E167) -> -250 | B167: =IF('DF raw data'!F167="","",'DF raw data'!F167) -> -2.45917e-05 | C167: =IF('DF raw data'!G167="","",'DF raw data'!G167) -> 7.12895e-05 | D167: =IF('DF raw data'!H167="","",'DF raw data'!H167) -> -3.69547e-05 | F167: 1.68785965e-05 | G167: -3.449781441e-06 | H167: -0.004174252955 | J167: 0.0004684889683 | K167: 0.01175342502 | L167: 0.0007201958316 | M167: 0.02298468448 | N167: 1.623448086e-05
A168: =IF('DF raw data'!E168="","",'DF raw data'!E168) -> -249.5 | B168: =IF('DF raw data'!F168="","",'DF raw data'!F168) -> -3.75461e-05 | C168: =IF('DF raw data'!G168="","",'DF raw data'!G168) -> 7.01528e-05 | D168: =IF('DF raw data'!H168="","",'DF raw data'!H168) -> -2.51048e-05 | F168: 3.858129056e-06 | G168: -4.592278611e-06 | H168: -0.004162342621 | J168: 0.0004704180329 | K168: 0.01198863403 | L168: 0.0007178996923 | M168: 0.02334363433 | N168: 1.660281741e-05
A169: =IF('DF raw data'!E169="","",'DF raw data'!E169) -> -249 | B169: =IF('DF raw data'!F169="","",'DF raw data'!F169) -> -2.21584e-05 | C169: =IF('DF raw data'!G169="","",'DF raw data'!G169) -> 7.79687e-05 | D169: =IF('DF raw data'!H169="","",'DF raw data'!H169) -> -3.37249e-05 | F169: 1.932430633e-05 | G169: 3.263482479e-06 | H169: -0.004171006683 | J169: 0.000480080186 | K169: 0.01222867412 | L169: 0.0007195314336 | M169: 0.02370340004 | N169: 1.697691864e-05
A170: =IF('DF raw data'!E170="","",'DF raw data'!E170) -> -248.5 | B170: =IF('DF raw data'!F170="","",'DF raw data'!F170) -> -3.47883e-05 | C170: =IF('DF raw data'!G170="","",'DF raw data'!G170) -> 8.60272e-05 | D170: =IF('DF raw data'!H170="","",'DF raw data'!H170) -> -2.80251e-05 | F170: 6.629993836e-06 | G170: 1.136308083e-05 | H170: -0.004165277814 | J170: 0.000483395183 | K170: 0.01247037172 | L170: 0.000725212974 | M170: 0.02406600653 | N170: 1.735672102e-05
A171: =IF('DF raw data'!E171="","",'DF raw data'!E171) -> -248 | B171: =IF('DF raw data'!F171="","",'DF raw data'!F171) -> -3.81937e-05 | C171: =IF('DF raw data'!G171="","",'DF raw data'!G171) -> 8.59462e-05 | D171: =IF('DF raw data'!H171="","",'DF raw data'!H171) -> -1.47345e-05 | F171: 3.207226296e-06 | G171: 1.128166773e-05 | H171: -0.004151919432 | J171: 0.0004849987961 | K171: 0.01271287111 | L171: 0.0007308538078 | M171: 0.02443143343 | N171: 1.774140658e-05
A172: =IF('DF raw data'!E172="","",'DF raw data'!E172) -> -247.5 | B172: =IF('DF raw data'!F172="","",'DF raw data'!F172) -> -3.81879e-05 | C172: =IF('DF raw data'!G172="","",'DF raw data'!G172) -> 8.3278e-05 | D172: =IF('DF raw data'!H172="","",'DF raw data'!H172) -> -2.36678e-05 | F172: 3.213055876e-06 | G172: 8.599859909e-06 | H172: -0.004160898292 | J172: 0.000486605324 | K172: 0.01295617378 | L172: 0.0007351537378 | M172: 0.0247990103 | N172: 1.813002446e-05
A173: =IF('DF raw data'!E173="","",'DF raw data'!E173) -> -247 | B173: =IF('DF raw data'!F173="","",'DF raw data'!F173) -> -3.96593e-05 | C173: =IF('DF raw data'!G173="","",'DF raw data'!G173) -> 8.49465e-05 | D173: =IF('DF raw data'!H173="","",'DF raw data'!H173) -> -2.76619e-05 | F173: 1.734151736e-06 | G173: 1.027686926e-05 | H173: -0.004164912762 | J173: 0.0004874723999 | K173: 0.01319990998 | L173: 0.0007402921724 | M173: 0.02516915639 | N173: 1.852285538e-05
A174: =IF('DF raw data'!E174="","",'DF raw data'!E174) -> -246.5 | B174: =IF('DF raw data'!F174="","",'DF raw data'!F174) -> -2.86303e-05 | C174: =IF('DF raw data'!G174="","",'DF raw data'!G174) -> 7.06377e-05 | D174: =IF('DF raw data'!H174="","",'DF raw data'!H174) -> -3.60125e-05 | F174: 1.281939964e-05 | G174: -4.104905621e-06 | H174: -0.00417330595 | J174: 0.0004938820997 | K174: 0.01344685103 | L174: 0.0007382397196 | M174: 0.02553827625 | N174: 1.891731409e-05
A175: =IF('DF raw data'!E175="","",'DF raw data'!E175) -> -246 | B175: =IF('DF raw data'!F175="","",'DF raw data'!F175) -> -3.43323e-05 | C175: =IF('DF raw data'!G175="","",'DF raw data'!G175) -> 6.6097e-05 | D175: =IF('DF raw data'!H175="","",'DF raw data'!H175) -> -3.91428e-05 | F175: 7.088319436e-06 | G175: -8.668763191e-06 | H175: -0.004176452215 | J175: 0.0004974262594 | K175: 0.01369556416 | L175: 0.000733905338 | M175: 0.02590522892 | N175: 1.931033905e-05
A176: =IF('DF raw data'!E176="","",'DF raw data'!E176) -> -245.5 | B176: =IF('DF raw data'!F176="","",'DF raw data'!F176) -> -2.31918e-05 | C176: =IF('DF raw data'!G176="","",'DF raw data'!G176) -> 6.35872e-05 | D176: =IF('DF raw data'!H176="","",'DF raw data'!H176) -> -2.1395e-05 | F176: 1.828563599e-05 | G176: -1.119136317e-05 | H176: -0.004158613901 | J176: 0.0005065690774 | K176: 0.01394884869 | L176: 0.0007283096564 | M176: 0.02626938375 | N176: 1.970386264e-05
A177: =IF('DF raw data'!E177="","",'DF raw data'!E177) -> -245 | B177: =IF('DF raw data'!F177="","",'DF raw data'!F177) -> -4.2544e-05 | C177: =IF('DF raw data'!G177="","",'DF raw data'!G177) -> 6.97763e-05 | D177: =IF('DF raw data'!H177="","",'DF raw data'!H177) -> -2.67164e-05 | F177: -1.165260234e-06 | G177: -4.970698761e-06 | H177: -0.00416396244 | J177: 0.0005059864473 | K177: 0.01420184192 | L177: 0.000725824307 | M177: 0.0266322959 | N177: 2.009528425e-05
A178: =IF('DF raw data'!E178="","",'DF raw data'!E178) -> -244.5 | B178: =IF('DF raw data'!F178="","",'DF raw data'!F178) -> -1.45257e-05 | C178: =IF('DF raw data'!G178="","",'DF raw data'!G178) -> 6.82145e-05 | D178: =IF('DF raw data'!H178="","",'DF raw data'!H178) -> -4.25817e-05 | F178: 2.69959331e-05 | G178: -6.540463941e-06 | H178: -0.004179908653 | J178: 0.0005194844139 | K178: 0.01446158413 | L178: 0.0007225540751 | M178: 0.02699357294 | N178: 2.049125847e-05
A179: =IF('DF raw data'!E179="","",'DF raw data'!E179) -> -244 | B179: =IF('DF raw data'!F179="","",'DF raw data'!F179) -> -3.93395e-05 | C179: =IF('DF raw data'!G179="","",'DF raw data'!G179) -> 7.06299e-05 | D179: =IF('DF raw data'!H179="","",'DF raw data'!H179) -> -2.67252e-05 | F179: 2.055582716e-06 | G179: -4.112745401e-06 | H179: -0.004163971285 | J179: 0.0005205122052 | K179: 0.01472184023 | L179: 0.0007204977024 | M179: 0.02735382179 | N179: 2.088628342e-05
A180: =IF('DF raw data'!E180="","",'DF raw data'!E180) -> -243.5 | B180: =IF('DF raw data'!F180="","",'DF raw data'!F180) -> -2.68452e-05 | C180: =IF('DF raw data'!G180="","",'DF raw data'!G180) -> 8.07294e-05 | D180: =IF('DF raw data'!H180="","",'DF raw data'!H180) -> -2.11901e-05 | F180: 1.461360365e-05 | G180: 6.038262049e-06 | H180: -0.004158407956 | J180: 0.000527819007 | K180: 0.01498574973 | L180: 0.0007235168334 | M180: 0.02771558021 | N180: 2.128731818e-05
A181: =IF('DF raw data'!E181="","",'DF raw data'!E181) -> -243 | B181: =IF('DF raw data'!F181="","",'DF raw data'!F181) -> -3.51661e-05 | C181: =IF('DF raw data'!G181="","",'DF raw data'!G181) -> 7.30322e-05 | D181: =IF('DF raw data'!H181="","",'DF raw data'!H181) -> -3.83113e-05 | F181: 6.250267056e-06 | G181: -1.698193671e-06 | H181: -0.004175616474 | J181: 0.0005309441406 | K181: 0.0152512218 | L181: 0.0007226677366 | M181: 0.02807691407 | N181: 2.168939335e-05
A182: =IF('DF raw data'!E182="","",'DF raw data'!E182) -> -242.5 | B182: =IF('DF raw data'!F182="","",'DF raw data'!F182) -> -2.69063e-05 | C182: =IF('DF raw data'!G182="","",'DF raw data'!G182) -> 7.03829e-05 | D182: =IF('DF raw data'!H182="","",'DF raw data'!H182) -> -2.59216e-05 | F182: 1.455219204e-05 | G182: -4.361005101e-06 | H182: -0.004163163586 | J182: 0.0005382202366 | K182: 0.01552033192 | L182: 0.000720487234 | M182: 0.02843715769 | N182: 2.209378478e-05
A183: =IF('DF raw data'!E183="","",'DF raw data'!E183) -> -242 | B183: =IF('DF raw data'!F183="","",'DF raw data'!F183) -> -3.04238e-05 | C183: =IF('DF raw data'!G183="","",'DF raw data'!G183) -> 7.62011e-05 | D183: =IF('DF raw data'!H183="","",'DF raw data'!H183) -> -3.75763e-05 | F183: 1.101675279e-05 | G183: 1.486867719e-06 | H183: -0.004174877725 | J183: 0.000543728613 | K183: 0.01579219623 | L183: 0.0007212306679 | M183: 0.02879777302 | N183: 2.250169203e-05
A184: =IF('DF raw data'!E184="","",'DF raw data'!E184) -> -241.5 | B184: =IF('DF raw data'!F184="","",'DF raw data'!F184) -> -2.83141e-05 | C184: =IF('DF raw data'!G184="","",'DF raw data'!G184) -> 7.43387e-05 | D184: =IF('DF raw data'!H184="","",'DF raw data'!H184) -> -2.92139e-05 | F184: 1.313721226e-05 | G184: -3.850305211e-07 | H184: -0.004166472677 | J184: 0.0005502972191 | K184: 0.01606734484 | L184: 0.0007210381526 | M184: 0.0291582921 | N184: 2.291305355e-05
A185: =IF('DF raw data'!E185="","",'DF raw data'!E185) -> -241 | B185: =IF('DF raw data'!F185="","",'DF raw data'!F185) -> -2.76087e-05 | C185: =IF('DF raw data'!G185="","",'DF raw data'!G185) -> 7.38916e-05 | D185: =IF('DF raw data'!H185="","",'DF raw data'!H185) -> -2.97136e-05 | F185: 1.38462098e-05 | G185: -8.344107311e-07 | H185: -0.004166974926 | J185: 0.000557220324 | K185: 0.016345955 | L185: 0.0007206209472 | M185: 0.02951860257 | N185: 2.332794807e-05
A186: =IF('DF raw data'!E186="","",'DF raw data'!E186) -> -240.5 | B186: =IF('DF raw data'!F186="","",'DF raw data'!F186) -> -3.53039e-05 | C186: =IF('DF raw data'!G186="","",'DF raw data'!G186) -> 7.79172e-05 | D186: =IF('DF raw data'!H186="","",'DF raw data'!H186) -> -2.352e-05 | F186: 6.111764276e-06 | G186: 3.211719829e-06 | H186: -0.004160749738 | J186: 0.0005602762062 | K186: 0.0166260931 | L186: 0.0007222268072 | M186: 0.02987971598 | N186: 2.374570856e-05
A187: =IF('DF raw data'!E187="","",'DF raw data'!E187) -> -240 | B187: =IF('DF raw data'!F187="","",'DF raw data'!F187) -> -4.26099e-05 | C187: =IF('DF raw data'!G187="","",'DF raw data'!G187) -> 7.49788e-05 | D187: =IF('DF raw data'!H187="","",'DF raw data'!H187) -> -2.4087e-05 | F187: -1.231496324e-06 | G187: 2.583339889e-07 | H187: -0.00416131963 | J187: 0.000559660458 | K187: 0.01690592333 | L187: 0.0007223559742 | M187: 0.03024089397 | N187: 2.416321755e-05
A188: =IF('DF raw data'!E188="","",'DF raw data'!E188) -> -239.5 | B188: =IF('DF raw data'!F188="","",'DF raw data'!F188) -> -2.70988e-05 | C188: =IF('DF raw data'!G188="","",'DF raw data'!G188) -> 7.56203e-05 | D188: =IF('DF raw data'!H188="","",'DF raw data'!H188) -> -2.52977e-05 | F188: 1.435871029e-05 | G188: 9.031056389e-07 | H188: -0.004162536505 | J188: 0.0005668398131 | K188: 0.01718934324 | L188: 0.000722807527 | M188: 0.03060229773 | N188: 2.45850966e-05
A189: =IF('DF raw data'!E189="","",'DF raw data'!E189) -> -239 | B189: =IF('DF raw data'!F189="","",'DF raw data'!F189) -> -3.66476e-05 | C189: =IF('DF raw data'!G189="","",'DF raw data'!G189) -> 7.63942e-05 | D189: =IF('DF raw data'!H189="","",'DF raw data'!H189) -> -2.65964e-05 | F189: 4.761211406e-06 | G189: 1.680952529e-06 | H189: -0.004163841828 | J189: 0.0005692204188 | K189: 0.01747395345 | L189: 0.0007236480032 | M189: 0.03096412173 | N189: 2.500893576e-05
A190: =IF('DF raw data'!E190="","",'DF raw data'!E190) -> -238.5 | B190: =IF('DF raw data'!F190="","",'DF raw data'!F190) -> -3.5618e-05 | C190: =IF('DF raw data'!G190="","",'DF raw data'!G190) -> 7.57321e-05 | D190: =IF('DF raw data'!H190="","",'DF raw data'!H190) -> -3.30358e-05 | F190: 5.796062366e-06 | G190: 1.015475819e-06 | H190: -0.004170314069 | J190: 0.00057211845 | K190: 0.01776001267 | L190: 0.0007241557411 | M190: 0.0313261996 | N190: 2.543479629e-05
A191: =IF('DF raw data'!E191="","",'DF raw data'!E191) -> -238 | B191: =IF('DF raw data'!F191="","",'DF raw data'!F191) -> -3.44746e-05 | C191: =IF('DF raw data'!G191="","",'DF raw data'!G191) -> 7.02092e-05 | D191: =IF('DF raw data'!H191="","",'DF raw data'!H191) -> -1.73261e-05 | F191: 6.945293706e-06 | G191: -4.535590971e-06 | H191: -0.004154524249 | J191: 0.0005755910969 | K191: 0.01804780822 | L191: 0.0007218879457 | M191: 0.03168714357 | N191: 2.586100995e-05
A192: =IF('DF raw data'!E192="","",'DF raw data'!E192) -> -237.5 | B192: =IF('DF raw data'!F192="","",'DF raw data'!F192) -> -3.39549e-05 | C192: =IF('DF raw data'!G192="","",'DF raw data'!G192) -> 6.72502e-05 | D192: =IF('DF raw data'!H192="","",'DF raw data'!H192) -> -2.80874e-05 | F192: 7.467644176e-06 | G192: -7.509681871e-06 | H192: -0.004165340432 | J192: 0.000579324919 | K192: 0.01833747068 | L192: 0.0007181331047 | M192: 0.03204621013 | N192: 2.628667621e-05
A193: =IF('DF raw data'!E193="","",'DF raw data'!E193) -> -237 | B193: =IF('DF raw data'!F193="","",'DF raw data'!F193) -> -3.52348e-05 | C193: =IF('DF raw data'!G193="","",'DF raw data'!G193) -> 7.43581e-05 | D193: =IF('DF raw data'!H193="","",'DF raw data'!H193) -> -3.09761e-05 | F193: 6.181216686e-06 | G193: -3.655315811e-07 | H193: -0.004168243864 | J193: 0.0005824155273 | K193: 0.01862867844 | L193: 0.0007179503389 | M193: 0.0324051853 | N193: 2.671400647e-05
A194: =IF('DF raw data'!E194="","",'DF raw data'!E194) -> -236.5 | B194: =IF('DF raw data'!F194="","",'DF raw data'!F194) -> -4.77386e-05 | C194: =IF('DF raw data'!G194="","",'DF raw data'!G194) -> 7.91727e-05 | D194: =IF('DF raw data'!H194="","",'DF raw data'!H194) -> -2.19999e-05 | F194: -6.386352694e-06 | G194: 4.473622879e-06 | H194: -0.004159221886 | J194: 0.000579222351 | K194: 0.01891828962 | L194: 0.0007201871504 | M194: 0.03276527887 | N194: 2.714109051e-05
A195: =IF('DF raw data'!E195="","",'DF raw data'!E195) -> -236 | B195: =IF('DF raw data'!F195="","",'DF raw data'!F195) -> -3.19722e-05 | C195: =IF('DF raw data'!G195="","",'DF raw data'!G195) -> 8.03476e-05 | D195: =IF('DF raw data'!H195="","",'DF raw data'!H195) -> -2.1708e-05 | F195: =(1-$G$1*($B$54-$G$2))*(B195-F$5) -> 9.460455946e-06 | G195: =(1-$G$1*($B$54-$G$2))*(C195-G$5) -> 5.654514869e-06 | H195: =(1-$G$1*($B$54-$G$2))*(D195-H$5) -> -0.004158928497 | J195: 0.0005839525789 | K195: 0.01921026591 | L195: 0.0007230144078 | M195: 0.03312678607 | N195: 2.757296573e-05
A196: =IF('DF raw data'!E196="","",'DF raw data'!E196) -> -235.5 | B196: =IF('DF raw data'!F196="","",'DF raw data'!F196) -> -3.08218e-05 | C196: =IF('DF raw data'!G196="","",'DF raw data'!G196) -> 8.08414e-05 | D196: =IF('DF raw data'!H196="","",'DF raw data'!H196) -> -1.67004e-05 | F196: 1.061672299e-05 | G196: 6.150833249e-06 | H196: -0.004153895358 | J196: =F196*$G$3+J195 -> 0.0005892609404 | K196: =J196*$G$3+K195 -> 0.01950489638 | L196: =G196*$G$3+L195 -> 0.0007260898244 | M196: =L196*$G$3+M195 -> 0.03348983099 | N196: =(J196^2+L196^2)*$G$3+N195 -> 2.801018317e-05
A197: =IF('DF raw data'!E197="","",'DF raw data'!E197) -> -235 | B197: =IF('DF raw data'!F197="","",'DF raw data'!F197) -> -2.8187e-05 | C197: =IF('DF raw data'!G197="","",'DF raw data'!G197) -> 8.15925e-05 | D197: =IF('DF raw data'!H197="","",'DF raw data'!H197) -> -2.75339e-05 | F197: 1.326496047e-05 | G197: 6.905763859e-06 | H197: -0.004164784109 | J197: 0.0005958934207 | K197: 0.01980284309 | L197: 0.0007295427064 | M197: 0.03385460234 | N197: 2.845384394e-05
A198: =IF('DF raw data'!E198="","",'DF raw data'!E198) -> -234.5 | B198: =IF('DF raw data'!F198="","",'DF raw data'!F198) -> -4.03609e-05 | C198: =IF('DF raw data'!G198="","",'DF raw data'!G198) -> 7.99939e-05 | D198: =IF('DF raw data'!H198="","",'DF raw data'!H198) -> -3.30564e-05 | F198: 1.028973576e-06 | G198: 5.299010999e-06 | H198: -0.004170334774 | J198: 0.0005964079074 | K198: 0.02010104704 | L198: 0.0007321922119 | M198: 0.03422069845 | N198: 2.889974785e-05
A199: =IF('DF raw data'!E199="","",'DF raw data'!E199) -> -234 | B199: =IF('DF raw data'!F199="","",'DF raw data'!F199) -> -3.60122e-05 | C199: =IF('DF raw data'!G199="","",'DF raw data'!G199) -> 7.95268e-05 | D199: =IF('DF raw data'!H199="","",'DF raw data'!H199) -> -1.8238e-05 | F199: 5.399851946e-06 | G199: 4.829528789e-06 | H199: -0.0041554408 | J199: 0.0005991078334 | K199: 0.02040060096 | L199: 0.0007346069763 | M199: 0.03458800193 | N199: 2.934903666e-05
A200: =IF('DF raw data'!E200="","",'DF raw data'!E200) -> -233.5 | B200: =IF('DF raw data'!F200="","",'DF raw data'!F200) -> -3.46001e-05 | C200: =IF('DF raw data'!G200="","",'DF raw data'!G200) -> 8.57414e-05 | D200: =IF('DF raw data'!H200="","",'DF raw data'!H200) -> -2.14494e-05 | F200: 6.819153656e-06 | G200: 1.107582325e-05 | H200: -0.004158668578 | J200: 0.0006025174102 | K200: 0.02070185966 | L200: 0.0007401448879 | M200: 0.03495807438 | N200: 2.98044575e-05
... 1079 more rows

Sheet 20 mm
A1: =IF('DF raw data'!I1="","",'DF raw data'!I1) -> Number of header lines | B1: =IF('DF raw data'!J1="","",'DF raw data'!J1) -> 54 | C1: =IF('DF raw data'!C1="","",'DF raw data'!C1) ->  | D1: =IF('DF raw data'!D1="","",'DF raw data'!D1) ->  | F1: T_coeff | G1: -0.001 | H1: /degC | J1: IBy total | K1: =J1267*1000 -> 1.043230442 | L1: muTm | M1: =L1267*1000 -> -32.36784635 | R1: DF ref | S1: 1
A2: =IF('DF raw data'!I2="","",'DF raw data'!I2) -> Measured by | B2: =IF('DF raw data'!J2="","",'DF raw data'!J2) -> Danfysik | C2: =IF('DF raw data'!C2="","",'DF raw data'!C2) ->  | D2: =IF('DF raw data'!D2="","",'DF raw data'!D2) ->  | F2: Tcorr | G2: 20 | H2: degC | J2: JBy total | K2: =K1267 -> -5.930647115 | L2: muTm^2 | M2: =M1267 -> -7.393041195
A3: =IF('DF raw data'!I3="","",'DF raw data'!I3) -> Operator | B3: =IF('DF raw data'!J3="","",'DF raw data'!J3) -> PMHA | C3: =IF('DF raw data'!C3="","",'DF raw data'!C3) ->  | D3: =IF('DF raw data'!D3="","",'DF raw data'!D3) ->  | F3: Step | G3: =A68-A67 -> 0.5 | H3: mm | J3: PI total | K3: =N1267 -> 4955.532739 | L3: T^2mm^3
A4: =IF('DF raw data'!I4="","",'DF raw data'!I4) -> Data-time | B4: =IF('DF raw data'!J4="","",'DF raw data'!J4) -> 02-09-2024, 13:46:16 | C4: =IF('DF raw data'!C4="","",'DF raw data'!C4) ->  | D4: =IF('DF raw data'!D4="","",'DF raw data'!D4) -> 
A5: =IF('DF raw data'!I5="","",'DF raw data'!I5) -> Project | B5: =IF('DF raw data'!J5="","",'DF raw data'!J5) -> 504314 | C5: =IF('DF raw data'!C5="","",'DF raw data'!C5) ->  | D5: Bamb avr | F5: =(AVERAGE(B67:B107) + AVERAGE(B1227:B1267))/2 -> -4.45804061e-05 | G5: =(AVERAGE(C67:C107) + AVERAGE(C1227:C1267))/2 -> 0.0001084556829 | H5: =(AVERAGE(D67:D107) + AVERAGE(D1227:D1267))/2 -> 0.004112656743
A6: =IF('DF raw data'!I6="","",'DF raw data'!I6) -> Magnet type | B6: =IF('DF raw data'!J6="","",'DF raw data'!J6) -> Dipole | C6: =IF('DF raw data'!C6="","",'DF raw data'!C6) -> 
A7: =IF('DF raw data'!I7="","",'DF raw data'!I7) -> Magnet nr. | B7: =IF('DF raw data'!J7="","",'DF raw data'!J7) -> 2410089 | C7: =IF('DF raw data'!C7="","",'DF raw data'!C7) -> 
A8: =IF('DF raw data'!I8="","",'DF raw data'!I8) -> Meas. number | B8: =IF('DF raw data'!J8="","",'DF raw data'!J8) -> 309 | C8: =IF('DF raw data'!C8="","",'DF raw data'!C8) -> 
A9: =IF('DF raw data'!I9="","",'DF raw data'!I9) -> Add. info | B9: =IF('DF raw data'!J9="","",'DF raw data'!J9) ->  | C9: =IF('DF raw data'!C9="","",'DF raw data'!C9) ->  | D9: =IF('DF raw data'!D9="","",'DF raw data'!D9) -> 
A10: =IF('DF raw data'!I10="","",'DF raw data'!I10) -> Device | B10: =IF('DF raw data'!J10="","",'DF raw data'!J10) -> (HAL) HALL-PROBE | C10: =IF('DF raw data'!C10="","",'DF raw data'!C10) ->  | D10: =IF('DF raw data'!D10="","",'DF raw data'!D10) -> 
A11: =IF('DF raw data'!I11="","",'DF raw data'!I11) -> Goal | B11: =IF('DF raw data'!J11="","",'DF raw data'!J11) -> (AXI) AXis Integral (Line, EFB) | C11: =IF('DF raw data'!C11="","",'DF raw data'!C11) ->  | D11: =IF('DF raw data'!D11="","",'DF raw data'!D11) -> 
A12: =IF('DF raw data'!I12="","",'DF raw data'!I12) -> Power supply mode | B12: =IF('DF raw data'!J12="","",'DF raw data'!J12) -> (PM) Permanent Magnet (no MPS in use) | C12: =IF('DF raw data'!C12="","",'DF raw data'!C12) ->  | D12: =IF('DF raw data'!D12="","",'DF raw data'!D12) -> 
A13: =IF('DF raw data'!I13="","",'DF raw data'!I13) -> Data format | B13: =IF('DF raw data'!J13="","",'DF raw data'!J13) -> Raw data text file | C13: =IF('DF raw data'!C13="","",'DF raw data'!C13) ->  | D13: =IF('DF raw data'!D13="","",'DF raw data'!D13) -> 
A14: =IF('DF raw data'!I14="","",'DF raw data'!I14) -> Direction of the pos. x-axis | B14: =IF('DF raw data'!J14="","",'DF raw data'!J14) -> See test program | C14: =IF('DF raw data'!C14="","",'DF raw data'!C14) ->  | D14: =IF('DF raw data'!D14="","",'DF raw data'!D14) -> 
A15: =IF('DF raw data'!I15="","",'DF raw data'!I15) -> Direction of the pos. y-axis | B15: =IF('DF raw data'!J15="","",'DF raw data'!J15) -> Vertical up | C15: =IF('DF raw data'!C15="","",'DF raw data'!C15) ->  | D15: =IF('DF raw data'!D15="","",'DF raw data'!D15) -> 
A16: =IF('DF raw data'!I16="","",'DF raw data'!I16) -> Direction of the pos. z-axis | B16: =IF('DF raw data'!J16="","",'DF raw data'!J16) -> See test program | C16: =IF('DF raw data'!C16="","",'DF raw data'!C16) ->  | D16: =IF('DF raw data'!D16="","",'DF raw data'!D16) -> 
A17: =IF('DF raw data'!I17="","",'DF raw data'!I17) -> Mapper type | B17: =IF('DF raw data'!J17="","",'DF raw data'!J17) -> Precision Hall Mapper | C17: =IF('DF raw data'!C17="","",'DF raw data'!C17) ->  | D17: =IF('DF raw data'!D17="","",'DF raw data'!D17) -> 
A18: =IF('DF raw data'!I18="","",'DF raw data'!I18) -> Mapper Danfysik Reg. Number | B18: =IF('DF raw data'!J18="","",'DF raw data'!J18) -> 2033-D (mapper 1) | C18: =IF('DF raw data'!C18="","",'DF raw data'!C18) ->  | D18: =IF('DF raw data'!D18="","",'DF raw data'!D18) -> 
A19: =IF('DF raw data'!I19="","",'DF raw data'!I19) -> Measurement consept | B19: =IF('DF raw data'!J19="","",'DF raw data'!J19) -> Square line grid | C19: =IF('DF raw data'!C19="","",'DF raw data'!C19) ->  | D19: =IF('DF raw data'!D19="","",'DF raw data'!D19) -> 
A20: =IF('DF raw data'!I20="","",'DF raw data'!I20) -> Mode | B20: =IF('DF raw data'!J20="","",'DF raw data'!J20) -> On-the-fly measurement | C20: =IF('DF raw data'!C20="","",'DF raw data'!C20) ->  | D20: =IF('DF raw data'!D20="","",'DF raw data'!D20) -> 
A21: =IF('DF raw data'!I21="","",'DF raw data'!I21) ->  | B21: =IF('DF raw data'!J21="","",'DF raw data'!J21) ->  | C21: =IF('DF raw data'!C21="","",'DF raw data'!C21) ->  | D21: =IF('DF raw data'!D21="","",'DF raw data'!D21) -> 
A22: =IF('DF raw data'!I22="","",'DF raw data'!I22) -> Probe Name | B22: =IF('DF raw data'!J22="","",'DF raw data'!J22) -> ID12_By | C22: =IF('DF raw data'!C22="","",'DF raw data'!C22) ->  | D22: =IF('DF raw data'!D22="","",'DF raw data'!D22) -> 
A23: =IF('DF raw data'!I23="","",'DF raw data'!I23) -> Probe Type | B23: =IF('DF raw data'!J23="","",'DF raw data'!J23) -> DF_ID_3D_Bxyz | C23: =IF('DF raw data'!C23="","",'DF raw data'!C23) ->  | D23: =IF('DF raw data'!D23="","",'DF raw data'!D23) -> 
A24: =IF('DF raw data'!I24="","",'DF raw data'!I24) -> Probe Danfysik Reg. Number | B24: =IF('DF raw data'!J24="","",'DF raw data'!J24) -> 2277 | C24: =IF('DF raw data'!C24="","",'DF raw data'!C24) ->  | D24: =IF('DF raw data'!D24="","",'DF raw data'!D24) -> 
A25: =IF('DF raw data'!I25="","",'DF raw data'!I25) -> Probe Axis | B25: =IF('DF raw data'!J25="","",'DF raw data'!J25) -> By | C25: =IF('DF raw data'!C25="","",'DF raw data'!C25) ->  | D25: =IF('DF raw data'!D25="","",'DF raw data'!D25) -> 
A26: =IF('DF raw data'!I26="","",'DF raw data'!I26) -> Probe Current Supply | B26: =IF('DF raw data'!J26="","",'DF raw data'!J26) -> 1825-D | C26: =IF('DF raw data'!C26="","",'DF raw data'!C26) ->  | D26: =IF('DF raw data'!D26="","",'DF raw data'!D26) -> 
A27: =IF('DF raw data'!I27="","",'DF raw data'!I27) -> Probe Gain Correction | B27: =IF('DF raw data'!J27="","",'DF raw data'!J27) -> 0.99611 | C27: =IF('DF raw data'!C27="","",'DF raw data'!C27) ->  | D27: =IF('DF raw data'!D27="","",'DF raw data'!D27) -> 
A28: =IF('DF raw data'!I28="","",'DF raw data'!I28) -> Probe Offset Correction | B28: =IF('DF raw data'!J28="","",'DF raw data'!J28) -> 0.0027639 | C28: =IF('DF raw data'!C28="","",'DF raw data'!C28) ->  | D28: =IF('DF raw data'!D28="","",'DF raw data'!D28) -> 
A29: =IF('DF raw data'!I29="","",'DF raw data'!I29) -> DVM Number | B29: =IF('DF raw data'!J29="","",'DF raw data'!J29) -> 2 | C29: =IF('DF raw data'!C29="","",'DF raw data'!C29) ->  | D29: =IF('DF raw data'!D29="","",'DF raw data'!D29) -> 
A30: =IF('DF raw data'!I30="","",'DF raw data'!I30) -> DVM Type | B30: =IF('DF raw data'!J30="","",'DF raw data'!J30) -> K2701 | C30: =IF('DF raw data'!C30="","",'DF raw data'!C30) ->  | D30: =IF('DF raw data'!D30="","",'DF raw data'!D30) -> 
A31: =IF('DF raw data'!I31="","",'DF raw data'!I31) -> DVM Danfysik Reg. Number | B31: =IF('DF raw data'!J31="","",'DF raw data'!J31) -> 1743-D | C31: =IF('DF raw data'!C31="","",'DF raw data'!C31) ->  | D31: =IF('DF raw data'!D31="","",'DF raw data'!D31) -> 
A32: =IF('DF raw data'!I32="","",'DF raw data'!I32) -> Probe Name | B32: =IF('DF raw data'!J32="","",'DF raw data'!J32) -> ID12_Bx | C32: =IF('DF raw data'!C32="","",'DF raw data'!C32) ->  | D32: =IF('DF raw data'!D32="","",'DF raw data'!D32) -> 
A33: =IF('DF raw data'!I33="","",'DF raw data'!I33) -> Probe Type | B33: =IF('DF raw data'!J33="","",'DF raw data'!J33) -> DF_ID_3D_Bxyz | C33: =IF('DF raw data'!C33="","",'DF raw data'!C33) ->  | D33: =IF('DF raw data'!D33="","",'DF raw data'!D33) -> 
A34: =IF('DF raw data'!I34="","",'DF raw data'!I34) -> Probe Danfysik Reg. Number | B34: =IF('DF raw data'!J34="","",'DF raw data'!J34) -> 2277 | C34: =IF('DF raw data'!C34="","",'DF raw data'!C34) ->  | D34: =IF('DF raw data'!D34="","",'DF raw data'!D34) -> 
A35: =IF('DF raw data'!I35="","",'DF raw data'!I35) -> Probe Axis | B35: =IF('DF raw data'!J35="","",'DF raw data'!J35) -> Bx | C35: =IF('DF raw data'!C35="","",'DF raw data'!C35) ->  | D35: =IF('DF raw data'!D35="","",'DF raw data'!D35) -> 
A36: =IF('DF raw data'!I36="","",'DF raw data'!I36) -> Probe Current Supply | B36: =IF('DF raw data'!J36="","",'DF raw data'!J36) -> 1825-D | C36: =IF('DF raw data'!C36="","",'DF raw data'!C36) ->  | D36: =IF('DF raw data'!D36="","",'DF raw data'!D36) -> 
A37: =IF('DF raw data'!I37="","",'DF raw data'!I37) -> Probe Gain Correction | B37: =IF('DF raw data'!J37="","",'DF raw data'!J37) -> 1 | C37: =IF('DF raw data'!C37="","",'DF raw data'!C37) ->  | D37: =IF('DF raw data'!D37="","",'DF raw data'!D37) -> 
A38: =IF('DF raw data'!I38="","",'DF raw data'!I38) -> Probe Offset Correction | B38: =IF('DF raw data'!J38="","",'DF raw data'!J38) -> -0.17554 | C38: =IF('DF raw data'!C38="","",'DF raw data'!C38) ->  | D38: =IF('DF raw data'!D38="","",'DF raw data'!D38) -> 
A39: =IF('DF raw data'!I39="","",'DF raw data'!I39) -> DVM Number | B39: =IF('DF raw data'!J39="","",'DF raw data'!J39) -> 3 | C39: =IF('DF raw data'!C39="","",'DF raw data'!C39) ->  | D39: =IF('DF raw data'!D39="","",'DF raw data'!D39) -> 
A40: =IF('DF raw data'!I40="","",'DF raw data'!I40) -> DVM Type | B40: =IF('DF raw data'!J40="","",'DF raw data'!J40) -> K2701 | C40: =IF('DF raw data'!C40="","",'DF raw data'!C40) ->  | D40: =IF('DF raw data'!D40="","",'DF raw data'!D40) -> 
A41: =IF('DF raw data'!I41="","",'DF raw data'!I41) -> DVM Danfysik Reg. Number | B41: =IF('DF raw data'!J41="","",'DF raw data'!J41) -> 1744-D | C41: =IF('DF raw data'!C41="","",'DF raw data'!C41) ->  | D41: =IF('DF raw data'!D41="","",'DF raw data'!D41) -> 
A42: =IF('DF raw data'!I42="","",'DF raw data'!I42) -> Probe Name | B42: =IF('DF raw data'!J42="","",'DF raw data'!J42) -> ID12_Bz | C42: =IF('DF raw data'!C42="","",'DF raw data'!C42) ->  | D42: =IF('DF raw data'!D42="","",'DF raw data'!D42) -> 
A43: =IF('DF raw data'!I43="","",'DF raw data'!I43) -> Probe Type | B43: =IF('DF raw data'!J43="","",'DF raw data'!J43) -> DF_ID_3D_Bxyz | C43: =IF('DF raw data'!C43="","",'DF raw data'!C43) ->  | D43: =IF('DF raw data'!D43="","",'DF raw data'!D43) -> 
A44: =IF('DF raw data'!I44="","",'DF raw data'!I44) -> Probe Danfysik Reg. Number | B44: =IF('DF raw data'!J44="","",'DF raw data'!J44) -> 2277 | C44: =IF('DF raw data'!C44="","",'DF raw data'!C44) ->  | D44: =IF('DF raw data'!D44="","",'DF raw data'!D44) -> 
A45: =IF('DF raw data'!I45="","",'DF raw data'!I45) -> Probe Axis | B45: =IF('DF raw data'!J45="","",'DF raw data'!J45) -> Bz | C45: =IF('DF raw data'!C45="","",'DF raw data'!C45) ->  | D45: =IF('DF raw data'!D45="","",'DF raw data'!D45) -> 
A46: =IF('DF raw data'!I46="","",'DF raw data'!I46) -> Probe Current Supply | B46: =IF('DF raw data'!J46="","",'DF raw data'!J46) -> 1825-D | C46: =IF('DF raw data'!C46="","",'DF raw data'!C46) ->  | D46: =IF('DF raw data'!D46="","",'DF raw data'!D46) -> 
A47: =IF('DF raw data'!I47="","",'DF raw data'!I47) -> Probe Gain Correction | B47: =IF('DF raw data'!J47="","",'DF raw data'!J47) -> 1 | C47: =IF('DF raw data'!C47="","",'DF raw data'!C47) ->  | D47: =IF('DF raw data'!D47="","",'DF raw data'!D47) -> 
A48: =IF('DF raw data'!I48="","",'DF raw data'!I48) -> Probe Offset Correction | B48: =IF('DF raw data'!J48="","",'DF raw data'!J48) -> 0.0073295 | C48: =IF('DF raw data'!C48="","",'DF raw data'!C48) ->  | D48: =IF('DF raw data'!D48="","",'DF raw data'!D48) -> 
A49: =IF('DF raw data'!I49="","",'DF raw data'!I49) -> DVM Number | B49: =IF('DF raw data'!J49="","",'DF raw data'!J49) -> 8 | C49: =IF('DF raw data'!C49="","",'DF raw data'!C49) ->  | D49: =IF('DF raw data'!D49="","",'DF raw data'!D49) -> 
A50: =IF('DF raw data'!I50="","",'DF raw data'!I50) -> DVM Type | B50: =IF('DF raw data'!J50="","",'DF raw data'!J50) -> K2700 | C50: =IF('DF raw data'!C50="","",'DF raw data'!C50) ->  | D50: =IF('DF raw data'!D50="","",'DF raw data'!D50) -> 
A51: =IF('DF raw data'!I51="","",'DF raw data'!I51) -> DVM Danfysik Reg. Number | B51: =IF('DF raw data'!J51="","",'DF raw data'!J51) -> 1756-D | C51: =IF('DF raw data'!C51="","",'DF raw data'!C51) ->  | D51: =IF('DF raw data'!D51="","",'DF raw data'!D51) -> 
A52: =IF('DF raw data'!I52="","",'DF raw data'!I52) -> NTC voltage | B52: =IF('DF raw data'!J52="","",'DF raw data'!J52) -> 0.40885 | C52: =IF('DF raw data'!C52="","",'DF raw data'!C52) ->  | D52: =IF('DF raw data'!D52="","",'DF raw data'!D52) -> 
A53: =IF('DF raw data'!I53="","",'DF raw data'!I53) -> PS-Gap: | B53: =IF('DF raw data'!J53="","",'DF raw data'!J53) -> 20 | C53: =IF('DF raw data'!C53="","",'DF raw data'!C53) ->  | D53: =IF('DF raw data'!D53="","",'DF raw data'!D53) -> 
A54: =IF('DF raw data'!I54="","",'DF raw data'!I54) -> PS-Temperature: | B54: =IF('DF raw data'!J54="","",'DF raw data'!J54) -> 25.1 | C54: =IF('DF raw data'!C54="","",'DF raw data'!C54) ->  | D54: =IF('DF raw data'!D54="","",'DF raw data'!D54) -> 
A55: =IF('DF raw data'!I55="","",'DF raw data'!I55) -> PS-Encoder: | B55: =IF('DF raw data'!J55="","",'DF raw data'!J55) -> 29.5681 | C55: =IF('DF raw data'!C55="","",'DF raw data'!C55) ->  | D55: =IF('DF raw data'!D55="","",'DF raw data'!D55) -> 
A56: =IF('DF raw data'!I56="","",'DF raw data'!I56) ->  | B56: =IF('DF raw data'!J56="","",'DF raw data'!J56) -> 
A57: =IF('DF raw data'!I57="","",'DF raw data'!I57) -> Monitor-Index | B57: =IF('DF raw data'!J57="","",'DF raw data'!J57) -> [1,1,4]
A58: =IF('DF raw data'!I58="","",'DF raw data'!I58) ->  | B58: =IF('DF raw data'!J58="","",'DF raw data'!J58) -> 
A59: =IF('DF raw data'!I59="","",'DF raw data'!I59) -> Time [s] | B59: =IF('DF raw data'!J59="","",'DF raw data'!J59) -> Y [mm]
A60: =IF('DF raw data'!I60="","",'DF raw data'!I60) ->  | B60: =IF('DF raw data'!J60="","",'DF raw data'!J60) -> 
A61: =IF('DF raw data'!I61="","",'DF raw data'!I61) -> 211 | B61: =IF('DF raw data'!J61="","",'DF raw data'!J61) -> 31.56
A62: =IF('DF raw data'!I62="","",'DF raw data'!I62) ->  | B62: =IF('DF raw data'!J62="","",'DF raw data'!J62) -> 
A63: =IF('DF raw data'!I63="","",'DF raw data'!I63) -> Measurement-Index | B63: =IF('DF raw data'!J63="","",'DF raw data'!J63) -> [1,1,1201,2]
A64: =IF('DF raw data'!I64="","",'DF raw data'!I64) ->  | B64: =IF('DF raw data'!J64="","",'DF raw data'!J64) -> 
A65: =IF('DF raw data'!I65="","",'DF raw data'!I65) -> Z [mm] | B65: =IF('DF raw data'!J65="","",'DF raw data'!J65) -> By [T] | C65: =IF('DF raw data'!K65="","",'DF raw data'!K65) -> Bx [T] | D65: =IF('DF raw data'!L65="","",'DF raw data'!L65) -> Bz [T] | F65: By_corr | G65: Bx_corr | H65: Bz_corr | J65: Iy | K65: Jy | L65: Ix | M65: Jx | N65: PI
A66: =IF('DF raw data'!I66="","",'DF raw data'!I66) -> [1, 0, 0, 0] | B66: =IF('DF raw data'!J66="","",'DF raw data'!J66) ->  | C66: =IF('DF raw data'!K66="","",'DF raw data'!K66) ->  | D66: =IF('DF raw data'!L66="","",'DF raw data'!L66) -> 
A67: =IF('DF raw data'!I67="","",'DF raw data'!I67) -> -300 | B67: =IF('DF raw data'!J67="","",'DF raw data'!J67) -> -4.06978e-05 | C67: =IF('DF raw data'!K67="","",'DF raw data'!K67) -> 0.000119039 | D67: =IF('DF raw data'!L67="","",'DF raw data'!L67) -> -3.20467e-05 | F67: =(1-$G$1*($B$54-$G$2))*(B67-F$5) -> 3.902407389e-06 | G67: =(1-$G$1*($B$54-$G$2))*(C67-G$5) -> 1.063729199e-05 | H67: =(1-$G$1*($B$54-$G$2))*(D67-H$5) -> -0.00416584143 | J67: =F67*$G$3+J66 -> 1.951203694e-06 | K67: =J67*$G$3+K66 -> 9.756018472e-07 | L67: =G67*$G$3+L66 -> 5.318645995e-06 | M67: =L67*$G$3+M66 -> 2.659322998e-06 | N67: =(J67^2+L67^2)*$G$3+N66 -> 1.604759554e-11
A68: =IF('DF raw data'!I68="","",'DF raw data'!I68) -> -299.5 | B68: =IF('DF raw data'!J68="","",'DF raw data'!J68) -> -3.58908e-05 | C68: =IF('DF raw data'!K68="","",'DF raw data'!K68) -> 0.000124039 | D68: =IF('DF raw data'!L68="","",'DF raw data'!L68) -> -3.23653e-05 | F68: 8.733923089e-06 | G68: 1.566279199e-05 | H68: -0.004166161655 | J68: =F68*$G$3+J67 -> 6.318165239e-06 | K68: =J68*$G$3+K67 -> 4.134684466e-06 | L68: =G68*$G$3+L67 -> 1.315004199e-05 | M68: =L68*$G$3+M67 -> 9.234343993e-06 | N68: =(J68^2+L68^2)*$G$3+N67 -> 1.224690037e-10
A69: =IF('DF raw data'!I69="","",'DF raw data'!I69) -> -299 | B69: =IF('DF raw data'!J69="","",'DF raw data'!J69) -> -3.01221e-05 | C69: =IF('DF raw data'!K69="","",'DF raw data'!K69) -> 0.00011601 | D69: =IF('DF raw data'!L69="","",'DF raw data'!L69) -> -3.31184e-05 | F69: 1.453204346e-05 | G69: 7.59284409e-06 | H69: -0.004166918596 | J69: 1.358418697e-05 | K69: 1.092677795e-05 | L69: 1.694646404e-05 | M69: 1.770757601e-05 | N69: 3.583253931e-10
A70: =IF('DF raw data'!I70="","",'DF raw data'!I70) -> -298.5 | B70: =IF('DF raw data'!J70="","",'DF raw data'!J70) -> -3.5249e-05 | C70: =IF('DF raw data'!K70="","",'DF raw data'!K70) -> 0.000110323 | D70: =IF('DF raw data'!L70="","",'DF raw data'!L70) -> -3.38439e-05 | F70: 9.378996269e-06 | G70: 1.87684039e-06 | H70: -0.004167647796 | J70: 1.82736851e-05 | K70: 2.00636205e-05 | L70: 1.788488423e-05 | M70: 2.665001813e-05 | N70: 6.852237187e-10
A71: =IF('DF raw data'!I71="","",'DF raw data'!I71) -> -298 | B71: =IF('DF raw data'!J71="","",'DF raw data'!J71) -> -3.1788e-05 | C71: =IF('DF raw data'!K71="","",'DF raw data'!K71) -> 0.000112819 | D71: =IF('DF raw data'!L71="","",'DF raw data'!L71) -> -3.41081e-05 | F71: 1.285764737e-05 | G71: 4.38556999e-06 | H71: -0.004167913343 | J71: 2.470250879e-05 | K71: 3.241487489e-05 | L71: 2.007766923e-05 | M71: 3.668885274e-05 | N71: 1.19188709e-09
A72: =IF('DF raw data'!I72="","",'DF raw data'!I72) -> -297.5 | B72: =IF('DF raw data'!J72="","",'DF raw data'!J72) -> -4.40296e-05 | C72: =IF('DF raw data'!K72="","",'DF raw data'!K72) -> 0.000121615 | D72: =IF('DF raw data'!L72="","",'DF raw data'!L72) -> -3.36824e-05 | F72: 5.536152087e-07 | G72: 1.322642959e-05 | H72: -0.004167485472 | J72: 2.497931639e-05 | K72: 4.490453309e-05 | L72: 2.669088402e-05 | M72: 5.003429475e-05 | N72: 1.860071858e-09
A73: =IF('DF raw data'!I73="","",'DF raw data'!I73) -> -297 | B73: =IF('DF raw data'!J73="","",'DF raw data'!J73) -> -3.31986e-05 | C73: =IF('DF raw data'!K73="","",'DF raw data'!K73) -> 0.000123399 | D73: =IF('DF raw data'!L73="","",'DF raw data'!L73) -> -3.31526e-05 | F73: 1.143985331e-05 | G73: 1.501952799e-05 | H73: -0.00416695297 | J73: 3.069924305e-05 | K73: 6.025415461e-05 | L73: 3.420064802e-05 | M73: 6.713461876e-05 | N73: 2.916135782e-09
A74: =IF('DF raw data'!I74="","",'DF raw data'!I74) -> -296.5 | B74: =IF('DF raw data'!J74="","",'DF raw data'!J74) -> -3.82619e-05 | C74: =IF('DF raw data'!K74="","",'DF raw data'!K74) -> 0.0001236 | D74: =IF('DF raw data'!L74="","",'DF raw data'!L74) -> -3.28325e-05 | F74: 6.350730479e-06 | G74: 1.522155309e-05 | H74: -0.004166631238 | J74: 3.387460828e-05 | K74: 7.719145876e-05 | L74: 4.181142456e-05 | M74: 8.804033104e-05 | N74: 4.363977938e-09
A75: =IF('DF raw data'!I75="","",'DF raw data'!I75) -> -296 | B75: =IF('DF raw data'!J75="","",'DF raw data'!J75) -> -3.10837e-05 | C75: =IF('DF raw data'!K75="","",'DF raw data'!K75) -> 0.000124063 | D75: =IF('DF raw data'!L75="","",'DF raw data'!L75) -> -3.28439e-05 | F75: 1.35655393e-05 | G75: 1.568691439e-05 | H75: -0.004166642696 | J75: 4.065737793e-05 | K75: 9.752014772e-05 | L75: 4.965488176e-05 | M75: 0.0001128677719 | N75: 6.423292769e-09
A76: =IF('DF raw data'!I76="","",'DF raw data'!I76) -> -295.5 | B76: =IF('DF raw data'!J76="","",'DF raw data'!J76) -> -3.09554e-05 | C76: =IF('DF raw data'!K76="","",'DF raw data'!K76) -> 0.000112535 | D76: =IF('DF raw data'!L76="","",'DF raw data'!L76) -> -3.3128e-05 | F76: 1.369449363e-05 | G76: 4.10012159e-06 | H76: -0.004166928245 | J76: 4.750462475e-05 | K76: 0.0001212724601 | L76: 5.170494255e-05 | M76: 0.0001387202432 | N76: 8.888337997e-09
A77: =IF('DF raw data'!I77="","",'DF raw data'!I77) -> -295 | B77: =IF('DF raw data'!J77="","",'DF raw data'!J77) -> -2.84554e-05 | C77: =IF('DF raw data'!K77="","",'DF raw data'!K77) -> 0.000113806 | D77: =IF('DF raw data'!L77="","",'DF raw data'!L77) -> -3.36342e-05 | F77: 1.620724363e-05 | G77: 5.37760369e-06 | H77: -0.004167437026 | J77: 5.560824656e-05 | K77: 0.0001490765834 | L77: 5.43937444e-05 | M77: 0.0001659171154 | N77: 1.191381625e-08
A78: =IF('DF raw data'!I78="","",'DF raw data'!I78) -> -294.5 | B78: =IF('DF raw data'!J78="","",'DF raw data'!J78) -> -3.22364e-05 | C78: =IF('DF raw data'!K78="","",'DF raw data'!K78) -> 0.000123303 | D78: =IF('DF raw data'!L78="","",'DF raw data'!L78) -> -3.42344e-05 | F78: 1.240696053e-05 | G78: 1.492303839e-05 | H78: -0.004168040288 | J78: 6.181172683e-05 | K78: 0.0001799824468 | L78: 6.185526359e-05 | M78: 0.0001968447472 | N78: 1.573719786e-08
A79: =IF('DF raw data'!I79="","",'DF raw data'!I79) -> -294 | B79: =IF('DF raw data'!J79="","",'DF raw data'!J79) -> -3.13388e-05 | C79: =IF('DF raw data'!K79="","",'DF raw data'!K79) -> 0.000120576 | D79: =IF('DF raw data'!L79="","",'DF raw data'!L79) -> -3.47878e-05 | F79: 1.330913829e-05 | G79: 1.218213069e-05 | H79: -0.00416859651 | J79: 6.846629597e-05 | K79: 0.0002142155948 | L79: 6.794632894e-05 | M79: 0.0002308179117 | N79: 2.038936651e-08
A80: =IF('DF raw data'!I80="","",'DF raw data'!I80) -> -293.5 | B80: =IF('DF raw data'!J80="","",'DF raw data'!J80) -> -4.1273e-05 | C80: =IF('DF raw data'!K80="","",'DF raw data'!K80) -> 0.000122068 | D80: =IF('DF raw data'!L80="","",'DF raw data'!L80) -> -3.4633e-05 | F80: 3.324273869e-06 | G80: 1.368173989e-05 | H80: -0.00416844092 | J80: 7.012843291e-05 | K80: 0.0002492798112 | L80: 7.478719888e-05 | M80: 0.0002682115111 | N80: 2.564492762e-08
A81: =IF('DF raw data'!I81="","",'DF raw data'!I81) -> -293 | B81: =IF('DF raw data'!J81="","",'DF raw data'!J81) -> -4.66573e-05 | C81: =IF('DF raw data'!K81="","",'DF raw data'!K81) -> 0.000109534 | D81: =IF('DF raw data'!L81="","",'DF raw data'!L81) -> -3.37193e-05 | F81: -2.087486061e-06 | G81: 1.08381649e-06 | H81: -0.004167522561 | J81: 6.908468987e-05 | K81: 0.0002838221562 | L81: 7.532910713e-05 | M81: 0.0003058760647 | N81: 3.0868512e-08
A82: =IF('DF raw data'!I82="","",'DF raw data'!I82) -> -292.5 | B82: =IF('DF raw data'!J82="","",'DF raw data'!J82) -> -3.89669e-05 | C82: =IF('DF raw data'!K82="","",'DF raw data'!K82) -> 0.000112752 | D82: =IF('DF raw data'!L82="","",'DF raw data'!L82) -> -3.30882e-05 | F82: 5.642134979e-06 | G82: 4.31822829e-06 | H82: -0.004166888242 | J82: 7.190575736e-05 | K82: 0.0003197750348 | L82: 7.748822127e-05 | M82: 0.0003446201753 | N82: 3.645594318e-08
A83: =IF('DF raw data'!I83="","",'DF raw data'!I83) -> -292 | B83: =IF('DF raw data'!J83="","",'DF raw data'!J83) -> -3.86462e-05 | C83: =IF('DF raw data'!K83="","",'DF raw data'!K83) -> 0.000109672 | D83: =IF('DF raw data'!L83="","",'DF raw data'!L83) -> -3.3215e-05 | F83: 5.964470549e-06 | G83: 1.22252029e-06 | H83: -0.004167015689 | J83: 7.488799264e-05 | K83: 0.0003572190312 | L83: 7.809948142e-05 | M83: 0.000383669916 | N83: 4.23098134e-08
A84: =IF('DF raw data'!I84="","",'DF raw data'!I84) -> -291.5 | B84: =IF('DF raw data'!J84="","",'DF raw data'!J84) -> -3.9106e-05 | C84: =IF('DF raw data'!K84="","",'DF raw data'!K84) -> 0.000105427 | D84: =IF('DF raw data'!L84="","",'DF raw data'!L84) -> -1.616e-05 | F84: 5.502325569e-06 | G84: -3.04412921e-06 | H84: -0.004149873708 | J84: 7.763915542e-05 | K84: 0.0003960386089 | L84: 7.657741681e-05 | M84: 0.0004219586244 | N84: 4.825578301e-08
A85: =IF('DF raw data'!I85="","",'DF raw data'!I85) -> -291 | B85: =IF('DF raw data'!J85="","",'DF raw data'!J85) -> -3.95403e-05 | C85: =IF('DF raw data'!K85="","",'DF raw data'!K85) -> 0.000109499 | D85: =IF('DF raw data'!L85="","",'DF raw data'!L85) -> -3.80496e-05 | F85: 5.065810639e-06 | G85: 1.04863799e-06 | H85: -0.004171874945 | J85: 8.017206074e-05 | K85: 0.0004361246393 | L85: 7.710173581e-05 | M85: 0.0004605094923 | N85: 5.444190151e-08
A86: =IF('DF raw data'!I86="","",'DF raw data'!I86) -> -290.5 | B86: =IF('DF raw data'!J86="","",'DF raw data'!J86) -> -4.1028e-05 | C86: =IF('DF raw data'!K86="","",'DF raw data'!K86) -> 0.000103733 | D86: =IF('DF raw data'!L86="","",'DF raw data'!L86) -> -1.72283e-05 | F86: 3.570523369e-06 | G86: -4.74676861e-06 | H86: -0.004150947456 | J86: 8.195732243e-05 | K86: 0.0004771033005 | L86: 7.47283515e-05 | M86: 0.0004978736681 | N86: 6.059256612e-08
A87: =IF('DF raw data'!I87="","",'DF raw data'!I87) -> -290 | B87: =IF('DF raw data'!J87="","",'DF raw data'!J87) -> -2.96139e-05 | C87: =IF('DF raw data'!K87="","",'DF raw data'!K87) -> 0.000103275 | D87: =IF('DF raw data'!L87="","",'DF raw data'!L87) -> -2.60611e-05 | F87: 1.504283528e-05 | G87: -5.20710441e-06 | H87: -0.004159825304 | J87: 8.947874007e-05 | K87: 0.0005218426705 | L87: 7.21247993e-05 | M87: 0.0005339360677 | N87: 6.719678192e-08
A88: =IF('DF raw data'!I88="","",'DF raw data'!I88) -> -289.5 | B88: =IF('DF raw data'!J88="","",'DF raw data'!J88) -> -3.76943e-05 | C88: =IF('DF raw data'!K88="","",'DF raw data'!K88) -> 0.000110652 | D88: =IF('DF raw data'!L88="","",'DF raw data'!L88) -> -1.84003e-05 | F88: 6.921225239e-06 | G88: 2.20751829e-06 | H88: -0.004152125434 | J88: 9.293935269e-05 | K88: 0.0005683123468 | L88: 7.322855844e-05 | M88: 0.0005705503469 | N88: 7.419685444e-08
A89: =IF('DF raw data'!I89="","",'DF raw data'!I89) -> -289 | B89: =IF('DF raw data'!J89="","",'DF raw data'!J89) -> -3.35119e-05 | C89: =IF('DF raw data'!K89="","",'DF raw data'!K89) -> 0.000108045 | D89: =IF('DF raw data'!L89="","",'DF raw data'!L89) -> -4.39221e-05 | F89: 1.112495548e-05 | G89: -4.127774098e-07 | H89: -0.004177777395 | J89: 9.850183042e-05 | K89: 0.0006175632621 | L89: 7.302216974e-05 | M89: 0.0006070614318 | N89: 8.171427838e-08
A90: =IF('DF raw data'!I90="","",'DF raw data'!I90) -> -288.5 | B90: =IF('DF raw data'!J90="","",'DF raw data'!J90) -> -3.35866e-05 | C90: =IF('DF raw data'!K90="","",'DF raw data'!K90) -> 0.000110905 | D90: =IF('DF raw data'!L90="","",'DF raw data'!L90) -> -2.77723e-05 | F90: 1.104987451e-05 | G90: 2.46180859e-06 | H90: -0.004161545231 | J90: 0.0001040267677 | K90: 0.0006695766459 | L90: 7.425307403e-05 | M90: 0.0006441879688 | N90: 8.988182207e-08
A91: =IF('DF raw data'!I91="","",'DF raw data'!I91) -> -288 | B91: =IF('DF raw data'!J91="","",'DF raw data'!J91) -> -2.89683e-05 | C91: =IF('DF raw data'!K91="","",'DF raw data'!K91) -> 0.000118569 | D91: =IF('DF raw data'!L91="","",'DF raw data'!L91) -> -3.33663e-05 | F91: 1.569172784e-05 | G91: 1.016489499e-05 | H91: -0.00416716776 | J91: 0.0001118726316 | K91: 0.0007255129617 | L91: 7.933552153e-05 | M91: 0.0006838557296 | N91: 9.928662741e-08
A92: =IF('DF raw data'!I92="","",'DF raw data'!I92) -> -287.5 | B92: =IF('DF raw data'!J92="","",'DF raw data'!J92) -> -3.58259e-05 | C92: =IF('DF raw data'!K92="","",'DF raw data'!K92) -> 0.000121308 | D92: =IF('DF raw data'!L92="","",'DF raw data'!L92) -> -3.38464e-05 | F92: 8.799154079e-06 | G92: 1.291786389e-05 | H92: -0.004167650309 | J92: 0.0001162722086 | K92: 0.000783649066 | L92: 8.579445347e-05 | M92: 0.0007267529563 | N92: 1.097265848e-07
A93: =IF('DF raw data'!I93="","",'DF raw data'!I93) -> -287 | B93: =IF('DF raw data'!J93="","",'DF raw data'!J93) -> -3.10871e-05 | C93: =IF('DF raw data'!K93="","",'DF raw data'!K93) -> 0.000115278 | D93: =IF('DF raw data'!L93="","",'DF raw data'!L93) -> -2.75687e-05 | F93: 1.356212196e-05 | G93: 6.85711089e-06 | H93: -0.004161340592 | J93: 0.0001230532696 | K93: 0.0008451757008 | L93: 8.922300892e-05 | M93: 0.0007713644608 | N93: 1.21278011e-07
A94: =IF('DF raw data'!I94="","",'DF raw data'!I94) -> -286.5 | B94: =IF('DF raw data'!J94="","",'DF raw data'!J94) -> -4.52501e-05 | C94: =IF('DF raw data'!K94="","",'DF raw data'!K94) -> 0.000105772 | D94: =IF('DF raw data'!L94="","",'DF raw data'!L94) -> -2.90797e-05 | F94: -6.731093413e-07 | G94: -2.69736971e-06 | H94: -0.004162859299 | J94: 0.0001227167149 | K94: 0.0009065340583 | L94: 8.787432406e-05 | M94: 0.0008153016228 | N94: 1.326686555e-07
A95: =IF('DF raw data'!I95="","",'DF raw data'!I95) -> -286 | B95: =IF('DF raw data'!J95="","",'DF raw data'!J95) -> -3.79391e-05 | C95: =IF('DF raw data'!K95="","",'DF raw data'!K95) -> 0.000101801 | D95: =IF('DF raw data'!L95="","",'DF raw data'!L95) -> -3.61955e-05 | F95: 6.675176759e-06 | G95: -6.68862181e-06 | H95: -0.004170011389 | J95: 0.0001260543033 | K95: 0.00096956121 | L95: 8.453001316e-05 | M95: 0.0008575666294 | N95: 1.441861608e-07
A96: =IF('DF raw data'!I96="","",'DF raw data'!I96) -> -285.5 | B96: =IF('DF raw data'!J96="","",'DF raw data'!J96) -> -4.03198e-05 | C96: =IF('DF raw data'!K96="","",'DF raw data'!K96) -> 0.000105454 | D96: =IF('DF raw data'!L96="","",'DF raw data'!L96) -> -2.19354e-05 | F96: 4.282335189e-06 | G96: -3.01699151e-06 | H96: -0.004155678563 | J96: 0.0001281954709 | K96: 0.001033658945 | L96: 8.30215174e-05 | M96: 0.0008990773881 | N96: 1.558494863e-07
A97: =IF('DF raw data'!I97="","",'DF raw data'!I97) -> -285 | B97: =IF('DF raw data'!J97="","",'DF raw data'!J97) -> -4.48663e-05 | C97: =IF('DF raw data'!K97="","",'DF raw data'!K97) -> 0.000106471 | D97: =IF('DF raw data'!L97="","",'DF raw data'!L97) -> -2.79438e-05 | F97: -2.873519613e-07 | G97: -1.99480481e-06 | H97: -0.004161717605 | J97: 0.0001280517949 | K97: 0.001097684843 | L97: 8.2024115e-05 | M97: 0.0009400894456 | N97: 1.674120951e-07
A98: =IF('DF raw data'!I98="","",'DF raw data'!I98) -> -284.5 | B98: =IF('DF raw data'!J98="","",'DF raw data'!J98) -> -3.76253e-05 | C98: =IF('DF raw data'!K98="","",'DF raw data'!K98) -> 0.000107956 | D98: =IF('DF raw data'!L98="","",'DF raw data'!L98) -> -2.62929e-05 | F98: 6.990577139e-06 | G98: -5.022313098e-07 | H98: -0.004160058286 | J98: 0.0001315470835 | K98: 0.001163458385 | L98: 8.177299934e-05 | M98: 0.0009809759453 | N98: 1.794078244e-07
A99: =IF('DF raw data'!I99="","",'DF raw data'!I99) -> -284 | B99: =IF('DF raw data'!J99="","",'DF raw data'!J99) -> -3.29447e-05 | C99: =IF('DF raw data'!K99="","",'DF raw data'!K99) -> 0.000115488 | D99: =IF('DF raw data'!L99="","",'DF raw data'!L99) -> -2.93211e-05 | F99: 1.16950482e-05 | G99: 7.06818189e-06 | H99: -0.00416310193 | J99: 0.0001373946076 | K99: 0.001232155688 | L99: 8.530709029e-05 | M99: 0.00102362949 | N99: 1.924851134e-07
A100: =IF('DF raw data'!I100="","",'DF raw data'!I100) -> -283.5 | B100: =IF('DF raw data'!J100="","",'DF raw data'!J100) -> -3.85284e-05 | C100: =IF('DF raw data'!K100="","",'DF raw data'!K100) -> 0.000125572 | D100: =IF('DF raw data'!L100="","",'DF raw data'!L100) -> -1.72803e-05 | F100: 6.082871329e-06 | G100: 1.720361029e-05 | H100: -0.004150999722 | J100: 0.0001404360433 | K100: 0.00130237371 | L100: 9.390889543e-05 | M100: 0.001070583938 | N100: 2.067556948e-07
A101: =IF('DF raw data'!I101="","",'DF raw data'!I101) -> -283 | B101: =IF('DF raw data'!J101="","",'DF raw data'!J101) -> -3.32007e-05 | C101: =IF('DF raw data'!K101="","",'DF raw data'!K101) -> 0.000113824 | D101: =IF('DF raw data'!L101="","",'DF raw data'!L101) -> -2.98482e-05 | F101: 1.14377426e-05 | G101: 5.39569549e-06 | H101: -0.004163631718 | J101: 0.0001461549146 | K101: 0.001375451167 | L101: 9.660674318e-05 | M101: 0.00111888731 | N101: 2.221027557e-07
A102: =IF('DF raw data'!I102="","",'DF raw data'!I102) -> -282.5 | B102: =IF('DF raw data'!J102="","",'DF raw data'!J102) -> -3.8651e-05 | C102: =IF('DF raw data'!K102="","",'DF raw data'!K102) -> 0.000103495 | D102: =IF('DF raw data'!L102="","",'DF raw data'!L102) -> -2.58246e-05 | F102: 5.959646069e-06 | G102: -4.98598241e-06 | H102: -0.004159587598 | J102: 0.0001491347376 | K102: 0.001450018536 | L102: 9.411375197e-05 | M102: 0.001165944186 | N102: 2.376520399e-07
A103: =IF('DF raw data'!I103="","",'DF raw data'!I103) -> -282 | B103: =IF('DF raw data'!J103="","",'DF raw data'!J103) -> -2.95509e-05 | C103: =IF('DF raw data'!K103="","",'DF raw data'!K103) -> 0.000104494 | D103: =IF('DF raw data'!L103="","",'DF raw data'!L103) -> -2.4584e-05 | F103: 1.510615658e-05 | G103: -3.98188751e-06 | H103: -0.00415834067 | J103: 0.0001566878159 | K103: 0.001528362444 | L103: 9.212280822e-05 | M103: 0.00121200559 | N103: 2.541708816e-07
A104: =IF('DF raw data'!I104="","",'DF raw data'!I104) -> -281.5 | B104: =IF('DF raw data'!J104="","",'DF raw data'!J104) -> -4.38397e-05 | C104: =IF('DF raw data'!K104="","",'DF raw data'!K104) -> 0.000109358 | D104: =IF('DF raw data'!L104="","",'DF raw data'!L104) -> -2.98872e-05 | F104: 7.444836987e-07 | G104: 9.069188902e-07 | H104: -0.004163670917 | J104: 0.0001570600577 | K104: 0.001606892473 | L104: 9.257626766e-05 | M104: 0.001258293724 | N104: 2.707899951e-07
A105: =IF('DF raw data'!I105="","",'DF raw data'!I105) -> -281 | B105: =IF('DF raw data'!J105="","",'DF raw data'!J105) -> -3.33879e-05 | C105: =IF('DF raw data'!K105="","",'DF raw data'!K105) -> 0.00010971 | D105: =IF('DF raw data'!L105="","",'DF raw data'!L105) -> -3.74864e-05 | F105: 1.124958788e-05 | G105: 1.26071409e-06 | H105: -0.004171308873 | J105: 0.0001626848517 | K105: 0.001688234899 | L105: 9.320662471e-05 | M105: 0.001304897036 | N105: 2.883669131e-07
A106: =IF('DF raw data'!I106="","",'DF raw data'!I106) -> -280.5 | B106: =IF('DF raw data'!J106="","",'DF raw data'!J106) -> -2.78221e-05 | C106: =IF('DF raw data'!K106="","",'DF raw data'!K106) -> 0.000106575 | D106: =IF('DF raw data'!L106="","",'DF raw data'!L106) -> -2.19758e-05 | F106: 1.684377346e-05 | G106: -1.89027441e-06 | H106: -0.004155719169 | J106: 0.0001711067384 | K106: 0.001773788268 | L106: 9.22614875e-05 | M106: 0.00135102778 | N106: 3.072617621e-07
A107: =IF('DF raw data'!I107="","",'DF raw data'!I107) -> -280 | B107: =IF('DF raw data'!J107="","",'DF raw data'!J107) -> -3.13436e-05 | C107: =IF('DF raw data'!K107="","",'DF raw data'!K107) -> 0.000107537 | D107: =IF('DF raw data'!L107="","",'DF raw data'!L107) -> -2.73534e-05 | F107: 1.330431381e-05 | G107: -9.233682098e-07 | H107: -0.004161124194 | J107: 0.0001777588953 | K107: 0.001862667716 | L107: 9.17998034e-05 | M107: 0.001396927681 | N107: 3.272744765e-07
A108: =IF('DF raw data'!I108="","",'DF raw data'!I108) -> -279.5 | B108: =IF('DF raw data'!J108="","",'DF raw data'!J108) -> -3.73771e-05 | C108: =IF('DF raw data'!K108="","",'DF raw data'!K108) -> 0.000100175 | D108: =IF('DF raw data'!L108="","",'DF raw data'!L108) -> -1.35913e-05 | F108: 7.240042959e-06 | G108: -8.32291441e-06 | H108: -0.004147291908 | J108: 0.0001813789168 | K108: 0.001953357174 | L108: 8.76383462e-05 | M108: 0.001440746855 | N108: 3.475638721e-07
A109: =IF('DF raw data'!I109="","",'DF raw data'!I109) -> -279 | B109: =IF('DF raw data'!J109="","",'DF raw data'!J109) -> -3.92937e-05 | C109: =IF('DF raw data'!K109="","",'DF raw data'!K109) -> 0.00010353 | D109: =IF('DF raw data'!L109="","",'DF raw data'!L109) -> -2.30596e-05 | F109: 5.313668299e-06 | G109: -4.95080391e-06 | H109: -0.004156808496 | J109: 0.0001840357509 | K109: 0.00204537505 | L109: 8.516294424e-05 | M109: 0.001483328327 | N109: 3.681248144e-07
A110: =IF('DF raw data'!I110="","",'DF raw data'!I110) -> -278.5 | B110: =IF('DF raw data'!J110="","",'DF raw data'!J110) -> -3.66628e-05 | C110: =IF('DF raw data'!K110="","",'DF raw data'!K110) -> 0.00010466 | D110: =IF('DF raw data'!L110="","",'DF raw data'!L110) -> -2.7919e-05 | F110: 7.957985889e-06 | G110: -3.81504091e-06 | H110: -0.004161692679 | J110: 0.0001880147439 | K110: 0.002139382422 | L110: 8.325542379e-05 | M110: 0.001524956039 | N110: 3.892653192e-07
A111: =IF('DF raw data'!I111="","",'DF raw data'!I111) -> -278 | B111: =IF('DF raw data'!J111="","",'DF raw data'!J111) -> -4.08898e-05 | C111: =IF('DF raw data'!K111="","",'DF raw data'!K111) -> 0.000104583 | D111: =IF('DF raw data'!L111="","",'DF raw data'!L111) -> -3.25939e-05 | F111: 3.709428189e-06 | G111: -3.89243361e-06 | H111: -0.004166391421 | J111: 0.000189869458 | K111: 0.002234317151 | L111: 8.130920698e-05 | M111: 0.001565610642 | N111: 4.105961183e-07
A112: =IF('DF raw data'!I112="","",'DF raw data'!I112) -> -277.5 | B112: =IF('DF raw data'!J112="","",'DF raw data'!J112) -> -4.05071e-05 | C112: =IF('DF raw data'!K112="","",'DF raw data'!K112) -> 0.000106409 | D112: =IF('DF raw data'!L112="","",'DF raw data'!L112) -> -2.98099e-05 | F112: 4.094079959e-06 | G112: -2.05712101e-06 | H112: -0.004163593223 | J112: 0.000191916498 | K112: 0.002330275399 | L112: 8.028064648e-05 | M112: 0.001605750965 | N112: 4.322345805e-07
A113: =IF('DF raw data'!I113="","",'DF raw data'!I113) -> -277 | B113: =IF('DF raw data'!J113="","",'DF raw data'!J113) -> -3.71748e-05 | C113: =IF('DF raw data'!K113="","",'DF raw data'!K113) -> 0.000114011 | D113: =IF('DF raw data'!L113="","",'DF raw data'!L113) -> -2.88947e-05 | F113: 7.443374689e-06 | G113: 5.58364919e-06 | H113: -0.004162673355 | J113: 0.0001956381853 | K113: 0.002428094492 | L113: 8.307247107e-05 | M113: 0.001647287201 | N113: 4.54822248e-07
A114: =IF('DF raw data'!I114="","",'DF raw data'!I114) -> -276.5 | B114: =IF('DF raw data'!J114="","",'DF raw data'!J114) -> -4.24894e-05 | C114: =IF('DF raw data'!K114="","",'DF raw data'!K114) -> 0.000109615 | D114: =IF('DF raw data'!L114="","",'DF raw data'!L114) -> -3.67946e-05 | F114: 2.101670229e-06 | G114: 1.16522959e-06 | H114: -0.004170613545 | J114: 0.0001966890204 | K114: 0.002526439002 | L114: 8.365508587e-05 | M114: 0.001689114744 | N114: 4.7766462e-07
A115: =IF('DF raw data'!I115="","",'DF raw data'!I115) -> -276 | B115: =IF('DF raw data'!J115="","",'DF raw data'!J115) -> -3.33999e-05 | C115: =IF('DF raw data'!K115="","",'DF raw data'!K115) -> 0.000111473 | D115: =IF('DF raw data'!L115="","",'DF raw data'!L115) -> -1.89244e-05 | F115: 1.123752668e-05 | G115: 3.03270539e-06 | H115: -0.004152652207 | J115: 0.0002023077838 | K115: 0.002627592894 | L115: 8.517143856e-05 | M115: 0.001731700463 | N115: 5.017559267e-07
A116: =IF('DF raw data'!I116="","",'DF raw data'!I116) -> -275.5 | B116: =IF('DF raw data'!J116="","",'DF raw data'!J116) -> -2.98708e-05 | C116: =IF('DF raw data'!K116="","",'DF raw data'!K116) -> 0.000106087 | D116: =IF('DF raw data'!L116="","",'DF raw data'!L116) -> -2.51982e-05 | F116: 1.478462509e-05 | G116: -2.38076321e-06 | H116: -0.004158958003 | J116: 0.0002097000963 | K116: 0.002732442942 | L116: 8.398105696e-05 | M116: 0.001773690992 | N116: 5.272694008e-07
A117: =IF('DF raw data'!I117="","",'DF raw data'!I117) -> -275 | B117: =IF('DF raw data'!J117="","",'DF raw data'!J117) -> -3.51837e-05 | C117: =IF('DF raw data'!K117="","",'DF raw data'!K117) -> 0.00010703 | D117: =IF('DF raw data'!L117="","",'DF raw data'!L117) -> -3.58184e-05 | F117: 9.444629299e-06 | G117: -1.43295391e-06 | H117: -0.004169632366 | J117: 0.000214422411 | K117: 0.002839654148 | L117: 8.326458e-05 | M117: 0.001815323282 | N117: 5.537243811e-07
A118: =IF('DF raw data'!I118="","",'DF raw data'!I118) -> -274.5 | B118: =IF('DF raw data'!J118="","",'DF raw data'!J118) -> -3.18551e-05 | C118: =IF('DF raw data'!K118="","",'DF raw data'!K118) -> 0.000102082 | D118: =IF('DF raw data'!L118="","",'DF raw data'!L118) -> -2.92654e-05 | F118: 1.279020516e-05 | G118: -6.40618871e-06 | H118: -0.004163045946 | J118: 0.0002208175135 | K118: 0.002950062905 | L118: 8.006148565e-05 | M118: 0.001855354024 | N118: 5.81309489e-07
A119: =IF('DF raw data'!I119="","",'DF raw data'!I119) -> -274 | B119: =IF('DF raw data'!J119="","",'DF raw data'!J119) -> -4.14087e-05 | C119: =IF('DF raw data'!K119="","",'DF raw data'!K119) -> 9.59444e-05 | D119: =IF('DF raw data'!L119="","",'DF raw data'!L119) -> -2.30506e-05 | F119: 3.187881799e-06 | G119: -1.257509047e-05 | H119: -0.00415679945 | J119: 0.0002224114544 | K119: 0.003061268632 | L119: 7.377394041e-05 | M119: 0.001892240995 | N119: 6.087642137e-07
A120: =IF('DF raw data'!I120="","",'DF raw data'!I120) -> -273.5 | B120: =IF('DF raw data'!J120="","",'DF raw data'!J120) -> -4.01317e-05 | C120: =IF('DF raw data'!K120="","",'DF raw data'!K120) -> 9.80118e-05 | D120: =IF('DF raw data'!L120="","",'DF raw data'!L120) -> -1.56674e-05 | F120: 4.471394499e-06 | G120: -1.049714673e-05 | H120: -0.004149378596 | J120: 0.0002246471517 | K120: 0.003173592208 | L120: 6.852536705e-05 | M120: 0.001926503678 | N120: 6.363452481e-07
A121: =IF('DF raw data'!I121="","",'DF raw data'!I121) -> -273 | B121: =IF('DF raw data'!J121="","",'DF raw data'!J121) -> -2.7439e-05 | C121: =IF('DF raw data'!K121="","",'DF raw data'!K121) -> 0.000102978 | D121: =IF('DF raw data'!L121="","",'DF raw data'!L121) -> -1.97276e-05 | F121: 1.722882727e-05 | G121: -5.50561911e-06 | H121: -0.004153459503 | J121: 0.0002332615653 | K121: 0.00329022299 | L121: 6.577255749e-05 | M121: 0.001959389957 | N121: 6.657137416e-07
A122: =IF('DF raw data'!I122="","",'DF raw data'!I122) -> -272.5 | B122: =IF('DF raw data'!J122="","",'DF raw data'!J122) -> -3.27534e-05 | C122: =IF('DF raw data'!K122="","",'DF raw data'!K122) -> 9.76703e-05 | D122: =IF('DF raw data'!L122="","",'DF raw data'!L122) -> -2.75504e-05 | F122: 1.188732383e-05 | G122: -1.084038838e-05 | H122: -0.004161322199 | J122: 0.0002392052272 | K122: 0.003409825604 | L122: 6.03523633e-05 | M122: 0.001989566138 | N122: 6.961445159e-07
A123: =IF('DF raw data'!I123="","",'DF raw data'!I123) -> -272 | B123: =IF('DF raw data'!J123="","",'DF raw data'!J123) -> -2.49898e-05 | C123: =IF('DF raw data'!K123="","",'DF raw data'!K123) -> 0.000114263 | D123: =IF('DF raw data'!L123="","",'DF raw data'!L123) -> -4.10444e-05 | F123: 1.969051819e-05 | G123: 5.83693439e-06 | H123: -0.004174885019 | J123: 0.0002490504863 | K123: 0.003534350847 | L123: 6.32708305e-05 | M123: 0.002021201554 | N123: 7.291591872e-07
A124: =IF('DF raw data'!I124="","",'DF raw data'!I124) -> -271.5 | B124: =IF('DF raw data'!J124="","",'DF raw data'!J124) -> -3.46706e-05 | C124: =IF('DF raw data'!K124="","",'DF raw data'!K124) -> 0.00011586 | D124: =IF('DF raw data'!L124="","",'DF raw data'!L124) -> -3.60196e-05 | F124: 9.960346109e-06 | G124: 7.44207909e-06 | H124: -0.004169834592 | J124: 0.0002540306594 | K124: 0.003661366177 | L124: 6.699187004e-05 | M124: 0.002054697489 | N124: 7.636689305e-07
A125: =IF('DF raw data'!I125="","",'DF raw data'!I125) -> -271 | B125: =IF('DF raw data'!J125="","",'DF raw data'!J125) -> -3.21686e-05 | C125: =IF('DF raw data'!K125="","",'DF raw data'!K125) -> 0.000102006 | D125: =IF('DF raw data'!L125="","",'DF raw data'!L125) -> -4.00509e-05 | F125: 1.247510631e-05 | G125: -6.48257631e-06 | H125: -0.004173886452 | J125: 0.0002602682125 | K125: 0.003791500283 | L125: 6.375058189e-05 | M125: 0.00208657278 | N125: 7.995707701e-07
A126: =IF('DF raw data'!I126="","",'DF raw data'!I126) -> -270.5 | B126: =IF('DF raw data'!J126="","",'DF raw data'!J126) -> -2.8967e-05 | C126: =IF('DF raw data'!K126="","",'DF raw data'!K126) -> 0.000102239 | D126: =IF('DF raw data'!L126="","",'DF raw data'!L126) -> -3.52637e-05 | F126: 1.569303447e-05 | G126: -6.24838801e-06 | H126: -0.004169074837 | J126: 0.0002681147298 | K126: 0.003925557648 | L126: 6.062638788e-05 | M126: 0.002116885974 | N126: 8.373513037e-07
A127: =IF('DF raw data'!I127="","",'DF raw data'!I127) -> -270 | B127: =IF('DF raw data'!J127="","",'DF raw data'!J127) -> -4.15329e-05 | C127: =IF('DF raw data'!K127="","",'DF raw data'!K127) -> 0.000105956 | D127: =IF('DF raw data'!L127="","",'DF raw data'!L127) -> -2.91747e-05 | F127: 3.063048379e-06 | G127: -2.51243131e-06 | H127: -0.004162954783 | J127: 0.000269646254 | K127: 0.004060380775 | L127: 5.937017223e-05 | M127: 0.00214657106 | N127: 8.754682635e-07
A128: =IF('DF raw data'!I128="","",'DF raw data'!I128) -> -269.5 | B128: =IF('DF raw data'!J128="","",'DF raw data'!J128) -> -3.53165e-05 | C128: =IF('DF raw data'!K128="","",'DF raw data'!K128) -> 0.000110021 | D128: =IF('DF raw data'!L128="","",'DF raw data'!L128) -> -2.8584e-05 | F128: 9.311152019e-06 | G128: 1.57330019e-06 | H128: -0.00416236107 | J128: 0.00027430183 | K128: 0.00419753169 | L128: 6.015682232e-05 | M128: 0.002176649471 | N128: 9.148984321e-07
A129: =IF('DF raw data'!I129="","",'DF raw data'!I129) -> -269 | B129: =IF('DF raw data'!J129="","",'DF raw data'!J129) -> -3.1849e-05 | C129: =IF('DF raw data'!K129="","",'DF raw data'!K129) -> 0.000107569 | D129: =IF('DF raw data'!L129="","",'DF raw data'!L129) -> -3.85227e-05 | F129: 1.279633627e-05 | G129: -8.912050098e-07 | H129: -0.004172350458 | J129: 0.0002806999981 | K129: 0.004337881689 | L129: 5.971121982e-05 | M129: 0.002206505081 | N129: 9.560773915e-07
A130: =IF('DF raw data'!I130="","",'DF raw data'!I130) -> -268.5 | B130: =IF('DF raw data'!J130="","",'DF raw data'!J130) -> -2.90296e-05 | C130: =IF('DF raw data'!K130="","",'DF raw data'!K130) -> 0.000103101 | D130: =IF('DF raw data'!L130="","",'DF raw data'!L130) -> -3.7877e-05 | F130: 1.563011521e-05 | G130: -5.38199181e-06 | H130: -0.004171701465 | J130: 0.0002885150557 | K130: 0.004482139217 | L130: 5.702022391e-05 | M130: 0.002235015193 | N130: 9.993235131e-07
A131: =IF('DF raw data'!I131="","",'DF raw data'!I131) -> -268 | B131: =IF('DF raw data'!J131="","",'DF raw data'!J131) -> -3.45469e-05 | C131: =IF('DF raw data'!K131="","",'DF raw data'!K131) -> 0.000110201 | D131: =IF('DF raw data'!L131="","",'DF raw data'!L131) -> -2.89615e-05 | F131: =(1-$G$1*($B$54-$G$2))*(B131-F$5) -> 1.008467698e-05 | G131: =(1-$G$1*($B$54-$G$2))*(C131-G$5) -> 1.75421819e-06 | H131: =(1-$G$1*($B$54-$G$2))*(D131-H$5) -> -0.004162740496 | J131: 0.0002935573942 | K131: 0.004628917914 | L131: 5.789733301e-05 | M131: 0.002263963859 | N131: 1.044087536e-06
A132: =IF('DF raw data'!I132="","",'DF raw data'!I132) -> -267.5 | B132: =IF('DF raw data'!J132="","",'DF raw data'!J132) -> -3.90265e-05 | C132: =IF('DF raw data'!K132="","",'DF raw data'!K132) -> 0.000115805 | D132: =IF('DF raw data'!L132="","",'DF raw data'!L132) -> -3.96934e-05 | F132: 5.582231019e-06 | G132: 7.38679859e-06 | H132: -0.004173527128 | J132: =F132*$G$3+J131 -> 0.0002963485097 | K132: =J132*$G$3+K131 -> 0.004777092169 | L132: =G132*$G$3+L131 -> 6.15907323e-05 | M132: =L132*$G$3+M131 -> 0.002294759225 | N132: =(J132^2+L132^2)*$G$3+N131 -> 1.089895464e-06
A133: =IF('DF raw data'!I133="","",'DF raw data'!I133) -> -267 | B133: =IF('DF raw data'!J133="","",'DF raw data'!J133) -> -4.62095e-05 | C133: =IF('DF raw data'!K133="","",'DF raw data'!K133) -> 0.000112102 | D133: =IF('DF raw data'!L133="","",'DF raw data'!L133) -> -3.20713e-05 | F133: -1.637402281e-06 | G133: 3.66491329e-06 | H133: -0.004165866156 | J133: 0.0002955298086 | K133: 0.004924857073 | L133: 6.342318895e-05 | M133: 0.00232647082 | N133: 1.135575649e-06
A134: =IF('DF raw data'!I134="","",'DF raw data'!I134) -> -266.5 | B134: =IF('DF raw data'!J134="","",'DF raw data'!J134) -> -3.18572e-05 | C134: =IF('DF raw data'!K134="","",'DF raw data'!K134) -> 0.000109539 | D134: =IF('DF raw data'!L134="","",'DF raw data'!L134) -> -2.59934e-05 | F134: 1.278809445e-05 | G134: 1.08884199e-06 | H134: -0.004159757258 | J134: 0.0003019238558 | K134: 0.005075819001 | L134: 6.396760994e-05 | M134: 0.002358454625 | N134: 1.183200584e-06
A135: =IF('DF raw data'!I135="","",'DF raw data'!I135) -> -266 | B135: =IF('DF raw data'!J135="","",'DF raw data'!J135) -> -4.30743e-05 | C135: =IF('DF raw data'!K135="","",'DF raw data'!K135) -> 0.000103428 | D135: =IF('DF raw data'!L135="","",'DF raw data'!L135) -> -2.40556e-05 | F135: 1.513787239e-06 | G135: -5.05332411e-06 | H135: -0.004157809576 | J135: 0.0003026807494 | K135: 0.005227159376 | L135: 6.144094789e-05 | M135: 0.002389175099 | N135: 1.230895897e-06
A136: =IF('DF raw data'!I136="","",'DF raw data'!I136) -> -265.5 | B136: =IF('DF raw data'!J136="","",'DF raw data'!J136) -> -3.79461e-05 | C136: =IF('DF raw data'!K136="","",'DF raw data'!K136) -> 9.96099e-05 | D136: =IF('DF raw data'!L136="","",'DF raw data'!L136) -> -2.54288e-05 | F136: 6.668141059e-06 | G136: -8.89089642e-06 | H136: -0.004159189779 | J136: 0.0003060148199 | K136: 0.005380166786 | L136: 5.699549968e-05 | M136: 0.002417672849 | N136: 1.279342675e-06
A137: =IF('DF raw data'!I137="","",'DF raw data'!I137) -> -265 | B137: =IF('DF raw data'!J137="","",'DF raw data'!J137) -> -3.93548e-05 | C137: =IF('DF raw data'!K137="","",'DF raw data'!K137) -> 0.000105379 | D137: =IF('DF raw data'!L137="","",'DF raw data'!L137) -> -2.77074e-05 | F137: 5.252256689e-06 | G137: -3.09237401e-06 | H137: -0.00416148 | J137: 0.0003086409483 | K137: 0.00553448726 | L137: 5.544931267e-05 | M137: 0.002445397505 | N137: 1.328509606e-06
A138: =IF('DF raw data'!I138="","",'DF raw data'!I138) -> -264.5 | B138: =IF('DF raw data'!J138="","",'DF raw data'!J138) -> -4.23609e-05 | C138: =IF('DF raw data'!K138="","",'DF raw data'!K138) -> 0.000105356 | D138: =IF('DF raw data'!L138="","",'DF raw data'!L138) -> -3.72953e-05 | F138: 2.230825579e-06 | G138: -3.11549131e-06 | H138: -0.004171116798 | J138: 0.0003097563611 | K138: 0.00568936544 | L138: 5.389156702e-05 | M138: 0.002472343288 | N138: 1.377936258e-06
A139: =IF('DF raw data'!I139="","",'DF raw data'!I139) -> -264 | B139: =IF('DF raw data'!J139="","",'DF raw data'!J139) -> -3.65345e-05 | C139: =IF('DF raw data'!K139="","",'DF raw data'!K139) -> 9.80505e-05 | D139: =IF('DF raw data'!L139="","",'DF raw data'!L139) -> -2.79416e-05 | F139: 8.086940219e-06 | G139: -1.045824936e-05 | H139: -0.004161715394 | J139: 0.0003137998312 | K139: 0.005846265356 | L139: 4.866244234e-05 | M139: 0.00249667451 | N139: 1.428355442e-06
A140: =IF('DF raw data'!I140="","",'DF raw data'!I140) -> -263.5 | B140: =IF('DF raw data'!J140="","",'DF raw data'!J140) -> -3.48086e-05 | C140: =IF('DF raw data'!K140="","",'DF raw data'!K140) -> 9.68388e-05 | D140: =IF('DF raw data'!L140="","",'DF raw data'!L140) -> -2.07815e-05 | F140: 9.821642309e-06 | G140: -1.167612903e-05 | H140: -0.004154518778 | J140: 0.0003187106523 | K140: 0.006005620682 | L140: 4.282437782e-05 | M140: 0.002518086699 | N140: 1.480060645e-06
A141: =IF('DF raw data'!I141="","",'DF raw data'!I141) -> -263 | B141: =IF('DF raw data'!J141="","",'DF raw data'!J141) -> -3.12139e-05 | C141: =IF('DF raw data'!K141="","",'DF raw data'!K141) -> 0.000116462 | D141: =IF('DF raw data'!L141="","",'DF raw data'!L141) -> -2.96657e-05 | F141: 1.343467528e-05 | G141: 8.04714929e-06 | H141: -0.004163448287 | J141: 0.00032542799 | K141: 0.006168334677 | L141: 4.684795247e-05 | M141: 0.002541510675 | N141: 1.534109699e-06
A142: =IF('DF raw data'!I142="","",'DF raw data'!I142) -> -262.5 | B142: =IF('DF raw data'!J142="","",'DF raw data'!J142) -> -3.54425e-05 | C142: =IF('DF raw data'!K142="","",'DF raw data'!K142) -> 0.000113148 | D142: =IF('DF raw data'!L142="","",'DF raw data'!L142) -> -3.18648e-05 | F142: 9.184509419e-06 | G142: 4.71624789e-06 | H142: -0.004165658603 | J142: 0.0003300202447 | K142: 0.006333344799 | L142: 4.920607641e-05 | M142: 0.002566113713 | N142: 1.589776999e-06
A143: =IF('DF raw data'!I143="","",'DF raw data'!I143) -> -262 | B143: =IF('DF raw data'!J143="","",'DF raw data'!J143) -> -3.63999e-05 | C143: =IF('DF raw data'!K143="","",'DF raw data'!K143) -> 0.000106161 | D143: =IF('DF raw data'!L143="","",'DF raw data'!L143) -> -3.77939e-05 | F143: 8.222226679e-06 | G143: -2.30638581e-06 | H143: -0.004171617941 | J143: 0.000334131358 | K143: 0.006500410478 | L143: 4.805288351e-05 | M143: 0.002590140155 | N143: 1.646753421e-06
A144: =IF('DF raw data'!I144="","",'DF raw data'!I144) -> -261.5 | B144: =IF('DF raw data'!J144="","",'DF raw data'!J144) -> -3.86529e-05 | C144: =IF('DF raw data'!K144="","",'DF raw data'!K144) -> 0.000111073 | D144: =IF('DF raw data'!L144="","",'DF raw data'!L144) -> -2.26973e-05 | F144: 5.957736379e-06 | G144: 2.63066539e-06 | H144: -0.004156444348 | J144: 0.0003371102262 | K144: 0.006668965592 | L144: 4.93682162e-05 | M144: 0.002614824263 | N144: 1.704793683e-06
A145: =IF('DF raw data'!I145="","",'DF raw data'!I145) -> -261 | B145: =IF('DF raw data'!J145="","",'DF raw data'!J145) -> -2.67827e-05 | C145: =IF('DF raw data'!K145="","",'DF raw data'!K145) -> 0.00011157 | D145: =IF('DF raw data'!L145="","",'DF raw data'!L145) -> -4.33704e-05 | F145: 1.78884744e-05 | G145: 3.13020009e-06 | H145: -0.004177222881 | J145: 0.0003460544634 | K145: 0.006841992823 | L145: 5.093331625e-05 | M145: 0.002640290921 | N145: 1.765967631e-06
A146: =IF('DF raw data'!I146="","",'DF raw data'!I146) -> -260.5 | B146: =IF('DF raw data'!J146="","",'DF raw data'!J146) -> -4.50543e-05 | C146: =IF('DF raw data'!K146="","",'DF raw data'!K146) -> 0.000111553 | D146: =IF('DF raw data'!L146="","",'DF raw data'!L146) -> -3.45169e-05 | F146: -4.763107613e-07 | G146: 3.11311339e-06 | H146: -0.004168324228 | J146: 0.000345816308 | K146: 0.007014900977 | L146: 5.248987294e-05 | M146: 0.002666535857 | N146: 1.827139683e-06
A147: =IF('DF raw data'!I147="","",'DF raw data'!I147) -> -260 | B147: =IF('DF raw data'!J147="","",'DF raw data'!J147) -> -2.96061e-05 | C147: =IF('DF raw data'!K147="","",'DF raw data'!K147) -> 0.000110473 | D147: =IF('DF raw data'!L147="","",'DF raw data'!L147) -> -3.79913e-05 | F147: 1.505067506e-05 | G147: 2.02760539e-06 | H147: -0.004171816348 | J147: 0.0003533416456 | K147: 0.0071915718 | L147: 5.350367564e-05 | M147: 0.002693287695 | N147: 1.890996164e-06
A148: =IF('DF raw data'!I148="","",'DF raw data'!I148) -> -259.5 | B148: =IF('DF raw data'!J148="","",'DF raw data'!J148) -> -3.76775e-05 | C148: =IF('DF raw data'!K148="","",'DF raw data'!K148) -> 0.000103722 | D148: =IF('DF raw data'!L148="","",'DF raw data'!L148) -> -4.41544e-05 | F148: 6.938110919e-06 | G148: -4.75782471e-06 | H148: -0.00417801088 | J148: 0.000356810701 | K148: 0.007369977151 | L148: 5.112476328e-05 | M148: 0.002718850077 | N148: 1.955959973e-06
A149: =IF('DF raw data'!I149="","",'DF raw data'!I149) -> -259 | B149: =IF('DF raw data'!J149="","",'DF raw data'!J149) -> -4.63967e-05 | C149: =IF('DF raw data'!K149="","",'DF raw data'!K149) -> 0.000105232 | D149: =IF('DF raw data'!L149="","",'DF raw data'!L149) -> -4.00215e-05 | F149: -1.825557001e-06 | G149: -3.24012371e-06 | H149: -0.004173856902 | J149: 0.0003558979225 | K149: 0.007547926112 | L149: 4.950470143e-05 | M149: 0.002743602428 | N149: 2.020516997e-06
A150: =IF('DF raw data'!I150="","",'DF raw data'!I150) -> -258.5 | B150: =IF('DF raw data'!J150="","",'DF raw data'!J150) -> -3.94846e-05 | C150: =IF('DF raw data'!K150="","",'DF raw data'!K150) -> 0.000110104 | D150: =IF('DF raw data'!L150="","",'DF raw data'!L150) -> -2.51731e-05 | F150: 5.121794709e-06 | G150: 1.65672349e-06 | H150: -0.004158932775 | J150: 0.0003584588199 | K150: 0.007727155522 | L150: 5.033306318e-05 | M150: 0.002768768959 | N150: 2.086030068e-06
A151: =IF('DF raw data'!I151="","",'DF raw data'!I151) -> -258 | B151: =IF('DF raw data'!J151="","",'DF raw data'!J151) -> -3.86514e-05 | C151: =IF('DF raw data'!K151="","",'DF raw data'!K151) -> 0.000118932 | D151: =IF('DF raw data'!L151="","",'DF raw data'!L151) -> -2.49478e-05 | F151: 5.959244029e-06 | G151: 1.052974629e-05 | H151: -0.004158706326 | J151: 0.0003614384419 | K151: 0.007907874743 | L151: 5.559793632e-05 | M151: 0.002796567927 | N151: 2.152894507e-06
A152: =IF('DF raw data'!I152="","",'DF raw data'!I152) -> -257.5 | B152: =IF('DF raw data'!J152="","",'DF raw data'!J152) -> -3.37132e-05 | C152: =IF('DF raw data'!K152="","",'DF raw data'!K152) -> 0.000110895 | D152: =IF('DF raw data'!L152="","",'DF raw data'!L152) -> -3.00618e-05 | F152: 1.092262885e-05 | G152: 2.45175759e-06 | H152: -0.004163846407 | J152: 0.0003668997563 | K152: 0.008091324621 | L152: 5.682381512e-05 | M152: 0.002824979835 | N152: 2.221816695e-06
A153: =IF('DF raw data'!I153="","",'DF raw data'!I153) -> -257 | B153: =IF('DF raw data'!J153="","",'DF raw data'!J153) -> -3.23697e-05 | C153: =IF('DF raw data'!K153="","",'DF raw data'!K153) -> 0.000111881 | D153: =IF('DF raw data'!L153="","",'DF raw data'!L153) -> -2.61733e-05 | F153: 1.22729807e-05 | G153: 3.44278619e-06 | H153: -0.004159938076 | J153: 0.0003730362467 | K153: 0.008277842744 | L153: 5.854520821e-05 | M153: 0.002854252439 | N153: 2.293108487e-06
A154: =IF('DF raw data'!I154="","",'DF raw data'!I154) -> -256.5 | B154: =IF('DF raw data'!J154="","",'DF raw data'!J154) -> -5.42965e-05 | C154: =IF('DF raw data'!K154="","",'DF raw data'!K154) -> 0.000114584 | D154: =IF('DF raw data'!L154="","",'DF raw data'!L154) -> -1.42142e-05 | F154: -9.765645981e-06 | G154: 6.15957149e-06 | H154: -0.004147917984 | J154: 0.0003681534237 | K154: 0.008461919456 | L154: 6.162499396e-05 | M154: 0.002885064936 | N154: 2.362775778e-06
A155: =IF('DF raw data'!I155="","",'DF raw data'!I155) -> -256 | B155: =IF('DF raw data'!J155="","",'DF raw data'!J155) -> -3.2943e-05 | C155: =IF('DF raw data'!K155="","",'DF raw data'!K155) -> 0.000122476 | D155: =IF('DF raw data'!L155="","",'DF raw data'!L155) -> -3.16909e-05 | F155: 1.169675687e-05 | G155: 1.409182069e-05 | H155: -0.004165483816 | J155: 0.0003740018021 | K155: 0.008648920357 | L155: 6.86709043e-05 | M155: 0.002919400388 | N155: 2.435072299e-06
A156: =IF('DF raw data'!I156="","",'DF raw data'!I156) -> -255.5 | B156: =IF('DF raw data'!J156="","",'DF raw data'!J156) -> -3.44246e-05 | C156: =IF('DF raw data'!K156="","",'DF raw data'!K156) -> 0.000114495 | D156: =IF('DF raw data'!L156="","",'DF raw data'!L156) -> -1.99124e-05 | F156: 1.020760071e-05 | G156: 6.07011759e-06 | H156: -0.004153645245 | J156: 0.0003791056025 | K156: 0.008838473158 | L156: 7.17059631e-05 | M156: 0.00295525337 | N156: 2.5095037e-06
A157: =IF('DF raw data'!I157="","",'DF raw data'!I157) -> -255 | B157: =IF('DF raw data'!J157="","",'DF raw data'!J157) -> -3.28199e-05 | C157: =IF('DF raw data'!K157="","",'DF raw data'!K157) -> 0.00010659 | D157: =IF('DF raw data'!L157="","",'DF raw data'!L157) -> -2.38814e-05 | F157: 1.182048468e-05 | G157: -1.87519791e-06 | H157: -0.004157634487 | J157: 0.0003850158448 | K157: 0.009030981081 | L157: 7.076836414e-05 | M157: 0.002990637552 | N157: 2.586126382e-06
A158: =IF('DF raw data'!I158="","",'DF raw data'!I158) -> -254.5 | B158: =IF('DF raw data'!J158="","",'DF raw data'!J158) -> -2.47396e-05 | C158: =IF('DF raw data'!K158="","",'DF raw data'!K158) -> 0.000108622 | D158: =IF('DF raw data'!L158="","",'DF raw data'!L158) -> -3.1073e-05 | F158: 1.994199421e-05 | G158: 1.671652902e-07 | H158: -0.004164862764 | J158: 0.0003949868419 | K158: 0.009228474502 | L158: 7.085194679e-05 | M158: 0.003026063525 | N158: 2.666643683e-06
A159: =IF('DF raw data'!I159="","",'DF raw data'!I159) -> -254 | B159: =IF('DF raw data'!J159="","",'DF raw data'!J159) -> -3.86469e-05 | C159: =IF('DF raw data'!K159="","",'DF raw data'!K159) -> 0.000109074 | D159: =IF('DF raw data'!L159="","",'DF raw data'!L159) -> -3.19023e-05 | F159: 5.963766979e-06 | G159: 6.214704902e-07 | H159: -0.004165696294 | J159: 0.0003979687254 | K159: 0.009427458864 | L159: 7.116268203e-05 | M159: 0.003061644866 | N159: 2.7483653e-06
A160: =IF('DF raw data'!I160="","",'DF raw data'!I160) -> -253.5 | B160: =IF('DF raw data'!J160="","",'DF raw data'!J160) -> -3.17923e-05 | C160: =IF('DF raw data'!K160="","",'DF raw data'!K160) -> 0.000118963 | D160: =IF('DF raw data'!L160="","",'DF raw data'!L160) -> -2.72615e-05 | F160: 1.285332544e-05 | G160: 1.056090439e-05 | H160: -0.004161031826 | J160: 0.0004043953881 | K160: 0.009629656558 | L160: 7.644313423e-05 | M160: 0.003099866433 | N160: 2.833054892e-06
A161: =IF('DF raw data'!I161="","",'DF raw data'!I161) -> -253 | B161: =IF('DF raw data'!J161="","",'DF raw data'!J161) -> -4.02546e-05 | C161: =IF('DF raw data'!K161="","",'DF raw data'!K161) -> 0.000117102 | D161: =IF('DF raw data'!L161="","",'DF raw data'!L161) -> -2.36465e-05 | F161: 4.347867709e-06 | G161: 8.69041329e-06 | H161: -0.004157398389 | J161: 0.000406569322 | K161: 0.009832941219 | L161: 8.078834087e-05 | M161: 0.003140260604 | N161: 2.918967576e-06
A162: =IF('DF raw data'!I162="","",'DF raw data'!I162) -> -252.5 | B162: =IF('DF raw data'!J162="","",'DF raw data'!J162) -> -5.20471e-05 | C162: =IF('DF raw data'!K162="","",'DF raw data'!K162) -> 0.00011925 | D162: =IF('DF raw data'!L162="","",'DF raw data'!L162) -> -2.35989e-05 | F162: -7.504774041e-06 | G162: 1.084936809e-05 | H162: -0.004157350546 | J162: 0.0004028169349 | K162: 0.01003434969 | L162: 8.621302492e-05 | M162: 0.003183367116 | N162: 3.003814661e-06
A163: =IF('DF raw data'!I163="","",'DF raw data'!I163) -> -252 | B163: =IF('DF raw data'!J163="","",'DF raw data'!J163) -> -4.07725e-05 | C163: =IF('DF raw data'!K163="","",'DF raw data'!K163) -> 0.000115807 | D163: =IF('DF raw data'!L163="","",'DF raw data'!L163) -> -1.55172e-05 | F163: 3.827326419e-06 | G163: 7.38880879e-06 | H163: -0.00414922763 | J163: 0.0004047305982 | K163: 0.01023671499 | L163: 8.990742931e-05 | M163: 0.003228320831 | N163: 3.089759762e-06
A164: =IF('DF raw data'!I164="","",'DF raw data'!I164) -> -251.5 | B164: =IF('DF raw data'!J164="","",'DF raw data'!J164) -> -4.90355e-05 | C164: =IF('DF raw data'!K164="","",'DF raw data'!K164) -> 0.000112984 | D164: =IF('DF raw data'!L164="","",'DF raw data'!L164) -> -2.28966e-05 | F164: -4.477814881e-06 | G164: 4.55141149e-06 | H164: -0.004156644665 | J164: 0.0004024916907 | K164: 0.01043796083 | L164: 9.218313506e-05 | M164: 0.003274412398 | N164: 3.175008408e-06
A165: =IF('DF raw data'!I165="","",'DF raw data'!I165) -> -251 | B165: =IF('DF raw data'!J165="","",'DF raw data'!J165) -> -4.71758e-05 | C165: =IF('DF raw data'!K165="","",'DF raw data'!K165) -> 0.000115018 | D165: =IF('DF raw data'!L165="","",'DF raw data'!L165) -> -2.45128e-05 | F165: -2.608630411e-06 | G165: 6.59578489e-06 | H165: -0.004158269107 | J165: 0.0004011873755 | K165: 0.01063855452 | L165: 9.54810275e-05 | M165: 0.003322152912 | N165: 3.260042376e-06
A166: =IF('DF raw data'!I166="","",'DF raw data'!I166) -> -250.5 | B166: =IF('DF raw data'!J166="","",'DF raw data'!J166) -> -2.47477e-05 | C166: =IF('DF raw data'!K166="","",'DF raw data'!K166) -> 0.000116043 | D166: =IF('DF raw data'!L166="","",'DF raw data'!L166) -> -1.85092e-05 | F166: 1.99338529e-05 | G166: 7.62601239e-06 | H166: -0.004152234889 | J166: 0.000411154302 | K166: 0.01084413167 | L166: 9.92940337e-05 | M166: 0.003371799929 | N166: 3.349495959e-06
A167: =IF('DF raw data'!I167="","",'DF raw data'!I167) -> -250 | B167: =IF('DF raw data'!J167="","",'DF raw data'!J167) -> -2.68592e-05 | C167: =IF('DF raw data'!K167="","",'DF raw data'!K167) -> 0.000112022 | D167: =IF('DF raw data'!L167="","",'DF raw data'!L167) -> -2.39664e-05 | F167: 1.781158425e-05 | G167: 3.58450529e-06 | H167: -0.004157719921 | J167: 0.0004200600941 | K167: 0.01105416172 | L167: 0.0001010862863 | M167: 0.003422343072 | N167: 3.442830419e-06
A168: =IF('DF raw data'!I168="","",'DF raw data'!I168) -> -249.5 | B168: =IF('DF raw data'!J168="","",'DF raw data'!J168) -> -4.66657e-05 | C168: =IF('DF raw data'!K168="","",'DF raw data'!K168) -> 0.000111492 | D168: =IF('DF raw data'!L168="","",'DF raw data'!L168) -> -2.0559e-05 | F168: -2.095928901e-06 | G168: 3.05180229e-06 | H168: -0.004154295143 | J168: 0.0004190121296 | K168: 0.01126366778 | L168: 0.0001026121875 | M168: 0.003473649166 | N168: 3.535880632e-06
A169: =IF('DF raw data'!I169="","",'DF raw data'!I169) -> -249 | B169: =IF('DF raw data'!J169="","",'DF raw data'!J169) -> -3.77494e-05 | C169: =IF('DF raw data'!K169="","",'DF raw data'!K169) -> 0.000115913 | D169: =IF('DF raw data'!L169="","",'DF raw data'!L169) -> -3.21829e-05 | F169: 6.865844229e-06 | G169: 7.49534939e-06 | H169: -0.004165978325 | J169: 0.0004224450517 | K169: 0.01147489031 | L169: 0.0001063598622 | M169: 0.003526829097 | N169: 3.630766753e-06
A170: =IF('DF raw data'!I170="","",'DF raw data'!I170) -> -248.5 | B170: =IF('DF raw data'!J170="","",'DF raw data'!J170) -> -4.0705e-05 | C170: =IF('DF raw data'!K170="","",'DF raw data'!K170) -> 0.00011896 | D170: =IF('DF raw data'!L170="","",'DF raw data'!L170) -> -2.05868e-05 | F170: 3.895170669e-06 | G170: 1.055788909e-05 | H170: -0.004154323085 | J170: 0.0004243926371 | K170: 0.01168708663 | L170: 0.0001116388067 | M170: 0.0035826485 | N170: 3.72705292e-06
A171: =IF('DF raw data'!I171="","",'DF raw data'!I171) -> -248 | B171: =IF('DF raw data'!J171="","",'DF raw data'!J171) -> -3.23617e-05 | C171: =IF('DF raw data'!K171="","",'DF raw data'!K171) -> 0.000118929 | D171: =IF('DF raw data'!L171="","",'DF raw data'!L171) -> -3.84166e-05 | F171: 1.22810215e-05 | G171: 1.052673099e-05 | H171: -0.004172243817 | J171: 0.0004305331478 | K171: 0.0119023532 | L171: 0.0001169021722 | M171: 0.003641099586 | N171: 3.826565374e-06
A172: =IF('DF raw data'!I172="","",'DF raw data'!I172) -> -247.5 | B172: =IF('DF raw data'!J172="","",'DF raw data'!J172) -> -4.43541e-05 | C172: =IF('DF raw data'!K172="","",'DF raw data'!K172) -> 0.000121401 | D172: =IF('DF raw data'!L172="","",'DF raw data'!L172) -> -2.69101e-05 | F172: 2.274602587e-07 | G172: 1.301133819e-05 | H172: -0.004160678634 | J172: 0.000430646878 | K172: 0.01211767664 | L172: 0.0001234078413 | M172: 0.003702803507 | N172: 3.926908489e-06
A173: =IF('DF raw data'!I173="","",'DF raw data'!I173) -> -247 | B173: =IF('DF raw data'!J173="","",'DF raw data'!J173) -> -3.81973e-05 | C173: =IF('DF raw data'!K173="","",'DF raw data'!K173) -> 0.000131163 | D173: =IF('DF raw data'!L173="","",'DF raw data'!L173) -> -3.3213e-05 | F173: 6.415659939e-06 | G173: 2.282312439e-05 | H173: -0.004167013678 | J173: 0.0004338547079 | K173: 0.01233460399 | L173: 0.0001348194035 | M173: 0.003770213209 | N173: 4.030111578e-06
A174: =IF('DF raw data'!I174="","",'DF raw data'!I174) -> -246.5 | B174: =IF('DF raw data'!J174="","",'DF raw data'!J174) -> -5.35747e-05 | C174: =IF('DF raw data'!K174="","",'DF raw data'!K174) -> 0.000125418 | D174: =IF('DF raw data'!L174="","",'DF raw data'!L174) -> -4.02444e-05 | F174: -9.040164801e-06 | G174: 1.704882489e-05 | H174: -0.004174080939 | J174: 0.0004293346255 | K174: 0.01254927131 | L174: 0.000143343816 | M174: 0.003841885117 | N174: 4.132549413e-06
A175: =IF('DF raw data'!I175="","",'DF raw data'!I175) -> -246 | B175: =IF('DF raw data'!J175="","",'DF raw data'!J175) -> -3.90258e-05 | C175: =IF('DF raw data'!K175="","",'DF raw data'!K175) -> 0.000118107 | D175: =IF('DF raw data'!L175="","",'DF raw data'!L175) -> -4.05119e-05 | F175: 5.582934589e-06 | G175: 9.70053879e-06 | H175: -0.004174349803 | J175: 0.0004321260928 | K175: 0.01276533435 | L175: 0.0001481940854 | M175: 0.00391598216 | N175: 4.236896637e-06
A176: =IF('DF raw data'!I176="","",'DF raw data'!I176) -> -245.5 | B176: =IF('DF raw data'!J176="","",'DF raw data'!J176) -> -3.29366e-05 | C176: =IF('DF raw data'!K176="","",'DF raw data'!K176) -> 0.000123053 | D176: =IF('DF raw data'!L176="","",'DF raw data'!L176) -> -4.15358e-05 | F176: 1.170318951e-05 | G176: 1.467176339e-05 | H176: -0.004175378925 | J176: 0.0004379776876 | K176: 0.0129843232 | L176: 0.000155529967 | M176: 0.003993747143 | N176: 4.34490365e-06
A177: =IF('DF raw data'!I177="","",'DF raw data'!I177) -> -245 | B177: =IF('DF raw data'!J177="","",'DF raw data'!J177) -> -3.76835e-05 | C177: =IF('DF raw data'!K177="","",'DF raw data'!K177) -> 0.00011969 | D177: =IF('DF raw data'!L177="","",'DF raw data'!L177) -> -3.48213e-05 | F177: 6.932080319e-06 | G177: 1.129161209e-05 | H177: -0.004168630181 | J177: 0.0004414437277 | K177: 0.01320504506 | L177: 0.0001611757731 | M177: 0.00407433503 | N177: 4.455328747e-06
A178: =IF('DF raw data'!I178="","",'DF raw data'!I178) -> -244.5 | B178: =IF('DF raw data'!J178="","",'DF raw data'!J178) -> -4.32653e-05 | C178: =IF('DF raw data'!K178="","",'DF raw data'!K178) -> 0.000108724 | D178: =IF('DF raw data'!L178="","",'DF raw data'!L178) -> -2.6009e-05 | F178: 1.321813139e-06 | G178: 2.696854902e-07 | H178: -0.004159772938 | J178: 0.0004421046343 | K178: 0.01342609738 | L178: 0.0001613106158 | M178: 0.004154990338 | N178: 4.566067558e-06
A179: =IF('DF raw data'!I179="","",'DF raw data'!I179) -> -244 | B179: =IF('DF raw data'!J179="","",'DF raw data'!J179) -> -4.21089e-05 | C179: =IF('DF raw data'!K179="","",'DF raw data'!K179) -> 0.000121007 | D179: =IF('DF raw data'!L179="","",'DF raw data'!L179) -> -3.0361e-05 | F179: 2.484110779e-06 | G179: 1.261532879e-05 | H179: -0.004164147133 | J179: 0.0004433466897 | K179: 0.01364777072 | L179: 0.0001676182802 | M179: 0.004238799478 | N179: 4.678393646e-06
A180: =IF('DF raw data'!I180="","",'DF raw data'!I180) -> -243.5 | B180: =IF('DF raw data'!J180="","",'DF raw data'!J180) -> -4.37771e-05 | C180: =IF('DF raw data'!K180="","",'DF raw data'!K180) -> 0.000118898 | D180: =IF('DF raw data'!L180="","",'DF raw data'!L180) -> -2.74134e-05 | F180: 8.074029587e-07 | G180: 1.049557289e-05 | H180: -0.0041611845 | J180: 0.0004437503912 | K180: 0.01386964592 | L180: 0.0001728660667 | M180: 0.004325232511 | N180: 4.791792189e-06
A181: =IF('DF raw data'!I181="","",'DF raw data'!I181) -> -243 | B181: =IF('DF raw data'!J181="","",'DF raw data'!J181) -> -3.6277e-05 | C181: =IF('DF raw data'!K181="","",'DF raw data'!K181) -> 0.000125095 | D181: =IF('DF raw data'!L181="","",'DF raw data'!L181) -> -2.94217e-05 | F181: 8.345753469e-06 | G181: 1.672417759e-05 | H181: -0.004163203043 | J181: 0.0004479232679 | K181: 0.01409360755 | L181: 0.0001812281555 | M181: 0.004415846589 | N181: 4.908531638e-06
A182: =IF('DF raw data'!I182="","",'DF raw data'!I182) -> -242.5 | B182: =IF('DF raw data'!J182="","",'DF raw data'!J182) -> -5.34536e-05 | C182: =IF('DF raw data'!K182="","",'DF raw data'!K182) -> 0.000120499 | D182: =IF('DF raw data'!L182="","",'DF raw data'!L182) -> -2.92475e-05 | F182: -8.918447191e-06 | G182: 1.210473799e-05 | H182: -0.004163027954 | J182: 0.0004434640443 | K182: 0.01431533957 | L182: 0.0001872805245 | M182: 0.004509486851 | N182: 5.024398815e-06
A183: =IF('DF raw data'!I183="","",'DF raw data'!I183) -> -242 | B183: =IF('DF raw data'!J183="","",'DF raw data'!J183) -> -5.1339e-05 | C183: =IF('DF raw data'!K183="","",'DF raw data'!K183) -> 0.000121577 | D183: =IF('DF raw data'!L183="","",'DF raw data'!L183) -> -2.85769e-05 | F183: -6.793062731e-06 | G183: 1.318823579e-05 | H183: -0.004162353934 | J183: 0.0004400675129 | K183: 0.01453537333 | L183: 0.0001938746424 | M183: 0.004606424172 | N183: 5.140022211e-06
A184: =IF('DF raw data'!I184="","",'DF raw data'!I184) -> -241.5 | B184: =IF('DF raw data'!J184="","",'DF raw data'!J184) -> -3.51377e-05 | C184: =IF('DF raw data'!K184="","",'DF raw data'!K184) -> 0.000116034 | D184: =IF('DF raw data'!L184="","",'DF raw data'!L184) -> -7.41244e-06 | F184: 9.490863899e-06 | G184: 7.61696649e-06 | H184: -0.004141081536 | J184: 0.0004448129449 | K184: 0.0147577798 | L184: 0.0001976831256 | M184: 0.004705265735 | N184: 5.258490798e-06
A185: =IF('DF raw data'!I185="","",'DF raw data'!I185) -> -241 | B185: =IF('DF raw data'!J185="","",'DF raw data'!J185) -> -3.18617e-05 | C185: =IF('DF raw data'!K185="","",'DF raw data'!K185) -> 0.000121751 | D185: =IF('DF raw data'!L185="","",'DF raw data'!L185) -> -1.88838e-05 | F185: 1.27835715e-05 | G185: 1.336312319e-05 | H185: -0.004152611399 | J185: 0.0004512047306 | K185: 0.01498338217 | L185: 0.0002043646872 | M185: 0.004807448079 | N185: 5.381166116e-06
A186: =IF('DF raw data'!I186="","",'DF raw data'!I186) -> -240.5 | B186: =IF('DF raw data'!J186="","",'DF raw data'!J186) -> -4.49995e-05 | C186: =IF('DF raw data'!K186="","",'DF raw data'!K186) -> 0.000129402 | D186: =IF('DF raw data'!L186="","",'DF raw data'!L186) -> -1.9834e-05 | F186: -4.212312813e-07 | G186: 2.105314329e-05 | H186: -0.004153566445 | J186: 0.000450994115 | K186: 0.01520887923 | L186: 0.0002148912588 | M186: 0.004914893708 | N186: 5.505953088e-06
A187: =IF('DF raw data'!I187="","",'DF raw data'!I187) -> -240 | B187: =IF('DF raw data'!J187="","",'DF raw data'!J187) -> -4.21094e-05 | C187: =IF('DF raw data'!K187="","",'DF raw data'!K187) -> 0.0001267 | D187: =IF('DF raw data'!L187="","",'DF raw data'!L187) -> -2.95386e-05 | F187: 2.483608229e-06 | G187: 1.833736309e-05 | H187: -0.004163320539 | J187: 0.0004522359191 | K187: 0.01543499718 | L187: 0.0002240599404 | M187: 0.005026923678 | N187: 5.63331318e-06
A188: =IF('DF raw data'!I188="","",'DF raw data'!I188) -> -239.5 | B188: =IF('DF raw data'!J188="","",'DF raw data'!J188) -> -4.26202e-05 | C188: =IF('DF raw data'!K188="","",'DF raw data'!K188) -> 0.00011961 | D188: =IF('DF raw data'!L188="","",'DF raw data'!L188) -> -3.25284e-05 | F188: 1.970203149e-06 | G188: 1.121120409e-05 | H188: -0.004166325587 | J188: 0.0004532210207 | K188: 0.0156616077 | L188: 0.0002296655424 | M188: 0.005141756449 | N188: 5.762390957e-06
A189: =IF('DF raw data'!I189="","",'DF raw data'!I189) -> -239 | B189: =IF('DF raw data'!J189="","",'DF raw data'!J189) -> -3.76275e-05 | C189: =IF('DF raw data'!K189="","",'DF raw data'!K189) -> 0.000120636 | D189: =IF('DF raw data'!L189="","",'DF raw data'!L189) -> -2.2574e-05 | F189: 6.988365919e-06 | G189: 1.224243669e-05 | H189: -0.004156320419 | J189: 0.0004567152037 | K189: 0.0158899653 | L189: 0.0002357867608 | M189: 0.00525964983 | N189: 5.894483044e-06
A190: =IF('DF raw data'!I190="","",'DF raw data'!I190) -> -238.5 | B190: =IF('DF raw data'!J190="","",'DF raw data'!J190) -> -4.21745e-05 | C190: =IF('DF raw data'!K190="","",'DF raw data'!K190) -> 0.000124427 | D190: =IF('DF raw data'!L190="","",'DF raw data'!L190) -> -2.78056e-05 | F190: 2.418176219e-06 | G190: 1.605277079e-05 | H190: -0.004161578701 | J190: 0.0004579242918 | K190: 0.01611892744 | L190: 0.0002438131462 | M190: 0.005381556403 | N190: 6.029052798e-06
A191: =IF('DF raw data'!I191="","",'DF raw data'!I191) -> -238 | B191: =IF('DF raw data'!J191="","",'DF raw data'!J191) -> -3.87848e-05 | C191: =IF('DF raw data'!K191="","",'DF raw data'!K191) -> 0.000123781 | D191: =IF('DF raw data'!L191="","",'DF raw data'!L191) -> -1.68595e-05 | F191: 5.825163689e-06 | G191: 1.540347619e-05 | H191: -0.004150576776 | J191: 0.0004608368736 | K191: 0.01634934588 | L191: 0.0002515148843 | M191: 0.005507313845 | N191: 6.166867978e-06
A192: =IF('DF raw data'!I192="","",'DF raw data'!I192) -> -237.5 | B192: =IF('DF raw data'!J192="","",'DF raw data'!J192) -> -4.03203e-05 | C192: =IF('DF raw data'!K192="","",'DF raw data'!K192) -> 0.000120098 | D192: =IF('DF raw data'!L192="","",'DF raw data'!L192) -> -2.08415e-05 | F192: 4.281832639e-06 | G192: 1.170169289e-05 | H192: -0.004154579084 | J192: 0.0004629777899 | K192: 0.01658083477 | L192: 0.0002573657307 | M192: 0.00563599671 | N192: 6.307160755e-06
A193: =IF('DF raw data'!I193="","",'DF raw data'!I193) -> -237 | B193: =IF('DF raw data'!J193="","",'DF raw data'!J193) -> -4.13478e-05 | C193: =IF('DF raw data'!K193="","",'DF raw data'!K193) -> 0.000126766 | D193: =IF('DF raw data'!L193="","",'DF raw data'!L193) -> -1.76103e-05 | F193: 3.249092389e-06 | G193: 1.840369969e-05 | H193: -0.004151331405 | J193: 0.0004646023361 | K193: 0.01681313594 | L193: 0.0002665675806 | M193: 0.005769280501 | N193: 6.450617558e-06
A194: =IF('DF raw data'!I194="","",'DF raw data'!I194) -> -236.5 | B194: =IF('DF raw data'!J194="","",'DF raw data'!J194) -> -2.51305e-05 | C194: =IF('DF raw data'!K194="","",'DF raw data'!K194) -> 0.000126951 | D194: =IF('DF raw data'!L194="","",'DF raw data'!L194) -> -2.1658e-05 | F194: 1.954910062e-05 | G194: 1.858964319e-05 | H194: -0.004155399748 | J194: 0.0004743768864 | K194: 0.01705032439 | L194: 0.0002758624022 | M194: 0.005907211702 | N194: 6.601184305e-06
A195: =IF('DF raw data'!I195="","",'DF raw data'!I195) -> -236 | B195: =IF('DF raw data'!J195="","",'DF raw data'!J195) -> -4.30089e-05 | C195: =IF('DF raw data'!K195="","",'DF raw data'!K195) -> 0.000116802 | D195: =IF('DF raw data'!L195="","",'DF raw data'!L195) -> -2.59508e-05 | F195: =(1-$G$1*($B$54-$G$2))*(B195-F$5) -> 1.579520779e-06 | G195: =(1-$G$1*($B$54-$G$2))*(C195-G$5) -> 8.38888329e-06 | H195: =(1-$G$1*($B$54-$G$2))*(D195-H$5) -> -0.004159714441 | J195: 0.0004751666468 | K195: 0.01728790771 | L195: 0.0002800568438 | M195: 0.006047240124 | N195: 6.753291894e-06
A196: =IF('DF raw data'!I196="","",'DF raw data'!I196) -> -235.5 | B196: =IF('DF raw data'!J196="","",'DF raw data'!J196) -> -3.21821e-05 | C196: =IF('DF raw data'!K196="","",'DF raw data'!K196) -> 0.000111719 | D196: =IF('DF raw data'!L196="","",'DF raw data'!L196) -> -1.91448e-05 | F196: 1.246153746e-05 | G196: 3.27995999e-06 | H196: -0.004152873731 | J196: =F196*$G$3+J195 -> 0.0004813974155 | K196: =J196*$G$3+K195 -> 0.01752860642 | L196: =G196*$G$3+L195 -> 0.0002816968238 | M196: =L196*$G$3+M195 -> 0.006188088536 | N196: =(J196^2+L196^2)*$G$3+N195 -> 6.908840181e-06
A197: =IF('DF raw data'!I197="","",'DF raw data'!I197) -> -235 | B197: =IF('DF raw data'!J197="","",'DF raw data'!J197) -> -3.69169e-05 | C197: =IF('DF raw data'!K197="","",'DF raw data'!K197) -> 0.000117713 | D197: =IF('DF raw data'!L197="","",'DF raw data'!L197) -> -3.09756e-05 | F197: 7.702589979e-06 | G197: 9.30452939e-06 | H197: -0.004164764868 | J197: 0.0004852487105 | K197: 0.01777123077 | L197: 0.0002863490885 | M197: 0.00633126308 | N197: 7.067571236e-06
A198: =IF('DF raw data'!I198="","",'DF raw data'!I198) -> -234.5 | B198: =IF('DF raw data'!J198="","",'DF raw data'!J198) -> -4.30713e-05 | C198: =IF('DF raw data'!K198="","",'DF raw data'!K198) -> 0.000115629 | D198: =IF('DF raw data'!L198="","",'DF raw data'!L198) -> -2.85127e-05 | F198: 1.516802539e-06 | G198: 7.20990099e-06 | H198: -0.004162289407 | J198: 0.0004860071118 | K198: 0.01801423433 | L198: 0.000289954039 | M198: 0.006476240099 | N198: 7.227709365e-06
A199: =IF('DF raw data'!I199="","",'DF raw data'!I199) -> -234 | B199: =IF('DF raw data'!J199="","",'DF raw data'!J199) -> -4.16591e-05 | C199: =IF('DF raw data'!K199="","",'DF raw data'!K199) -> 0.000117071 | D199: =IF('DF raw data'!L199="","",'DF raw data'!L199) -> -3.20016e-05 | F199: 2.936204759e-06 | G199: 8.65925519e-06 | H199: -0.0041657961 | J199: 0.0004874752142 | K199: 0.01825797194 | L199: 0.0002942836666 | M199: 0.006623381933 | N199: 7.389826845e-06
A200: =IF('DF raw data'!I200="","",'DF raw data'!I200) -> -233.5 | B200: =IF('DF raw data'!J200="","",'DF raw data'!J200) -> -3.69796e-05 | C200: =IF('DF raw data'!K200="","",'DF raw data'!K200) -> 0.000119485 | D200: =IF('DF raw data'!L200="","",'DF raw data'!L200) -> -3.33022e-05 | F200: 7.639570209e-06 | G200: 1.108556659e-05 | H200: -0.004167103333 | J200: 0.0004912949993 | K200: 0.01850361944 | L200: 0.0002998264499 | M200: 0.006773295158 | N200: 7.555460184e-06
... 1079 more rows

Sheet 30 mm
A1: =IF('DF raw data'!M1="","",'DF raw data'!M1) -> Number of header lines | B1: =IF('DF raw data'!N1="","",'DF raw data'!N1) -> 54 | C1: =IF('DF raw data'!C1="","",'DF raw data'!C1) ->  | D1: =IF('DF raw data'!D1="","",'DF raw data'!D1) ->  | F1: T_coeff | G1: -0.001 | H1: /degC | J1: IBy total | K1: =J1267*1000 -> -0.9110964032 | L1: muTm | M1: =L1267*1000 -> -32.91767231 | R1: DF ref | S1: 1
A2: =IF('DF raw data'!M2="","",'DF raw data'!M2) -> Measured by | B2: =IF('DF raw data'!N2="","",'DF raw data'!N2) -> Danfysik | C2: =IF('DF raw data'!C2="","",'DF raw data'!C2) ->  | D2: =IF('DF raw data'!D2="","",'DF raw data'!D2) ->  | F2: Tcorr | G2: 20 | H2: degC | J2: JBy total | K2: =K1267 -> -5.65647597 | L2: muTm^2 | M2: =M1267 -> -8.937258874
A3: =IF('DF raw data'!M3="","",'DF raw data'!M3) -> Operator | B3: =IF('DF raw data'!N3="","",'DF raw data'!N3) -> PMHA | C3: =IF('DF raw data'!C3="","",'DF raw data'!C3) ->  | D3: =IF('DF raw data'!D3="","",'DF raw data'!D3) ->  | F3: Step | G3: =A68-A67 -> 0.5 | H3: mm | J3: PI total | K3: =N1267 -> 2428.669159 | L3: T^2mm^3
A4: =IF('DF raw data'!M4="","",'DF raw data'!M4) -> Data-time | B4: =IF('DF raw data'!N4="","",'DF raw data'!N4) -> 02-09-2024, 13:25:50 | C4: =IF('DF raw data'!C4="","",'DF raw data'!C4) ->  | D4: =IF('DF raw data'!D4="","",'DF raw data'!D4) -> 
A5: =IF('DF raw data'!M5="","",'DF raw data'!M5) -> Project | B5: =IF('DF raw data'!N5="","",'DF raw data'!N5) -> 504314 | C5: =IF('DF raw data'!C5="","",'DF raw data'!C5) ->  | D5: Bamb avr | F5: =(AVERAGE(B67:B107) + AVERAGE(B1227:B1267))/2 -> -4.44311e-05 | G5: =(AVERAGE(C67:C107) + AVERAGE(C1227:C1267))/2 -> 6.973572927e-05 | H5: =(AVERAGE(D67:D107) + AVERAGE(D1227:D1267))/2 -> 0.00410953051
A6: =IF('DF raw data'!M6="","",'DF raw data'!M6) -> Magnet type | B6: =IF('DF raw data'!N6="","",'DF raw data'!N6) -> Dipole | C6: =IF('DF raw data'!C6="","",'DF raw data'!C6) -> 
A7: =IF('DF raw data'!M7="","",'DF raw data'!M7) -> Magnet nr. | B7: =IF('DF raw data'!N7="","",'DF raw data'!N7) -> 2410089 | C7: =IF('DF raw data'!C7="","",'DF raw data'!C7) -> 
A8: =IF('DF raw data'!M8="","",'DF raw data'!M8) -> Meas. number | B8: =IF('DF raw data'!N8="","",'DF raw data'!N8) -> 305 | C8: =IF('DF raw data'!C8="","",'DF raw data'!C8) -> 
A9: =IF('DF raw data'!M9="","",'DF raw data'!M9) -> Add. info | B9: =IF('DF raw data'!N9="","",'DF raw data'!N9) -> X-alignment scan 3) | C9: =IF('DF raw data'!C9="","",'DF raw data'!C9) ->  | D9: =IF('DF raw data'!D9="","",'DF raw data'!D9) -> 
A10: =IF('DF raw data'!M10="","",'DF raw data'!M10) -> Device | B10: =IF('DF raw data'!N10="","",'DF raw data'!N10) -> (HAL) HALL-PROBE | C10: =IF('DF raw data'!C10="","",'DF raw data'!C10) ->  | D10: =IF('DF raw data'!D10="","",'DF raw data'!D10) -> 
A11: =IF('DF raw data'!M11="","",'DF raw data'!M11) -> Goal | B11: =IF('DF raw data'!N11="","",'DF raw data'!N11) -> (AXI) AXis Integral (Line, EFB) | C11: =IF('DF raw data'!C11="","",'DF raw data'!C11) ->  | D11: =IF('DF raw data'!D11="","",'DF raw data'!D11) -> 
A12: =IF('DF raw data'!M12="","",'DF raw data'!M12) -> Power supply mode | B12: =IF('DF raw data'!N12="","",'DF raw data'!N12) -> (PM) Permanent Magnet (no MPS in use) | C12: =IF('DF raw data'!C12="","",'DF raw data'!C12) ->  | D12: =IF('DF raw data'!D12="","",'DF raw data'!D12) -> 
A13: =IF('DF raw data'!M13="","",'DF raw data'!M13) -> Data format | B13: =IF('DF raw data'!N13="","",'DF raw data'!N13) -> Raw data text file | C13: =IF('DF raw data'!C13="","",'DF raw data'!C13) ->  | D13: =IF('DF raw data'!D13="","",'DF raw data'!D13) -> 
A14: =IF('DF raw data'!M14="","",'DF raw data'!M14) -> Direction of the pos. x-axis | B14: =IF('DF raw data'!N14="","",'DF raw data'!N14) -> See test program | C14: =IF('DF raw data'!C14="","",'DF raw data'!C14) ->  | D14: =IF('DF raw data'!D14="","",'DF raw data'!D14) -> 
A15: =IF('DF raw data'!M15="","",'DF raw data'!M15) -> Direction of the pos. y-axis | B15: =IF('DF raw data'!N15="","",'DF raw data'!N15) -> Vertical up | C15: =IF('DF raw data'!C15="","",'DF raw data'!C15) ->  | D15: =IF('DF raw data'!D15="","",'DF raw data'!D15) -> 
A16: =IF('DF raw data'!M16="","",'DF raw data'!M16) -> Direction of the pos. z-axis | B16: =IF('DF raw data'!N16="","",'DF raw data'!N16) -> See test program | C16: =IF('DF raw data'!C16="","",'DF raw data'!C16) ->  | D16: =IF('DF raw data'!D16="","",'DF raw data'!D16) -> 
A17: =IF('DF raw data'!M17="","",'DF raw data'!M17) -> Mapper type | B17: =IF('DF raw data'!N17="","",'DF raw data'!N17) -> Precision Hall Mapper | C17: =IF('DF raw data'!C17="","",'DF raw data'!C17) ->  | D17: =IF('DF raw data'!D17="","",'DF raw data'!D17) -> 
A18: =IF('DF raw data'!M18="","",'DF raw data'!M18) -> Mapper Danfysik Reg. Number | B18: =IF('DF raw data'!N18="","",'DF raw data'!N18) -> 2033-D (mapper 1) | C18: =IF('DF raw data'!C18="","",'DF raw data'!C18) ->  | D18: =IF('DF raw data'!D18="","",'DF raw data'!D18) -> 
A19: =IF('DF raw data'!M19="","",'DF raw data'!M19) -> Measurement consept | B19: =IF('DF raw data'!N19="","",'DF raw data'!N19) -> Square line grid | C19: =IF('DF raw data'!C19="","",'DF raw data'!C19) ->  | D19: =IF('DF raw data'!D19="","",'DF raw data'!D19) -> 
A20: =IF('DF raw data'!M20="","",'DF raw data'!M20) -> Mode | B20: =IF('DF raw data'!N20="","",'DF raw data'!N20) -> On-the-fly measurement | C20: =IF('DF raw data'!C20="","",'DF raw data'!C20) ->  | D20: =IF('DF raw data'!D20="","",'DF raw data'!D20) -> 
A21: =IF('DF raw data'!M21="","",'DF raw data'!M21) ->  | B21: =IF('DF raw data'!N21="","",'DF raw data'!N21) ->  | C21: =IF('DF raw data'!C21="","",'DF raw data'!C21) ->  | D21: =IF('DF raw data'!D21="","",'DF raw data'!D21) -> 
A22: =IF('DF raw data'!M22="","",'DF raw data'!M22) -> Probe Name | B22: =IF('DF raw data'!N22="","",'DF raw data'!N22) -> ID12_By | C22: =IF('DF raw data'!C22="","",'DF raw data'!C22) ->  | D22: =IF('DF raw data'!D22="","",'DF raw data'!D22) -> 
A23: =IF('DF raw data'!M23="","",'DF raw data'!M23) -> Probe Type | B23: =IF('DF raw data'!N23="","",'DF raw data'!N23) -> DF_ID_3D_Bxyz | C23: =IF('DF raw data'!C23="","",'DF raw data'!C23) ->  | D23: =IF('DF raw data'!D23="","",'DF raw data'!D23) -> 
A24: =IF('DF raw data'!M24="","",'DF raw data'!M24) -> Probe Danfysik Reg. Number | B24: =IF('DF raw data'!N24="","",'DF raw data'!N24) -> 2277 | C24: =IF('DF raw data'!C24="","",'DF raw data'!C24) ->  | D24: =IF('DF raw data'!D24="","",'DF raw data'!D24) -> 
A25: =IF('DF raw data'!M25="","",'DF raw data'!M25) -> Probe Axis | B25: =IF('DF raw data'!N25="","",'DF raw data'!N25) -> By | C25: =IF('DF raw data'!C25="","",'DF raw data'!C25) ->  | D25: =IF('DF raw data'!D25="","",'DF raw data'!D25) -> 
A26: =IF('DF raw data'!M26="","",'DF raw data'!M26) -> Probe Current Supply | B26: =IF('DF raw data'!N26="","",'DF raw data'!N26) -> 1825-D | C26: =IF('DF raw data'!C26="","",'DF raw data'!C26) ->  | D26: =IF('DF raw data'!D26="","",'DF raw data'!D26) -> 
A27: =IF('DF raw data'!M27="","",'DF raw data'!M27) -> Probe Gain Correction | B27: =IF('DF raw data'!N27="","",'DF raw data'!N27) -> 0.99611 | C27: =IF('DF raw data'!C27="","",'DF raw data'!C27) ->  | D27: =IF('DF raw data'!D27="","",'DF raw data'!D27) -> 
A28: =IF('DF raw data'!M28="","",'DF raw data'!M28) -> Probe Offset Correction | B28: =IF('DF raw data'!N28="","",'DF raw data'!N28) -> 0.0027639 | C28: =IF('DF raw data'!C28="","",'DF raw data'!C28) ->  | D28: =IF('DF raw data'!D28="","",'DF raw data'!D28) -> 
A29: =IF('DF raw data'!M29="","",'DF raw data'!M29) -> DVM Number | B29: =IF('DF raw data'!N29="","",'DF raw data'!N29) -> 2 | C29: =IF('DF raw data'!C29="","",'DF raw data'!C29) ->  | D29: =IF('DF raw data'!D29="","",'DF raw data'!D29) -> 
A30: =IF('DF raw data'!M30="","",'DF raw data'!M30) -> DVM Type | B30: =IF('DF raw data'!N30="","",'DF raw data'!N30) -> K2701 | C30: =IF('DF raw data'!C30="","",'DF raw data'!C30) ->  | D30: =IF('DF raw data'!D30="","",'DF raw data'!D30) -> 
A31: =IF('DF raw data'!M31="","",'DF raw data'!M31) -> DVM Danfysik Reg. Number | B31: =IF('DF raw data'!N31="","",'DF raw data'!N31) -> 1743-D | C31: =IF('DF raw data'!C31="","",'DF raw data'!C31) ->  | D31: =IF('DF raw data'!D31="","",'DF raw data'!D31) -> 
A32: =IF('DF raw data'!M32="","",'DF raw data'!M32) -> Probe Name | B32: =IF('DF raw data'!N32="","",'DF raw data'!N32) -> ID12_Bx | C32: =IF('DF raw data'!C32="","",'DF raw data'!C32) ->  | D32: =IF('DF raw data'!D32="","",'DF raw data'!D32) -> 
A33: =IF('DF raw data'!M33="","",'DF raw data'!M33) -> Probe Type | B33: =IF('DF raw data'!N33="","",'DF raw data'!N33) -> DF_ID_3D_Bxyz | C33: =IF('DF raw data'!C33="","",'DF raw data'!C33) ->  | D33: =IF('DF raw data'!D33="","",'DF raw data'!D33) -> 
A34: =IF('DF raw data'!M34="","",'DF raw data'!M34) -> Probe Danfysik Reg. Number | B34: =IF('DF raw data'!N34="","",'DF raw data'!N34) -> 2277 | C34: =IF('DF raw data'!C34="","",'DF raw data'!C34) ->  | D34: =IF('DF raw data'!D34="","",'DF raw data'!D34) -> 
A35: =IF('DF raw data'!M35="","",'DF raw data'!M35) -> Probe Axis | B35: =IF('DF raw data'!N35="","",'DF raw data'!N35) -> Bx | C35: =IF('DF raw data'!C35="","",'DF raw data'!C35) ->  | D35: =IF('DF raw data'!D35="","",'DF raw data'!D35) -> 
A36: =IF('DF raw data'!M36="","",'DF raw data'!M36) -> Probe Current Supply | B36: =IF('DF raw data'!N36="","",'DF raw data'!N36) -> 1825-D | C36: =IF('DF raw data'!C36="","",'DF raw data'!C36) ->  | D36: =IF('DF raw data'!D36="","",'DF raw data'!D36) -> 
A37: =IF('DF raw data'!M37="","",'DF raw data'!M37) -> Probe Gain Correction | B37: =IF('DF raw data'!N37="","",'DF raw data'!N37) -> 1 | C37: =IF('DF raw data'!C37="","",'DF raw data'!C37) ->  | D37: =IF('DF raw data'!D37="","",'DF raw data'!D37) -> 
A38: =IF('DF raw data'!M38="","",'DF raw data'!M38) -> Probe Offset Correction | B38: =IF('DF raw data'!N38="","",'DF raw data'!N38) -> -0.17554 | C38: =IF('DF raw data'!C38="","",'DF raw data'!C38) ->  | D38: =IF('DF raw data'!D38="","",'DF raw data'!D38) -> 
A39: =IF('DF raw data'!M39="","",'DF raw data'!M39) -> DVM Number | B39: =IF('DF raw data'!N39="","",'DF raw data'!N39) -> 3 | C39: =IF('DF raw data'!C39="","",'DF raw data'!C39) ->  | D39: =IF('DF raw data'!D39="","",'DF raw data'!D39) -> 
A40: =IF('DF raw data'!M40="","",'DF raw data'!M40) -> DVM Type | B40: =IF('DF raw data'!N40="","",'DF raw data'!N40) -> K2701 | C40: =IF('DF raw data'!C40="","",'DF raw data'!C40) ->  | D40: =IF('DF raw data'!D40="","",'DF raw data'!D40) -> 
A41: =IF('DF raw data'!M41="","",'DF raw data'!M41) -> DVM Danfysik Reg. Number | B41: =IF('DF raw data'!N41="","",'DF raw data'!N41) -> 1744-D | C41: =IF('DF raw data'!C41="","",'DF raw data'!C41) ->  | D41: =IF('DF raw data'!D41="","",'DF raw data'!D41) -> 
A42: =IF('DF raw data'!M42="","",'DF raw data'!M42) -> Probe Name | B42: =IF('DF raw data'!N42="","",'DF raw data'!N42) -> ID12_Bz | C42: =IF('DF raw data'!C42="","",'DF raw data'!C42) ->  | D42: =IF('DF raw data'!D42="","",'DF raw data'!D42) -> 
A43: =IF('DF raw data'!M43="","",'DF raw data'!M43) -> Probe Type | B43: =IF('DF raw data'!N43="","",'DF raw data'!N43) -> DF_ID_3D_Bxyz | C43: =IF('DF raw data'!C43="","",'DF raw data'!C43) ->  | D43: =IF('DF raw data'!D43="","",'DF raw data'!D43) -> 
A44: =IF('DF raw data'!M44="","",'DF raw data'!M44) -> Probe Danfysik Reg. Number | B44: =IF('DF raw data'!N44="","",'DF raw data'!N44) -> 2277 | C44: =IF('DF raw data'!C44="","",'DF raw data'!C44) ->  | D44: =IF('DF raw data'!D44="","",'DF raw data'!D44) -> 
A45: =IF('DF raw data'!M45="","",'DF raw data'!M45) -> Probe Axis | B45: =IF('DF raw data'!N45="","",'DF raw data'!N45) -> Bz | C45: =IF('DF raw data'!C45="","",'DF raw data'!C45) ->  | D45: =IF('DF raw data'!D45="","",'DF raw data'!D45) -> 
A46: =IF('DF raw data'!M46="","",'DF raw data'!M46) -> Probe Current Supply | B46: =IF('DF raw data'!N46="","",'DF raw data'!N46) -> 1825-D | C46: =IF('DF raw data'!C46="","",'DF raw data'!C46) ->  | D46: =IF('DF raw data'!D46="","",'DF raw data'!D46) -> 
A47: =IF('DF raw data'!M47="","",'DF raw data'!M47) -> Probe Gain Correction | B47: =IF('DF raw data'!N47="","",'DF raw data'!N47) -> 1 | C47: =IF('DF raw data'!C47="","",'DF raw data'!C47) ->  | D47: =IF('DF raw data'!D47="","",'DF raw data'!D47) -> 
A48: =IF('DF raw data'!M48="","",'DF raw data'!M48) -> Probe Offset Correction | B48: =IF('DF raw data'!N48="","",'DF raw data'!N48) -> 0.0073295 | C48: =IF('DF raw data'!C48="","",'DF raw data'!C48) ->  | D48: =IF('DF raw data'!D48="","",'DF raw data'!D48) -> 
A49: =IF('DF raw data'!M49="","",'DF raw data'!M49) -> DVM Number | B49: =IF('DF raw data'!N49="","",'DF raw data'!N49) -> 8 | C49: =IF('DF raw data'!C49="","",'DF raw data'!C49) ->  | D49: =IF('DF raw data'!D49="","",'DF raw data'!D49) -> 
A50: =IF('DF raw data'!M50="","",'DF raw data'!M50) -> DVM Type | B50: =IF('DF raw data'!N50="","",'DF raw data'!N50) -> K2700 | C50: =IF('DF raw data'!C50="","",'DF raw data'!C50) ->  | D50: =IF('DF raw data'!D50="","",'DF raw data'!D50) -> 
A51: =IF('DF raw data'!M51="","",'DF raw data'!M51) -> DVM Danfysik Reg. Number | B51: =IF('DF raw data'!N51="","",'DF raw data'!N51) -> 1756-D | C51: =IF('DF raw data'!C51="","",'DF raw data'!C51) ->  | D51: =IF('DF raw data'!D51="","",'DF raw data'!D51) -> 
A52: =IF('DF raw data'!M52="","",'DF raw data'!M52) -> NTC voltage | B52: =IF('DF raw data'!N52="","",'DF raw data'!N52) -> 0.40885 | C52: =IF('DF raw data'!C52="","",'DF raw data'!C52) ->  | D52: =IF('DF raw data'!D52="","",'DF raw data'!D52) -> 
A53: =IF('DF raw data'!M53="","",'DF raw data'!M53) -> PS-Gap: | B53: =IF('DF raw data'!N53="","",'DF raw data'!N53) -> 30 | C53: =IF('DF raw data'!C53="","",'DF raw data'!C53) ->  | D53: =IF('DF raw data'!D53="","",'DF raw data'!D53) -> 
A54: =IF('DF raw data'!M54="","",'DF raw data'!M54) -> PS-Temperature: | B54: =IF('DF raw data'!N54="","",'DF raw data'!N54) -> 25.1 | C54: =IF('DF raw data'!C54="","",'DF raw data'!C54) ->  | D54: =IF('DF raw data'!D54="","",'DF raw data'!D54) -> 
A55: =IF('DF raw data'!M55="","",'DF raw data'!M55) -> PS-Encoder: | B55: =IF('DF raw data'!N55="","",'DF raw data'!N55) -> 39.5551 | C55: =IF('DF raw data'!C55="","",'DF raw data'!C55) ->  | D55: =IF('DF raw data'!D55="","",'DF raw data'!D55) -> 
A56: =IF('DF raw data'!M56="","",'DF raw data'!M56) ->  | B56: =IF('DF raw data'!N56="","",'DF raw data'!N56) -> 
A57: =IF('DF raw data'!M57="","",'DF raw data'!M57) -> Monitor-Index | B57: =IF('DF raw data'!N57="","",'DF raw data'!N57) -> [1,1,4]
A58: =IF('DF raw data'!M58="","",'DF raw data'!M58) ->  | B58: =IF('DF raw data'!N58="","",'DF raw data'!N58) -> 
A59: =IF('DF raw data'!M59="","",'DF raw data'!M59) -> Time [s] | B59: =IF('DF raw data'!N59="","",'DF raw data'!N59) -> Y [mm]
A60: =IF('DF raw data'!M60="","",'DF raw data'!M60) ->  | B60: =IF('DF raw data'!N60="","",'DF raw data'!N60) -> 
A61: =IF('DF raw data'!M61="","",'DF raw data'!M61) -> 217.1 | B61: =IF('DF raw data'!N61="","",'DF raw data'!N61) -> 31.56
A62: =IF('DF raw data'!M62="","",'DF raw data'!M62) ->  | B62: =IF('DF raw data'!N62="","",'DF raw data'!N62) -> 
A63: =IF('DF raw data'!M63="","",'DF raw data'!M63) -> Measurement-Index | B63: =IF('DF raw data'!N63="","",'DF raw data'!N63) -> [1,1,1201,2]
A64: =IF('DF raw data'!M64="","",'DF raw data'!M64) ->  | B64: =IF('DF raw data'!N64="","",'DF raw data'!N64) -> 
A65: =IF('DF raw data'!M65="","",'DF raw data'!M65) -> Z [mm] | B65: =IF('DF raw data'!N65="","",'DF raw data'!N65) -> By [T] | C65: =IF('DF raw data'!O65="","",'DF raw data'!O65) -> Bx [T] | D65: =IF('DF raw data'!P65="","",'DF raw data'!P65) -> Bz [T] | F65: By_corr | G65: Bx_corr | H65: Bz_corr | J65: Iy | K65: Jy | L65: Ix | M65: Jx | N65: PI
B66: =IF('DF raw data'!N66="","",'DF raw data'!N66) ->  | C66: =IF('DF raw data'!O66="","",'DF raw data'!O66) ->  | D66: =IF('DF raw data'!P66="","",'DF raw data'!P66) -> 
A67: =IF('DF raw data'!M67="","",'DF raw data'!M67) -> -300 | B67: =IF('DF raw data'!N67="","",'DF raw data'!N67) -> -4.13193e-05 | C67: =IF('DF raw data'!O67="","",'DF raw data'!O67) -> 4.81754e-05 | D67: =IF('DF raw data'!P67="","",'DF raw data'!P67) -> -4.10089e-05 | F67: =(1-$G$1*($B$54-$G$2))*(B67-F$5) -> 3.12767018e-06 | G67: =(1-$G$1*($B$54-$G$2))*(C67-G$5) -> -2.167028695e-05 | H67: =(1-$G$1*($B$54-$G$2))*(D67-H$5) -> -0.004171707161 | J67: =F67*$G$3+J66 -> 1.56383509e-06 | K67: =J67*$G$3+K66 -> 7.81917545e-07 | L67: =G67*$G$3+L66 -> -1.083514347e-05 | M67: =L67*$G$3+M66 -> -5.417571737e-06 | N67: =(J67^2+L67^2)*$G$3+N66 -> 5.992295714e-11
A68: =IF('DF raw data'!M68="","",'DF raw data'!M68) -> -299.5 | B68: =IF('DF raw data'!N68="","",'DF raw data'!N68) -> -4.54855e-05 | C68: =IF('DF raw data'!O68="","",'DF raw data'!O68) -> 4.35815e-05 | D68: =IF('DF raw data'!P68="","",'DF raw data'!P68) -> -4.04807e-05 | F68: -1.05977744e-06 | G68: -2.628761584e-05 | H68: -0.004171176267 | J68: =F68*$G$3+J67 -> 1.03394637e-06 | K68: =J68*$G$3+K67 -> 1.29889073e-06 | L68: =G68*$G$3+L67 -> -2.397895139e-05 | M68: =L68*$G$3+M67 -> -1.740704743e-05 | N68: =(J68^2+L68^2)*$G$3+N67 -> 3.479525346e-10
A69: =IF('DF raw data'!M69="","",'DF raw data'!M69) -> -299 | B69: =IF('DF raw data'!N69="","",'DF raw data'!N69) -> -4.29864e-05 | C69: =IF('DF raw data'!O69="","",'DF raw data'!O69) -> 5.33509e-05 | D69: =IF('DF raw data'!P69="","",'DF raw data'!P69) -> -3.97212e-05 | F69: 1.45206797e-06 | G69: -1.64683919e-05 | H69: -0.004170412893 | J69: 1.759980355e-06 | K69: 2.178880908e-06 | L69: -3.221314734e-05 | M69: -3.35136211e-05 | N69: 8.683447309e-10
A70: =IF('DF raw data'!M70="","",'DF raw data'!M70) -> -298.5 | B70: =IF('DF raw data'!N70="","",'DF raw data'!N70) -> -3.27958e-05 | C70: =IF('DF raw data'!O70="","",'DF raw data'!O70) -> 6.27214e-05 | D70: =IF('DF raw data'!P70="","",'DF raw data'!P70) -> -3.9813e-05 | F70: 1.169464003e-05 | G70: -7.050102348e-06 | H70: -0.004170505162 | J70: 7.60730037e-06 | K70: 5.982531093e-06 | L70: -3.573819852e-05 | M70: -5.138272036e-05 | N70: 1.535889657e-09
A71: =IF('DF raw data'!M71="","",'DF raw data'!M71) -> -298 | B71: =IF('DF raw data'!N71="","",'DF raw data'!N71) -> -3.5487e-05 | C71: =IF('DF raw data'!O71="","",'DF raw data'!O71) -> 5.49454e-05 | D71: =IF('DF raw data'!P71="","",'DF raw data'!P71) -> -4.05906e-05 | F71: 8.98971491e-06 | G71: -1.486575995e-05 | H71: -0.004171286727 | J71: 1.210215783e-05 | K71: 1.203361001e-05 | L71: -4.317107849e-05 | M71: -7.296825961e-05 | N71: 2.540991778e-09
A72: =IF('DF raw data'!M72="","",'DF raw data'!M72) -> -297.5 | B72: =IF('DF raw data'!N72="","",'DF raw data'!N72) -> -3.43969e-05 | C72: =IF('DF raw data'!O72="","",'DF raw data'!O72) -> 5.04718e-05 | D72: =IF('DF raw data'!P72="","",'DF raw data'!P72) -> -4.13355e-05 | F72: 1.008537442e-05 | G72: -1.936217531e-05 | H72: -0.004172035426 | J72: 1.714484504e-05 | K72: 2.060603252e-05 | L72: -5.285216614e-05 | M72: -9.939434268e-05 | N72: 4.084640366e-09
A73: =IF('DF raw data'!M73="","",'DF raw data'!M73) -> -297 | B73: =IF('DF raw data'!N73="","",'DF raw data'!N73) -> -3.95885e-05 | C73: =IF('DF raw data'!O73="","",'DF raw data'!O73) -> 4.92355e-05 | D73: =IF('DF raw data'!P73="","",'DF raw data'!P73) -> -4.13774e-05 | F73: 4.86729726e-06 | G73: -2.060478044e-05 | H73: -0.00417207754 | J73: 1.957849367e-05 | K73: 3.039527936e-05 | L73: -6.315455636e-05 | M73: -0.0001309716209 | N73: 6.270548068e-09
A74: =IF('DF raw data'!M74="","",'DF raw data'!M74) -> -296.5 | B74: =IF('DF raw data'!N74="","",'DF raw data'!N74) -> -4.56137e-05 | C74: =IF('DF raw data'!O74="","",'DF raw data'!O74) -> 4.89595e-05 | D74: =IF('DF raw data'!P74="","",'DF raw data'!P74) -> -4.05319e-05 | F74: -1.18863126e-06 | G74: -2.088218804e-05 | H74: -0.004171227728 | J74: 1.898417804e-05 | K74: 3.988736837e-05 | L74: -7.359565038e-05 | M74: -0.000167769446 | N74: 9.158907453e-09
A75: =IF('DF raw data'!M75="","",'DF raw data'!M75) -> -296 | B75: =IF('DF raw data'!N75="","",'DF raw data'!N75) -> -3.94614e-05 | C75: =IF('DF raw data'!O75="","",'DF raw data'!O75) -> 4.31698e-05 | D75: =IF('DF raw data'!P75="","",'DF raw data'!P75) -> -3.96316e-05 | F75: 4.99504547e-06 | G75: -2.670141551e-05 | H75: -0.004170322837 | J75: 2.148170077e-05 | K75: 5.062821876e-05 | L75: -8.694635813e-05 | M75: -0.0002112426251 | N75: 1.316947378e-08
A76: =IF('DF raw data'!M76="","",'DF raw data'!M76) -> -295.5 | B76: =IF('DF raw data'!N76="","",'DF raw data'!N76) -> -3.48466e-05 | C76: =IF('DF raw data'!O76="","",'DF raw data'!O76) -> 5.11506e-05 | D76: =IF('DF raw data'!P76="","",'DF raw data'!P76) -> -3.98865e-05 | F76: 9.63338095e-06 | G76: -1.867991343e-05 | H76: -0.004170579037 | J76: 2.629839125e-05 | K76: 6.377741438e-05 | L76: -9.628631485e-05 | M76: -0.0002593857825 | N76: 1.815080369e-08
A77: =IF('DF raw data'!M77="","",'DF raw data'!M77) -> -295 | B77: =IF('DF raw data'!N77="","",'DF raw data'!N77) -> -2.61932e-05 | C77: =IF('DF raw data'!O77="","",'DF raw data'!O77) -> 5.39541e-05 | D77: =IF('DF raw data'!P77="","",'DF raw data'!P77) -> -4.1265e-05 | F77: 1.833091329e-05 | G77: -1.586211558e-05 | H77: -0.004171964567 | J77: 3.546384789e-05 | K77: 8.150933833e-05 | L77: -0.0001042173726 | M77: -0.0003114944689 | N77: 2.421027632e-08
A78: =IF('DF raw data'!M78="","",'DF raw data'!M78) -> -294.5 | B78: =IF('DF raw data'!N78="","",'DF raw data'!N78) -> -4.22797e-05 | C78: =IF('DF raw data'!O78="","",'DF raw data'!O78) -> 5.32616e-05 | D78: =IF('DF raw data'!P78="","",'DF raw data'!P78) -> -4.21375e-05 | F78: 2.16237214e-06 | G78: -1.655814733e-05 | H78: -0.004172841517 | J78: 3.654503396e-05 | K78: 9.978185531e-05 | L78: -0.0001124964463 | M78: -0.000367742692 | N78: 3.120577129e-08
A79: =IF('DF raw data'!M79="","",'DF raw data'!M79) -> -294 | B79: =IF('DF raw data'!N79="","",'DF raw data'!N79) -> -4.36259e-05 | C79: =IF('DF raw data'!O79="","",'DF raw data'!O79) -> 5.79572e-05 | D79: =IF('DF raw data'!P79="","",'DF raw data'!P79) -> -4.1771e-05 | F79: 8.0930652e-07 | G79: -1.183859977e-05 | H79: -0.004172473147 | J79: 3.694968722e-05 | K79: 0.0001182566989 | L79: -0.0001184157462 | M79: -0.0004269505651 | N79: 3.889955546e-08
A80: =IF('DF raw data'!M80="","",'DF raw data'!M80) -> -293.5 | B80: =IF('DF raw data'!N80="","",'DF raw data'!N80) -> -5.04845e-05 | C80: =IF('DF raw data'!O80="","",'DF raw data'!O80) -> 5.07306e-05 | D80: =IF('DF raw data'!P80="","",'DF raw data'!P80) -> -4.08765e-05 | F80: -6.08427234e-06 | G80: -1.910205543e-05 | H80: -0.004171574086 | J80: 3.390755105e-05 | K80: 0.0001352104744 | L80: -0.0001279667739 | M80: -0.000490933952 | N80: 4.766216408e-08
A81: =IF('DF raw data'!M81="","",'DF raw data'!M81) -> -293 | B81: =IF('DF raw data'!N81="","",'DF raw data'!N81) -> -4.0166e-05 | C81: =IF('DF raw data'!O81="","",'DF raw data'!O81) -> 4.84315e-05 | D81: =IF('DF raw data'!P81="","",'DF raw data'!P81) -> -4.00344e-05 | F81: 4.28685201e-06 | G81: -2.141288084e-05 | H81: -0.004170727691 | J81: 3.605097706e-05 | K81: 0.000153235963 | L81: -0.0001386732143 | M81: -0.0005602705592 | N81: 5.792713073e-08
A82: =IF('DF raw data'!M82="","",'DF raw data'!M82) -> -292.5 | B82: =IF('DF raw data'!N82="","",'DF raw data'!N82) -> -5.23441e-05 | C82: =IF('DF raw data'!O82="","",'DF raw data'!O82) -> 5.89653e-05 | D82: =IF('DF raw data'!P82="","",'DF raw data'!P82) -> -3.90924e-05 | F82: -7.9533563e-06 | G82: -1.082535846e-05 | H82: -0.004169780887 | J82: 3.207429891e-05 | K82: 0.0001692731124 | L82: -0.0001440858935 | M82: -0.000632313506 | N82: 6.882188342e-08
A83: =IF('DF raw data'!M83="","",'DF raw data'!M83) -> -292 | B83: =IF('DF raw data'!N83="","",'DF raw data'!N83) -> -3.08731e-05 | C83: =IF('DF raw data'!O83="","",'DF raw data'!O83) -> 6.27988e-05 | D83: =IF('DF raw data'!P83="","",'DF raw data'!P83) -> -3.9347e-05 | F83: 1.36271458e-05 | G83: -6.972307608e-06 | H83: -0.004170036785 | J83: 3.888787181e-05 | K83: 0.0001887170483 | L83: -0.0001475720473 | M83: -0.0007060995297 | N83: 8.046677128e-08
A84: =IF('DF raw data'!M84="","",'DF raw data'!M84) -> -291.5 | B84: =IF('DF raw data'!N84="","",'DF raw data'!N84) -> -2.47222e-05 | C84: =IF('DF raw data'!O84="","",'DF raw data'!O84) -> 5.87979e-05 | D84: =IF('DF raw data'!P84="","",'DF raw data'!P84) -> -3.63726e-05 | F84: 1.980941539e-05 | G84: -1.09936122e-05 | H84: -0.004167047216 | J84: 4.87925795e-05 | K84: 0.0002131133381 | L84: -0.0001530688534 | M84: -0.0007826339564 | N84: 9.337216614e-08
A85: =IF('DF raw data'!M85="","",'DF raw data'!M85) -> -291 | B85: =IF('DF raw data'!N85="","",'DF raw data'!N85) -> -4.40173e-05 | C85: =IF('DF raw data'!O85="","",'DF raw data'!O85) -> 5.80154e-05 | D85: =IF('DF raw data'!P85="","",'DF raw data'!P85) -> -3.12803e-05 | F85: 4.1591038e-07 | G85: -1.178010295e-05 | H85: -0.004161928945 | J85: 4.900053469e-05 | K85: 0.0002376136054 | L85: -0.0001589589049 | M85: -0.0008621134088 | N85: 1.072066591e-07
A86: =IF('DF raw data'!M86="","",'DF raw data'!M86) -> -290.5 | B86: =IF('DF raw data'!N86="","",'DF raw data'!N86) -> -4.27325e-05 | C86: =IF('DF raw data'!O86="","",'DF raw data'!O86) -> 5.05465e-05 | D86: =IF('DF raw data'!P86="","",'DF raw data'!P86) -> -3.59474e-05 | F86: 1.70726286e-06 | G86: -1.928709434e-05 | H86: -0.004166619847 | J86: 4.985416612e-05 | K86: 0.0002625406885 | L86: -0.0001686024521 | M86: -0.0009464146349 | N86: 1.226627714e-07
A87: =IF('DF raw data'!M87="","",'DF raw data'!M87) -> -290 | B87: =IF('DF raw data'!N87="","",'DF raw data'!N87) -> -2.6199e-05 | C87: =IF('DF raw data'!O87="","",'DF raw data'!O87) -> 4.73007e-05 | D87: =IF('DF raw data'!P87="","",'DF raw data'!P87) -> -3.23517e-05 | F87: 1.832508371e-05 | G87: -2.254944792e-05 | H87: -0.004163005809 | J87: 5.901670798e-05 | K87: 0.0002920490425 | L87: -0.000179877176 | M87: -0.001036353223 | N87: 1.405821566e-07
A88: =IF('DF raw data'!M88="","",'DF raw data'!M88) -> -289.5 | B88: =IF('DF raw data'!N88="","",'DF raw data'!N88) -> -4.10675e-05 | C88: =IF('DF raw data'!O88="","",'DF raw data'!O88) -> 5.1668e-05 | D88: =IF('DF raw data'!P88="","",'DF raw data'!P88) -> -3.34903e-05 | F88: 3.38075436e-06 | G88: -1.815987469e-05 | H88: -0.004164150216 | J88: 6.070708516e-05 | K88: 0.000322402585 | L88: -0.0001889571134 | M88: -0.00113083178 | N88: 1.60277227e-07
A89: =IF('DF raw data'!M89="","",'DF raw data'!M89) -> -289 | B89: =IF('DF raw data'!N89="","",'DF raw data'!N89) -> -3.86371e-05 | C89: =IF('DF raw data'!O89="","",'DF raw data'!O89) -> 5.51368e-05 | D89: =IF('DF raw data'!P89="","",'DF raw data'!P89) -> -2.5707e-05 | F89: 5.8235494e-06 | G89: -1.467338381e-05 | H89: -0.004156327221 | J89: 6.361885986e-05 | K89: 0.000354212015 | L89: -0.0001962938053 | M89: -0.001228978682 | N89: 1.815665357e-07
A90: =IF('DF raw data'!M90="","",'DF raw data'!M90) -> -288.5 | B90: =IF('DF raw data'!N90="","",'DF raw data'!N90) -> -3.74787e-05 | C90: =IF('DF raw data'!O90="","",'DF raw data'!O90) -> 5.81491e-05 | D90: =IF('DF raw data'!P90="","",'DF raw data'!P90) -> -3.31331e-05 | F90: 6.98785724e-06 | G90: -1.164572108e-05 | H90: -0.004163791194 | J90: 6.711278848e-05 | K90: 0.0003877684092 | L90: -0.0002021166658 | M90: -0.001330037015 | N90: 2.042441722e-07
A91: =IF('DF raw data'!M91="","",'DF raw data'!M91) -> -288 | B91: =IF('DF raw data'!N91="","",'DF raw data'!N91) -> -2.63909e-05 | C91: =IF('DF raw data'!O91="","",'DF raw data'!O91) -> 6.28406e-05 | D91: =IF('DF raw data'!P91="","",'DF raw data'!P91) -> -3.30777e-05 | F91: 1.813220502e-05 | G91: -6.930294428e-06 | H91: -0.004163735512 | J91: 7.617889099e-05 | K91: 0.0004258578547 | L91: -0.000205581813 | M91: -0.001432827922 | N91: 2.282777248e-07
A92: =IF('DF raw data'!M92="","",'DF raw data'!M92) -> -287.5 | B92: =IF('DF raw data'!N92="","",'DF raw data'!N92) -> -3.3569e-05 | C92: =IF('DF raw data'!O92="","",'DF raw data'!O92) -> 6.15167e-05 | D92: =IF('DF raw data'!P92="","",'DF raw data'!P92) -> -3.33538e-05 | F92: 1.091749671e-05 | G92: -8.260946318e-06 | H92: -0.00416401302 | J92: 8.163763934e-05 | K92: 0.0004666766744 | L92: -0.0002097122862 | M92: -0.001537684065 | N92: 2.535996984e-07
A93: =IF('DF raw data'!M93="","",'DF raw data'!M93) -> -287 | B93: =IF('DF raw data'!N93="","",'DF raw data'!N93) -> -3.10687e-05 | C93: =IF('DF raw data'!O93="","",'DF raw data'!O93) -> 5.69019e-05 | D93: =IF('DF raw data'!P93="","",'DF raw data'!P93) -> -3.44101e-05 | F93: 1.343054824e-05 | G93: -1.28992818e-05 | H93: -0.004165074707 | J93: 8.835291346e-05 | K93: 0.0005108531311 | L93: -0.0002161619271 | M93: -0.001645765028 | N93: 2.808658064e-07
A94: =IF('DF raw data'!M94="","",'DF raw data'!M94) -> -286.5 | B94: =IF('DF raw data'!N94="","",'DF raw data'!N94) -> -3.6321e-05 | C94: =IF('DF raw data'!O94="","",'DF raw data'!O94) -> 4.36576e-05 | D94: =IF('DF raw data'!P94="","",'DF raw data'!P94) -> -3.94835e-05 | F94: 8.15146151e-06 | G94: -2.621112773e-05 | H94: -0.004170173981 | J94: 9.242864422e-05 | K94: 0.0005570674532 | L94: -0.000229267491 | M94: -0.001760398774 | N94: 3.114191248e-07
A95: =IF('DF raw data'!M95="","",'DF raw data'!M95) -> -286 | B95: =IF('DF raw data'!N95="","",'DF raw data'!N95) -> -3.07396e-05 | C95: =IF('DF raw data'!O95="","",'DF raw data'!O95) -> 5.08072e-05 | D95: =IF('DF raw data'!P95="","",'DF raw data'!P95) -> -4.75732e-05 | F95: 1.376132665e-05 | G95: -1.902506477e-05 | H95: -0.004178304939 | J95: 9.930930754e-05 | K95: 0.000606722107 | L95: -0.0002387800234 | M95: -0.001879788786 | N95: 3.448582438e-07
A96: =IF('DF raw data'!M96="","",'DF raw data'!M96) -> -285.5 | B96: =IF('DF raw data'!N96="","",'DF raw data'!N96) -> -4.20902e-05 | C96: =IF('DF raw data'!O96="","",'DF raw data'!O96) -> 6.00472e-05 | D96: =IF('DF raw data'!P96="","",'DF raw data'!P96) -> -3.81225e-05 | F96: 2.35283859e-06 | G96: -9.737940768e-06 | H96: -0.00416880604 | J96: 0.0001004857268 | K96: 0.0006569649704 | L96: -0.0002436489937 | M96: -0.002001613282 | N96: 3.795893505e-07
A97: =IF('DF raw data'!M97="","",'DF raw data'!M97) -> -285 | B97: =IF('DF raw data'!N97="","",'DF raw data'!N97) -> -3.65132e-05 | C97: =IF('DF raw data'!O97="","",'DF raw data'!O97) -> 5.79366e-05 | D97: =IF('DF raw data'!P97="","",'DF raw data'!P97) -> -3.93073e-05 | F97: 7.95828129e-06 | G97: -1.185930483e-05 | H97: -0.004169996883 | J97: 0.0001044648675 | K97: 0.0007091974041 | L97: -0.0002495786462 | M97: -0.002126402605 | N97: 4.161905551e-07
A98: =IF('DF raw data'!M98="","",'DF raw data'!M98) -> -284.5 | B98: =IF('DF raw data'!N98="","",'DF raw data'!N98) -> -3.92706e-05 | C98: =IF('DF raw data'!O98="","",'DF raw data'!O98) -> 5.26185e-05 | D98: =IF('DF raw data'!P98="","",'DF raw data'!P98) -> -3.70784e-05 | F98: 5.18681855e-06 | G98: -1.720452714e-05 | H98: -0.004167756615 | J98: 0.0001070582768 | K98: 0.0007627265425 | L98: -0.0002581809097 | M98: -0.00225549306 | N98: 4.552499835e-07
A99: =IF('DF raw data'!M99="","",'DF raw data'!M99) -> -284 | B99: =IF('DF raw data'!N99="","",'DF raw data'!N99) -> -3.48526e-05 | C99: =IF('DF raw data'!O99="","",'DF raw data'!O99) -> 5.68823e-05 | D99: =IF('DF raw data'!P99="","",'DF raw data'!P99) -> -3.05447e-05 | F99: 9.62735035e-06 | G99: -1.291898176e-05 | H99: -0.004161189593 | J99: 0.0001118719519 | K99: 0.0008186625185 | L99: -0.0002646404006 | M99: -0.002387813261 | N99: 4.965249211e-07
A100: =IF('DF raw data'!M100="","",'DF raw data'!M100) -> -283.5 | B100: =IF('DF raw data'!N100="","",'DF raw data'!N100) -> -3.47296e-05 | C100: =IF('DF raw data'!O100="","",'DF raw data'!O100) -> 6.23443e-05 | D100: =IF('DF raw data'!P100="","",'DF raw data'!P100) -> -2.25475e-05 | F100: 9.75097765e-06 | G100: -7.429125558e-06 | H100: -0.004153151608 | J100: 0.0001167474408 | K100: 0.0008770362389 | L100: -0.0002683549634 | M100: -0.002521990742 | N100: 5.393470968e-07
A101: =IF('DF raw data'!M101="","",'DF raw data'!M101) -> -283 | B101: =IF('DF raw data'!N101="","",'DF raw data'!N101) -> -3.63211e-05 | C101: =IF('DF raw data'!O101="","",'DF raw data'!O101) -> 5.77594e-05 | D101: =IF('DF raw data'!P101="","",'DF raw data'!P101) -> -3.93359e-05 | F101: 8.151361e-06 | G101: -1.203740855e-05 | H101: -0.004170025628 | J101: 0.0001208231213 | K101: 0.0009374477995 | L101: -0.0002743736677 | M101: -0.002659177576 | N101: 5.842866648e-07
A102: =IF('DF raw data'!M102="","",'DF raw data'!M102) -> -282.5 | B102: =IF('DF raw data'!N102="","",'DF raw data'!N102) -> -3.51669e-05 | C102: =IF('DF raw data'!O102="","",'DF raw data'!O102) -> 4.81259e-05 | D102: =IF('DF raw data'!P102="","",'DF raw data'!P102) -> -4.0248e-05 | F102: 9.31144742e-06 | G102: -2.17200394e-05 | H102: -0.00417094238 | J102: 0.000125478845 | K102: 0.001000187222 | L102: -0.0002852336874 | M102: -0.00280179442 | N102: 6.328382633e-07
A103: =IF('DF raw data'!M103="","",'DF raw data'!M103) -> -282 | B103: =IF('DF raw data'!N103="","",'DF raw data'!N103) -> -4.19651e-05 | C103: =IF('DF raw data'!O103="","",'DF raw data'!O103) -> 4.34215e-05 | D103: =IF('DF raw data'!P103="","",'DF raw data'!P103) -> -3.33339e-05 | F103: 2.4785766e-06 | G103: -2.644843184e-05 | H103: -0.004163993018 | J103: 0.0001267181333 | K103: 0.001063546289 | L103: -0.0002984579033 | M103: -0.002951023371 | N103: 6.85405566e-07
A104: =IF('DF raw data'!M104="","",'DF raw data'!M104) -> -281.5 | B104: =IF('DF raw data'!N104="","",'DF raw data'!N104) -> -4.34458e-05 | C104: =IF('DF raw data'!O104="","",'DF raw data'!O104) -> 4.23869e-05 | D104: =IF('DF raw data'!P104="","",'DF raw data'!P104) -> -2.28643e-05 | F104: 9.9032503e-07 | G104: -2.74883083e-05 | H104: -0.004153470023 | J104: 0.0001272132958 | K104: 0.001127152936 | L104: -0.0003122020574 | M104: -0.0031071244 | N104: 7.422322396e-07
A105: =IF('DF raw data'!M105="","",'DF raw data'!M105) -> -281 | B105: =IF('DF raw data'!N105="","",'DF raw data'!N105) -> -3.99172e-05 | C105: =IF('DF raw data'!O105="","",'DF raw data'!O105) -> 4.95844e-05 | D105: =IF('DF raw data'!P105="","",'DF raw data'!P105) -> -2.83633e-05 | F105: 4.53692089e-06 | G105: -2.025410105e-05 | H105: -0.004158997068 | J105: 0.0001294817562 | K105: 0.001191893815 | L105: -0.0003223291079 | M105: -0.003268288954 | N105: 8.025630291e-07
A106: =IF('DF raw data'!M106="","",'DF raw data'!M106) -> -280.5 | B106: =IF('DF raw data'!N106="","",'DF raw data'!N106) -> -3.37637e-05 | C106: =IF('DF raw data'!O106="","",'DF raw data'!O106) -> 5.13609e-05 | D106: =IF('DF raw data'!P106="","",'DF raw data'!P106) -> -2.93203e-05 | F106: 1.072180374e-05 | G106: -1.84685409e-05 | H106: -0.004159958949 | J106: 0.0001348426581 | K106: 0.001259315144 | L106: -0.0003315633784 | M106: -0.003434070643 | N106: 8.666214373e-07
A107: =IF('DF raw data'!M107="","",'DF raw data'!M107) -> -280 | B107: =IF('DF raw data'!N107="","",'DF raw data'!N107) -> -3.56888e-05 | C107: =IF('DF raw data'!O107="","",'DF raw data'!O107) -> 5.73927e-05 | D107: =IF('DF raw data'!P107="","",'DF raw data'!P107) -> -2.61003e-05 | F107: 8.78688573e-06 | G107: -1.240597872e-05 | H107: -0.004156722527 | J107: 0.000139236101 | K107: 0.001328933194 | L107: -0.0003377663678 | M107: -0.003602953827 | N107: 9.333578428e-07
A108: =IF('DF raw data'!M108="","",'DF raw data'!M108) -> -279.5 | B108: =IF('DF raw data'!N108="","",'DF raw data'!N108) -> -3.29943e-05 | C108: =IF('DF raw data'!O108="","",'DF raw data'!O108) -> 5.40629e-05 | D108: =IF('DF raw data'!P108="","",'DF raw data'!P108) -> -2.99363e-05 | F108: 1.149512768e-05 | G108: -1.57527607e-05 | H108: -0.00416057809 | J108: 0.0001449836648 | K108: 0.001401425027 | L108: -0.0003456427481 | M108: -0.003775775201 | N108: 1.003602429e-06
A109: =IF('DF raw data'!M109="","",'DF raw data'!M109) -> -279 | B109: =IF('DF raw data'!N109="","",'DF raw data'!N109) -> -3.61363e-05 | C109: =IF('DF raw data'!O109="","",'DF raw data'!O109) -> 5.95349e-05 | D109: =IF('DF raw data'!P109="","",'DF raw data'!P109) -> -2.74987e-05 | F109: 8.33710348e-06 | G109: -1.02528535e-05 | H109: -0.004158128059 | J109: 0.0001491522165 | K109: 0.001476001135 | L109: -0.0003507691748 | M109: -0.003951159789 | N109: 1.076245128e-06
A110: =IF('DF raw data'!M110="","",'DF raw data'!M110) -> -278.5 | B110: =IF('DF raw data'!N110="","",'DF raw data'!N110) -> -3.13928e-05 | C110: =IF('DF raw data'!O110="","",'DF raw data'!O110) -> 4.99623e-05 | D110: =IF('DF raw data'!P110="","",'DF raw data'!P110) -> -2.85682e-05 | F110: 1.310479533e-05 | G110: -1.987427376e-05 | H110: -0.004159203013 | J110: 0.0001557046142 | K110: 0.001553853442 | L110: -0.0003607063117 | M110: -0.004131512945 | N110: 1.153421613e-06
A111: =IF('DF raw data'!M111="","",'DF raw data'!M111) -> -278 | B111: =IF('DF raw data'!N111="","",'DF raw data'!N111) -> -3.79993e-05 | C111: =IF('DF raw data'!O111="","",'DF raw data'!O111) -> 4.34438e-05 | D111: =IF('DF raw data'!P111="","",'DF raw data'!P111) -> -2.0961e-05 | F111: 6.46460218e-06 | G111: -2.642601811e-05 | H111: -0.004151557016 | J111: 0.0001589369153 | K111: 0.0016333219 | L111: -0.0003739193208 | M111: -0.004318472605 | N111: 1.235959914e-06
A112: =IF('DF raw data'!M112="","",'DF raw data'!M112) -> -277.5 | B112: =IF('DF raw data'!N112="","",'DF raw data'!N112) -> -2.87702e-05 | C112: =IF('DF raw data'!O112="","",'DF raw data'!O112) -> 4.52991e-05 | D112: =IF('DF raw data'!P112="","",'DF raw data'!P112) -> -2.05748e-05 | F112: 1.574077059e-05 | G112: -2.456125608e-05 | H112: -0.004151168847 | J112: 0.0001668073006 | K112: 0.00171672555 | L112: -0.0003861999488 | M112: -0.004511572579 | N112: 1.324447452e-06
A113: =IF('DF raw data'!M113="","",'DF raw data'!M113) -> -277 | B113: =IF('DF raw data'!N113="","",'DF raw data'!N113) -> -4.10694e-05 | C113: =IF('DF raw data'!O113="","",'DF raw data'!O113) -> 4.79329e-05 | D113: =IF('DF raw data'!P113="","",'DF raw data'!P113) -> -3.04126e-05 | F113: 3.37884467e-06 | G113: -2.19140237e-05 | H113: -0.00416105682 | J113: 0.0001684967229 | K113: 0.001800973911 | L113: -0.0003971569607 | M113: -0.00471015106 | N113: 1.41750985e-06
A114: =IF('DF raw data'!M114="","",'DF raw data'!M114) -> -276.5 | B114: =IF('DF raw data'!N114="","",'DF raw data'!N114) -> -5.14485e-05 | C114: =IF('DF raw data'!O114="","",'DF raw data'!O114) -> 5.83108e-05 | D114: =IF('DF raw data'!P114="","",'DF raw data'!P114) -> -3.64688e-05 | F114: -7.05318874e-06 | G114: -1.148319641e-05 | H114: -0.004167143906 | J114: 0.0001649701286 | K114: 0.001883458976 | L114: -0.0004028985589 | M114: -0.004911600339 | N114: 1.512281046e-06
A115: =IF('DF raw data'!M115="","",'DF raw data'!M115) -> -276 | B115: =IF('DF raw data'!N115="","",'DF raw data'!N115) -> -4.79906e-05 | C115: =IF('DF raw data'!O115="","",'DF raw data'!O115) -> 5.53134e-05 | D115: =IF('DF raw data'!P115="","",'DF raw data'!P115) -> -3.20193e-05 | F115: -3.57765345e-06 | G115: -1.449588315e-05 | H115: -0.004162671714 | J115: 0.0001631813018 | K115: 0.001965049626 | L115: -0.0004101465004 | M115: -0.005116673589 | N115: 1.609705191e-06
A116: =IF('DF raw data'!M116="","",'DF raw data'!M116) -> -275.5 | B116: =IF('DF raw data'!N116="","",'DF raw data'!N116) -> -4.27988e-05 | C116: =IF('DF raw data'!O116="","",'DF raw data'!O116) -> 4.88769e-05 | D116: =IF('DF raw data'!P116="","",'DF raw data'!P116) -> -3.22342e-05 | F116: 1.64062473e-06 | G116: -2.09652093e-05 | H116: -0.00416288771 | J116: 0.0001640016142 | K116: 0.002047050434 | L116: -0.0004206291051 | M116: -0.005326988142 | N116: 1.711617878e-06
A117: =IF('DF raw data'!M117="","",'DF raw data'!M117) -> -275 | B117: =IF('DF raw data'!N117="","",'DF raw data'!N117) -> -3.24104e-05 | C117: =IF('DF raw data'!O117="","",'DF raw data'!O117) -> 5.15643e-05 | D117: =IF('DF raw data'!P117="","",'DF raw data'!P117) -> -4.09913e-05 | F117: 1.208200557e-05 | G117: -1.826410356e-05 | H117: -0.004171689471 | J117: 0.000170042617 | K117: 0.002132071742 | L117: -0.0004297611569 | M117: -0.00554186872 | N117: 1.818422449e-06
A118: =IF('DF raw data'!M118="","",'DF raw data'!M118) -> -274.5 | B118: =IF('DF raw data'!N118="","",'DF raw data'!N118) -> -4.28004e-05 | C118: =IF('DF raw data'!O118="","",'DF raw data'!O118) -> 4.55327e-05 | D118: =IF('DF raw data'!P118="","",'DF raw data'!P118) -> -2.97968e-05 | F118: 1.63901657e-06 | G118: -2.432646472e-05 | H118: -0.004160437879 | J118: 0.0001708621253 | K118: 0.002217502805 | L118: -0.0004419243892 | M118: -0.005762830915 | N118: 1.930667965e-06
A119: =IF('DF raw data'!M119="","",'DF raw data'!M119) -> -274 | B119: =IF('DF raw data'!N119="","",'DF raw data'!N119) -> -4.53588e-05 | C119: =IF('DF raw data'!O119="","",'DF raw data'!O119) -> 4.23283e-05 | D119: =IF('DF raw data'!P119="","",'DF raw data'!P119) -> -3.80544e-05 | F119: -9.3243127e-07 | G119: -2.754720716e-05 | H119: -0.004168737593 | J119: 0.0001703959096 | K119: 0.00230270076 | L119: -0.0004556979928 | M119: -0.005990679911 | N119: 2.049015678e-06
A120: =IF('DF raw data'!M120="","",'DF raw data'!M120) -> -273.5 | B120: =IF('DF raw data'!N120="","",'DF raw data'!N120) -> -4.85748e-05 | C120: =IF('DF raw data'!O120="","",'DF raw data'!O120) -> 4.57228e-05 | D120: =IF('DF raw data'!P120="","",'DF raw data'!P120) -> -2.02575e-05 | F120: -4.16483287e-06 | G120: -2.413539521e-05 | H120: -0.004150849929 | J120: 0.0001683134932 | K120: 0.002386857506 | L120: -0.0004677656904 | M120: -0.006224562757 | N120: 2.172582765e-06
A121: =IF('DF raw data'!M121="","",'DF raw data'!M121) -> -273 | B121: =IF('DF raw data'!N121="","",'DF raw data'!N121) -> -3.33156e-05 | C121: =IF('DF raw data'!O121="","",'DF raw data'!O121) -> 4.8289e-05 | D121: =IF('DF raw data'!P121="","",'DF raw data'!P121) -> -2.88147e-05 | F121: 1.117218905e-05 | G121: -2.155610759e-05 | H121: -0.00415945077 | J121: 0.0001738995877 | K121: 0.0024738073 | L121: -0.0004785437442 | M121: -0.006463834629 | N121: 2.302205356e-06
A122: =IF('DF raw data'!M122="","",'DF raw data'!M122) -> -272.5 | B122: =IF('DF raw data'!N122="","",'DF raw data'!N122) -> -4.39541e-05 | C122: =IF('DF raw data'!O122="","",'DF raw data'!O122) -> 4.275e-05 | D122: =IF('DF raw data'!P122="","",'DF raw data'!P122) -> -2.95557e-05 | F122: 4.794327e-07 | G122: -2.712335649e-05 | H122: -0.004160195549 | J122: 0.0001741393041 | K122: 0.002560876952 | L122: -0.0004921054225 | M122: -0.00670988734 | N122: 2.438451478e-06
A123: =IF('DF raw data'!M123="","",'DF raw data'!M123) -> -272 | B123: =IF('DF raw data'!N123="","",'DF raw data'!N123) -> -3.67684e-05 | C123: =IF('DF raw data'!O123="","",'DF raw data'!O123) -> 4.93731e-05 | D123: =IF('DF raw data'!P123="","",'DF raw data'!P123) -> -4.10281e-05 | F123: 7.70177977e-06 | G123: -2.046647868e-05 | H123: -0.004171726459 | J123: 0.000177990194 | K123: 0.002649872049 | L123: -0.0005023386618 | M123: -0.006961056671 | N123: 2.580463798e-06
A124: =IF('DF raw data'!M124="","",'DF raw data'!M124) -> -271.5 | B124: =IF('DF raw data'!N124="","",'DF raw data'!N124) -> -4.45921e-05 | C124: =IF('DF raw data'!O124="","",'DF raw data'!O124) -> 4.1111e-05 | D124: =IF('DF raw data'!P124="","",'DF raw data'!P124) -> -3.45413e-05 | F124: -1.618211e-07 | G124: -2.877071539e-05 | H124: -0.004165206576 | J124: 0.0001779092834 | K124: 0.002738826691 | L124: -0.0005167240195 | M124: -0.007219418681 | N124: 2.729791511e-06
A125: =IF('DF raw data'!M125="","",'DF raw data'!M125) -> -271 | B125: =IF('DF raw data'!N125="","",'DF raw data'!N125) -> -2.79839e-05 | C125: =IF('DF raw data'!O125="","",'DF raw data'!O125) -> 3.80967e-05 | D125: =IF('DF raw data'!P125="","",'DF raw data'!P125) -> -4.70395e-05 | F125: 1.653108072e-05 | G125: -3.180038832e-05 | H125: -0.004177768517 | J125: 0.0001861748238 | K125: 0.002831914103 | L125: -0.0005326242136 | M125: -0.007485730787 | N125: 2.88896632e-06
A126: =IF('DF raw data'!M126="","",'DF raw data'!M126) -> -270.5 | B126: =IF('DF raw data'!N126="","",'DF raw data'!N126) -> -3.52415e-05 | C126: =IF('DF raw data'!O126="","",'DF raw data'!O126) -> 4.31441e-05 | D126: =IF('DF raw data'!P126="","",'DF raw data'!P126) -> -2.38152e-05 | F126: 9.23646696e-06 | G126: -2.672724658e-05 | H126: -0.004154425773 | J126: 0.0001907930572 | K126: 0.002927310631 | L126: -0.0005459878369 | M126: -0.007758724706 | N126: 3.056218674e-06
A127: =IF('DF raw data'!M127="","",'DF raw data'!M127) -> -270 | B127: =IF('DF raw data'!N127="","",'DF raw data'!N127) -> -2.70912e-05 | C127: =IF('DF raw data'!O127="","",'DF raw data'!O127) -> 5.53989e-05 | D127: =IF('DF raw data'!P127="","",'DF raw data'!P127) -> -4.00562e-05 | F127: 1.742833349e-05 | G127: -1.44099471e-05 | H127: -0.004170749602 | J127: 0.000199507224 | K127: 0.003027064243 | L127: -0.0005531928105 | M127: -0.008035321111 | N127: 3.229131383e-06
A128: =IF('DF raw data'!M128="","",'DF raw data'!M128) -> -269.5 | B128: =IF('DF raw data'!N128="","",'DF raw data'!N128) -> -3.23491e-05 | C128: =IF('DF raw data'!O128="","",'DF raw data'!O128) -> 5.30666e-05 | D128: =IF('DF raw data'!P128="","",'DF raw data'!P128) -> -3.64949e-05 | F128: 1.21436182e-05 | G128: -1.675414183e-05 | H128: -0.004167170139 | J128: 0.0002055790331 | K128: 0.00312985376 | L128: -0.0005615698814 | M128: -0.008316106052 | N128: 3.407943118e-06
A129: =IF('DF raw data'!M129="","",'DF raw data'!M129) -> -269 | B129: =IF('DF raw data'!N129="","",'DF raw data'!N129) -> -3.72247e-05 | C129: =IF('DF raw data'!O129="","",'DF raw data'!O129) -> 4.10887e-05 | D129: =IF('DF raw data'!P129="","",'DF raw data'!P129) -> -2.94848e-05 | F129: 7.24315264e-06 | G129: -2.879312912e-05 | H129: -0.004160124288 | J129: 0.0002092006094 | K129: 0.003234454064 | L129: -0.000575966446 | M129: -0.008604089275 | N129: 3.595694239e-06
A130: =IF('DF raw data'!M130="","",'DF raw data'!M130) -> -268.5 | B130: =IF('DF raw data'!N130="","",'DF raw data'!N130) -> -4.62615e-05 | C130: =IF('DF raw data'!O130="","",'DF raw data'!O130) -> 4.80138e-05 | D130: =IF('DF raw data'!P130="","",'DF raw data'!P130) -> -2.9701e-05 | F130: -1.83973504e-06 | G130: -2.183271111e-05 | H130: -0.00416034159 | J130: 0.0002082807419 | K130: 0.003338594435 | L130: -0.0005868828015 | M130: -0.008897530675 | N130: 3.789600384e-06
A131: =IF('DF raw data'!M131="","",'DF raw data'!M131) -> -268 | B131: =IF('DF raw data'!N131="","",'DF raw data'!N131) -> -3.45985e-05 | C131: =IF('DF raw data'!O131="","",'DF raw data'!O131) -> 5.22736e-05 | D131: =IF('DF raw data'!P131="","",'DF raw data'!P131) -> -2.69488e-05 | F131: =(1-$G$1*($B$54-$G$2))*(B131-F$5) -> 9.88274626e-06 | G131: =(1-$G$1*($B$54-$G$2))*(C131-G$5) -> -1.755118613e-05 | H131: =(1-$G$1*($B$54-$G$2))*(D131-H$5) -> -0.004157575354 | J131: 0.000213222115 | K131: 0.003445205493 | L131: -0.0005956583946 | M131: -0.009195359873 | N131: 3.989736681e-06
A132: =IF('DF raw data'!M132="","",'DF raw data'!M132) -> -267.5 | B132: =IF('DF raw data'!N132="","",'DF raw data'!N132) -> -4.10007e-05 | C132: =IF('DF raw data'!O132="","",'DF raw data'!O132) -> 4.58689e-05 | D132: =IF('DF raw data'!P132="","",'DF raw data'!P132) -> -3.77693e-05 | F132: 3.44789504e-06 | G132: -2.39885501e-05 | H132: -0.004168451039 | J132: =F132*$G$3+J131 -> 0.0002149460625 | K132: =J132*$G$3+K131 -> 0.003552678524 | L132: =G132*$G$3+L131 -> -0.0006076526696 | M132: =L132*$G$3+M131 -> -0.009499186208 | N132: =(J132^2+L132^2)*$G$3+N131 -> 4.197458469e-06
A133: =IF('DF raw data'!M133="","",'DF raw data'!M133) -> -267 | B133: =IF('DF raw data'!N133="","",'DF raw data'!N133) -> -2.95306e-05 | C133: =IF('DF raw data'!O133="","",'DF raw data'!O133) -> 3.46811e-05 | D133: =IF('DF raw data'!P133="","",'DF raw data'!P133) -> -3.42602e-05 | F133: 1.497649255e-05 | G133: -3.523340788e-05 | H133: -0.004164924042 | J133: 0.0002224343088 | K133: 0.003663895679 | L133: -0.0006252693736 | M133: -0.009811820894 | N133: 4.417677875e-06
A134: =IF('DF raw data'!M134="","",'DF raw data'!M134) -> -266.5 | B134: =IF('DF raw data'!N134="","",'DF raw data'!N134) -> -3.48526e-05 | C134: =IF('DF raw data'!O134="","",'DF raw data'!O134) -> 3.13236e-05 | D134: =IF('DF raw data'!P134="","",'DF raw data'!P134) -> -3.0482e-05 | F134: 9.62735035e-06 | G134: -3.860803113e-05 | H134: -0.004161126574 | J134: 0.000227247984 | K134: 0.003777519671 | L134: -0.0006445733891 | M134: -0.01013410759 | N134: 4.651236125e-06
A135: =IF('DF raw data'!M135="","",'DF raw data'!M135) -> -266 | B135: =IF('DF raw data'!N135="","",'DF raw data'!N135) -> -4.21576e-05 | C135: =IF('DF raw data'!O135="","",'DF raw data'!O135) -> 3.10011e-05 | D135: =IF('DF raw data'!P135="","",'DF raw data'!P135) -> -3.2609e-05 | F135: 2.28509485e-06 | G135: -3.893217588e-05 | H135: -0.004163264421 | J135: 0.0002283905314 | K135: 0.003891714936 | L135: -0.0006640394771 | M135: -0.01046612733 | N135: 4.897791456e-06
A136: =IF('DF raw data'!M136="","",'DF raw data'!M136) -> -265.5 | B136: =IF('DF raw data'!N136="","",'DF raw data'!N136) -> -3.49156e-05 | C136: =IF('DF raw data'!O136="","",'DF raw data'!O136) -> 4.43527e-05 | D136: =IF('DF raw data'!P136="","",'DF raw data'!P136) -> -3.18902e-05 | F136: 9.56402905e-06 | G136: -2.551248272e-05 | H136: -0.004162541955 | J136: 0.0002331725459 | K136: 0.004008301209 | L136: -0.0006767957184 | M136: -0.01080452519 | N136: 5.154002396e-06
A137: =IF('DF raw data'!M137="","",'DF raw data'!M137) -> -265 | B137: =IF('DF raw data'!N137="","",'DF raw data'!N137) -> -4.36996e-05 | C137: =IF('DF raw data'!O137="","",'DF raw data'!O137) -> 4.68477e-05 | D137: =IF('DF raw data'!P137="","",'DF raw data'!P137) -> -2.67516e-05 | F137: 7.3523065e-07 | G137: -2.300475822e-05 | H137: -0.004157377149 | J137: 0.0002335401613 | K137: 0.00412507129 | L137: -0.0006882980975 | M137: -0.01114867424 | N137: 5.418150035e-06
A138: =IF('DF raw data'!M138="","",'DF raw data'!M138) -> -264.5 | B138: =IF('DF raw data'!N138="","",'DF raw data'!N138) -> -3.49121e-05 | C138: =IF('DF raw data'!O138="","",'DF raw data'!O138) -> 4.14666e-05 | D138: =IF('DF raw data'!P138="","",'DF raw data'!P138) -> -3.73091e-05 | F138: 9.5675469e-06 | G138: -2.841330183e-05 | H138: -0.004167988492 | J138: 0.0002383239347 | K138: 0.004244233257 | L138: -0.0007025047484 | M138: -0.01149992661 | N138: 5.693305645e-06
A139: =IF('DF raw data'!M139="","",'DF raw data'!M139) -> -264 | B139: =IF('DF raw data'!N139="","",'DF raw data'!N139) -> -4.05539e-05 | C139: =IF('DF raw data'!O139="","",'DF raw data'!O139) -> 3.66007e-05 | D139: =IF('DF raw data'!P139="","",'DF raw data'!P139) -> -3.47188e-05 | F139: 3.89697372e-06 | G139: -3.330401792e-05 | H139: -0.004165384981 | J139: 0.0002402724216 | K139: 0.004364369468 | L139: -0.0007191567574 | M139: -0.01185950499 | N139: 5.980764284e-06
A140: =IF('DF raw data'!M140="","",'DF raw data'!M140) -> -263.5 | B140: =IF('DF raw data'!N140="","",'DF raw data'!N140) -> -4.97218e-05 | C140: =IF('DF raw data'!O140="","",'DF raw data'!O140) -> 4.80736e-05 | D140: =IF('DF raw data'!P140="","",'DF raw data'!P140) -> -3.0401e-05 | F140: -5.31768257e-06 | G140: -2.177260613e-05 | H140: -0.00416104516 | J140: 0.0002376135803 | K140: 0.004483176258 | L140: -0.0007300430605 | M140: -0.01222452652 | N140: 6.275475826e-06
A141: =IF('DF raw data'!M141="","",'DF raw data'!M141) -> -263 | B141: =IF('DF raw data'!N141="","",'DF raw data'!N141) -> -4.22882e-05 | C141: =IF('DF raw data'!O141="","",'DF raw data'!O141) -> 5.10395e-05 | D141: =IF('DF raw data'!P141="","",'DF raw data'!P141) -> -2.88742e-05 | F141: 2.15382879e-06 | G141: -1.879158004e-05 | H141: -0.004159510574 | J141: 0.0002386904947 | K141: 0.004602521506 | L141: -0.0007394388505 | M141: -0.01259424594 | N141: 6.577347309e-06
A142: =IF('DF raw data'!M142="","",'DF raw data'!M142) -> -262.5 | B142: =IF('DF raw data'!N142="","",'DF raw data'!N142) -> -3.72272e-05 | C142: =IF('DF raw data'!O142="","",'DF raw data'!O142) -> 4.78692e-05 | D142: =IF('DF raw data'!P142="","",'DF raw data'!P142) -> -2.55366e-05 | F142: 7.24063989e-06 | G142: -2.197804857e-05 | H142: -0.004156155952 | J142: 0.0002423108146 | K142: 0.004723676913 | L142: -0.0007504278748 | M142: -0.01296945988 | N142: 6.888275572e-06
A143: =IF('DF raw data'!M143="","",'DF raw data'!M143) -> -262 | B143: =IF('DF raw data'!N143="","",'DF raw data'!N143) -> -3.11961e-05 | C143: =IF('DF raw data'!O143="","",'DF raw data'!O143) -> 4.99768e-05 | D143: =IF('DF raw data'!P143="","",'DF raw data'!P143) -> -3.55239e-05 | F143: 1.33024985e-05 | G143: -1.985969981e-05 | H143: -0.004166194187 | J143: 0.0002489620639 | K143: 0.004848157945 | L143: -0.0007603577247 | M143: -0.01334963874 | N143: 7.208338561e-06
A144: =IF('DF raw data'!M144="","",'DF raw data'!M144) -> -261.5 | B144: =IF('DF raw data'!N144="","",'DF raw data'!N144) -> -4.40153e-05 | C144: =IF('DF raw data'!O144="","",'DF raw data'!O144) -> 4.68034e-05 | D144: =IF('DF raw data'!P144="","",'DF raw data'!P144) -> -3.42393e-05 | F144: 4.1792058e-07 | G144: -2.304928415e-05 | H144: -0.004164903036 | J144: 0.0002491710242 | K144: 0.004972743457 | L144: -0.0007718823667 | M144: -0.01373557993 | N144: 7.537282855e-06
A145: =IF('DF raw data'!M145="","",'DF raw data'!M145) -> -261 | B145: =IF('DF raw data'!N145="","",'DF raw data'!N145) -> -3.38305e-05 | C145: =IF('DF raw data'!O145="","",'DF raw data'!O145) -> 3.85234e-05 | D145: =IF('DF raw data'!P145="","",'DF raw data'!P145) -> -2.53526e-05 | F145: 1.065466306e-05 | G145: -3.137151215e-05 | H145: -0.004155971014 | J145: 0.0002544983557 | K145: 0.005099992635 | L145: -0.0007875681228 | M145: -0.01412936399 | N145: 7.879799336e-06
A146: =IF('DF raw data'!M146="","",'DF raw data'!M146) -> -260.5 | B146: =IF('DF raw data'!N146="","",'DF raw data'!N146) -> -3.78012e-05 | C146: =IF('DF raw data'!O146="","",'DF raw data'!O146) -> 4.4222e-05 | D146: =IF('DF raw data'!P146="","",'DF raw data'!P146) -> -2.9726e-05 | F146: 6.66371249e-06 | G146: -2.564384929e-05 | H146: -0.004160366718 | J146: 0.0002578302119 | K146: 0.005228907741 | L146: -0.0008003900475 | M146: -0.01452955901 | N146: 8.233349659e-06
A147: =IF('DF raw data'!M147="","",'DF raw data'!M147) -> -260 | B147: =IF('DF raw data'!N147="","",'DF raw data'!N147) -> -4.76671e-05 | C147: =IF('DF raw data'!O147="","",'DF raw data'!O147) -> 3.58264e-05 | D147: =IF('DF raw data'!P147="","",'DF raw data'!P147) -> -3.62919e-05 | F147: -3.2525036e-06 | G147: -3.408226685e-05 | H147: -0.004166966104 | J147: 0.0002562039601 | K147: 0.005357009721 | L147: -0.0008174311809 | M147: -0.0149382746 | N147: 8.600266761e-06
A148: =IF('DF raw data'!M148="","",'DF raw data'!M148) -> -259.5 | B148: =IF('DF raw data'!N148="","",'DF raw data'!N148) -> -4.03002e-05 | C148: =IF('DF raw data'!O148="","",'DF raw data'!O148) -> 3.71435e-05 | D148: =IF('DF raw data'!P148="","",'DF raw data'!P148) -> -3.06035e-05 | F148: 4.15196759e-06 | G148: -3.275844964e-05 | H148: -0.004161248693 | J148: 0.0002582799439 | K148: 0.005486149693 | L148: -0.0008338104057 | M148: -0.01535517981 | N148: 8.981240922e-06
A149: =IF('DF raw data'!M149="","",'DF raw data'!M149) -> -259 | B149: =IF('DF raw data'!N149="","",'DF raw data'!N149) -> -4.10729e-05 | C149: =IF('DF raw data'!O149="","",'DF raw data'!O149) -> 4.39221e-05 | D149: =IF('DF raw data'!P149="","",'DF raw data'!P149) -> -2.49954e-05 | F149: 3.37532682e-06 | G149: -2.594527878e-05 | H149: -0.004155611992 | J149: 0.0002599676074 | K149: 0.005616133496 | L149: -0.0008467830451 | M149: -0.01577857133 | N149: 9.373553263e-06
A150: =IF('DF raw data'!M150="","",'DF raw data'!M150) -> -258.5 | B150: =IF('DF raw data'!N150="","",'DF raw data'!N150) -> -4.57404e-05 | C150: =IF('DF raw data'!O150="","",'DF raw data'!O150) -> 4.62458e-05 | D150: =IF('DF raw data'!P150="","",'DF raw data'!P150) -> -4.25762e-05 | F150: -1.31597743e-06 | G150: -2.360972791e-05 | H150: -0.004173282454 | J150: 0.0002593096186 | K150: 0.005745788306 | L150: -0.000858587909 | M150: -0.01620786528 | N150: 9.775760601e-06
A151: =IF('DF raw data'!M151="","",'DF raw data'!M151) -> -258 | B151: =IF('DF raw data'!N151="","",'DF raw data'!N151) -> -3.55531e-05 | C151: =IF('DF raw data'!O151="","",'DF raw data'!O151) -> 4.51593e-05 | D151: =IF('DF raw data'!P151="","",'DF raw data'!P151) -> -3.7624e-05 | F151: 8.9232778e-06 | G151: -2.470176906e-05 | H151: -0.004168304998 | J151: 0.0002637712575 | K151: 0.005877673934 | L151: -0.0008709387936 | M151: -0.01664333468 | N151: 1.018981543e-05
A152: =IF('DF raw data'!M152="","",'DF raw data'!M152) -> -257.5 | B152: =IF('DF raw data'!N152="","",'DF raw data'!N152) -> -5.22144e-05 | C152: =IF('DF raw data'!O152="","",'DF raw data'!O152) -> 4.86585e-05 | D152: =IF('DF raw data'!P152="","",'DF raw data'!P152) -> -4.11279e-05 | F152: -7.82299483e-06 | G152: -2.118472314e-05 | H152: -0.004171826768 | J152: 0.0002598597601 | K152: 0.006007603815 | L152: -0.0008815311551 | M152: -0.01708410026 | N152: 1.061212757e-05
A153: =IF('DF raw data'!M153="","",'DF raw data'!M153) -> -257 | B153: =IF('DF raw data'!N153="","",'DF raw data'!N153) -> -3.35726e-05 | C153: =IF('DF raw data'!O153="","",'DF raw data'!O153) -> 4.97662e-05 | D153: =IF('DF raw data'!P153="","",'DF raw data'!P153) -> -2.7669e-05 | F153: 1.091387835e-05 | G153: -2.007137387e-05 | H153: -0.004158299227 | J153: 0.0002653166993 | K153: 0.006140262164 | L153: -0.0008915668421 | M153: -0.01752988368 | N153: 1.104476976e-05
A154: =IF('DF raw data'!M154="","",'DF raw data'!M154) -> -256.5 | B154: =IF('DF raw data'!N154="","",'DF raw data'!N154) -> -4.29888e-05 | C154: =IF('DF raw data'!O154="","",'DF raw data'!O154) -> 4.3433e-05 | D154: =IF('DF raw data'!P154="","",'DF raw data'!P154) -> -3.57873e-05 | F154: 1.44965573e-06 | G154: -2.643687319e-05 | H154: -0.004166458931 | J154: 0.0002660415272 | K154: 0.006273282928 | L154: -0.0009047852787 | M154: -0.01798227632 | N154: 1.148947701e-05
A155: =IF('DF raw data'!M155="","",'DF raw data'!M155) -> -256 | B155: =IF('DF raw data'!N155="","",'DF raw data'!N155) -> -4.45327e-05 | C155: =IF('DF raw data'!O155="","",'DF raw data'!O155) -> 4.61094e-05 | D155: =IF('DF raw data'!P155="","",'DF raw data'!P155) -> -2.6924e-05 | F155: -1.0211816e-07 | G155: -2.374682355e-05 | H155: -0.004157550428 | J155: 0.0002659904681 | K155: 0.006406278162 | L155: -0.0009166586904 | M155: -0.01844060566 | N155: 1.194498405e-05
A156: =IF('DF raw data'!M156="","",'DF raw data'!M156) -> -255.5 | B156: =IF('DF raw data'!N156="","",'DF raw data'!N156) -> -4.25395e-05 | C156: =IF('DF raw data'!O156="","",'DF raw data'!O156) -> 3.97206e-05 | D156: =IF('DF raw data'!P156="","",'DF raw data'!P156) -> -3.66288e-05 | F156: 1.90124716e-06 | G156: -3.016820643e-05 | H156: -0.004167304722 | J156: 0.0002669410917 | K156: 0.006539748708 | L156: -0.0009317427937 | M156: -0.01890647706 | N156: 1.241468514e-05
A157: =IF('DF raw data'!M157="","",'DF raw data'!M157) -> -255 | B157: =IF('DF raw data'!N157="","",'DF raw data'!N157) -> -3.89506e-05 | C157: =IF('DF raw data'!O157="","",'DF raw data'!O157) -> 3.73506e-05 | D157: =IF('DF raw data'!P157="","",'DF raw data'!P157) -> -3.65645e-05 | F157: 5.50845055e-06 | G157: -3.255029343e-05 | H157: -0.004167240094 | J157: 0.0002696953169 | K157: 0.006674596366 | L157: -0.0009480179404 | M157: -0.01938048603 | N157: 1.290042193e-05
A158: =IF('DF raw data'!M158="","",'DF raw data'!M158) -> -254.5 | B158: =IF('DF raw data'!N158="","",'DF raw data'!N158) -> -4.72278e-05 | C158: =IF('DF raw data'!O158="","",'DF raw data'!O158) -> 4.41084e-05 | D158: =IF('DF raw data'!P158="","",'DF raw data'!P158) -> -2.1797e-05 | F158: -2.81096317e-06 | G158: -2.575802865e-05 | H158: -0.00415239728 | J158: 0.0002682898354 | K158: 0.006808741284 | L158: -0.0009608969547 | M158: -0.01986093451 | N158: 1.339807312e-05
A159: =IF('DF raw data'!M159="","",'DF raw data'!M159) -> -254 | B159: =IF('DF raw data'!N159="","",'DF raw data'!N159) -> -4.158e-05 | C159: =IF('DF raw data'!O159="","",'DF raw data'!O159) -> 4.9025e-05 | D159: =IF('DF raw data'!P159="","",'DF raw data'!P159) -> -3.39642e-05 | F159: 2.86564061e-06 | G159: -2.081635399e-05 | H159: -0.004164626533 | J159: 0.0002697226557 | K159: 0.006943602612 | L159: -0.0009713051317 | M159: -0.02034658707 | N159: 1.390616511e-05
A160: =IF('DF raw data'!M160="","",'DF raw data'!M160) -> -253.5 | B160: =IF('DF raw data'!N160="","",'DF raw data'!N160) -> -3.07481e-05 | C160: =IF('DF raw data'!O160="","",'DF raw data'!O160) -> 5.49826e-05 | D160: =IF('DF raw data'!P160="","",'DF raw data'!P160) -> -3.44123e-05 | F160: 1.37527833e-05 | G160: -1.482837023e-05 | H160: -0.004165076918 | J160: 0.0002765990473 | K160: 0.007081902135 | L160: -0.0009787193168 | M160: -0.02083594673 | N160: 1.442336438e-05
A161: =IF('DF raw data'!M161="","",'DF raw data'!M161) -> -253 | B161: =IF('DF raw data'!N161="","",'DF raw data'!N161) -> -4.08071e-05 | C161: =IF('DF raw data'!O161="","",'DF raw data'!O161) -> 4.14226e-05 | D161: =IF('DF raw data'!P161="","",'DF raw data'!P161) -> -3.94733e-05 | F161: 3.6424824e-06 | G161: -2.845752623e-05 | H161: -0.004170163729 | J161: 0.0002784202885 | K161: 0.00722111228 | L161: -0.0009929480799 | M161: -0.02133242077 | N161: 1.495509625e-05
A162: =IF('DF raw data'!M162="","",'DF raw data'!M162) -> -252.5 | B162: =IF('DF raw data'!N162="","",'DF raw data'!N162) -> -3.74827e-05 | C162: =IF('DF raw data'!O162="","",'DF raw data'!O162) -> 3.94673e-05 | D162: =IF('DF raw data'!P162="","",'DF raw data'!P162) -> -2.68134e-05 | F162: 6.98383684e-06 | G162: -3.042279826e-05 | H162: -0.004157439264 | J162: 0.0002819122069 | K162: 0.007362068383 | L162: -0.001008159479 | M162: -0.02183650051 | N162: 1.550302626e-05
A163: =IF('DF raw data'!M163="","",'DF raw data'!M163) -> -252 | B163: =IF('DF raw data'!N163="","",'DF raw data'!N163) -> -4.95947e-05 | C163: =IF('DF raw data'!O163="","",'DF raw data'!O163) -> 4.84331e-05 | D163: =IF('DF raw data'!P163="","",'DF raw data'!P163) -> -2.86811e-05 | F163: -5.18993436e-06 | G163: -2.141127268e-05 | H163: -0.004159316489 | J163: 0.0002793172397 | K163: 0.007501727003 | L163: -0.001018865115 | M163: -0.02234593307 | N163: 1.606107839e-05
